Workbook

Sheet メニュー
A1: 240628
D3: 報告対象年度： | E3: 2024 | F3: 年度
D15: ファイル名： | E15: ='第1表1-1(貨物)'!$O$5 & "_" &表紙!$V$53 & "_" & 表紙!V54 &"_省エネ法定期報告書（認定）【R7.3版】.xlsm" -> 2024_0000000032_000000000_省エネ法定期報告書（認定）【R7.3版】.xlsm

Sheet 表紙
A1: 20240501
D2: 様式第１３（第２０条関係）
O3: 受理年月日
O4: 処理年月日
D6: 定 期 報 告 書
F13: 地方運輸局長 | I13: 殿
N17: 2025 | P17: 年 | R17: 月 | T17: 日
J22: 住 所
J25: 法人名
J27: 法人番号
J29: 代表者の役職名
J31: 代表者の氏名
D34: エネルギーの使用の合理化及び非化石エネルギーへの転換等に関する法律第１３６条第１項の規定に基づき、次のとおり報告します。
D35: 認定管理統括貨客輸送事業者指定番号 | K35: 0 | L35: 0 | M35: 0 | N35: 0 | O35: 0 | P35: 0 | Q35: 0 | R35: 0 | S35: 3 | T35: 2
E36: 特定排出者番号 | L36: 0 | M36: 0 | N36: 0 | O36: 0 | P36: 0 | Q36: 0 | R36: 0 | S36: 0 | T36: 0
D37: 事業者名 | I37: =IF($M$25="","",$M$25) ->  | Q37: 0 | R37: 0 | S37: 0 | T37: 0
C38: ― | D38: 主たる貨客輸送区分 | I38: =IF($T$35=1,"①．","１．") -> １． | J38: 鉄道による貨物の輸送
C39: ― | I39: =IF($T$35=2,"②．","２．") -> ②． | J39: 事業用貨物自動車による貨物の輸送
C40: ― | I40: =IF($T$35=3,"③．","３．") -> ３． | J40: 自家用貨物自動車による貨物の輸送
I41: =IF($T$35=4,"④．","４．") -> ４． | J41: 船舶による貨物の輸送
I42: =IF($T$35=5,"⑤．","５．") -> ５． | J42: 鉄道による旅客の輸送
I43: =IF($T$35=6,"⑥．","６．") -> ６． | J43: 乗合自動車による旅客の輸送
I44: =IF($T$35=7,"⑦．","７．") -> ７． | J44: 乗用自動車（乗合自動車を除く。）による旅客の輸送
C45: ― | I45: =IF($T$35=8,"⑧．","８．") -> ８． | J45: 船舶による旅客の輸送
C46: ― | D46: 主たる事務所の所在地 | I46: 〒 | K46: -
C47: ― | I47: =IF($M$22="","",$M$22) -> 
C48: ― | I48: 電話 | J48: （ | M48: - | P48: - | S48: ）
C49: ― | I49: FAX | J49: （ | S49: ）
C50: ― | I50: e-mail | J50: （ | S50: ）
V52: =Q35*10+R35 -> 0 | W52: =IF($V$52=0,"―",IF($V$52=1,"北海道",IF($V$52<8,"東北",IF($V$52<15,"関東",IF($V$52<19,"北陸",IF($V$52<24,"中部",IF($V$52<31,"関西",IF($V$52<36,"中国",IF($V$52<40,"四国",IF($V$52<46,"九州","沖縄")))))))))) -> ―
V53: =K35&L35&M35&N35&O35&P35&Q35&R35&S35&T35 -> 0000000032
V54: =L36&M36&N36&O36&P36&Q36&R36&S36&T36 -> 000000000
V55: =Q37*10^3+R37*10^2+S37*10+T37 -> 0

Sheet 第1表1-1(貨物)
B2: TRUE | D2: 第１表 エネルギーの使用量
D3: １ー１．貨物輸送によるエネルギーの使用量
D4: エネルギーの種類 | L4: 単位 | O4: 使用量 | AN4: CO2排出量 （tCO2) | AP4: 連携省エネルギー措置を踏まえたCO2排出量 （tCO2) | AS4: CO2排出量 独自算出 （tCO2) | AU4: 連携省エネルギー措置を踏まえたCO2排出量 独自算出 （tCO2) | AX4: 独自排出係数
O5: =メニュー!$E$3 -> 2024 | T5: 年度 | AA5: エネルギー使用量熱量ＧJ | AG5: 連携省エネルギー措置を踏まえたエネルギー使用量熱量ＧJ
O6: エネルギー使用量 | U6: 連携省エネルギー措置を踏まえたエネルギー使用量
D7: 化石燃料 | G7: 揮発油 | L7: ｋｌ | O7: 0 | U7: 0 | AA7: =O7*'熱量換算係数(電気・ガス以外)'!C5 -> 0 | AG7: =U7*'熱量換算係数(電気・ガス以外)'!C5 -> 0 | AN7: =IF(AS7<>"ー",AS7, IF($AX7="―",AA7*'排出係数(燃料)'!$C$15/12*44,AA7*$AX7/12*44)) -> 0 | AP7: =IF(AU7<>"ー",AU7, IF($AX7="―",AG7*'排出係数(燃料)'!$C$15/12*44,AG7*$AX7/12*44)) -> 0 | AS7: ― | AU7: ― | AX7: ―
G8: 連携分 | L8: ｋｌ | U8: 0 | AG8: =U8*'熱量換算係数(電気・ガス以外)'!C5 -> 0 | AP8: =IF(AU8<>"ー",AU8, IF($AX7="―",AG8*'排出係数(燃料)'!$C$15/12*44,AG8*$AX7/12*44)) -> 0 | AU8: ―
G9: ジェット燃料油 | L9: ｋｌ | O9: 0 | U9: 0 | AA9: =O9*'熱量換算係数(電気・ガス以外)'!C7 -> 0 | AG9: =U9*'熱量換算係数(電気・ガス以外)'!C7 -> 0 | AN9: =IF(AS9<>"ー",AS9, IF($AX9="―",AA9*'排出係数(燃料)'!$C$17/12*44,AA9*$AX9/12*44)) -> 0 | AP9: =IF(AU9<>"ー",AU9, IF($AX9="―",AG9*'排出係数(燃料)'!$C$17/12*44,AG9*$AX9/12*44)) -> 0 | AS9: ― | AU9: ― | AX9: ―
G10: 連携分 | L10: ｋｌ | U10: 0 | AG10: =U10*'熱量換算係数(電気・ガス以外)'!C7 -> 0 | AP10: =IF(AU10<>"ー",AU10, IF($AX9="―",AG10*'排出係数(燃料)'!$C$17/12*44,AG10*$AX9/12*44)) -> 0 | AU10: ―
G11: 軽油 | L11: ｋｌ | O11: 0 | U11: 0 | AA11: =O11*'熱量換算係数(電気・ガス以外)'!$C9 -> 0 | AG11: =U11*'熱量換算係数(電気・ガス以外)'!$C9 -> 0 | AN11: =IF(AS11<>"ー",AS11, IF($AX11="―",AA11*'排出係数(燃料)'!$C$19/12*44,AA11*$AX11/12*44)) -> 0 | AP11: =IF(AU11<>"ー",AU11, IF($AX11="―",AG11*'排出係数(燃料)'!$C$19/12*44,AG11*$AX11/12*44)) -> 0 | AS11: ― | AU11: ― | AX11: ―
G12: 連携分 | L12: ｋｌ | U12: 0 | AG12: =U12*'熱量換算係数(電気・ガス以外)'!$C10 -> 0 | AP12: =IF(AU12<>"ー",AU12, IF($AX11="―",AG12*'排出係数(燃料)'!$C$19/12*44,AG12*$AX11/12*44)) -> 0 | AU12: ―
G13: Ａ重油 | L13: ｋｌ | O13: 0 | U13: 0 | AA13: =O13*'熱量換算係数(電気・ガス以外)'!C10 -> 0 | AG13: =U13*'熱量換算係数(電気・ガス以外)'!C10 -> 0 | AN13: =IF(AS13<>"ー",AS13, IF($AX13="―",AA13*'排出係数(燃料)'!$C$20/12*44,AA13*$AX13/12*44)) -> 0 | AP13: =IF(AU13<>"ー",AU13, IF($AX13="―",AG13*'排出係数(燃料)'!$C$20/12*44,AG13*$AX13/12*44)) -> 0 | AS13: ― | AU13: ― | AX13: ―
G14: 連携分 | L14: ｋｌ | U14: 0 | AG14: =U14*'熱量換算係数(電気・ガス以外)'!C10 -> 0 | AP14: =IF(AU14<>"ー",AU14, IF($AX13="―",AG14*'排出係数(燃料)'!$C$20/12*44,AG14*$AX13/12*44)) -> 0 | AU14: ―
G15: Ｂ・Ｃ重油 | L15: ｋｌ | O15: 0 | U15: 0 | AA15: =O15*'熱量換算係数(電気・ガス以外)'!C11 -> 0 | AG15: =U15*'熱量換算係数(電気・ガス以外)'!C11 -> 0 | AN15: =IF(AS15<>"ー",AS15, IF($AX15="―",AA15*'排出係数(燃料)'!$C$21/12*44,AA15*$AX15/12*44)) -> 0 | AP15: =IF(AU15<>"ー",AU15, IF($AX15="―",AG15*'排出係数(燃料)'!$C$21/12*44,AG15*$AX15/12*44)) -> 0 | AS15: ― | AU15: ― | AX15: ―
G16: 連携分 | L16: ｋｌ | U16: 0 | AG16: =U16*'熱量換算係数(電気・ガス以外)'!C11 -> 0 | AP16: =IF(AU16<>"ー",AU16, IF($AX15="―",AG16*'排出係数(燃料)'!$C$21/12*44,AG16*$AX15/12*44)) -> 0 | AU16: ―
G17: 液化石油ガス(ＬＰＧ) | L17: ｔ | O17: 0 | U17: 0 | AA17: =O17*'熱量換算係数(電気・ガス以外)'!C14 -> 0 | AG17: =U17*'熱量換算係数(電気・ガス以外)'!C14 -> 0 | AN17: =IF(AS17<>"ー",AS17, IF($AX17="―",AA17*'排出係数(燃料)'!$C$23/12*44,AA17*$AX17/12*44)) -> 0 | AP17: =IF(AU17<>"ー",AU17, IF($AX17="―",AG17*'排出係数(燃料)'!$C$23/12*44,AG17*$AX17/12*44)) -> 0 | AS17: ― | AU17: ― | AX17: ―
G18: 連携分 | L18: ｔ | U18: 0 | AG18: =U18*'熱量換算係数(電気・ガス以外)'!C14 -> 0 | AP18: =IF(AU18<>"ー",AU18, IF($AX17="―",AG18*'排出係数(燃料)'!$C$23/12*44,AG18*$AX17/12*44)) -> 0 | AU18: ―
G19: 液化天然ガス(ＬＮＧ) | L19: ｔ | O19: 0 | U19: 0 | AA19: =O19*'熱量換算係数(電気・ガス以外)'!C16 -> 0 | AG19: =U19*'熱量換算係数(電気・ガス以外)'!C16 -> 0 | AN19: =IF(AS19<>"ー",AS19, IF($AX19="―",AA19*'排出係数(燃料)'!$C$25/12*44,AA19*$AX19/12*44)) -> 0 | AP19: =IF(AU19<>"ー",AU19, IF($AX19="―",AG19*'排出係数(燃料)'!$C$25/12*44,AG19*$AX19/12*44)) -> 0 | AS19: ― | AU19: ― | AX19: ―
G20: 連携分 | L20: ｔ | U20: 0 | AG20: =U20*'熱量換算係数(電気・ガス以外)'!C16 -> 0 | AP20: =IF(AU20<>"ー",AU20, IF($AX19="―",AG20*'排出係数(燃料)'!$C$25/12*44,AG20*$AX19/12*44)) -> 0 | AU20: ―
G21: 石炭(原料炭) | L21: ｔ | O21: 0 | U21: 0 | AA21: =O21*'熱量換算係数(電気・ガス以外)'!C21 -> 0 | AG21: =U21*'熱量換算係数(電気・ガス以外)'!C21 -> 0 | AN21: =IF(AS21<>"ー",AS21, IF($AX21="―",AA21*'排出係数(燃料)'!$C$3/12*44,AA21*$AX21/12*44)) -> 0 | AP21: =IF(AU21<>"ー",AU21, IF($AX21="―",AG21*'排出係数(燃料)'!$C$3/12*44,AG21*$AX21/12*44)) -> 0 | AS21: ― | AU21: ― | AX21: ―
G22: 連携分 | L22: ｔ | U22: 0 | AG22: =U22*'熱量換算係数(電気・ガス以外)'!C21 -> 0 | AP22: =IF(AU22<>"ー",AU22, IF($AX21="―",AG22*'排出係数(燃料)'!$C$3/12*44,AG22*$AX21/12*44)) -> 0 | AU22: ―
G23: 石炭(一般炭) | L23: ｔ | O23: 0 | U23: 0 | AA23: =O23*('熱量換算係数(電気・ガス以外)'!C21+'熱量換算係数(電気・ガス以外)'!C22)/2 -> 0 | AG23: =U23*('熱量換算係数(電気・ガス以外)'!C21+'熱量換算係数(電気・ガス以外)'!C22)/2 -> 0 | AN23: =IF(AS23<>"ー",AS23, IF($AX23="―",AA23*'排出係数(燃料)'!$C$6/12*44,AA23*$AX23/12*44)) -> 0 | AP23: =IF(AU23<>"ー",AU23, IF($AX23="―",AG23*'排出係数(燃料)'!$C$6/12*44,AG23*$AX23/12*44)) -> 0 | AS23: ― | AU23: ― | AX23: ―
G24: 連携分 | L24: ｔ | U24: 0 | AG24: =U24*('熱量換算係数(電気・ガス以外)'!C21+'熱量換算係数(電気・ガス以外)'!C22)/2 -> 0 | AP24: =IF(AU24<>"ー",AU24, IF($AX23="―",AG24*'排出係数(燃料)'!$C$6/12*44,AG24*$AX23/12*44)) -> 0 | AU24: ―
G25: 石炭(無煙炭) | L25: ｔ | O25: 0 | U25: 0 | AA25: =O25*'熱量換算係数(電気・ガス以外)'!C23 -> 0 | AG25: =U25*'熱量換算係数(電気・ガス以外)'!C23 -> 0 | AN25: =IF(AS25<>"ー",AS25, IF($AX25="―",AA25*'排出係数(燃料)'!$C$8/12*44,AA25*$AX25/12*44)) -> 0 | AP25: =IF(AU25<>"ー",AU25, IF($AX25="―",AG25*'排出係数(燃料)'!$C$8/12*44,AG25*$AX25/12*44)) -> 0 | AS25: ― | AU25: ― | AX25: ―
G26: 連携分 | L26: ｔ | U26: 0 | AG26: =U26*'熱量換算係数(電気・ガス以外)'!C23 -> 0 | AP26: =IF(AU26<>"ー",AU26, IF($AX25="―",AG26*'排出係数(燃料)'!$C$8/12*44,AG26*$AX25/12*44)) -> 0 | AU26: ―
G27: 都市ガス （ＣＮＧを含む。） | L27: 千m３ | O27: ='入力補助(ガス)(貨物)'!$G$55 -> 0 | U27: ='入力補助(ガス)(貨物)'!$H$55 -> 0 | AA27: ='入力補助(ガス)(貨物)'!$J$55 -> 0 | AG27: ='入力補助(ガス)(貨物)'!$K$55 -> 0 | AN27: ='入力補助(ガス)(貨物)'!$M$55 -> 0 | AP27: ='入力補助(ガス)(貨物)'!$N$55 -> 0
G28: 連携分 | L28: 千m３ | U28: ='入力補助(ガス)(貨物)'!$I$55 -> 0 | AG28: ='入力補助(ガス)(貨物)'!$L$55 -> 0 | AP28: ='入力補助(ガス)(貨物)'!$O$55 -> 0
G29: その他（ ） | O29: 0 | U29: 0 | AA29: 0 | AG29: 0 | AN29: =IF(AS29<>"―",AS29,IF($AX29<>"―",AA29*$AX29/12*44,"― ")) -> ― | AP29: =IF(AU29<>"―",AU29,IF($AX29<>"―",AG29*$AX29/12*44,"― ")) -> ― | AS29: ― | AU29: ― | AX29: ―
G30: 連携分 | L30: =IF(L29<>"",L29,"") ->  | U30: 0 | AG30: 0 | AP30: =IF(AU30<>"―",AU30,IF($AX29<>"―",AG30*$AX29/12*44,"― ")) -> ― | AU30: ―
G31: その他（ ） | O31: 0 | U31: 0 | AA31: 0 | AG31: 0 | AN31: =IF(AS31<>"―",AS31,IF($AX31<>"―",AA31*$AX31/12*44,"― ")) -> ― | AP31: =IF(AU31<>"―",AU31,IF($AX31<>"―",AG31*$AX31/12*44,"― ")) -> ― | AS31: ― | AU31: ― | AX31: ―
... 38 more rows

Sheet 第1表1-2(貨物)
B2: 1 | D2: １ー２．貨物輸送による電気需要最適化を踏まえた電力使用量の内訳
D3: 時間帯 | H3: 単位 | K3: 年度
K4: 使用量 | S4: 連携分を除いた エネルギー使用量 | AC4: 連携省エネルギー分の エネルギー使用量
K6: 数値 | N6: 原油換算 kl | S6: 数値 | X6: 原油換算 ｋｌ | AC6: 数値 | AH6: 原油換算 ｋｌ
AO7: 月別電気需要最適化係数
D8: 月 別 | E8: ４月 | H8: 千kWh | K8: =IF($B$2=2,"",'入力補助(電気・月別)(貨物)'!AG$60+'入力補助(電気・月別)(貨物)'!AG$62) -> 0 | N8: =IF($B$2=2,"",$AO8/8.64*0.0258*('入力補助(電気・月別)(貨物)'!AK$60+'入力補助(電気・月別)(貨物)'!AK$62)) -> 0 | S8: =IF($B$2=2,"",'入力補助(電気・月別)(貨物)'!AG140+'入力補助(電気・月別)(貨物)'!AG142) -> 0 | X8: =IF($B$2=2,"",$AO8/8.64*0.0258*('入力補助(電気・月別)(貨物)'!AK140+'入力補助(電気・月別)(貨物)'!AK142)) -> 0 | AC8: =IF($B$2=2,"",'入力補助(電気・月別)(貨物)'!AG208+'入力補助(電気・月別)(貨物)'!AG210) -> 0 | AH8: =IF($B$2=2,"",$AO8/8.64*0.0258*('入力補助(電気・月別)(貨物)'!AK208+'入力補助(電気・月別)(貨物)'!AK210)) -> 0 | AO8: =HLOOKUP(表紙!$W$52,月別電気需要最適化係数!$C$2:$M$3,2) -> 8.975
E9: ５月 | H9: 千kWh | K9: =IF($B$2=2,"",'入力補助(電気・月別)(貨物)'!AX$60+'入力補助(電気・月別)(貨物)'!AX$62) -> 0 | N9: =IF($B$2=2,"",$AO9/8.64*0.0258*('入力補助(電気・月別)(貨物)'!BB$60+'入力補助(電気・月別)(貨物)'!BB$62)) -> 0 | S9: =IF($B$2=2,"",'入力補助(電気・月別)(貨物)'!AX140+'入力補助(電気・月別)(貨物)'!AX142) -> 0 | X9: =IF($B$2=2,"",$AO9/8.64*0.0258*('入力補助(電気・月別)(貨物)'!BB140+'入力補助(電気・月別)(貨物)'!BB142)) -> 0 | AC9: =IF($B$2=2,"",'入力補助(電気・月別)(貨物)'!AX208+'入力補助(電気・月別)(貨物)'!AX210) -> 0 | AH9: =IF($B$2=2,"",$AO9/8.64*0.0258*('入力補助(電気・月別)(貨物)'!BB208+'入力補助(電気・月別)(貨物)'!BB210)) -> 0 | AO9: =HLOOKUP(表紙!$W$52,月別電気需要最適化係数!$C$2:$M$4,3) -> 9.013
E10: ６月 | H10: 千kWh | K10: =IF($B$2=2,"",'入力補助(電気・月別)(貨物)'!$BO$60+'入力補助(電気・月別)(貨物)'!$BO$62) -> 0 | N10: =IF($B$2=2,"",$AO10/8.64*0.0258*('入力補助(電気・月別)(貨物)'!BS$60+'入力補助(電気・月別)(貨物)'!BS$62)) -> 0 | S10: =IF($B$2=2,"",'入力補助(電気・月別)(貨物)'!BO140+'入力補助(電気・月別)(貨物)'!BO142) -> 0 | X10: =IF($B$2=2,"",$AO10/8.64*0.0258*('入力補助(電気・月別)(貨物)'!BS140+'入力補助(電気・月別)(貨物)'!BS142)) -> 0 | AC10: =IF($B$2=2,"",'入力補助(電気・月別)(貨物)'!BO208+'入力補助(電気・月別)(貨物)'!BO210) -> 0 | AH10: =IF($B$2=2,"",$AO10/8.64*0.0258*('入力補助(電気・月別)(貨物)'!BS208+'入力補助(電気・月別)(貨物)'!BS210)) -> 0 | AO10: =HLOOKUP(表紙!$W$52,月別電気需要最適化係数!$C$2:$M$5,4) -> 9.254
E11: ７月 | H11: 千kWh | K11: =IF($B$2=2,"",'入力補助(電気・月別)(貨物)'!CF$60+'入力補助(電気・月別)(貨物)'!CF$62) -> 0 | N11: =IF($B$2=2,"",$AO11/8.64*0.0258*('入力補助(電気・月別)(貨物)'!CJ$60+'入力補助(電気・月別)(貨物)'!CJ$62)) -> 0 | S11: =IF($B$2=2,"",'入力補助(電気・月別)(貨物)'!CF140+'入力補助(電気・月別)(貨物)'!CF142) -> 0 | X11: =IF($B$2=2,"",$AO11/8.64*0.0258*('入力補助(電気・月別)(貨物)'!CJ140+'入力補助(電気・月別)(貨物)'!CJ142)) -> 0 | AC11: =IF($B$2=2,"",'入力補助(電気・月別)(貨物)'!CF208+'入力補助(電気・月別)(貨物)'!CF210) -> 0 | AH11: =IF($B$2=2,"",$AO11/8.64*0.0258*('入力補助(電気・月別)(貨物)'!CJ208+'入力補助(電気・月別)(貨物)'!CJ210)) -> 0 | AO11: =HLOOKUP(表紙!$W$52,月別電気需要最適化係数!$C$2:$M$6,5) -> 9.397
E12: ８月 | H12: 千kWh | K12: =IF($B$2=2,"",'入力補助(電気・月別)(貨物)'!CW$60+'入力補助(電気・月別)(貨物)'!CW$62) -> 0 | N12: =IF($B$2=2,"",$AO12/8.64*0.0258*('入力補助(電気・月別)(貨物)'!DA$60+'入力補助(電気・月別)(貨物)'!DA$62)) -> 0 | S12: =IF($B$2=2,"",'入力補助(電気・月別)(貨物)'!CW140+'入力補助(電気・月別)(貨物)'!CW142) -> 0 | X12: =IF($B$2=2,"",$AO12/8.64*0.0258*('入力補助(電気・月別)(貨物)'!DA140+'入力補助(電気・月別)(貨物)'!DA142)) -> 0 | AC12: =IF($B$2=2,"",'入力補助(電気・月別)(貨物)'!CW208+'入力補助(電気・月別)(貨物)'!CW210) -> 0 | AH12: =IF($B$2=2,"",$AO12/8.64*0.0258*('入力補助(電気・月別)(貨物)'!DA208+'入力補助(電気・月別)(貨物)'!DA210)) -> 0 | AO12: =HLOOKUP(表紙!$W$52,月別電気需要最適化係数!$C$2:$M$7,6) -> 9.394
E13: ９月 | H13: 千kWh | K13: =IF($B$2=2,"",'入力補助(電気・月別)(貨物)'!DN$60+'入力補助(電気・月別)(貨物)'!DN$62) -> 0 | N13: =IF($B$2=2,"",$AO13/8.64*0.0258*('入力補助(電気・月別)(貨物)'!DR$60+'入力補助(電気・月別)(貨物)'!DR$62)) -> 0 | S13: =IF($B$2=2,"",'入力補助(電気・月別)(貨物)'!DN140+'入力補助(電気・月別)(貨物)'!DN142) -> 0 | X13: =IF($B$2=2,"",$AO13/8.64*0.0258*('入力補助(電気・月別)(貨物)'!DR140+'入力補助(電気・月別)(貨物)'!DR142)) -> 0 | AC13: =IF($B$2=2,"",'入力補助(電気・月別)(貨物)'!DN208+'入力補助(電気・月別)(貨物)'!DN210) -> 0 | AH13: =IF($B$2=2,"",$AO13/8.64*0.0258*('入力補助(電気・月別)(貨物)'!DR208+'入力補助(電気・月別)(貨物)'!DR210)) -> 0 | AO13: =HLOOKUP(表紙!$W$52,月別電気需要最適化係数!$C$2:$M$8,7) -> 9.361
E14: １０月 | H14: 千kWh | K14: =IF($B$2=2,"",'入力補助(電気・月別)(貨物)'!EE$60+'入力補助(電気・月別)(貨物)'!EE$62) -> 0 | N14: =IF($B$2=2,"",$AO14/8.64*0.0258*('入力補助(電気・月別)(貨物)'!EI$60+'入力補助(電気・月別)(貨物)'!EI$62)) -> 0 | S14: =IF($B$2=2,"",'入力補助(電気・月別)(貨物)'!EE140+'入力補助(電気・月別)(貨物)'!EE142) -> 0 | X14: =IF($B$2=2,"",$AO14/8.64*0.0258*('入力補助(電気・月別)(貨物)'!EI140+'入力補助(電気・月別)(貨物)'!EI142)) -> 0 | AC14: =IF($B$2=2,"",'入力補助(電気・月別)(貨物)'!EE208+'入力補助(電気・月別)(貨物)'!EE210) -> 0 | AH14: =IF($B$2=2,"",$AO14/8.64*0.0258*('入力補助(電気・月別)(貨物)'!EI208+'入力補助(電気・月別)(貨物)'!EI210)) -> 0 | AO14: =HLOOKUP(表紙!$W$52,月別電気需要最適化係数!$C$2:$M$9,8) -> 9.21
E15: １１月 | H15: 千kWh | K15: =IF($B$2=2,"",'入力補助(電気・月別)(貨物)'!EV$60+'入力補助(電気・月別)(貨物)'!EV$62) -> 0 | N15: =IF($B$2=2,"",$AO15/8.64*0.0258*('入力補助(電気・月別)(貨物)'!EZ$60+'入力補助(電気・月別)(貨物)'!EZ$62)) -> 0 | S15: =IF($B$2=2,"",'入力補助(電気・月別)(貨物)'!EV140+'入力補助(電気・月別)(貨物)'!EV142) -> 0 | X15: =IF($B$2=2,"",$AO15/8.64*0.0258*('入力補助(電気・月別)(貨物)'!EZ140+'入力補助(電気・月別)(貨物)'!EZ142)) -> 0 | AC15: =IF($B$2=2,"",'入力補助(電気・月別)(貨物)'!EV208+'入力補助(電気・月別)(貨物)'!EV210) -> 0 | AH15: =IF($B$2=2,"",$AO15/8.64*0.0258*('入力補助(電気・月別)(貨物)'!EZ208+'入力補助(電気・月別)(貨物)'!EZ210)) -> 0 | AO15: =HLOOKUP(表紙!$W$52,月別電気需要最適化係数!$C$2:$M$10,9) -> 9.291
E16: １２月 | H16: 千kWh | K16: =IF($B$2=2,"",'入力補助(電気・月別)(貨物)'!FM$60+'入力補助(電気・月別)(貨物)'!FM$62) -> 0 | N16: =IF($B$2=2,"",$AO16/8.64*0.0258*('入力補助(電気・月別)(貨物)'!FQ$60+'入力補助(電気・月別)(貨物)'!FQ$62)) -> 0 | S16: =IF($B$2=2,"",'入力補助(電気・月別)(貨物)'!FM140+'入力補助(電気・月別)(貨物)'!FM142) -> 0 | X16: =IF($B$2=2,"",$AO16/8.64*0.0258*('入力補助(電気・月別)(貨物)'!FQ140+'入力補助(電気・月別)(貨物)'!FQ142)) -> 0 | AC16: =IF($B$2=2,"",'入力補助(電気・月別)(貨物)'!FM208+'入力補助(電気・月別)(貨物)'!FM210) -> 0 | AH16: =IF($B$2=2,"",$AO16/8.64*0.0258*('入力補助(電気・月別)(貨物)'!FQ208+'入力補助(電気・月別)(貨物)'!FQ210)) -> 0 | AO16: =HLOOKUP(表紙!$W$52,月別電気需要最適化係数!$C$2:$M$11,10) -> 9.362
E17: １月 | H17: 千kWh | K17: =IF($B$2=2,"",'入力補助(電気・月別)(貨物)'!GD$60+'入力補助(電気・月別)(貨物)'!GD$62) -> 0 | N17: =IF($B$2=2,"",$AO17/8.64*0.0258*('入力補助(電気・月別)(貨物)'!GH$60+'入力補助(電気・月別)(貨物)'!GH$62)) -> 0 | S17: =IF($B$2=2,"",'入力補助(電気・月別)(貨物)'!GD140+'入力補助(電気・月別)(貨物)'!GD142) -> 0 | X17: =IF($B$2=2,"",$AO17/8.64*0.0258*('入力補助(電気・月別)(貨物)'!GH140+'入力補助(電気・月別)(貨物)'!GH142)) -> 0 | AC17: =IF($B$2=2,"",'入力補助(電気・月別)(貨物)'!GD208+'入力補助(電気・月別)(貨物)'!GD210) -> 0 | AH17: =IF($B$2=2,"",$AO17/8.64*0.0258*('入力補助(電気・月別)(貨物)'!GH208+'入力補助(電気・月別)(貨物)'!GH210)) -> 0 | AO17: =HLOOKUP(表紙!$W$52,月別電気需要最適化係数!$C$2:$M$12,11) -> 9.347
E18: ２月 | H18: 千kWh | K18: =IF($B$2=2,"",'入力補助(電気・月別)(貨物)'!GU$60+'入力補助(電気・月別)(貨物)'!GU$62) -> 0 | N18: =IF($B$2=2,"",$AO18/8.64*0.0258*('入力補助(電気・月別)(貨物)'!GY$60+'入力補助(電気・月別)(貨物)'!GY$62)) -> 0 | S18: =IF($B$2=2,"",'入力補助(電気・月別)(貨物)'!GU140+'入力補助(電気・月別)(貨物)'!GU142) -> 0 | X18: =IF($B$2=2,"",$AO18/8.64*0.0258*('入力補助(電気・月別)(貨物)'!GY140+'入力補助(電気・月別)(貨物)'!GY142)) -> 0 | AC18: =IF($B$2=2,"",'入力補助(電気・月別)(貨物)'!GU208+'入力補助(電気・月別)(貨物)'!GU210) -> 0 | AH18: =IF($B$2=2,"",$AO18/8.64*0.0258*('入力補助(電気・月別)(貨物)'!GY208+'入力補助(電気・月別)(貨物)'!GY210)) -> 0 | AO18: =HLOOKUP(表紙!$W$52,月別電気需要最適化係数!$C$2:$M$13,12) -> 9.267
E19: ３月 | H19: 千kWh | K19: =IF($B$2=2,"",'入力補助(電気・月別)(貨物)'!HL$60+'入力補助(電気・月別)(貨物)'!HL$62) -> 0 | N19: =IF($B$2=2,"",$AO19/8.64*0.0258*('入力補助(電気・月別)(貨物)'!HP$60+'入力補助(電気・月別)(貨物)'!HP$62)) -> 0 | S19: =IF($B$2=2,"",'入力補助(電気・月別)(貨物)'!HL140+'入力補助(電気・月別)(貨物)'!HL142) -> 0 | X19: =IF($B$2=2,"",$AO19/8.64*0.0258*('入力補助(電気・月別)(貨物)'!HP140+'入力補助(電気・月別)(貨物)'!HP142)) -> 0 | AC19: =IF($B$2=2,"",'入力補助(電気・月別)(貨物)'!HL208+'入力補助(電気・月別)(貨物)'!HL210) -> 0 | AH19: =IF($B$2=2,"",$AO19/8.64*0.0258*('入力補助(電気・月別)(貨物)'!HP208+'入力補助(電気・月別)(貨物)'!HP210)) -> 0 | AO19: =HLOOKUP(表紙!$W$52,月別電気需要最適化係数!$C$2:$M$13,12) -> 9.267
D20: 時 間 帯 別 | E20: 出力制御時間帯 | H20: 千kWh | K20: =IF($B$2=1,"",'入力補助(電気・時間別)(貨物)'!Y60+'入力補助(電気・時間別)(貨物)'!Y62) ->  | N20: =IF($B$2=1,"",3.6/8.64*0.0258*('入力補助(電気・時間別)(貨物)'!AC60+'入力補助(電気・時間別)(貨物)'!AC62)) ->  | S20: =IF($B$2=1,"",'入力補助(電気・時間別)(貨物)'!Y140+'入力補助(電気・時間別)(貨物)'!Y142) ->  | X20: =IF($B$2=1,"",3.6/8.64*0.0258*('入力補助(電気・時間別)(貨物)'!AC140+'入力補助(電気・時間別)(貨物)'!AC142)) ->  | AC20: =IF($B$2=1,"",'入力補助(電気・時間別)(貨物)'!Y208+'入力補助(電気・時間別)(貨物)'!Y210) ->  | AH20: =IF($B$2=1,"",3.6/8.64*0.0258*('入力補助(電気・時間別)(貨物)'!AC208+'入力補助(電気・時間別)(貨物)'!AC210)) -> 
E21: 需給が厳しい時間帯 | H21: 千kWh | K21: =IF($B$2=1,"",'入力補助(電気・時間別)(貨物)'!Z60+'入力補助(電気・時間別)(貨物)'!Z62) ->  | N21: =IF($B$2=1,"",12.2/8.64*0.0258*('入力補助(電気・時間別)(貨物)'!AD60+'入力補助(電気・時間別)(貨物)'!AD62)) ->  | S21: =IF($B$2=1,"",'入力補助(電気・時間別)(貨物)'!Z140+'入力補助(電気・時間別)(貨物)'!Z142) ->  | X21: =IF($B$2=1,"",12.2/8.64*0.0258*('入力補助(電気・時間別)(貨物)'!AD140+'入力補助(電気・時間別)(貨物)'!AD142)) ->  | AC21: =IF($B$2=1,"",'入力補助(電気・時間別)(貨物)'!Z208+'入力補助(電気・時間別)(貨物)'!Z210) ->  | AH21: =IF($B$2=1,"",12.2/8.64*0.0258*('入力補助(電気・時間別)(貨物)'!AD208+'入力補助(電気・時間別)(貨物)'!AD210)) -> 
E22: その他の時間帯 | H22: 千kWh | K22: =IF($B$2=1,"",'入力補助(電気・時間別)(貨物)'!AA60+'入力補助(電気・時間別)(貨物)'!AA62) ->  | N22: =IF($B$2=1,"",9.4/8.64*0.0258*('入力補助(電気・時間別)(貨物)'!AE60+'入力補助(電気・時間別)(貨物)'!AE62)) ->  | S22: =IF($B$2=1,"",'入力補助(電気・時間別)(貨物)'!Z140+'入力補助(電気・時間別)(貨物)'!Z142) ->  | X22: =IF($B$2=1,"",9.4/8.64*0.0258*('入力補助(電気・時間別)(貨物)'!AE140+'入力補助(電気・時間別)(貨物)'!AE142)) ->  | AC22: =IF($B$2=1,"",'入力補助(電気・時間別)(貨物)'!AC208+'入力補助(電気・時間別)(貨物)'!AC210) ->  | AH22: =IF($B$2=1,"",9.4/8.64*0.0258*('入力補助(電気・時間別)(貨物)'!AE208+'入力補助(電気・時間別)(貨物)'!AE210)) -> 
D23: 合計 | N23: =IF(B2=1,SUM(N8:R19),SUM(N20:R22)) -> 0 | X23: =IF(B2=1,SUM(X8:AB19),SUM(X20:AB22)) -> 0 | AH23: =IF(B2=1,SUM(AH8:AL19),SUM(AH20:AL22)) -> 0

Sheet 入力補助(電気・月別)(貨物)
B1: ※E列で「非燃料由来の非化石電気（オンサイトPPA含む）」を選択した場合は、G列で「太陽光」～「水力」を選択。※電気の種類で全て「その他」を選択した場合は、必ず各種係数を手入力。また、第１表１－１にも必ず直接入力。
A2: 使用量 | J2: 全国平均係数(t-CO₂/千kWh)： | K2: ='排出係数(電気)'!D1266 -> 0.438 | CC2: ※昼間：8~22時 | CT2: ※昼間：8~22時 | DK2: ※昼間：8~22時 | FJ2: ※昼間：8~22時 | GA2: ※昼間：8~22時 | GR2: ※昼間：8~22時 | HI2: ※昼間：8~22時
B3: 電気の種類 ※シート「熱量換算係数(電気)」を参考に選択 | G3: ○電気事業者からの買電の場合 →電気事業者名を選択 ○その他非化石電気の場合 →再エネの種類を選択（例：太陽光） ※その他の場合は空欄 | H3: ○電気事業者からの買電の場合 →電力メニューを選択 ※電気事業者からの買電の場合で、メニューがない場合は「―」を選択。その他の場合は空欄。 | I3: 熱量換算係数 （GJ/千kWh） | J3: CO2基礎排出係数 （tCO2/千kWh） | K3: CO2調整後排出係数 （tCO2/千kWh） | L3: 合計 | M3: 電気需要平準化対応 | Y3: 電気需要最適化対応 | AC3: 4月 | AT3: 5月 | BK3: 6月 | CB3: 7月 | CS3: 8月 | DJ3: 9月 | EA3: 10月 | ER3: 11月 | FI3: 12月 | FZ3: 1月 | GQ3: 2月 | HH3: 3月
M4: 使用量（千kWh） | P4: 熱量（GJ） | S4: CO2基礎排出量（tCO2） | V4: ※参考：CO2調整後排出量（tCO2） | Y4: 使用量（千kWh） | Z4: 熱量（GJ） | AA4: CO2基礎排出量 （tCO2） | AB4: 【※参考】 CO2調整後排出量 （tCO2） | AD4: 使用量（千kWh） | AH4: 熱量（GJ） | AL4: CO2基礎排出量（tCO2） | AP4: ※参考：CO2調整後排出量（tCO2） | AU4: 使用量（千kWh） | AY4: 熱量（GJ） | BC4: CO2基礎排出量（tCO2） | BG4: ※参考：CO2調整後排出量（tCO2） | BL4: 使用量（千kWh） | BP4: 熱量（GJ） | BT4: CO2基礎排出量（tCO2） | BX4: ※参考：CO2調整後排出量（tCO2） | CC4: 使用量（千kWh） | CG4: 熱量（GJ） | CK4: CO2基礎排出量（tCO2） | CO4: ※参考：CO2調整後排出量（tCO2） | CT4: 使用量（千kWh） | CX4: 熱量（GJ） | DB4: CO2基礎排出量（tCO2） | DF4: ※参考：CO2調整後排出量（tCO2） | DK4: 使用量（千kWh） | DO4: 熱量（GJ） | DS4: CO2基礎排出量（tCO2） | DW4: ※参考：CO2調整後排出量（tCO2） | EB4: 使用量（千kWh） | EF4: 熱量（GJ） | EJ4: CO2基礎排出量（tCO2） | EN4: ※参考：CO2調整後排出量（tCO2） | ES4: 使用量（千kWh） | EW4: 熱量（GJ） | FA4: CO2基礎排出量（tCO2） | FE4: ※参考：CO2調整後排出量（tCO2） | FJ4: 使用量（千kWh） | FN4: 熱量（GJ） | FR4: CO2基礎排出量（tCO2） | FV4: ※参考：CO2調整後排出量（tCO2） | GA4: 使用量（千kWh） | GE4: 熱量（GJ） | GI4: CO2基礎排出量（tCO2） | GM4: ※参考：CO2調整後排出量（tCO2） | GR4: 使用量（千kWh） | GV4: 熱量（GJ） | GZ4: CO2基礎排出量（tCO2） | HD4: ※参考：CO2調整後排出量（tCO2） | HI4: 使用量（千kWh） | HM4: 熱量（GJ） | HQ4: CO2基礎排出量（tCO2） | HU4: ※参考：CO2調整後排出量（tCO2）
M5: 買電 | O5: 自家発 | P5: 買電 | R5: 自家発 | S5: 買電 | U5: 自家発 | V5: 買電 | X5: 自家発 | AG5: 小計 | AK5: 小計 | AO5: 小計 | AS5: 小計 | AX5: 小計 | BB5: 小計 | BF5: 小計 | BJ5: 小計 | BO5: 小計 | BS5: 小計 | BW5: 小計 | CA5: 小計 | CF5: 小計 | CJ5: 小計 | CN5: 小計 | CR5: 小計 | CW5: 小計 | DA5: 小計 | DE5: 小計 | DI5: 小計 | DN5: 小計 | DR5: 小計 | DV5: 小計 | DZ5: 小計 | EE5: 小計 | EI5: 小計 | EM5: 小計 | EQ5: 小計 | EV5: 小計 | EZ5: 小計 | FD5: 小計 | FH5: 小計 | FM5: 小計 | FQ5: 小計 | FU5: 小計 | FY5: 小計 | GD5: 小計 | GH5: 小計 | GL5: 小計 | GP5: 小計 | GU5: 小計 | GY5: 小計 | HC5: 小計 | HG5: 小計 | HL5: 小計 | HP5: 小計 | HT5: 小計 | HX5: 小計
M7: 昼間 | N7: 夜間 | P7: 昼間 | Q7: 夜間 | S7: 昼間 | T7: 夜間 | V7: 昼間 | W7: 夜間 | AD7: 買電 | AF7: 自家発 | AH7: 買電 | AJ7: 自家発 | AL7: 買電 | AN7: 自家発 | AP7: 買電 | AR7: 自家発 | AU7: 買電 | AW7: 自家発 | AY7: 買電 | BA7: 自家発 | BC7: 買電 | BE7: 自家発 | BG7: 買電 | BI7: 自家発 | BL7: 買電 | BN7: 自家発 | BP7: 買電 | BR7: 自家発 | BT7: 買電 | BV7: 自家発 | BX7: 買電 | BZ7: 自家発 | CC7: 買電 | CE7: 自家発 | CG7: 買電 | CI7: 自家発 | CK7: 買電 | CM7: 自家発 | CO7: 買電 | CQ7: 自家発 | CT7: 買電 | CV7: 自家発 | CX7: 買電 | CZ7: 自家発 | DB7: 買電 | DD7: 自家発 | DF7: 買電 | DH7: 自家発 | DK7: 買電 | DM7: 自家発 | DO7: 買電 | DQ7: 自家発 | DS7: 買電 | DU7: 自家発 | DW7: 買電 | DY7: 自家発 | EB7: 買電 | ED7: 自家発 | EF7: 買電 | EH7: 自家発 | EJ7: 買電 | EL7: 自家発 | EN7: 買電 | EP7: 自家発 | ES7: 買電 | EU7: 自家発 | EW7: 買電 | EY7: 自家発 | FA7: 買電 | FC7: 自家発 | FE7: 買電 | FG7: 自家発 | FJ7: 買電 | FL7: 自家発 | FN7: 買電 | FP7: 自家発 | FR7: 買電 | FT7: 自家発 | FV7: 買電 | FX7: 自家発 | GA7: 買電 | GC7: 自家発 | GE7: 買電 | GG7: 自家発 | GI7: 買電 | GK7: 自家発 | GM7: 買電 | GO7: 自家発 | GR7: 買電 | GT7: 自家発 | GV7: 買電 | GX7: 自家発 | GZ7: 買電 | HB7: 自家発 | HD7: 買電 | HF7: 自家発 | HI7: 買電 | HK7: 自家発 | HM7: 買電 | HO7: 自家発 | HQ7: 買電 | HS7: 自家発 | HU7: 買電 | HW7: 自家発
M8: =SUM(M9:M59) -> 0 | N8: =SUM(N9:N59) -> 0 | O8: =SUM(O9:O59) -> 0 | P8: =SUM(P9:P59) -> 0 | Q8: =SUM(Q9:Q59) -> 0 | R8: 0 | S8: 0 | T8: 0 | U8: 0 | V8: 0 | W8: 0 | X8: 0 | AD8: 昼間 | AE8: 夜間 | AH8: 昼間 | AI8: 夜間 | AL8: 昼間 | AM8: 夜間 | AP8: 昼間 | AQ8: 夜間 | AU8: 昼間 | AV8: 夜間 | AY8: 昼間 | AZ8: 夜間 | BC8: 昼間 | BD8: 夜間 | BG8: 昼間 | BH8: 夜間 | BL8: 昼間 | BM8: 夜間 | BP8: 昼間 | BQ8: 夜間 | BT8: 昼間 | BU8: 夜間 | BX8: 昼間 | BY8: 夜間 | CC8: 昼間 | CD8: 夜間 | CG8: 昼間 | CH8: 夜間 | CK8: 昼間 | CL8: 夜間 | CO8: 昼間 | CP8: 夜間 | CT8: 昼間 | CU8: 夜間 | CX8: 昼間 | CY8: 夜間 | DB8: 昼間 | DC8: 夜間 | DF8: 昼間 | DG8: 夜間 | DK8: 昼間 | DL8: 夜間 | DO8: 昼間 | DP8: 夜間 | DS8: 昼間 | DT8: 夜間 | DW8: 昼間 | DX8: 夜間 | EB8: 昼間 | EC8: 夜間 | EF8: 昼間 | EG8: 夜間 | EJ8: 昼間 | EK8: 夜間 | EN8: 昼間 | EO8: 夜間 | ES8: 昼間 | ET8: 夜間 | EW8: 昼間 | EX8: 夜間 | FA8: 昼間 | FB8: 夜間 | FE8: 昼間 | FF8: 夜間 | FJ8: 昼間 | FK8: 夜間 | FN8: 昼間 | FO8: 夜間 | FR8: 昼間 | FS8: 夜間 | FV8: 昼間 | FW8: 夜間 | GA8: 昼間 | GB8: 夜間 | GE8: 昼間 | GF8: 夜間 | GI8: 昼間 | GJ8: 夜間 | GM8: 昼間 | GN8: 夜間 | GR8: 昼間 | GS8: 夜間 | GV8: 昼間 | GW8: 夜間 | GZ8: 昼間 | HA8: 夜間 | HD8: 昼間 | HE8: 夜間 | HI8: 昼間 | HJ8: 夜間 | HM8: 昼間 | HN8: 夜間 | HQ8: 昼間 | HR8: 夜間 | HU8: 昼間 | HV8: 夜間
M9: =AD9+AU9+BL9+CC9+CT9+DK9+EB9+ES9+FJ9+GA9+GR9+HI9 -> 0 | N9: =AE9+AV9+BM9+CD9+CU9+DL9+EC9+ET9+FK9+GB9+GS9+HJ9 -> 0 | O9: =AF9+AW9+BN9+CE9+CV9+DM9+ED9+EU9+FL9+GC9+GT9+HK9 -> 0 | P9: =IF(OR($B9="",$E9="非燃料由来の非化石電気（オンサイトPPA含む）以外"),0,IF($I9<>"熱換算係数を入力",$I9*M9,"熱換算係数を入力")) -> 0 | Q9: 0 | R9: 0 | S9: =IF(OR($B9="",$E9="非燃料由来の非化石電気（オンサイトPPA含む）以外"),0,IF($J9<>"基礎排出係数を入力",$J9*M9,"基礎排出係数を入力")) -> 0 | T9: 0 | U9: 0 | V9: =IF(OR($B9="",$E9="非燃料由来の非化石電気（オンサイトPPA含む）以外"),0,IF($K9<>"調整後排出係数を入力",$K9*M9,"調整後排出係数を入力")) -> 0 | W9: =IF(OR($B9="",$E9="非燃料由来の非化石電気（オンサイトPPA含む）以外"),0,IF($K9<>"調整後排出係数を入力",$J9*Q9,"調整後排出係数を入力")) -> 0 | X9: =IF(OR($B9="",$E9="非燃料由来の非化石電気（オンサイトPPA含む）以外"),0,IF($K9<>"調整後排出係数を入力",$J9*R9,"調整後排出係数を入力")) -> 0 | Y9: =SUM(AG9,AX9,BO9,CF9,CW9,DN9,EE9,EV9,FM9,GD9,GU9,HL9) -> 0 | Z9: =IF(OR($B9="",$E9="非燃料由来の非化石電気（オンサイトPPA含む）以外"),0,IF($I9<>"熱換算係数を入力",$I9*Y9,"熱換算係数を入力")) -> 0 | AA9: =IF(OR($B9="",$E9="非燃料由来の非化石電気（オンサイトPPA含む）以外"),0,IF($J9<>"基礎排出係数を入力",$J9*Y9,"基礎排出係数を入力")) -> 0 | AB9: =IF(OR($B9="",$E9="非燃料由来の非化石電気（オンサイトPPA含む）以外"),0,IF($K9<>"調整後排出係数を入力",$K9*Y9,"調整後排出係数を入力")) -> 0 | AD9: 0 | AE9: 0 | AF9: 0 | AG9: =SUM(AD9:AF9) -> 0 | AH9: =IF(OR($B9="",$E9="非燃料由来の非化石電気（オンサイトPPA含む）以外"),0,IF($I9<>"熱換算係数を入力",$I9*AD9,"熱換算係数を入力")) -> 0 | AI9: 0 | AJ9: 0 | AK9: =SUM(AH9:AJ9) -> 0 | AL9: =IF(OR($B9="",$E9="非燃料由来の非化石電気（オンサイトPPA含む）以外"),0,IF($J9<>"基礎排出係数を入力",$J9*AD9,"基礎排出係数を入力")) -> 0 | AM9: 0 | AN9: 0 | AO9: =SUM(AL9:AN9) -> 0 | AP9: =IF(OR($B9="",$E9="非燃料由来の非化石電気（オンサイトPPA含む）以外"),0,IF($K9<>"調整後排出係数を入力",$K9*AD9,"調整後排出係数を入力")) -> 0 | AQ9: =IF(OR($B9="",$E9="非燃料由来の非化石電気（オンサイトPPA含む）以外"),0,IF($K9<>"調整後排出係数を入力",$K9*AI9,"調整後排出係数を入力")) -> 0 | AR9: =IF(OR($B9="",$E9="非燃料由来の非化石電気（オンサイトPPA含む）以外"),0,IF($K9<>"調整後排出係数を入力",$K9*AJ9,"調整後排出係数を入力")) -> 0 | AS9: =SUM(AP9:AR9) -> 0 | AU9: 0 | AV9: 0 | AW9: 0 | AX9: =SUM(AU9:AW9) -> 0 | AY9: =IF(OR($B9="",$E9="非燃料由来の非化石電気（オンサイトPPA含む）以外"),0,IF($I9<>"熱換算係数を入力",$I9*AU9,"熱換算係数を入力")) -> 0 | AZ9: 0 | BA9: 0 | BB9: =SUM(AY9:BA9) -> 0 | BC9: =IF(OR($B9="",$E9="非燃料由来の非化石電気（オンサイトPPA含む）以外"),0,IF($J9<>"基礎排出係数を入力",$J9*AU9,"基礎排出係数を入力")) -> 0 | BD9: 0 | BE9: 0 | BF9: =SUM(BC9:BE9) -> 0 | BG9: =IF(OR($B9="",$E9="非燃料由来の非化石電気（オンサイトPPA含む）以外"),0,IF($K9<>"調整後排出係数を入力",$K9*AU9,"調整後排出係数を入力")) -> 0 | BH9: =IF(OR($B9="",$E9="非燃料由来の非化石電気（オンサイトPPA含む）以外"),0,IF($K9<>"調整後排出係数を入力",$K9*AZ9,"調整後排出係数を入力")) -> 0 | BI9: =IF(OR($B9="",$E9="非燃料由来の非化石電気（オンサイトPPA含む）以外"),0,IF($K9<>"調整後排出係数を入力",$K9*BA9,"調整後排出係数を入力")) -> 0 | BJ9: =SUM(BG9:BI9) -> 0 | BL9: 0 | BM9: 0 | BN9: 0 | BO9: =SUM(BL9:BN9) -> 0 | BP9: =IF(OR($B9="",$E9="非燃料由来の非化石電気（オンサイトPPA含む）以外"),0,IF($I9<>"熱換算係数を入力",$I9*BL9,"熱換算係数を入力")) -> 0 | BQ9: 0 | BR9: 0 | BS9: =SUM(BP9:BR9) -> 0 | BT9: =IF(OR($B9="",$E9="非燃料由来の非化石電気（オンサイトPPA含む）以外"),0,IF($J9<>"基礎排出係数を入力",$J9*BL9,"基礎排出係数を入力")) -> 0 | BU9: 0 | BV9: 0 | BW9: =SUM(BT9:BV9) -> 0 | BX9: =IF(OR($B9="",$E9="非燃料由来の非化石電気（オンサイトPPA含む）以外"),0,IF($K9<>"調整後排出係数を入力",$K9*BL9,"調整後排出係数を入力")) -> 0 | BY9: =IF(OR($B9="",$E9="非燃料由来の非化石電気（オンサイトPPA含む）以外"),0,IF($K9<>"調整後排出係数を入力",$K9*BQ9,"調整後排出係数を入力")) -> 0 | BZ9: =IF(OR($B9="",$E9="非燃料由来の非化石電気（オンサイトPPA含む）以外"),0,IF($K9<>"調整後排出係数を入力",$K9*BR9,"調整後排出係数を入力")) -> 0 | CA9: =SUM(BX9:BZ9) -> 0 | CC9: 0 | CD9: 0 | CE9: 0 | CF9: =SUM(CC9:CE9) -> 0 | CG9: =IF(OR($B9="",$E9="非燃料由来の非化石電気（オンサイトPPA含む）以外"),0,IF($I9<>"熱換算係数を入力",1.3*$I9*CC9,"熱換算係数を入力")) -> 0 | CH9: =IF(OR($B9="",$E9="非燃料由来の非化石電気（オンサイトPPA含む）以外"),0,IF($I9<>"熱換算係数を入力",$I9*CD9,"熱換算係数を入力")) -> 0 | CI9: =IF(OR($B9="",$E9="非燃料由来の非化石電気（オンサイトPPA含む）以外"),0,IF($I9<>"熱換算係数を入力",$I9*CE9,"熱換算係数を入力")) -> 0 | CJ9: =SUM(CG9:CI9) -> 0 | CK9: =IF(OR($B9="",$E9="非燃料由来の非化石電気（オンサイトPPA含む）以外"),0,IF($J9<>"基礎排出係数を入力",$J9*CC9,"基礎排出係数を入力")) -> 0 | CL9: 0 | CM9: 0 | CN9: =SUM(CK9:CM9) -> 0 | CO9: =IF(OR($B9="",$E9="非燃料由来の非化石電気（オンサイトPPA含む）以外"),0,IF($K9<>"調整後排出係数を入力",$K9*CC9,"調整後排出係数を入力")) -> 0 | CP9: =IF(OR($B9="",$E9="非燃料由来の非化石電気（オンサイトPPA含む）以外"),0,IF($K9<>"調整後排出係数を入力",$K9*CH9,"調整後排出係数を入力")) -> 0 | CQ9: =IF(OR($B9="",$E9="非燃料由来の非化石電気（オンサイトPPA含む）以外"),0,IF($K9<>"調整後排出係数を入力",$K9*CI9,"調整後排出係数を入力")) -> 0 | CR9: =SUM(CO9:CQ9) -> 0 | CT9: 0 | CU9: 0 | CV9: 0 | CW9: =SUM(CT9:CV9) -> 0 | CX9: =IF(OR($B9="",$E9="非燃料由来の非化石電気（オンサイトPPA含む）以外"),0,IF($I9<>"熱換算係数を入力",1.3*$I9*CT9,"熱換算係数を入力")) -> 0 | CY9: =IF(OR($B9="",$E9="非燃料由来の非化石電気（オンサイトPPA含む）以外"),0,IF($I9<>"熱換算係数を入力",$I9*CU9,"熱換算係数を入力")) -> 0 | CZ9: =IF(OR($B9="",$E9="非燃料由来の非化石電気（オンサイトPPA含む）以外"),0,IF($I9<>"熱換算係数を入力",$I9*CV9,"熱換算係数を入力")) -> 0 | DA9: =SUM(CX9:CZ9) -> 0 | DB9: =IF(OR($B9="",$E9="非燃料由来の非化石電気（オンサイトPPA含む）以外"),0,IF($J9<>"基礎排出係数を入力",$J9*CT9,"基礎排出係数を入力")) -> 0 | DC9: 0 | DD9: 0 | DE9: =SUM(DB9:DD9) -> 0 | DF9: =IF(OR($B9="",$E9="非燃料由来の非化石電気（オンサイトPPA含む）以外"),0,IF($K9<>"調整後排出係数を入力",$K9*CT9,"調整後排出係数を入力")) -> 0 | DG9: =IF(OR($B9="",$E9="非燃料由来の非化石電気（オンサイトPPA含む）以外"),0,IF($K9<>"調整後排出係数を入力",$K9*CY9,"調整後排出係数を入力")) -> 0 | DH9: =IF(OR($B9="",$E9="非燃料由来の非化石電気（オンサイトPPA含む）以外"),0,IF($K9<>"調整後排出係数を入力",$K9*CZ9,"調整後排出係数を入力")) -> 0 | DI9: =SUM(DF9:DH9) -> 0 | DK9: 0 | DL9: 0 | DM9: 0 | DN9: =SUM(DK9:DM9) -> 0 | DO9: =IF(OR($B9="",$E9="非燃料由来の非化石電気（オンサイトPPA含む）以外"),0,IF($I9<>"熱換算係数を入力",1.3*$I9*DK9,"熱換算係数を入力")) -> 0 | DP9: =IF(OR($B9="",$E9="非燃料由来の非化石電気（オンサイトPPA含む）以外"),0,IF($I9<>"熱換算係数を入力",$I9*DL9,"熱換算係数を入力")) -> 0 | DQ9: =IF(OR($B9="",$E9="非燃料由来の非化石電気（オンサイトPPA含む）以外"),0,IF($I9<>"熱換算係数を入力",$I9*DM9,"熱換算係数を入力")) -> 0 | DR9: =SUM(DO9:DQ9) -> 0 | DS9: =IF(OR($B9="",$E9="非燃料由来の非化石電気（オンサイトPPA含む）以外"),0,IF($J9<>"基礎排出係数を入力",$J9*DK9,"基礎排出係数を入力")) -> 0 | DT9: 0 | DU9: 0 | DV9: =SUM(DS9:DU9) -> 0 | DW9: =IF(OR($B9="",$E9="非燃料由来の非化石電気（オンサイトPPA含む）以外"),0,IF($K9<>"調整後排出係数を入力",$K9*DK9,"調整後排出係数を入力")) -> 0 | DX9: =IF(OR($B9="",$E9="非燃料由来の非化石電気（オンサイトPPA含む）以外"),0,IF($K9<>"調整後排出係数を入力",$K9*DP9,"調整後排出係数を入力")) -> 0 | DY9: =IF(OR($B9="",$E9="非燃料由来の非化石電気（オンサイトPPA含む）以外"),0,IF($K9<>"調整後排出係数を入力",$K9*DQ9,"調整後排出係数を入力")) -> 0 | DZ9: =SUM(DW9:DY9) -> 0 | EB9: 0 | EC9: 0 | ED9: 0 | EE9: =SUM(EB9:ED9) -> 0 | EF9: =IF(OR($B9="",$E9="非燃料由来の非化石電気（オンサイトPPA含む）以外"),0,IF($I9<>"熱換算係数を入力",$I9*EB9,"熱換算係数を入力")) -> 0 | EG9: 0 | EH9: 0 | EI9: =SUM(EF9:EH9) -> 0 | EJ9: =IF(OR($B9="",$E9="非燃料由来の非化石電気（オンサイトPPA含む）以外"),0,IF($J9<>"基礎排出係数を入力",$J9*EB9,"基礎排出係数を入力")) -> 0 | EK9: 0 | EL9: 0 | EM9: =SUM(EJ9:EL9) -> 0 | EN9: =IF(OR($B9="",$E9="非燃料由来の非化石電気（オンサイトPPA含む）以外"),0,IF($K9<>"調整後排出係数を入力",$K9*EB9,"調整後排出係数を入力")) -> 0 | EO9: =IF(OR($B9="",$E9="非燃料由来の非化石電気（オンサイトPPA含む）以外"),0,IF($K9<>"調整後排出係数を入力",$K9*EG9,"調整後排出係数を入力")) -> 0 | EP9: =IF(OR($B9="",$E9="非燃料由来の非化石電気（オンサイトPPA含む）以外"),0,IF($K9<>"調整後排出係数を入力",$K9*EH9,"調整後排出係数を入力")) -> 0 | EQ9: =SUM(EN9:EP9) -> 0 | ES9: 0 | ET9: 0 | EU9: 0 | EV9: =SUM(ES9:EU9) -> 0 | EW9: =IF(OR($B9="",$E9="非燃料由来の非化石電気（オンサイトPPA含む）以外"),0,IF($I9<>"熱換算係数を入力",$I9*ES9,"熱換算係数を入力")) -> 0 | EX9: 0 | EY9: 0 | EZ9: =SUM(EW9:EY9) -> 0 | FA9: =IF(OR($B9="",$E9="非燃料由来の非化石電気（オンサイトPPA含む）以外"),0,IF($J9<>"基礎排出係数を入力",$J9*ES9,"基礎排出係数を入力")) -> 0 | FB9: 0 | FC9: 0 | FD9: =SUM(FA9:FC9) -> 0 | FE9: =IF(OR($B9="",$E9="非燃料由来の非化石電気（オンサイトPPA含む）以外"),0,IF($K9<>"調整後排出係数を入力",$K9*ES9,"調整後排出係数を入力")) -> 0 | FF9: =IF(OR($B9="",$E9="非燃料由来の非化石電気（オンサイトPPA含む）以外"),0,IF($K9<>"調整後排出係数を入力",$K9*EX9,"調整後排出係数を入力")) -> 0 | FG9: =IF(OR($B9="",$E9="非燃料由来の非化石電気（オンサイトPPA含む）以外"),0,IF($K9<>"調整後排出係数を入力",$K9*EY9,"調整後排出係数を入力")) -> 0 | FH9: =SUM(FE9:FG9) -> 0 | FJ9: 0 | FK9: 0 | FL9: 0 | FM9: =SUM(FJ9:FL9) -> 0 | FN9: =IF(OR($B9="",$E9="非燃料由来の非化石電気（オンサイトPPA含む）以外"),0,IF($I9<>"熱換算係数を入力",1.3*$I9*FJ9,"熱換算係数を入力")) -> 0 | FO9: =IF(OR($B9="",$E9="非燃料由来の非化石電気（オンサイトPPA含む）以外"),0,IF($I9<>"熱換算係数を入力",$I9*FK9,"熱換算係数を入力")) -> 0 | FP9: =IF(OR($B9="",$E9="非燃料由来の非化石電気（オンサイトPPA含む）以外"),0,IF($I9<>"熱換算係数を入力",$I9*FL9,"熱換算係数を入力")) -> 0 | FQ9: =SUM(FN9:FP9) -> 0 | FR9: =IF(OR($B9="",$E9="非燃料由来の非化石電気（オンサイトPPA含む）以外"),0,IF($J9<>"基礎排出係数を入力",$J9*FJ9,"基礎排出係数を入力")) -> 0 | FS9: 0 | FT9: 0 | FU9: =SUM(FR9:FT9) -> 0 | FV9: =IF(OR($B9="",$E9="非燃料由来の非化石電気（オンサイトPPA含む）以外"),0,IF($K9<>"調整後排出係数を入力",$K9*FJ9,"調整後排出係数を入力")) -> 0 | FW9: =IF(OR($B9="",$E9="非燃料由来の非化石電気（オンサイトPPA含む）以外"),0,IF($K9<>"調整後排出係数を入力",$K9*FO9,"調整後排出係数を入力")) -> 0 | FX9: =IF(OR($B9="",$E9="非燃料由来の非化石電気（オンサイトPPA含む）以外"),0,IF($K9<>"調整後排出係数を入力",$K9*FP9,"調整後排出係数を入力")) -> 0 | FY9: =SUM(FV9:FX9) -> 0 | GA9: 0 | GB9: 0 | GC9: 0 | GD9: =SUM(GA9:GC9) -> 0 | GE9: =IF(OR($B9="",$E9="非燃料由来の非化石電気（オンサイトPPA含む）以外"),0,IF($I9<>"熱換算係数を入力",1.3*$I9*GA9,"熱換算係数を入力")) -> 0 | GF9: =IF(OR($B9="",$E9="非燃料由来の非化石電気（オンサイトPPA含む）以外"),0,IF($I9<>"熱換算係数を入力",$I9*GB9,"熱換算係数を入力")) -> 0 | GG9: =IF(OR($B9="",$E9="非燃料由来の非化石電気（オンサイトPPA含む）以外"),0,IF($I9<>"熱換算係数を入力",$I9*GC9,"熱換算係数を入力")) -> 0 | GH9: =SUM(GE9:GG9) -> 0 | GI9: =IF(OR($B9="",$E9="非燃料由来の非化石電気（オンサイトPPA含む）以外"),0,IF($J9<>"基礎排出係数を入力",$J9*GA9,"基礎排出係数を入力")) -> 0 | GJ9: 0 | GK9: 0 | GL9: =SUM(GI9:GK9) -> 0 | GM9: =IF(OR($B9="",$E9="非燃料由来の非化石電気（オンサイトPPA含む）以外"),0,IF($K9<>"調整後排出係数を入力",$K9*GA9,"調整後排出係数を入力")) -> 0 | GN9: =IF(OR($B9="",$E9="非燃料由来の非化石電気（オンサイトPPA含む）以外"),0,IF($K9<>"調整後排出係数を入力",$K9*GF9,"調整後排出係数を入力")) -> 0 | GO9: =IF(OR($B9="",$E9="非燃料由来の非化石電気（オンサイトPPA含む）以外"),0,IF($K9<>"調整後排出係数を入力",$K9*GG9,"調整後排出係数を入力")) -> 0 | GP9: =SUM(GM9:GO9) -> 0 | GR9: 0 | GS9: 0 | GT9: 0 | GU9: =SUM(GR9:GT9) -> 0 | GV9: =IF(OR($B9="",$E9="非燃料由来の非化石電気（オンサイトPPA含む）以外"),0,IF($I9<>"熱換算係数を入力",1.3*$I9*GR9,"熱換算係数を入力")) -> 0 | GW9: =IF(OR($B9="",$E9="非燃料由来の非化石電気（オンサイトPPA含む）以外"),0,IF($I9<>"熱換算係数を入力",$I9*GS9,"熱換算係数を入力")) -> 0 | GX9: =IF(OR($B9="",$E9="非燃料由来の非化石電気（オンサイトPPA含む）以外"),0,IF($I9<>"熱換算係数を入力",$I9*GT9,"熱換算係数を入力")) -> 0 | GY9: =SUM(GV9:GX9) -> 0 | GZ9: =IF(OR($B9="",$E9="非燃料由来の非化石電気（オンサイトPPA含む）以外"),0,IF($J9<>"基礎排出係数を入力",$J9*GR9,"基礎排出係数を入力")) -> 0 | HA9: 0 | HB9: 0 | HC9: =SUM(GZ9:HB9) -> 0 | HD9: =IF(OR($B9="",$E9="非燃料由来の非化石電気（オンサイトPPA含む）以外"),0,IF($K9<>"調整後排出係数を入力",$K9*GR9,"調整後排出係数を入力")) -> 0 | HE9: =IF(OR($B9="",$E9="非燃料由来の非化石電気（オンサイトPPA含む）以外"),0,IF($K9<>"調整後排出係数を入力",$K9*GW9,"調整後排出係数を入力")) -> 0 | HF9: =IF(OR($B9="",$E9="非燃料由来の非化石電気（オンサイトPPA含む）以外"),0,IF($K9<>"調整後排出係数を入力",$K9*GX9,"調整後排出係数を入力")) -> 0 | HG9: =SUM(HD9:HF9) -> 0 | HI9: 0 | HJ9: 0 | HK9: 0 | HL9: =SUM(HI9:HK9) -> 0 | HM9: =IF(OR($B9="",$E9="非燃料由来の非化石電気（オンサイトPPA含む）以外"),0,IF($I9<>"熱換算係数を入力",1.3*$I9*HI9,"熱換算係数を入力")) -> 0 | HN9: =IF(OR($B9="",$E9="非燃料由来の非化石電気（オンサイトPPA含む）以外"),0,IF($I9<>"熱換算係数を入力",$I9*HJ9,"熱換算係数を入力")) -> 0 | HO9: =IF(OR($B9="",$E9="非燃料由来の非化石電気（オンサイトPPA含む）以外"),0,IF($I9<>"熱換算係数を入力",$I9*HK9,"熱換算係数を入力")) -> 0 | HP9: =SUM(HM9:HO9) -> 0 | HQ9: =IF(OR($B9="",$E9="非燃料由来の非化石電気（オンサイトPPA含む）以外"),0,IF($J9<>"基礎排出係数を入力",$J9*HI9,"基礎排出係数を入力")) -> 0 | HR9: 0 | HS9: 0 | HT9: =SUM(HQ9:HS9) -> 0 | HU9: =IF(OR($B9="",$E9="非燃料由来の非化石電気（オンサイトPPA含む）以外"),0,IF($K9<>"調整後排出係数を入力",$K9*HI9,"調整後排出係数を入力")) -> 0 | HV9: =IF(OR($B9="",$E9="非燃料由来の非化石電気（オンサイトPPA含む）以外"),0,IF($K9<>"調整後排出係数を入力",$K9*HN9,"調整後排出係数を入力")) -> 0 | HW9: =IF(OR($B9="",$E9="非燃料由来の非化石電気（オンサイトPPA含む）以外"),0,IF($K9<>"調整後排出係数を入力",$K9*HO9,"調整後排出係数を入力")) -> 0 | HX9: =SUM(HU9:HW9) -> 0
I10: =IF(OR($B10="",$E10="非燃料由来の非化石電気（オンサイトPPA含む）以外"),"",IFERROR(VLOOKUP(B10&C10&D10&E10&F10,'熱量換算係数(電気)'!$A$4:$G$24,7,FALSE),"熱量換算係数を入力")) ->  | J10: =IF(OR($B10="",$E10="非燃料由来の非化石電気（オンサイトPPA含む）以外"),"",IFERROR(VLOOKUP($G10,'排出係数(電気)'!$C$10:$D$1258,2,FALSE),IF(F10="化石分","基礎排出係数を入力",0))) ->  | K10: =IF(OR($B10="",$E10="非燃料由来の非化石電気（オンサイトPPA含む）以外"),"",IFERROR(VLOOKUP($G10&H10,'排出係数(電気)'!$A$10:$F$1258,6,FALSE),IF(ISNUMBER($J10)=TRUE,$J10,"調整後排出係数を入力"))) ->  | M10: 0 | N10: 0 | O10: 0 | P10: 0 | Q10: 0 | R10: 0 | S10: 0 | T10: 0 | U10: 0 | V10: =IF(OR($B10="",$E10="非燃料由来の非化石電気（オンサイトPPA含む）以外"),0,IF($K10<>"調整後排出係数を入力",$K10*M10,"調整後排出係数を入力")) -> 0 | W10: =IF(OR($B10="",$E10="非燃料由来の非化石電気（オンサイトPPA含む）以外"),0,IF($K10<>"調整後排出係数を入力",$J10*Q10,"調整後排出係数を入力")) -> 0 | X10: =IF(OR($B10="",$E10="非燃料由来の非化石電気（オンサイトPPA含む）以外"),0,IF($K10<>"調整後排出係数を入力",$J10*R10,"調整後排出係数を入力")) -> 0 | Y10: =SUM(AG10,AX10,BO10,CF10,CW10,DN10,EE10,EV10,FM10,GD10,GU10,HL10) -> 0 | Z10: =IF(OR($B10="",$E10="非燃料由来の非化石電気（オンサイトPPA含む）以外"),0,IF($I10<>"熱換算係数を入力",$I10*Y10,"熱換算係数を入力")) -> 0 | AA10: =IF(OR($B10="",$E10="非燃料由来の非化石電気（オンサイトPPA含む）以外"),0,IF($J10<>"基礎排出係数を入力",$J10*Y10,"基礎排出係数を入力")) -> 0 | AB10: =IF(OR($B10="",$E10="非燃料由来の非化石電気（オンサイトPPA含む）以外"),0,IF($K10<>"調整後排出係数を入力",$K10*Y10,"調整後排出係数を入力")) -> 0 | AD10: 0 | AE10: 0 | AF10: 0 | AG10: =SUM(AD10:AF10) -> 0 | AH10: 0 | AI10: 0 | AJ10: 0 | AK10: =SUM(AH10:AJ10) -> 0 | AL10: 0 | AM10: 0 | AN10: 0 | AO10: =SUM(AL10:AN10) -> 0 | AP10: =IF(OR($B10="",$E10="非燃料由来の非化石電気（オンサイトPPA含む）以外"),0,IF($K10<>"調整後排出係数を入力",$K10*AD10,"調整後排出係数を入力")) -> 0 | AQ10: =IF(OR($B10="",$E10="非燃料由来の非化石電気（オンサイトPPA含む）以外"),0,IF($K10<>"調整後排出係数を入力",$K10*AI10,"調整後排出係数を入力")) -> 0 | AR10: =IF(OR($B10="",$E10="非燃料由来の非化石電気（オンサイトPPA含む）以外"),0,IF($K10<>"調整後排出係数を入力",$K10*AJ10,"調整後排出係数を入力")) -> 0 | AS10: =SUM(AP10:AR10) -> 0 | AU10: 0 | AV10: 0 | AW10: 0 | AX10: =SUM(AU10:AW10) -> 0 | AY10: 0 | AZ10: 0 | BA10: 0 | BB10: =SUM(AY10:BA10) -> 0 | BC10: 0 | BD10: 0 | BE10: 0 | BF10: =SUM(BC10:BE10) -> 0 | BG10: =IF(OR($B10="",$E10="非燃料由来の非化石電気（オンサイトPPA含む）以外"),0,IF($K10<>"調整後排出係数を入力",$K10*AU10,"調整後排出係数を入力")) -> 0 | BH10: =IF(OR($B10="",$E10="非燃料由来の非化石電気（オンサイトPPA含む）以外"),0,IF($K10<>"調整後排出係数を入力",$K10*AZ10,"調整後排出係数を入力")) -> 0 | BI10: =IF(OR($B10="",$E10="非燃料由来の非化石電気（オンサイトPPA含む）以外"),0,IF($K10<>"調整後排出係数を入力",$K10*BA10,"調整後排出係数を入力")) -> 0 | BJ10: =SUM(BG10:BI10) -> 0 | BL10: 0 | BM10: 0 | BN10: 0 | BO10: =SUM(BL10:BN10) -> 0 | BP10: 0 | BQ10: 0 | BR10: 0 | BS10: =SUM(BP10:BR10) -> 0 | BT10: 0 | BU10: 0 | BV10: 0 | BW10: =SUM(BT10:BV10) -> 0 | BX10: =IF(OR($B10="",$E10="非燃料由来の非化石電気（オンサイトPPA含む）以外"),0,IF($K10<>"調整後排出係数を入力",$K10*BL10,"調整後排出係数を入力")) -> 0 | BY10: =IF(OR($B10="",$E10="非燃料由来の非化石電気（オンサイトPPA含む）以外"),0,IF($K10<>"調整後排出係数を入力",$K10*BQ10,"調整後排出係数を入力")) -> 0 | BZ10: =IF(OR($B10="",$E10="非燃料由来の非化石電気（オンサイトPPA含む）以外"),0,IF($K10<>"調整後排出係数を入力",$K10*BR10,"調整後排出係数を入力")) -> 0 | CA10: =SUM(BX10:BZ10) -> 0 | CC10: 0 | CD10: 0 | CE10: 0 | CF10: =SUM(CC10:CE10) -> 0 | CG10: =IF(OR($B10="",$E10="非燃料由来の非化石電気（オンサイトPPA含む）以外"),0,IF($I10<>"熱換算係数を入力",1.3*$I10*CC10,"熱換算係数を入力")) -> 0 | CH10: =IF(OR($B10="",$E10="非燃料由来の非化石電気（オンサイトPPA含む）以外"),0,IF($I10<>"熱換算係数を入力",$I10*CD10,"熱換算係数を入力")) -> 0 | CI10: =IF(OR($B10="",$E10="非燃料由来の非化石電気（オンサイトPPA含む）以外"),0,IF($I10<>"熱換算係数を入力",$I10*CE10,"熱換算係数を入力")) -> 0 | CJ10: =SUM(CG10:CI10) -> 0 | CK10: 0 | CL10: 0 | CM10: 0 | CN10: =SUM(CK10:CM10) -> 0 | CO10: =IF(OR($B10="",$E10="非燃料由来の非化石電気（オンサイトPPA含む）以外"),0,IF($K10<>"調整後排出係数を入力",$K10*CC10,"調整後排出係数を入力")) -> 0 | CP10: =IF(OR($B10="",$E10="非燃料由来の非化石電気（オンサイトPPA含む）以外"),0,IF($K10<>"調整後排出係数を入力",$K10*CH10,"調整後排出係数を入力")) -> 0 | CQ10: =IF(OR($B10="",$E10="非燃料由来の非化石電気（オンサイトPPA含む）以外"),0,IF($K10<>"調整後排出係数を入力",$K10*CI10,"調整後排出係数を入力")) -> 0 | CR10: =SUM(CO10:CQ10) -> 0 | CT10: 0 | CU10: 0 | CV10: 0 | CW10: =SUM(CT10:CV10) -> 0 | CX10: =IF(OR($B10="",$E10="非燃料由来の非化石電気（オンサイトPPA含む）以外"),0,IF($I10<>"熱換算係数を入力",1.3*$I10*CT10,"熱換算係数を入力")) -> 0 | CY10: =IF(OR($B10="",$E10="非燃料由来の非化石電気（オンサイトPPA含む）以外"),0,IF($I10<>"熱換算係数を入力",$I10*CU10,"熱換算係数を入力")) -> 0 | CZ10: =IF(OR($B10="",$E10="非燃料由来の非化石電気（オンサイトPPA含む）以外"),0,IF($I10<>"熱換算係数を入力",$I10*CV10,"熱換算係数を入力")) -> 0 | DA10: =SUM(CX10:CZ10) -> 0 | DB10: 0 | DC10: 0 | DD10: 0 | DE10: =SUM(DB10:DD10) -> 0 | DF10: =IF(OR($B10="",$E10="非燃料由来の非化石電気（オンサイトPPA含む）以外"),0,IF($K10<>"調整後排出係数を入力",$K10*CT10,"調整後排出係数を入力")) -> 0 | DG10: =IF(OR($B10="",$E10="非燃料由来の非化石電気（オンサイトPPA含む）以外"),0,IF($K10<>"調整後排出係数を入力",$K10*CY10,"調整後排出係数を入力")) -> 0 | DH10: =IF(OR($B10="",$E10="非燃料由来の非化石電気（オンサイトPPA含む）以外"),0,IF($K10<>"調整後排出係数を入力",$K10*CZ10,"調整後排出係数を入力")) -> 0 | DI10: =SUM(DF10:DH10) -> 0 | DK10: 0 | DL10: 0 | DM10: 0 | DN10: =SUM(DK10:DM10) -> 0 | DO10: =IF(OR($B10="",$E10="非燃料由来の非化石電気（オンサイトPPA含む）以外"),0,IF($I10<>"熱換算係数を入力",1.3*$I10*DK10,"熱換算係数を入力")) -> 0 | DP10: =IF(OR($B10="",$E10="非燃料由来の非化石電気（オンサイトPPA含む）以外"),0,IF($I10<>"熱換算係数を入力",$I10*DL10,"熱換算係数を入力")) -> 0 | DQ10: =IF(OR($B10="",$E10="非燃料由来の非化石電気（オンサイトPPA含む）以外"),0,IF($I10<>"熱換算係数を入力",$I10*DM10,"熱換算係数を入力")) -> 0 | DR10: =SUM(DO10:DQ10) -> 0 | DS10: 0 | DT10: 0 | DU10: 0 | DV10: =SUM(DS10:DU10) -> 0 | DW10: =IF(OR($B10="",$E10="非燃料由来の非化石電気（オンサイトPPA含む）以外"),0,IF($K10<>"調整後排出係数を入力",$K10*DK10,"調整後排出係数を入力")) -> 0 | DX10: =IF(OR($B10="",$E10="非燃料由来の非化石電気（オンサイトPPA含む）以外"),0,IF($K10<>"調整後排出係数を入力",$K10*DP10,"調整後排出係数を入力")) -> 0 | DY10: =IF(OR($B10="",$E10="非燃料由来の非化石電気（オンサイトPPA含む）以外"),0,IF($K10<>"調整後排出係数を入力",$K10*DQ10,"調整後排出係数を入力")) -> 0 | DZ10: =SUM(DW10:DY10) -> 0 | EB10: 0 | EC10: 0 | ED10: 0 | EE10: =SUM(EB10:ED10) -> 0 | EF10: 0 | EG10: 0 | EH10: 0 | EI10: =SUM(EF10:EH10) -> 0 | EJ10: 0 | EK10: 0 | EL10: 0 | EM10: =SUM(EJ10:EL10) -> 0 | EN10: =IF(OR($B10="",$E10="非燃料由来の非化石電気（オンサイトPPA含む）以外"),0,IF($K10<>"調整後排出係数を入力",$K10*EB10,"調整後排出係数を入力")) -> 0 | EO10: =IF(OR($B10="",$E10="非燃料由来の非化石電気（オンサイトPPA含む）以外"),0,IF($K10<>"調整後排出係数を入力",$K10*EG10,"調整後排出係数を入力")) -> 0 | EP10: =IF(OR($B10="",$E10="非燃料由来の非化石電気（オンサイトPPA含む）以外"),0,IF($K10<>"調整後排出係数を入力",$K10*EH10,"調整後排出係数を入力")) -> 0 | EQ10: =SUM(EN10:EP10) -> 0 | ES10: 0 | ET10: 0 | EU10: 0 | EV10: =SUM(ES10:EU10) -> 0 | EW10: 0 | EX10: 0 | EY10: 0 | EZ10: =SUM(EW10:EY10) -> 0 | FA10: 0 | FB10: 0 | FC10: 0 | FD10: =SUM(FA10:FC10) -> 0 | FE10: =IF(OR($B10="",$E10="非燃料由来の非化石電気（オンサイトPPA含む）以外"),0,IF($K10<>"調整後排出係数を入力",$K10*ES10,"調整後排出係数を入力")) -> 0 | FF10: =IF(OR($B10="",$E10="非燃料由来の非化石電気（オンサイトPPA含む）以外"),0,IF($K10<>"調整後排出係数を入力",$K10*EX10,"調整後排出係数を入力")) -> 0 | FG10: =IF(OR($B10="",$E10="非燃料由来の非化石電気（オンサイトPPA含む）以外"),0,IF($K10<>"調整後排出係数を入力",$K10*EY10,"調整後排出係数を入力")) -> 0 | FH10: =SUM(FE10:FG10) -> 0 | FJ10: 0 | FK10: 0 | FL10: 0 | FM10: =SUM(FJ10:FL10) -> 0 | FN10: =IF(OR($B10="",$E10="非燃料由来の非化石電気（オンサイトPPA含む）以外"),0,IF($I10<>"熱換算係数を入力",1.3*$I10*FJ10,"熱換算係数を入力")) -> 0 | FO10: =IF(OR($B10="",$E10="非燃料由来の非化石電気（オンサイトPPA含む）以外"),0,IF($I10<>"熱換算係数を入力",$I10*FK10,"熱換算係数を入力")) -> 0 | FP10: =IF(OR($B10="",$E10="非燃料由来の非化石電気（オンサイトPPA含む）以外"),0,IF($I10<>"熱換算係数を入力",$I10*FL10,"熱換算係数を入力")) -> 0 | FQ10: =SUM(FN10:FP10) -> 0 | FR10: 0 | FS10: 0 | FT10: 0 | FU10: =SUM(FR10:FT10) -> 0 | FV10: =IF(OR($B10="",$E10="非燃料由来の非化石電気（オンサイトPPA含む）以外"),0,IF($K10<>"調整後排出係数を入力",$K10*FJ10,"調整後排出係数を入力")) -> 0 | FW10: =IF(OR($B10="",$E10="非燃料由来の非化石電気（オンサイトPPA含む）以外"),0,IF($K10<>"調整後排出係数を入力",$K10*FO10,"調整後排出係数を入力")) -> 0 | FX10: =IF(OR($B10="",$E10="非燃料由来の非化石電気（オンサイトPPA含む）以外"),0,IF($K10<>"調整後排出係数を入力",$K10*FP10,"調整後排出係数を入力")) -> 0 | FY10: =SUM(FV10:FX10) -> 0 | GA10: 0 | GB10: 0 | GC10: 0 | GD10: =SUM(GA10:GC10) -> 0 | GE10: =IF(OR($B10="",$E10="非燃料由来の非化石電気（オンサイトPPA含む）以外"),0,IF($I10<>"熱換算係数を入力",1.3*$I10*GA10,"熱換算係数を入力")) -> 0 | GF10: =IF(OR($B10="",$E10="非燃料由来の非化石電気（オンサイトPPA含む）以外"),0,IF($I10<>"熱換算係数を入力",$I10*GB10,"熱換算係数を入力")) -> 0 | GG10: =IF(OR($B10="",$E10="非燃料由来の非化石電気（オンサイトPPA含む）以外"),0,IF($I10<>"熱換算係数を入力",$I10*GC10,"熱換算係数を入力")) -> 0 | GH10: =SUM(GE10:GG10) -> 0 | GI10: 0 | GJ10: 0 | GK10: 0 | GL10: =SUM(GI10:GK10) -> 0 | GM10: =IF(OR($B10="",$E10="非燃料由来の非化石電気（オンサイトPPA含む）以外"),0,IF($K10<>"調整後排出係数を入力",$K10*GA10,"調整後排出係数を入力")) -> 0 | GN10: =IF(OR($B10="",$E10="非燃料由来の非化石電気（オンサイトPPA含む）以外"),0,IF($K10<>"調整後排出係数を入力",$K10*GF10,"調整後排出係数を入力")) -> 0 | GO10: =IF(OR($B10="",$E10="非燃料由来の非化石電気（オンサイトPPA含む）以外"),0,IF($K10<>"調整後排出係数を入力",$K10*GG10,"調整後排出係数を入力")) -> 0 | GP10: =SUM(GM10:GO10) -> 0 | GR10: 0 | GS10: 0 | GT10: 0 | GU10: =SUM(GR10:GT10) -> 0 | GV10: =IF(OR($B10="",$E10="非燃料由来の非化石電気（オンサイトPPA含む）以外"),0,IF($I10<>"熱換算係数を入力",1.3*$I10*GR10,"熱換算係数を入力")) -> 0 | GW10: =IF(OR($B10="",$E10="非燃料由来の非化石電気（オンサイトPPA含む）以外"),0,IF($I10<>"熱換算係数を入力",$I10*GS10,"熱換算係数を入力")) -> 0 | GX10: =IF(OR($B10="",$E10="非燃料由来の非化石電気（オンサイトPPA含む）以外"),0,IF($I10<>"熱換算係数を入力",$I10*GT10,"熱換算係数を入力")) -> 0 | GY10: =SUM(GV10:GX10) -> 0 | GZ10: 0 | HA10: 0 | HB10: 0 | HC10: =SUM(GZ10:HB10) -> 0 | HD10: =IF(OR($B10="",$E10="非燃料由来の非化石電気（オンサイトPPA含む）以外"),0,IF($K10<>"調整後排出係数を入力",$K10*GR10,"調整後排出係数を入力")) -> 0 | HE10: =IF(OR($B10="",$E10="非燃料由来の非化石電気（オンサイトPPA含む）以外"),0,IF($K10<>"調整後排出係数を入力",$K10*GW10,"調整後排出係数を入力")) -> 0 | HF10: =IF(OR($B10="",$E10="非燃料由来の非化石電気（オンサイトPPA含む）以外"),0,IF($K10<>"調整後排出係数を入力",$K10*GX10,"調整後排出係数を入力")) -> 0 | HG10: =SUM(HD10:HF10) -> 0 | HI10: 0 | HJ10: 0 | HK10: 0 | HL10: =SUM(HI10:HK10) -> 0 | HM10: =IF(OR($B10="",$E10="非燃料由来の非化石電気（オンサイトPPA含む）以外"),0,IF($I10<>"熱換算係数を入力",1.3*$I10*HI10,"熱換算係数を入力")) -> 0 | HN10: =IF(OR($B10="",$E10="非燃料由来の非化石電気（オンサイトPPA含む）以外"),0,IF($I10<>"熱換算係数を入力",$I10*HJ10,"熱換算係数を入力")) -> 0 | HO10: =IF(OR($B10="",$E10="非燃料由来の非化石電気（オンサイトPPA含む）以外"),0,IF($I10<>"熱換算係数を入力",$I10*HK10,"熱換算係数を入力")) -> 0 | HP10: =SUM(HM10:HO10) -> 0 | HQ10: 0 | HR10: 0 | HS10: 0 | HT10: =SUM(HQ10:HS10) -> 0 | HU10: =IF(OR($B10="",$E10="非燃料由来の非化石電気（オンサイトPPA含む）以外"),0,IF($K10<>"調整後排出係数を入力",$K10*HI10,"調整後排出係数を入力")) -> 0 | HV10: =IF(OR($B10="",$E10="非燃料由来の非化石電気（オンサイトPPA含む）以外"),0,IF($K10<>"調整後排出係数を入力",$K10*HN10,"調整後排出係数を入力")) -> 0 | HW10: =IF(OR($B10="",$E10="非燃料由来の非化石電気（オンサイトPPA含む）以外"),0,IF($K10<>"調整後排出係数を入力",$K10*HO10,"調整後排出係数を入力")) -> 0 | HX10: =SUM(HU10:HW10) -> 0
I11: =IF(OR($B11="",$E11="非燃料由来の非化石電気（オンサイトPPA含む）以外"),"",IFERROR(VLOOKUP(B11&C11&D11&E11&F11,'熱量換算係数(電気)'!$A$4:$G$24,7,FALSE),"熱量換算係数を入力")) ->  | J11: =IF(OR($B11="",$E11="非燃料由来の非化石電気（オンサイトPPA含む）以外"),"",IFERROR(VLOOKUP($G11,'排出係数(電気)'!$C$10:$D$1258,2,FALSE),IF(F11="化石分","基礎排出係数を入力",0))) ->  | K11: =IF(OR($B11="",$E11="非燃料由来の非化石電気（オンサイトPPA含む）以外"),"",IFERROR(VLOOKUP($G11&H11,'排出係数(電気)'!$A$10:$F$1258,6,FALSE),IF(ISNUMBER($J11)=TRUE,$J11,"調整後排出係数を入力"))) ->  | M11: =AD11+AU11+BL11+CC11+CT11+DK11+EB11+ES11+FJ11+GA11+GR11+HI11 -> 0 | N11: =AE11+AV11+BM11+CD11+CU11+DL11+EC11+ET11+FK11+GB11+GS11+HJ11 -> 0 | O11: =AF11+AW11+BN11+CE11+CV11+DM11+ED11+EU11+FL11+GC11+GT11+HK11 -> 0 | P11: =IF(OR($B11="",$E11="非燃料由来の非化石電気（オンサイトPPA含む）以外"),0,IF($I11<>"熱換算係数を入力",$I11*M11,"熱換算係数を入力")) -> 0 | Q11: =IF(OR($B11="",$E11="非燃料由来の非化石電気（オンサイトPPA含む）以外"),0,IF($I11<>"熱換算係数を入力",$I11*N11,"熱換算係数を入力")) -> 0 | R11: =IF(OR($B11="",$E11="非燃料由来の非化石電気（オンサイトPPA含む）以外"),0,IF($I11<>"熱換算係数を入力",$I11*O11,"熱換算係数を入力")) -> 0 | S11: =IF(OR($B11="",$E11="非燃料由来の非化石電気（オンサイトPPA含む）以外"),0,IF($J11<>"基礎排出係数を入力",$J11*M11,"基礎排出係数を入力")) -> 0 | T11: =IF(OR($B11="",$E11="非燃料由来の非化石電気（オンサイトPPA含む）以外"),0,IF($J11<>"基礎排出係数を入力",$J11*N11,"基礎排出係数を入力")) -> 0 | U11: =IF(OR($B11="",$E11="非燃料由来の非化石電気（オンサイトPPA含む）以外"),0,IF($J11<>"基礎排出係数を入力",$J11*O11,"基礎排出係数を入力")) -> 0 | V11: =IF(OR($B11="",$E11="非燃料由来の非化石電気（オンサイトPPA含む）以外"),0,IF($K11<>"調整後排出係数を入力",$K11*M11,"調整後排出係数を入力")) -> 0 | W11: =IF(OR($B11="",$E11="非燃料由来の非化石電気（オンサイトPPA含む）以外"),0,IF($K11<>"調整後排出係数を入力",$J11*Q11,"調整後排出係数を入力")) -> 0 | X11: =IF(OR($B11="",$E11="非燃料由来の非化石電気（オンサイトPPA含む）以外"),0,IF($K11<>"調整後排出係数を入力",$J11*R11,"調整後排出係数を入力")) -> 0 | Y11: 0 | Z11: =IF(OR($B11="",$E11="非燃料由来の非化石電気（オンサイトPPA含む）以外"),0,IF($I11<>"熱換算係数を入力",$I11*Y11,"熱換算係数を入力")) -> 0 | AA11: =IF(OR($B11="",$E11="非燃料由来の非化石電気（オンサイトPPA含む）以外"),0,IF($J11<>"基礎排出係数を入力",$J11*Y11,"基礎排出係数を入力")) -> 0 | AB11: =IF(OR($B11="",$E11="非燃料由来の非化石電気（オンサイトPPA含む）以外"),0,IF($K11<>"調整後排出係数を入力",$K11*Y11,"調整後排出係数を入力")) -> 0 | AD11: 0 | AE11: 0 | AF11: 0 | AG11: =SUM(AD11:AF11) -> 0 | AH11: =IF(OR($B11="",$E11="非燃料由来の非化石電気（オンサイトPPA含む）以外"),0,IF($I11<>"熱換算係数を入力",$I11*AD11,"熱換算係数を入力")) -> 0 | AI11: =IF(OR($B11="",$E11="非燃料由来の非化石電気（オンサイトPPA含む）以外"),0,IF($I11<>"熱換算係数を入力",$I11*AE11,"熱換算係数を入力")) -> 0 | AJ11: =IF(OR($B11="",$E11="非燃料由来の非化石電気（オンサイトPPA含む）以外"),0,IF($I11<>"熱換算係数を入力",$I11*AF11,"熱換算係数を入力")) -> 0 | AK11: =SUM(AH11:AJ11) -> 0 | AL11: =IF(OR($B11="",$E11="非燃料由来の非化石電気（オンサイトPPA含む）以外"),0,IF($J11<>"基礎排出係数を入力",$J11*AD11,"基礎排出係数を入力")) -> 0 | AM11: =IF(OR($B11="",$E11="非燃料由来の非化石電気（オンサイトPPA含む）以外"),0,IF($J11<>"基礎排出係数を入力",$J11*AE11,"基礎排出係数を入力")) -> 0 | AN11: =IF(OR($B11="",$E11="非燃料由来の非化石電気（オンサイトPPA含む）以外"),0,IF($J11<>"基礎排出係数を入力",$J11*AF11,"基礎排出係数を入力")) -> 0 | AO11: =SUM(AL11:AN11) -> 0 | AP11: =IF(OR($B11="",$E11="非燃料由来の非化石電気（オンサイトPPA含む）以外"),0,IF($K11<>"調整後排出係数を入力",$K11*AD11,"調整後排出係数を入力")) -> 0 | AQ11: =IF(OR($B11="",$E11="非燃料由来の非化石電気（オンサイトPPA含む）以外"),0,IF($K11<>"調整後排出係数を入力",$K11*AI11,"調整後排出係数を入力")) -> 0 | AR11: =IF(OR($B11="",$E11="非燃料由来の非化石電気（オンサイトPPA含む）以外"),0,IF($K11<>"調整後排出係数を入力",$K11*AJ11,"調整後排出係数を入力")) -> 0 | AS11: =SUM(AP11:AR11) -> 0 | AU11: 0 | AV11: 0 | AW11: 0 | AX11: =SUM(AU11:AW11) -> 0 | AY11: =IF(OR($B11="",$E11="非燃料由来の非化石電気（オンサイトPPA含む）以外"),0,IF($I11<>"熱換算係数を入力",$I11*AU11,"熱換算係数を入力")) -> 0 | AZ11: =IF(OR($B11="",$E11="非燃料由来の非化石電気（オンサイトPPA含む）以外"),0,IF($I11<>"熱換算係数を入力",$I11*AV11,"熱換算係数を入力")) -> 0 | BA11: =IF(OR($B11="",$E11="非燃料由来の非化石電気（オンサイトPPA含む）以外"),0,IF($I11<>"熱換算係数を入力",$I11*AW11,"熱換算係数を入力")) -> 0 | BB11: =SUM(AY11:BA11) -> 0 | BC11: =IF(OR($B11="",$E11="非燃料由来の非化石電気（オンサイトPPA含む）以外"),0,IF($J11<>"基礎排出係数を入力",$J11*AU11,"基礎排出係数を入力")) -> 0 | BD11: =IF(OR($B11="",$E11="非燃料由来の非化石電気（オンサイトPPA含む）以外"),0,IF($J11<>"基礎排出係数を入力",$J11*AV11,"基礎排出係数を入力")) -> 0 | BE11: =IF(OR($B11="",$E11="非燃料由来の非化石電気（オンサイトPPA含む）以外"),0,IF($J11<>"基礎排出係数を入力",$J11*AW11,"基礎排出係数を入力")) -> 0 | BF11: =SUM(BC11:BE11) -> 0 | BG11: =IF(OR($B11="",$E11="非燃料由来の非化石電気（オンサイトPPA含む）以外"),0,IF($K11<>"調整後排出係数を入力",$K11*AU11,"調整後排出係数を入力")) -> 0 | BH11: =IF(OR($B11="",$E11="非燃料由来の非化石電気（オンサイトPPA含む）以外"),0,IF($K11<>"調整後排出係数を入力",$K11*AZ11,"調整後排出係数を入力")) -> 0 | BI11: =IF(OR($B11="",$E11="非燃料由来の非化石電気（オンサイトPPA含む）以外"),0,IF($K11<>"調整後排出係数を入力",$K11*BA11,"調整後排出係数を入力")) -> 0 | BJ11: =SUM(BG11:BI11) -> 0 | BL11: 0 | BM11: 0 | BN11: 0 | BO11: =SUM(BL11:BN11) -> 0 | BP11: =IF(OR($B11="",$E11="非燃料由来の非化石電気（オンサイトPPA含む）以外"),0,IF($I11<>"熱換算係数を入力",$I11*BL11,"熱換算係数を入力")) -> 0 | BQ11: =IF(OR($B11="",$E11="非燃料由来の非化石電気（オンサイトPPA含む）以外"),0,IF($I11<>"熱換算係数を入力",$I11*BM11,"熱換算係数を入力")) -> 0 | BR11: =IF(OR($B11="",$E11="非燃料由来の非化石電気（オンサイトPPA含む）以外"),0,IF($I11<>"熱換算係数を入力",$I11*BN11,"熱換算係数を入力")) -> 0 | BS11: =SUM(BP11:BR11) -> 0 | BT11: =IF(OR($B11="",$E11="非燃料由来の非化石電気（オンサイトPPA含む）以外"),0,IF($J11<>"基礎排出係数を入力",$J11*BL11,"基礎排出係数を入力")) -> 0 | BU11: =IF(OR($B11="",$E11="非燃料由来の非化石電気（オンサイトPPA含む）以外"),0,IF($J11<>"基礎排出係数を入力",$J11*BM11,"基礎排出係数を入力")) -> 0 | BV11: =IF(OR($B11="",$E11="非燃料由来の非化石電気（オンサイトPPA含む）以外"),0,IF($J11<>"基礎排出係数を入力",$J11*BN11,"基礎排出係数を入力")) -> 0 | BW11: =SUM(BT11:BV11) -> 0 | BX11: =IF(OR($B11="",$E11="非燃料由来の非化石電気（オンサイトPPA含む）以外"),0,IF($K11<>"調整後排出係数を入力",$K11*BL11,"調整後排出係数を入力")) -> 0 | BY11: =IF(OR($B11="",$E11="非燃料由来の非化石電気（オンサイトPPA含む）以外"),0,IF($K11<>"調整後排出係数を入力",$K11*BQ11,"調整後排出係数を入力")) -> 0 | BZ11: =IF(OR($B11="",$E11="非燃料由来の非化石電気（オンサイトPPA含む）以外"),0,IF($K11<>"調整後排出係数を入力",$K11*BR11,"調整後排出係数を入力")) -> 0 | CA11: =SUM(BX11:BZ11) -> 0 | CC11: 0 | CD11: 0 | CE11: 0 | CF11: =SUM(CC11:CE11) -> 0 | CG11: =IF(OR($B11="",$E11="非燃料由来の非化石電気（オンサイトPPA含む）以外"),0,IF($I11<>"熱換算係数を入力",1.3*$I11*CC11,"熱換算係数を入力")) -> 0 | CH11: =IF(OR($B11="",$E11="非燃料由来の非化石電気（オンサイトPPA含む）以外"),0,IF($I11<>"熱換算係数を入力",$I11*CD11,"熱換算係数を入力")) -> 0 | CI11: =IF(OR($B11="",$E11="非燃料由来の非化石電気（オンサイトPPA含む）以外"),0,IF($I11<>"熱換算係数を入力",$I11*CE11,"熱換算係数を入力")) -> 0 | CJ11: =SUM(CG11:CI11) -> 0 | CK11: =IF(OR($B11="",$E11="非燃料由来の非化石電気（オンサイトPPA含む）以外"),0,IF($J11<>"基礎排出係数を入力",$J11*CC11,"基礎排出係数を入力")) -> 0 | CL11: =IF(OR($B11="",$E11="非燃料由来の非化石電気（オンサイトPPA含む）以外"),0,IF($J11<>"基礎排出係数を入力",$J11*CD11,"基礎排出係数を入力")) -> 0 | CM11: =IF(OR($B11="",$E11="非燃料由来の非化石電気（オンサイトPPA含む）以外"),0,IF($J11<>"基礎排出係数を入力",$J11*CE11,"基礎排出係数を入力")) -> 0 | CN11: =SUM(CK11:CM11) -> 0 | CO11: =IF(OR($B11="",$E11="非燃料由来の非化石電気（オンサイトPPA含む）以外"),0,IF($K11<>"調整後排出係数を入力",$K11*CC11,"調整後排出係数を入力")) -> 0 | CP11: =IF(OR($B11="",$E11="非燃料由来の非化石電気（オンサイトPPA含む）以外"),0,IF($K11<>"調整後排出係数を入力",$K11*CH11,"調整後排出係数を入力")) -> 0 | CQ11: =IF(OR($B11="",$E11="非燃料由来の非化石電気（オンサイトPPA含む）以外"),0,IF($K11<>"調整後排出係数を入力",$K11*CI11,"調整後排出係数を入力")) -> 0 | CR11: =SUM(CO11:CQ11) -> 0 | CT11: 0 | CU11: 0 | CV11: 0 | CW11: =SUM(CT11:CV11) -> 0 | CX11: =IF(OR($B11="",$E11="非燃料由来の非化石電気（オンサイトPPA含む）以外"),0,IF($I11<>"熱換算係数を入力",1.3*$I11*CT11,"熱換算係数を入力")) -> 0 | CY11: =IF(OR($B11="",$E11="非燃料由来の非化石電気（オンサイトPPA含む）以外"),0,IF($I11<>"熱換算係数を入力",$I11*CU11,"熱換算係数を入力")) -> 0 | CZ11: =IF(OR($B11="",$E11="非燃料由来の非化石電気（オンサイトPPA含む）以外"),0,IF($I11<>"熱換算係数を入力",$I11*CV11,"熱換算係数を入力")) -> 0 | DA11: =SUM(CX11:CZ11) -> 0 | DB11: =IF(OR($B11="",$E11="非燃料由来の非化石電気（オンサイトPPA含む）以外"),0,IF($J11<>"基礎排出係数を入力",$J11*CT11,"基礎排出係数を入力")) -> 0 | DC11: =IF(OR($B11="",$E11="非燃料由来の非化石電気（オンサイトPPA含む）以外"),0,IF($J11<>"基礎排出係数を入力",$J11*CU11,"基礎排出係数を入力")) -> 0 | DD11: =IF(OR($B11="",$E11="非燃料由来の非化石電気（オンサイトPPA含む）以外"),0,IF($J11<>"基礎排出係数を入力",$J11*CV11,"基礎排出係数を入力")) -> 0 | DE11: =SUM(DB11:DD11) -> 0 | DF11: =IF(OR($B11="",$E11="非燃料由来の非化石電気（オンサイトPPA含む）以外"),0,IF($K11<>"調整後排出係数を入力",$K11*CT11,"調整後排出係数を入力")) -> 0 | DG11: =IF(OR($B11="",$E11="非燃料由来の非化石電気（オンサイトPPA含む）以外"),0,IF($K11<>"調整後排出係数を入力",$K11*CY11,"調整後排出係数を入力")) -> 0 | DH11: =IF(OR($B11="",$E11="非燃料由来の非化石電気（オンサイトPPA含む）以外"),0,IF($K11<>"調整後排出係数を入力",$K11*CZ11,"調整後排出係数を入力")) -> 0 | DI11: =SUM(DF11:DH11) -> 0 | DK11: 0 | DL11: 0 | DM11: 0 | DN11: =SUM(DK11:DM11) -> 0 | DO11: =IF(OR($B11="",$E11="非燃料由来の非化石電気（オンサイトPPA含む）以外"),0,IF($I11<>"熱換算係数を入力",1.3*$I11*DK11,"熱換算係数を入力")) -> 0 | DP11: =IF(OR($B11="",$E11="非燃料由来の非化石電気（オンサイトPPA含む）以外"),0,IF($I11<>"熱換算係数を入力",$I11*DL11,"熱換算係数を入力")) -> 0 | DQ11: =IF(OR($B11="",$E11="非燃料由来の非化石電気（オンサイトPPA含む）以外"),0,IF($I11<>"熱換算係数を入力",$I11*DM11,"熱換算係数を入力")) -> 0 | DR11: =SUM(DO11:DQ11) -> 0 | DS11: =IF(OR($B11="",$E11="非燃料由来の非化石電気（オンサイトPPA含む）以外"),0,IF($J11<>"基礎排出係数を入力",$J11*DK11,"基礎排出係数を入力")) -> 0 | DT11: =IF(OR($B11="",$E11="非燃料由来の非化石電気（オンサイトPPA含む）以外"),0,IF($J11<>"基礎排出係数を入力",$J11*DL11,"基礎排出係数を入力")) -> 0 | DU11: =IF(OR($B11="",$E11="非燃料由来の非化石電気（オンサイトPPA含む）以外"),0,IF($J11<>"基礎排出係数を入力",$J11*DM11,"基礎排出係数を入力")) -> 0 | DV11: =SUM(DS11:DU11) -> 0 | DW11: =IF(OR($B11="",$E11="非燃料由来の非化石電気（オンサイトPPA含む）以外"),0,IF($K11<>"調整後排出係数を入力",$K11*DK11,"調整後排出係数を入力")) -> 0 | DX11: =IF(OR($B11="",$E11="非燃料由来の非化石電気（オンサイトPPA含む）以外"),0,IF($K11<>"調整後排出係数を入力",$K11*DP11,"調整後排出係数を入力")) -> 0 | DY11: =IF(OR($B11="",$E11="非燃料由来の非化石電気（オンサイトPPA含む）以外"),0,IF($K11<>"調整後排出係数を入力",$K11*DQ11,"調整後排出係数を入力")) -> 0 | DZ11: =SUM(DW11:DY11) -> 0 | EB11: 0 | EC11: 0 | ED11: 0 | EE11: =SUM(EB11:ED11) -> 0 | EF11: =IF(OR($B11="",$E11="非燃料由来の非化石電気（オンサイトPPA含む）以外"),0,IF($I11<>"熱換算係数を入力",$I11*EB11,"熱換算係数を入力")) -> 0 | EG11: =IF(OR($B11="",$E11="非燃料由来の非化石電気（オンサイトPPA含む）以外"),0,IF($I11<>"熱換算係数を入力",$I11*EC11,"熱換算係数を入力")) -> 0 | EH11: =IF(OR($B11="",$E11="非燃料由来の非化石電気（オンサイトPPA含む）以外"),0,IF($I11<>"熱換算係数を入力",$I11*ED11,"熱換算係数を入力")) -> 0 | EI11: =SUM(EF11:EH11) -> 0 | EJ11: =IF(OR($B11="",$E11="非燃料由来の非化石電気（オンサイトPPA含む）以外"),0,IF($J11<>"基礎排出係数を入力",$J11*EB11,"基礎排出係数を入力")) -> 0 | EK11: =IF(OR($B11="",$E11="非燃料由来の非化石電気（オンサイトPPA含む）以外"),0,IF($J11<>"基礎排出係数を入力",$J11*EC11,"基礎排出係数を入力")) -> 0 | EL11: =IF(OR($B11="",$E11="非燃料由来の非化石電気（オンサイトPPA含む）以外"),0,IF($J11<>"基礎排出係数を入力",$J11*ED11,"基礎排出係数を入力")) -> 0 | EM11: =SUM(EJ11:EL11) -> 0 | EN11: =IF(OR($B11="",$E11="非燃料由来の非化石電気（オンサイトPPA含む）以外"),0,IF($K11<>"調整後排出係数を入力",$K11*EB11,"調整後排出係数を入力")) -> 0 | EO11: =IF(OR($B11="",$E11="非燃料由来の非化石電気（オンサイトPPA含む）以外"),0,IF($K11<>"調整後排出係数を入力",$K11*EG11,"調整後排出係数を入力")) -> 0 | EP11: =IF(OR($B11="",$E11="非燃料由来の非化石電気（オンサイトPPA含む）以外"),0,IF($K11<>"調整後排出係数を入力",$K11*EH11,"調整後排出係数を入力")) -> 0 | EQ11: =SUM(EN11:EP11) -> 0 | ES11: 0 | ET11: 0 | EU11: 0 | EV11: =SUM(ES11:EU11) -> 0 | EW11: =IF(OR($B11="",$E11="非燃料由来の非化石電気（オンサイトPPA含む）以外"),0,IF($I11<>"熱換算係数を入力",$I11*ES11,"熱換算係数を入力")) -> 0 | EX11: =IF(OR($B11="",$E11="非燃料由来の非化石電気（オンサイトPPA含む）以外"),0,IF($I11<>"熱換算係数を入力",$I11*ET11,"熱換算係数を入力")) -> 0 | EY11: =IF(OR($B11="",$E11="非燃料由来の非化石電気（オンサイトPPA含む）以外"),0,IF($I11<>"熱換算係数を入力",$I11*EU11,"熱換算係数を入力")) -> 0 | EZ11: =SUM(EW11:EY11) -> 0 | FA11: =IF(OR($B11="",$E11="非燃料由来の非化石電気（オンサイトPPA含む）以外"),0,IF($J11<>"基礎排出係数を入力",$J11*ES11,"基礎排出係数を入力")) -> 0 | FB11: =IF(OR($B11="",$E11="非燃料由来の非化石電気（オンサイトPPA含む）以外"),0,IF($J11<>"基礎排出係数を入力",$J11*ET11,"基礎排出係数を入力")) -> 0 | FC11: =IF(OR($B11="",$E11="非燃料由来の非化石電気（オンサイトPPA含む）以外"),0,IF($J11<>"基礎排出係数を入力",$J11*EU11,"基礎排出係数を入力")) -> 0 | FD11: =SUM(FA11:FC11) -> 0 | FE11: =IF(OR($B11="",$E11="非燃料由来の非化石電気（オンサイトPPA含む）以外"),0,IF($K11<>"調整後排出係数を入力",$K11*ES11,"調整後排出係数を入力")) -> 0 | FF11: =IF(OR($B11="",$E11="非燃料由来の非化石電気（オンサイトPPA含む）以外"),0,IF($K11<>"調整後排出係数を入力",$K11*EX11,"調整後排出係数を入力")) -> 0 | FG11: =IF(OR($B11="",$E11="非燃料由来の非化石電気（オンサイトPPA含む）以外"),0,IF($K11<>"調整後排出係数を入力",$K11*EY11,"調整後排出係数を入力")) -> 0 | FH11: =SUM(FE11:FG11) -> 0 | FJ11: 0 | FK11: 0 | FL11: 0 | FM11: =SUM(FJ11:FL11) -> 0 | FN11: =IF(OR($B11="",$E11="非燃料由来の非化石電気（オンサイトPPA含む）以外"),0,IF($I11<>"熱換算係数を入力",1.3*$I11*FJ11,"熱換算係数を入力")) -> 0 | FO11: =IF(OR($B11="",$E11="非燃料由来の非化石電気（オンサイトPPA含む）以外"),0,IF($I11<>"熱換算係数を入力",$I11*FK11,"熱換算係数を入力")) -> 0 | FP11: =IF(OR($B11="",$E11="非燃料由来の非化石電気（オンサイトPPA含む）以外"),0,IF($I11<>"熱換算係数を入力",$I11*FL11,"熱換算係数を入力")) -> 0 | FQ11: =SUM(FN11:FP11) -> 0 | FR11: =IF(OR($B11="",$E11="非燃料由来の非化石電気（オンサイトPPA含む）以外"),0,IF($J11<>"基礎排出係数を入力",$J11*FJ11,"基礎排出係数を入力")) -> 0 | FS11: =IF(OR($B11="",$E11="非燃料由来の非化石電気（オンサイトPPA含む）以外"),0,IF($J11<>"基礎排出係数を入力",$J11*FK11,"基礎排出係数を入力")) -> 0 | FT11: =IF(OR($B11="",$E11="非燃料由来の非化石電気（オンサイトPPA含む）以外"),0,IF($J11<>"基礎排出係数を入力",$J11*FL11,"基礎排出係数を入力")) -> 0 | FU11: =SUM(FR11:FT11) -> 0 | FV11: =IF(OR($B11="",$E11="非燃料由来の非化石電気（オンサイトPPA含む）以外"),0,IF($K11<>"調整後排出係数を入力",$K11*FJ11,"調整後排出係数を入力")) -> 0 | FW11: =IF(OR($B11="",$E11="非燃料由来の非化石電気（オンサイトPPA含む）以外"),0,IF($K11<>"調整後排出係数を入力",$K11*FO11,"調整後排出係数を入力")) -> 0 | FX11: =IF(OR($B11="",$E11="非燃料由来の非化石電気（オンサイトPPA含む）以外"),0,IF($K11<>"調整後排出係数を入力",$K11*FP11,"調整後排出係数を入力")) -> 0 | FY11: =SUM(FV11:FX11) -> 0 | GA11: 0 | GB11: 0 | GC11: 0 | GD11: =SUM(GA11:GC11) -> 0 | GE11: =IF(OR($B11="",$E11="非燃料由来の非化石電気（オンサイトPPA含む）以外"),0,IF($I11<>"熱換算係数を入力",1.3*$I11*GA11,"熱換算係数を入力")) -> 0 | GF11: =IF(OR($B11="",$E11="非燃料由来の非化石電気（オンサイトPPA含む）以外"),0,IF($I11<>"熱換算係数を入力",$I11*GB11,"熱換算係数を入力")) -> 0 | GG11: =IF(OR($B11="",$E11="非燃料由来の非化石電気（オンサイトPPA含む）以外"),0,IF($I11<>"熱換算係数を入力",$I11*GC11,"熱換算係数を入力")) -> 0 | GH11: =SUM(GE11:GG11) -> 0 | GI11: =IF(OR($B11="",$E11="非燃料由来の非化石電気（オンサイトPPA含む）以外"),0,IF($J11<>"基礎排出係数を入力",$J11*GA11,"基礎排出係数を入力")) -> 0 | GJ11: =IF(OR($B11="",$E11="非燃料由来の非化石電気（オンサイトPPA含む）以外"),0,IF($J11<>"基礎排出係数を入力",$J11*GB11,"基礎排出係数を入力")) -> 0 | GK11: =IF(OR($B11="",$E11="非燃料由来の非化石電気（オンサイトPPA含む）以外"),0,IF($J11<>"基礎排出係数を入力",$J11*GC11,"基礎排出係数を入力")) -> 0 | GL11: =SUM(GI11:GK11) -> 0 | GM11: =IF(OR($B11="",$E11="非燃料由来の非化石電気（オンサイトPPA含む）以外"),0,IF($K11<>"調整後排出係数を入力",$K11*GA11,"調整後排出係数を入力")) -> 0 | GN11: =IF(OR($B11="",$E11="非燃料由来の非化石電気（オンサイトPPA含む）以外"),0,IF($K11<>"調整後排出係数を入力",$K11*GF11,"調整後排出係数を入力")) -> 0 | GO11: =IF(OR($B11="",$E11="非燃料由来の非化石電気（オンサイトPPA含む）以外"),0,IF($K11<>"調整後排出係数を入力",$K11*GG11,"調整後排出係数を入力")) -> 0 | GP11: =SUM(GM11:GO11) -> 0 | GR11: 0 | GS11: 0 | GT11: 0 | GU11: =SUM(GR11:GT11) -> 0 | GV11: =IF(OR($B11="",$E11="非燃料由来の非化石電気（オンサイトPPA含む）以外"),0,IF($I11<>"熱換算係数を入力",1.3*$I11*GR11,"熱換算係数を入力")) -> 0 | GW11: =IF(OR($B11="",$E11="非燃料由来の非化石電気（オンサイトPPA含む）以外"),0,IF($I11<>"熱換算係数を入力",$I11*GS11,"熱換算係数を入力")) -> 0 | GX11: =IF(OR($B11="",$E11="非燃料由来の非化石電気（オンサイトPPA含む）以外"),0,IF($I11<>"熱換算係数を入力",$I11*GT11,"熱換算係数を入力")) -> 0 | GY11: =SUM(GV11:GX11) -> 0 | GZ11: =IF(OR($B11="",$E11="非燃料由来の非化石電気（オンサイトPPA含む）以外"),0,IF($J11<>"基礎排出係数を入力",$J11*GR11,"基礎排出係数を入力")) -> 0 | HA11: =IF(OR($B11="",$E11="非燃料由来の非化石電気（オンサイトPPA含む）以外"),0,IF($J11<>"基礎排出係数を入力",$J11*GS11,"基礎排出係数を入力")) -> 0 | HB11: =IF(OR($B11="",$E11="非燃料由来の非化石電気（オンサイトPPA含む）以外"),0,IF($J11<>"基礎排出係数を入力",$J11*GT11,"基礎排出係数を入力")) -> 0 | HC11: =SUM(GZ11:HB11) -> 0 | HD11: =IF(OR($B11="",$E11="非燃料由来の非化石電気（オンサイトPPA含む）以外"),0,IF($K11<>"調整後排出係数を入力",$K11*GR11,"調整後排出係数を入力")) -> 0 | HE11: =IF(OR($B11="",$E11="非燃料由来の非化石電気（オンサイトPPA含む）以外"),0,IF($K11<>"調整後排出係数を入力",$K11*GW11,"調整後排出係数を入力")) -> 0 | HF11: =IF(OR($B11="",$E11="非燃料由来の非化石電気（オンサイトPPA含む）以外"),0,IF($K11<>"調整後排出係数を入力",$K11*GX11,"調整後排出係数を入力")) -> 0 | HG11: =SUM(HD11:HF11) -> 0 | HI11: 0 | HJ11: 0 | HK11: 0 | HL11: =SUM(HI11:HK11) -> 0 | HM11: =IF(OR($B11="",$E11="非燃料由来の非化石電気（オンサイトPPA含む）以外"),0,IF($I11<>"熱換算係数を入力",1.3*$I11*HI11,"熱換算係数を入力")) -> 0 | HN11: =IF(OR($B11="",$E11="非燃料由来の非化石電気（オンサイトPPA含む）以外"),0,IF($I11<>"熱換算係数を入力",$I11*HJ11,"熱換算係数を入力")) -> 0 | HO11: =IF(OR($B11="",$E11="非燃料由来の非化石電気（オンサイトPPA含む）以外"),0,IF($I11<>"熱換算係数を入力",$I11*HK11,"熱換算係数を入力")) -> 0 | HP11: =SUM(HM11:HO11) -> 0 | HQ11: =IF(OR($B11="",$E11="非燃料由来の非化石電気（オンサイトPPA含む）以外"),0,IF($J11<>"基礎排出係数を入力",$J11*HI11,"基礎排出係数を入力")) -> 0 | HR11: =IF(OR($B11="",$E11="非燃料由来の非化石電気（オンサイトPPA含む）以外"),0,IF($J11<>"基礎排出係数を入力",$J11*HJ11,"基礎排出係数を入力")) -> 0 | HS11: =IF(OR($B11="",$E11="非燃料由来の非化石電気（オンサイトPPA含む）以外"),0,IF($J11<>"基礎排出係数を入力",$J11*HK11,"基礎排出係数を入力")) -> 0 | HT11: =SUM(HQ11:HS11) -> 0 | HU11: =IF(OR($B11="",$E11="非燃料由来の非化石電気（オンサイトPPA含む）以外"),0,IF($K11<>"調整後排出係数を入力",$K11*HI11,"調整後排出係数を入力")) -> 0 | HV11: =IF(OR($B11="",$E11="非燃料由来の非化石電気（オンサイトPPA含む）以外"),0,IF($K11<>"調整後排出係数を入力",$K11*HN11,"調整後排出係数を入力")) -> 0 | HW11: =IF(OR($B11="",$E11="非燃料由来の非化石電気（オンサイトPPA含む）以外"),0,IF($K11<>"調整後排出係数を入力",$K11*HO11,"調整後排出係数を入力")) -> 0 | HX11: =SUM(HU11:HW11) -> 0
I12: =IF(OR($B12="",$E12="非燃料由来の非化石電気（オンサイトPPA含む）以外"),"",IFERROR(VLOOKUP(B12&C12&D12&E12&F12,'熱量換算係数(電気)'!$A$4:$G$24,7,FALSE),"熱量換算係数を入力")) ->  | J12: =IF(OR($B12="",$E12="非燃料由来の非化石電気（オンサイトPPA含む）以外"),"",IFERROR(VLOOKUP($G12,'排出係数(電気)'!$C$10:$D$1258,2,FALSE),IF(F12="化石分","基礎排出係数を入力",0))) ->  | K12: =IF(OR($B12="",$E12="非燃料由来の非化石電気（オンサイトPPA含む）以外"),"",IFERROR(VLOOKUP($G12&H12,'排出係数(電気)'!$A$10:$F$1258,6,FALSE),IF(ISNUMBER($J12)=TRUE,$J12,"調整後排出係数を入力"))) ->  | M12: 0 | N12: 0 | O12: 0 | P12: 0 | Q12: 0 | R12: 0 | S12: 0 | T12: 0 | U12: 0 | V12: 0 | W12: 0 | X12: 0 | Y12: 0 | Z12: 0 | AA12: 0 | AB12: 0 | AD12: 0 | AE12: 0 | AF12: 0 | AG12: 0 | AH12: 0 | AI12: 0 | AJ12: 0 | AK12: 0 | AL12: 0 | AM12: 0 | AN12: 0 | AO12: 0 | AP12: 0 | AQ12: 0 | AR12: 0 | AS12: 0 | AU12: 0 | AV12: 0 | AW12: 0 | AX12: 0 | AY12: 0 | AZ12: 0 | BA12: 0 | BB12: 0 | BC12: 0 | BD12: 0 | BE12: 0 | BF12: 0 | BG12: 0 | BH12: 0 | BI12: 0 | BJ12: 0 | BL12: 0 | BM12: 0 | BN12: 0 | BO12: 0 | BP12: 0 | BQ12: 0 | BR12: 0 | BS12: 0 | BT12: 0 | BU12: 0 | BV12: 0 | BW12: 0 | BX12: 0 | BY12: 0 | BZ12: 0 | CA12: 0 | CC12: 0 | CD12: 0 | CE12: 0 | CF12: 0 | CG12: 0 | CH12: 0 | CI12: 0 | CJ12: 0 | CK12: 0 | CL12: 0 | CM12: 0 | CN12: 0 | CO12: 0 | CP12: 0 | CQ12: 0 | CR12: 0 | CT12: 0 | CU12: 0 | CV12: 0 | CW12: 0 | CX12: 0 | CY12: 0 | CZ12: 0 | DA12: 0 | DB12: 0 | DC12: 0 | DD12: 0 | DE12: 0 | DF12: 0 | DG12: 0 | DH12: 0 | DI12: 0 | DK12: 0 | DL12: 0 | DM12: 0 | DN12: 0 | DO12: 0 | DP12: 0 | DQ12: 0 | DR12: 0 | DS12: 0 | DT12: 0 | DU12: 0 | DV12: 0 | DW12: 0 | DX12: 0 | DY12: 0 | DZ12: 0 | EB12: 0 | EC12: 0 | ED12: 0 | EE12: 0 | EF12: 0 | EG12: 0 | EH12: 0 | EI12: 0 | EJ12: 0 | EK12: 0 | EL12: 0 | EM12: 0 | EN12: 0 | EO12: 0 | EP12: 0 | EQ12: 0 | ES12: 0 | ET12: 0 | EU12: 0 | EV12: 0 | EW12: 0 | EX12: 0 | EY12: 0 | EZ12: 0 | FA12: 0 | FB12: 0 | FC12: 0 | FD12: 0 | FE12: 0 | FF12: 0 | FG12: 0 | FH12: 0 | FJ12: 0 | FK12: 0 | FL12: 0 | FM12: 0 | FN12: 0 | FO12: 0 | FP12: 0 | FQ12: 0 | FR12: 0 | FS12: 0 | FT12: 0 | FU12: 0 | FV12: 0 | FW12: 0 | FX12: 0 | FY12: 0 | GA12: 0 | GB12: 0 | GC12: 0 | GD12: 0 | GE12: 0 | GF12: 0 | GG12: 0 | GH12: 0 | GI12: 0 | GJ12: 0 | GK12: 0 | GL12: 0 | GM12: 0 | GN12: 0 | GO12: 0 | GP12: 0 | GR12: 0 | GS12: 0 | GT12: 0 | GU12: 0 | GV12: 0 | GW12: 0 | GX12: 0 | GY12: 0 | GZ12: 0 | HA12: 0 | HB12: 0 | HC12: 0 | HD12: 0 | HE12: 0 | HF12: 0 | HG12: 0 | HI12: 0 | HJ12: 0 | HK12: 0 | HL12: 0 | HM12: 0 | HN12: 0 | HO12: 0 | HP12: 0 | HQ12: 0 | HR12: 0 | HS12: 0 | HT12: 0 | HU12: 0 | HV12: 0 | HW12: 0 | HX12: 0
I13: =IF(OR($B13="",$E13="非燃料由来の非化石電気（オンサイトPPA含む）以外"),"",IFERROR(VLOOKUP(B13&C13&D13&E13&F13,'熱量換算係数(電気)'!$A$4:$G$24,7,FALSE),"熱量換算係数を入力")) ->  | J13: =IF(OR($B13="",$E13="非燃料由来の非化石電気（オンサイトPPA含む）以外"),"",IFERROR(VLOOKUP($G13,'排出係数(電気)'!$C$10:$D$1258,2,FALSE),IF(F13="化石分","基礎排出係数を入力",0))) ->  | K13: =IF(OR($B13="",$E13="非燃料由来の非化石電気（オンサイトPPA含む）以外"),"",IFERROR(VLOOKUP($G13&H13,'排出係数(電気)'!$A$10:$F$1258,6,FALSE),IF(ISNUMBER($J13)=TRUE,$J13,"調整後排出係数を入力"))) ->  | M13: 0 | N13: 0 | O13: 0 | P13: 0 | Q13: 0 | R13: 0 | S13: 0 | T13: 0 | U13: 0 | V13: 0 | W13: 0 | X13: 0 | Y13: 0 | Z13: 0 | AA13: 0 | AB13: 0 | AD13: 0 | AE13: 0 | AF13: 0 | AG13: 0 | AH13: 0 | AI13: 0 | AJ13: 0 | AK13: 0 | AL13: 0 | AM13: 0 | AN13: 0 | AO13: 0 | AP13: 0 | AQ13: 0 | AR13: 0 | AS13: 0 | AU13: 0 | AV13: 0 | AW13: 0 | AX13: 0 | AY13: 0 | AZ13: 0 | BA13: 0 | BB13: 0 | BC13: 0 | BD13: 0 | BE13: 0 | BF13: 0 | BG13: 0 | BH13: 0 | BI13: 0 | BJ13: 0 | BL13: 0 | BM13: 0 | BN13: 0 | BO13: 0 | BP13: 0 | BQ13: 0 | BR13: 0 | BS13: 0 | BT13: 0 | BU13: 0 | BV13: 0 | BW13: 0 | BX13: 0 | BY13: 0 | BZ13: 0 | CA13: 0 | CC13: 0 | CD13: 0 | CE13: 0 | CF13: 0 | CG13: 0 | CH13: 0 | CI13: 0 | CJ13: 0 | CK13: 0 | CL13: 0 | CM13: 0 | CN13: 0 | CO13: 0 | CP13: 0 | CQ13: 0 | CR13: 0 | CT13: 0 | CU13: 0 | CV13: 0 | CW13: 0 | CX13: 0 | CY13: 0 | CZ13: 0 | DA13: 0 | DB13: 0 | DC13: 0 | DD13: 0 | DE13: 0 | DF13: 0 | DG13: 0 | DH13: 0 | DI13: 0 | DK13: 0 | DL13: 0 | DM13: 0 | DN13: 0 | DO13: 0 | DP13: 0 | DQ13: 0 | DR13: 0 | DS13: 0 | DT13: 0 | DU13: 0 | DV13: 0 | DW13: 0 | DX13: 0 | DY13: 0 | DZ13: 0 | EB13: 0 | EC13: 0 | ED13: 0 | EE13: 0 | EF13: 0 | EG13: 0 | EH13: 0 | EI13: 0 | EJ13: 0 | EK13: 0 | EL13: 0 | EM13: 0 | EN13: 0 | EO13: 0 | EP13: 0 | EQ13: 0 | ES13: 0 | ET13: 0 | EU13: 0 | EV13: 0 | EW13: 0 | EX13: 0 | EY13: 0 | EZ13: 0 | FA13: 0 | FB13: 0 | FC13: 0 | FD13: 0 | FE13: 0 | FF13: 0 | FG13: 0 | FH13: 0 | FJ13: 0 | FK13: 0 | FL13: 0 | FM13: 0 | FN13: 0 | FO13: 0 | FP13: 0 | FQ13: 0 | FR13: 0 | FS13: 0 | FT13: 0 | FU13: 0 | FV13: 0 | FW13: 0 | FX13: 0 | FY13: 0 | GA13: 0 | GB13: 0 | GC13: 0 | GD13: 0 | GE13: 0 | GF13: 0 | GG13: 0 | GH13: 0 | GI13: 0 | GJ13: 0 | GK13: 0 | GL13: 0 | GM13: 0 | GN13: 0 | GO13: 0 | GP13: 0 | GR13: 0 | GS13: 0 | GT13: 0 | GU13: 0 | GV13: 0 | GW13: 0 | GX13: 0 | GY13: 0 | GZ13: 0 | HA13: 0 | HB13: 0 | HC13: 0 | HD13: 0 | HE13: 0 | HF13: 0 | HG13: 0 | HI13: 0 | HJ13: 0 | HK13: 0 | HL13: 0 | HM13: 0 | HN13: 0 | HO13: 0 | HP13: 0 | HQ13: 0 | HR13: 0 | HS13: 0 | HT13: 0 | HU13: 0 | HV13: 0 | HW13: 0 | HX13: 0
I14: =IF(OR($B14="",$E14="非燃料由来の非化石電気（オンサイトPPA含む）以外"),"",IFERROR(VLOOKUP(B14&C14&D14&E14&F14,'熱量換算係数(電気)'!$A$4:$G$24,7,FALSE),"熱量換算係数を入力")) ->  | J14: =IF(OR($B14="",$E14="非燃料由来の非化石電気（オンサイトPPA含む）以外"),"",IFERROR(VLOOKUP($G14,'排出係数(電気)'!$C$10:$D$1258,2,FALSE),IF(F14="化石分","基礎排出係数を入力",0))) ->  | K14: =IF(OR($B14="",$E14="非燃料由来の非化石電気（オンサイトPPA含む）以外"),"",IFERROR(VLOOKUP($G14&H14,'排出係数(電気)'!$A$10:$F$1258,6,FALSE),IF(ISNUMBER($J14)=TRUE,$J14,"調整後排出係数を入力"))) ->  | M14: 0 | N14: 0 | O14: 0 | P14: 0 | Q14: 0 | R14: 0 | S14: 0 | T14: 0 | U14: 0 | V14: 0 | W14: 0 | X14: 0 | Y14: 0 | Z14: 0 | AA14: 0 | AB14: 0 | AD14: 0 | AE14: 0 | AF14: 0 | AG14: 0 | AH14: 0 | AI14: 0 | AJ14: 0 | AK14: 0 | AL14: 0 | AM14: 0 | AN14: 0 | AO14: 0 | AP14: 0 | AQ14: 0 | AR14: 0 | AS14: 0 | AU14: 0 | AV14: 0 | AW14: 0 | AX14: 0 | AY14: 0 | AZ14: 0 | BA14: 0 | BB14: 0 | BC14: 0 | BD14: 0 | BE14: 0 | BF14: 0 | BG14: 0 | BH14: 0 | BI14: 0 | BJ14: 0 | BL14: 0 | BM14: 0 | BN14: 0 | BO14: 0 | BP14: 0 | BQ14: 0 | BR14: 0 | BS14: 0 | BT14: 0 | BU14: 0 | BV14: 0 | BW14: 0 | BX14: 0 | BY14: 0 | BZ14: 0 | CA14: 0 | CC14: 0 | CD14: 0 | CE14: 0 | CF14: 0 | CG14: 0 | CH14: 0 | CI14: 0 | CJ14: 0 | CK14: 0 | CL14: 0 | CM14: 0 | CN14: 0 | CO14: 0 | CP14: 0 | CQ14: 0 | CR14: 0 | CT14: 0 | CU14: 0 | CV14: 0 | CW14: 0 | CX14: 0 | CY14: 0 | CZ14: 0 | DA14: 0 | DB14: 0 | DC14: 0 | DD14: 0 | DE14: 0 | DF14: 0 | DG14: 0 | DH14: 0 | DI14: 0 | DK14: 0 | DL14: 0 | DM14: 0 | DN14: 0 | DO14: 0 | DP14: 0 | DQ14: 0 | DR14: 0 | DS14: 0 | DT14: 0 | DU14: 0 | DV14: 0 | DW14: 0 | DX14: 0 | DY14: 0 | DZ14: 0 | EB14: 0 | EC14: 0 | ED14: 0 | EE14: 0 | EF14: 0 | EG14: 0 | EH14: 0 | EI14: 0 | EJ14: 0 | EK14: 0 | EL14: 0 | EM14: 0 | EN14: 0 | EO14: 0 | EP14: 0 | EQ14: 0 | ES14: 0 | ET14: 0 | EU14: 0 | EV14: 0 | EW14: 0 | EX14: 0 | EY14: 0 | EZ14: 0 | FA14: 0 | FB14: 0 | FC14: 0 | FD14: 0 | FE14: 0 | FF14: 0 | FG14: 0 | FH14: 0 | FJ14: 0 | FK14: 0 | FL14: 0 | FM14: 0 | FN14: 0 | FO14: 0 | FP14: 0 | FQ14: 0 | FR14: 0 | FS14: 0 | FT14: 0 | FU14: 0 | FV14: 0 | FW14: 0 | FX14: 0 | FY14: 0 | GA14: 0 | GB14: 0 | GC14: 0 | GD14: 0 | GE14: 0 | GF14: 0 | GG14: 0 | GH14: 0 | GI14: 0 | GJ14: 0 | GK14: 0 | GL14: 0 | GM14: 0 | GN14: 0 | GO14: 0 | GP14: 0 | GR14: 0 | GS14: 0 | GT14: 0 | GU14: 0 | GV14: 0 | GW14: 0 | GX14: 0 | GY14: 0 | GZ14: 0 | HA14: 0 | HB14: 0 | HC14: 0 | HD14: 0 | HE14: 0 | HF14: 0 | HG14: 0 | HI14: 0 | HJ14: 0 | HK14: 0 | HL14: 0 | HM14: 0 | HN14: 0 | HO14: 0 | HP14: 0 | HQ14: 0 | HR14: 0 | HS14: 0 | HT14: 0 | HU14: 0 | HV14: 0 | HW14: 0 | HX14: 0
I15: =IF(OR($B15="",$E15="非燃料由来の非化石電気（オンサイトPPA含む）以外"),"",IFERROR(VLOOKUP(B15&C15&D15&E15&F15,'熱量換算係数(電気)'!$A$4:$G$24,7,FALSE),"熱量換算係数を入力")) ->  | J15: =IF(OR($B15="",$E15="非燃料由来の非化石電気（オンサイトPPA含む）以外"),"",IFERROR(VLOOKUP($G15,'排出係数(電気)'!$C$10:$D$1258,2,FALSE),IF(F15="化石分","基礎排出係数を入力",0))) ->  | K15: =IF(OR($B15="",$E15="非燃料由来の非化石電気（オンサイトPPA含む）以外"),"",IFERROR(VLOOKUP($G15&H15,'排出係数(電気)'!$A$10:$F$1258,6,FALSE),IF(ISNUMBER($J15)=TRUE,$J15,"調整後排出係数を入力"))) ->  | M15: 0 | N15: 0 | O15: 0 | P15: 0 | Q15: 0 | R15: 0 | S15: 0 | T15: 0 | U15: 0 | V15: 0 | W15: 0 | X15: 0 | Y15: 0 | Z15: 0 | AA15: 0 | AB15: 0 | AD15: 0 | AE15: 0 | AF15: 0 | AG15: 0 | AH15: 0 | AI15: 0 | AJ15: 0 | AK15: 0 | AL15: 0 | AM15: 0 | AN15: 0 | AO15: 0 | AP15: 0 | AQ15: 0 | AR15: 0 | AS15: 0 | AU15: 0 | AV15: 0 | AW15: 0 | AX15: 0 | AY15: 0 | AZ15: 0 | BA15: 0 | BB15: 0 | BC15: 0 | BD15: 0 | BE15: 0 | BF15: 0 | BG15: 0 | BH15: 0 | BI15: 0 | BJ15: 0 | BL15: 0 | BM15: 0 | BN15: 0 | BO15: 0 | BP15: 0 | BQ15: 0 | BR15: 0 | BS15: 0 | BT15: 0 | BU15: 0 | BV15: 0 | BW15: 0 | BX15: 0 | BY15: 0 | BZ15: 0 | CA15: 0 | CC15: 0 | CD15: 0 | CE15: 0 | CF15: 0 | CG15: 0 | CH15: 0 | CI15: 0 | CJ15: 0 | CK15: 0 | CL15: 0 | CM15: 0 | CN15: 0 | CO15: 0 | CP15: 0 | CQ15: 0 | CR15: 0 | CT15: 0 | CU15: 0 | CV15: 0 | CW15: 0 | CX15: 0 | CY15: 0 | CZ15: 0 | DA15: 0 | DB15: 0 | DC15: 0 | DD15: 0 | DE15: 0 | DF15: 0 | DG15: 0 | DH15: 0 | DI15: 0 | DK15: 0 | DL15: 0 | DM15: 0 | DN15: 0 | DO15: 0 | DP15: 0 | DQ15: 0 | DR15: 0 | DS15: 0 | DT15: 0 | DU15: 0 | DV15: 0 | DW15: 0 | DX15: 0 | DY15: 0 | DZ15: 0 | EB15: 0 | EC15: 0 | ED15: 0 | EE15: 0 | EF15: 0 | EG15: 0 | EH15: 0 | EI15: 0 | EJ15: 0 | EK15: 0 | EL15: 0 | EM15: 0 | EN15: 0 | EO15: 0 | EP15: 0 | EQ15: 0 | ES15: 0 | ET15: 0 | EU15: 0 | EV15: 0 | EW15: 0 | EX15: 0 | EY15: 0 | EZ15: 0 | FA15: 0 | FB15: 0 | FC15: 0 | FD15: 0 | FE15: 0 | FF15: 0 | FG15: 0 | FH15: 0 | FJ15: 0 | FK15: 0 | FL15: 0 | FM15: 0 | FN15: 0 | FO15: 0 | FP15: 0 | FQ15: 0 | FR15: 0 | FS15: 0 | FT15: 0 | FU15: 0 | FV15: 0 | FW15: 0 | FX15: 0 | FY15: 0 | GA15: 0 | GB15: 0 | GC15: 0 | GD15: 0 | GE15: 0 | GF15: 0 | GG15: 0 | GH15: 0 | GI15: 0 | GJ15: 0 | GK15: 0 | GL15: 0 | GM15: 0 | GN15: 0 | GO15: 0 | GP15: 0 | GR15: 0 | GS15: 0 | GT15: 0 | GU15: 0 | GV15: 0 | GW15: 0 | GX15: 0 | GY15: 0 | GZ15: 0 | HA15: 0 | HB15: 0 | HC15: 0 | HD15: 0 | HE15: 0 | HF15: 0 | HG15: 0 | HI15: 0 | HJ15: 0 | HK15: 0 | HL15: 0 | HM15: 0 | HN15: 0 | HO15: 0 | HP15: 0 | HQ15: 0 | HR15: 0 | HS15: 0 | HT15: 0 | HU15: 0 | HV15: 0 | HW15: 0 | HX15: 0
I16: =IF(OR($B16="",$E16="非燃料由来の非化石電気（オンサイトPPA含む）以外"),"",IFERROR(VLOOKUP(B16&C16&D16&E16&F16,'熱量換算係数(電気)'!$A$4:$G$24,7,FALSE),"熱量換算係数を入力")) ->  | J16: =IF(OR($B16="",$E16="非燃料由来の非化石電気（オンサイトPPA含む）以外"),"",IFERROR(VLOOKUP($G16,'排出係数(電気)'!$C$10:$D$1258,2,FALSE),IF(F16="化石分","基礎排出係数を入力",0))) ->  | K16: =IF(OR($B16="",$E16="非燃料由来の非化石電気（オンサイトPPA含む）以外"),"",IFERROR(VLOOKUP($G16&H16,'排出係数(電気)'!$A$10:$F$1258,6,FALSE),IF(ISNUMBER($J16)=TRUE,$J16,"調整後排出係数を入力"))) ->  | M16: 0 | N16: 0 | O16: 0 | P16: 0 | Q16: 0 | R16: 0 | S16: 0 | T16: 0 | U16: 0 | V16: 0 | W16: 0 | X16: 0 | Y16: 0 | Z16: 0 | AA16: 0 | AB16: 0 | AD16: 0 | AE16: 0 | AF16: 0 | AG16: 0 | AH16: 0 | AI16: 0 | AJ16: 0 | AK16: 0 | AL16: 0 | AM16: 0 | AN16: 0 | AO16: 0 | AP16: 0 | AQ16: 0 | AR16: 0 | AS16: 0 | AU16: 0 | AV16: 0 | AW16: 0 | AX16: 0 | AY16: 0 | AZ16: 0 | BA16: 0 | BB16: 0 | BC16: 0 | BD16: 0 | BE16: 0 | BF16: 0 | BG16: 0 | BH16: 0 | BI16: 0 | BJ16: 0 | BL16: 0 | BM16: 0 | BN16: 0 | BO16: 0 | BP16: 0 | BQ16: 0 | BR16: 0 | BS16: 0 | BT16: 0 | BU16: 0 | BV16: 0 | BW16: 0 | BX16: 0 | BY16: 0 | BZ16: 0 | CA16: 0 | CC16: 0 | CD16: 0 | CE16: 0 | CF16: 0 | CG16: 0 | CH16: 0 | CI16: 0 | CJ16: 0 | CK16: 0 | CL16: 0 | CM16: 0 | CN16: 0 | CO16: 0 | CP16: 0 | CQ16: 0 | CR16: 0 | CT16: 0 | CU16: 0 | CV16: 0 | CW16: 0 | CX16: 0 | CY16: 0 | CZ16: 0 | DA16: 0 | DB16: 0 | DC16: 0 | DD16: 0 | DE16: 0 | DF16: 0 | DG16: 0 | DH16: 0 | DI16: 0 | DK16: 0 | DL16: 0 | DM16: 0 | DN16: 0 | DO16: 0 | DP16: 0 | DQ16: 0 | DR16: 0 | DS16: 0 | DT16: 0 | DU16: 0 | DV16: 0 | DW16: 0 | DX16: 0 | DY16: 0 | DZ16: 0 | EB16: 0 | EC16: 0 | ED16: 0 | EE16: 0 | EF16: 0 | EG16: 0 | EH16: 0 | EI16: 0 | EJ16: 0 | EK16: 0 | EL16: 0 | EM16: 0 | EN16: 0 | EO16: 0 | EP16: 0 | EQ16: 0 | ES16: 0 | ET16: 0 | EU16: 0 | EV16: 0 | EW16: 0 | EX16: 0 | EY16: 0 | EZ16: 0 | FA16: 0 | FB16: 0 | FC16: 0 | FD16: 0 | FE16: 0 | FF16: 0 | FG16: 0 | FH16: 0 | FJ16: 0 | FK16: 0 | FL16: 0 | FM16: 0 | FN16: 0 | FO16: 0 | FP16: 0 | FQ16: 0 | FR16: 0 | FS16: 0 | FT16: 0 | FU16: 0 | FV16: 0 | FW16: 0 | FX16: 0 | FY16: 0 | GA16: 0 | GB16: 0 | GC16: 0 | GD16: 0 | GE16: 0 | GF16: 0 | GG16: 0 | GH16: 0 | GI16: 0 | GJ16: 0 | GK16: 0 | GL16: 0 | GM16: 0 | GN16: 0 | GO16: 0 | GP16: 0 | GR16: 0 | GS16: 0 | GT16: 0 | GU16: 0 | GV16: 0 | GW16: 0 | GX16: 0 | GY16: 0 | GZ16: 0 | HA16: 0 | HB16: 0 | HC16: 0 | HD16: 0 | HE16: 0 | HF16: 0 | HG16: 0 | HI16: 0 | HJ16: 0 | HK16: 0 | HL16: 0 | HM16: 0 | HN16: 0 | HO16: 0 | HP16: 0 | HQ16: 0 | HR16: 0 | HS16: 0 | HT16: 0 | HU16: 0 | HV16: 0 | HW16: 0 | HX16: 0
I17: =IF(OR($B17="",$E17="非燃料由来の非化石電気（オンサイトPPA含む）以外"),"",IFERROR(VLOOKUP(B17&C17&D17&E17&F17,'熱量換算係数(電気)'!$A$4:$G$24,7,FALSE),"熱量換算係数を入力")) ->  | J17: =IF(OR($B17="",$E17="非燃料由来の非化石電気（オンサイトPPA含む）以外"),"",IFERROR(VLOOKUP($G17,'排出係数(電気)'!$C$10:$D$1258,2,FALSE),IF(F17="化石分","基礎排出係数を入力",0))) ->  | K17: =IF(OR($B17="",$E17="非燃料由来の非化石電気（オンサイトPPA含む）以外"),"",IFERROR(VLOOKUP($G17&H17,'排出係数(電気)'!$A$10:$F$1258,6,FALSE),IF(ISNUMBER($J17)=TRUE,$J17,"調整後排出係数を入力"))) ->  | M17: 0 | N17: 0 | O17: 0 | P17: 0 | Q17: 0 | R17: 0 | S17: 0 | T17: 0 | U17: 0 | V17: 0 | W17: 0 | X17: 0 | Y17: 0 | Z17: 0 | AA17: 0 | AB17: 0 | AD17: 0 | AE17: 0 | AF17: 0 | AG17: 0 | AH17: 0 | AI17: 0 | AJ17: 0 | AK17: 0 | AL17: 0 | AM17: 0 | AN17: 0 | AO17: 0 | AP17: 0 | AQ17: 0 | AR17: 0 | AS17: 0 | AU17: 0 | AV17: 0 | AW17: 0 | AX17: 0 | AY17: 0 | AZ17: 0 | BA17: 0 | BB17: 0 | BC17: 0 | BD17: 0 | BE17: 0 | BF17: 0 | BG17: 0 | BH17: 0 | BI17: 0 | BJ17: 0 | BL17: 0 | BM17: 0 | BN17: 0 | BO17: 0 | BP17: 0 | BQ17: 0 | BR17: 0 | BS17: 0 | BT17: 0 | BU17: 0 | BV17: 0 | BW17: 0 | BX17: 0 | BY17: 0 | BZ17: 0 | CA17: 0 | CC17: 0 | CD17: 0 | CE17: 0 | CF17: 0 | CG17: 0 | CH17: 0 | CI17: 0 | CJ17: 0 | CK17: 0 | CL17: 0 | CM17: 0 | CN17: 0 | CO17: 0 | CP17: 0 | CQ17: 0 | CR17: 0 | CT17: 0 | CU17: 0 | CV17: 0 | CW17: 0 | CX17: 0 | CY17: 0 | CZ17: 0 | DA17: 0 | DB17: 0 | DC17: 0 | DD17: 0 | DE17: 0 | DF17: 0 | DG17: 0 | DH17: 0 | DI17: 0 | DK17: 0 | DL17: 0 | DM17: 0 | DN17: 0 | DO17: 0 | DP17: 0 | DQ17: 0 | DR17: 0 | DS17: 0 | DT17: 0 | DU17: 0 | DV17: 0 | DW17: 0 | DX17: 0 | DY17: 0 | DZ17: 0 | EB17: 0 | EC17: 0 | ED17: 0 | EE17: 0 | EF17: 0 | EG17: 0 | EH17: 0 | EI17: 0 | EJ17: 0 | EK17: 0 | EL17: 0 | EM17: 0 | EN17: 0 | EO17: 0 | EP17: 0 | EQ17: 0 | ES17: 0 | ET17: 0 | EU17: 0 | EV17: 0 | EW17: 0 | EX17: 0 | EY17: 0 | EZ17: 0 | FA17: 0 | FB17: 0 | FC17: 0 | FD17: 0 | FE17: 0 | FF17: 0 | FG17: 0 | FH17: 0 | FJ17: 0 | FK17: 0 | FL17: 0 | FM17: 0 | FN17: 0 | FO17: 0 | FP17: 0 | FQ17: 0 | FR17: 0 | FS17: 0 | FT17: 0 | FU17: 0 | FV17: 0 | FW17: 0 | FX17: 0 | FY17: 0 | GA17: 0 | GB17: 0 | GC17: 0 | GD17: 0 | GE17: 0 | GF17: 0 | GG17: 0 | GH17: 0 | GI17: 0 | GJ17: 0 | GK17: 0 | GL17: 0 | GM17: 0 | GN17: 0 | GO17: 0 | GP17: 0 | GR17: 0 | GS17: 0 | GT17: 0 | GU17: 0 | GV17: 0 | GW17: 0 | GX17: 0 | GY17: 0 | GZ17: 0 | HA17: 0 | HB17: 0 | HC17: 0 | HD17: 0 | HE17: 0 | HF17: 0 | HG17: 0 | HI17: 0 | HJ17: 0 | HK17: 0 | HL17: 0 | HM17: 0 | HN17: 0 | HO17: 0 | HP17: 0 | HQ17: 0 | HR17: 0 | HS17: 0 | HT17: 0 | HU17: 0 | HV17: 0 | HW17: 0 | HX17: 0
I18: =IF(OR($B18="",$E18="非燃料由来の非化石電気（オンサイトPPA含む）以外"),"",IFERROR(VLOOKUP(B18&C18&D18&E18&F18,'熱量換算係数(電気)'!$A$4:$G$24,7,FALSE),"熱量換算係数を入力")) ->  | J18: =IF(OR($B18="",$E18="非燃料由来の非化石電気（オンサイトPPA含む）以外"),"",IFERROR(VLOOKUP($G18,'排出係数(電気)'!$C$10:$D$1258,2,FALSE),IF(F18="化石分","基礎排出係数を入力",0))) ->  | K18: =IF(OR($B18="",$E18="非燃料由来の非化石電気（オンサイトPPA含む）以外"),"",IFERROR(VLOOKUP($G18&H18,'排出係数(電気)'!$A$10:$F$1258,6,FALSE),IF(ISNUMBER($J18)=TRUE,$J18,"調整後排出係数を入力"))) ->  | M18: 0 | N18: 0 | O18: 0 | P18: 0 | Q18: 0 | R18: 0 | S18: 0 | T18: 0 | U18: 0 | V18: 0 | W18: 0 | X18: 0 | Y18: 0 | Z18: 0 | AA18: 0 | AB18: 0 | AD18: 0 | AE18: 0 | AF18: 0 | AG18: 0 | AH18: 0 | AI18: 0 | AJ18: 0 | AK18: 0 | AL18: 0 | AM18: 0 | AN18: 0 | AO18: 0 | AP18: 0 | AQ18: 0 | AR18: 0 | AS18: 0 | AU18: 0 | AV18: 0 | AW18: 0 | AX18: 0 | AY18: 0 | AZ18: 0 | BA18: 0 | BB18: 0 | BC18: 0 | BD18: 0 | BE18: 0 | BF18: 0 | BG18: 0 | BH18: 0 | BI18: 0 | BJ18: 0 | BL18: 0 | BM18: 0 | BN18: 0 | BO18: 0 | BP18: 0 | BQ18: 0 | BR18: 0 | BS18: 0 | BT18: 0 | BU18: 0 | BV18: 0 | BW18: 0 | BX18: 0 | BY18: 0 | BZ18: 0 | CA18: 0 | CC18: 0 | CD18: 0 | CE18: 0 | CF18: 0 | CG18: 0 | CH18: 0 | CI18: 0 | CJ18: 0 | CK18: 0 | CL18: 0 | CM18: 0 | CN18: 0 | CO18: 0 | CP18: 0 | CQ18: 0 | CR18: 0 | CT18: 0 | CU18: 0 | CV18: 0 | CW18: 0 | CX18: 0 | CY18: 0 | CZ18: 0 | DA18: 0 | DB18: 0 | DC18: 0 | DD18: 0 | DE18: 0 | DF18: 0 | DG18: 0 | DH18: 0 | DI18: 0 | DK18: 0 | DL18: 0 | DM18: 0 | DN18: 0 | DO18: 0 | DP18: 0 | DQ18: 0 | DR18: 0 | DS18: 0 | DT18: 0 | DU18: 0 | DV18: 0 | DW18: 0 | DX18: 0 | DY18: 0 | DZ18: 0 | EB18: 0 | EC18: 0 | ED18: 0 | EE18: 0 | EF18: 0 | EG18: 0 | EH18: 0 | EI18: 0 | EJ18: 0 | EK18: 0 | EL18: 0 | EM18: 0 | EN18: 0 | EO18: 0 | EP18: 0 | EQ18: 0 | ES18: 0 | ET18: 0 | EU18: 0 | EV18: 0 | EW18: 0 | EX18: 0 | EY18: 0 | EZ18: 0 | FA18: 0 | FB18: 0 | FC18: 0 | FD18: 0 | FE18: 0 | FF18: 0 | FG18: 0 | FH18: 0 | FJ18: 0 | FK18: 0 | FL18: 0 | FM18: 0 | FN18: 0 | FO18: 0 | FP18: 0 | FQ18: 0 | FR18: 0 | FS18: 0 | FT18: 0 | FU18: 0 | FV18: 0 | FW18: 0 | FX18: 0 | FY18: 0 | GA18: 0 | GB18: 0 | GC18: 0 | GD18: 0 | GE18: 0 | GF18: 0 | GG18: 0 | GH18: 0 | GI18: 0 | GJ18: 0 | GK18: 0 | GL18: 0 | GM18: 0 | GN18: 0 | GO18: 0 | GP18: 0 | GR18: 0 | GS18: 0 | GT18: 0 | GU18: 0 | GV18: 0 | GW18: 0 | GX18: 0 | GY18: 0 | GZ18: 0 | HA18: 0 | HB18: 0 | HC18: 0 | HD18: 0 | HE18: 0 | HF18: 0 | HG18: 0 | HI18: 0 | HJ18: 0 | HK18: 0 | HL18: 0 | HM18: 0 | HN18: 0 | HO18: 0 | HP18: 0 | HQ18: 0 | HR18: 0 | HS18: 0 | HT18: 0 | HU18: 0 | HV18: 0 | HW18: 0 | HX18: 0
I19: =IF(OR($B19="",$E19="非燃料由来の非化石電気（オンサイトPPA含む）以外"),"",IFERROR(VLOOKUP(B19&C19&D19&E19&F19,'熱量換算係数(電気)'!$A$4:$G$24,7,FALSE),"熱量換算係数を入力")) ->  | J19: =IF(OR($B19="",$E19="非燃料由来の非化石電気（オンサイトPPA含む）以外"),"",IFERROR(VLOOKUP($G19,'排出係数(電気)'!$C$10:$D$1258,2,FALSE),IF(F19="化石分","基礎排出係数を入力",0))) ->  | K19: =IF(OR($B19="",$E19="非燃料由来の非化石電気（オンサイトPPA含む）以外"),"",IFERROR(VLOOKUP($G19&H19,'排出係数(電気)'!$A$10:$F$1258,6,FALSE),IF(ISNUMBER($J19)=TRUE,$J19,"調整後排出係数を入力"))) ->  | M19: 0 | N19: 0 | O19: 0 | P19: 0 | Q19: 0 | R19: 0 | S19: 0 | T19: 0 | U19: 0 | V19: 0 | W19: 0 | X19: 0 | Y19: 0 | Z19: 0 | AA19: 0 | AB19: 0 | AD19: 0 | AE19: 0 | AF19: 0 | AG19: 0 | AH19: 0 | AI19: 0 | AJ19: 0 | AK19: 0 | AL19: 0 | AM19: 0 | AN19: 0 | AO19: 0 | AP19: 0 | AQ19: 0 | AR19: 0 | AS19: 0 | AU19: 0 | AV19: 0 | AW19: 0 | AX19: 0 | AY19: 0 | AZ19: 0 | BA19: 0 | BB19: 0 | BC19: 0 | BD19: 0 | BE19: 0 | BF19: 0 | BG19: 0 | BH19: 0 | BI19: 0 | BJ19: 0 | BL19: 0 | BM19: 0 | BN19: 0 | BO19: 0 | BP19: 0 | BQ19: 0 | BR19: 0 | BS19: 0 | BT19: 0 | BU19: 0 | BV19: 0 | BW19: 0 | BX19: 0 | BY19: 0 | BZ19: 0 | CA19: 0 | CC19: 0 | CD19: 0 | CE19: 0 | CF19: 0 | CG19: 0 | CH19: 0 | CI19: 0 | CJ19: 0 | CK19: 0 | CL19: 0 | CM19: 0 | CN19: 0 | CO19: 0 | CP19: 0 | CQ19: 0 | CR19: 0 | CT19: 0 | CU19: 0 | CV19: 0 | CW19: 0 | CX19: 0 | CY19: 0 | CZ19: 0 | DA19: 0 | DB19: 0 | DC19: 0 | DD19: 0 | DE19: 0 | DF19: 0 | DG19: 0 | DH19: 0 | DI19: 0 | DK19: 0 | DL19: 0 | DM19: 0 | DN19: 0 | DO19: 0 | DP19: 0 | DQ19: 0 | DR19: 0 | DS19: 0 | DT19: 0 | DU19: 0 | DV19: 0 | DW19: 0 | DX19: 0 | DY19: 0 | DZ19: 0 | EB19: 0 | EC19: 0 | ED19: 0 | EE19: 0 | EF19: 0 | EG19: 0 | EH19: 0 | EI19: 0 | EJ19: 0 | EK19: 0 | EL19: 0 | EM19: 0 | EN19: 0 | EO19: 0 | EP19: 0 | EQ19: 0 | ES19: 0 | ET19: 0 | EU19: 0 | EV19: 0 | EW19: 0 | EX19: 0 | EY19: 0 | EZ19: 0 | FA19: 0 | FB19: 0 | FC19: 0 | FD19: 0 | FE19: 0 | FF19: 0 | FG19: 0 | FH19: 0 | FJ19: 0 | FK19: 0 | FL19: 0 | FM19: 0 | FN19: 0 | FO19: 0 | FP19: 0 | FQ19: 0 | FR19: 0 | FS19: 0 | FT19: 0 | FU19: 0 | FV19: 0 | FW19: 0 | FX19: 0 | FY19: 0 | GA19: 0 | GB19: 0 | GC19: 0 | GD19: 0 | GE19: 0 | GF19: 0 | GG19: 0 | GH19: 0 | GI19: 0 | GJ19: 0 | GK19: 0 | GL19: 0 | GM19: 0 | GN19: 0 | GO19: 0 | GP19: 0 | GR19: 0 | GS19: 0 | GT19: 0 | GU19: 0 | GV19: 0 | GW19: 0 | GX19: 0 | GY19: 0 | GZ19: 0 | HA19: 0 | HB19: 0 | HC19: 0 | HD19: 0 | HE19: 0 | HF19: 0 | HG19: 0 | HI19: 0 | HJ19: 0 | HK19: 0 | HL19: 0 | HM19: 0 | HN19: 0 | HO19: 0 | HP19: 0 | HQ19: 0 | HR19: 0 | HS19: 0 | HT19: 0 | HU19: 0 | HV19: 0 | HW19: 0 | HX19: 0
I20: =IF(OR($B20="",$E20="非燃料由来の非化石電気（オンサイトPPA含む）以外"),"",IFERROR(VLOOKUP(B20&C20&D20&E20&F20,'熱量換算係数(電気)'!$A$4:$G$24,7,FALSE),"熱量換算係数を入力")) ->  | J20: =IF(OR($B20="",$E20="非燃料由来の非化石電気（オンサイトPPA含む）以外"),"",IFERROR(VLOOKUP($G20,'排出係数(電気)'!$C$10:$D$1258,2,FALSE),IF(F20="化石分","基礎排出係数を入力",0))) ->  | K20: =IF(OR($B20="",$E20="非燃料由来の非化石電気（オンサイトPPA含む）以外"),"",IFERROR(VLOOKUP($G20&H20,'排出係数(電気)'!$A$10:$F$1258,6,FALSE),IF(ISNUMBER($J20)=TRUE,$J20,"調整後排出係数を入力"))) ->  | M20: 0 | N20: 0 | O20: 0 | P20: 0 | Q20: 0 | R20: 0 | S20: 0 | T20: 0 | U20: 0 | V20: 0 | W20: 0 | X20: 0 | Y20: 0 | Z20: 0 | AA20: 0 | AB20: 0 | AD20: 0 | AE20: 0 | AF20: 0 | AG20: 0 | AH20: 0 | AI20: 0 | AJ20: 0 | AK20: 0 | AL20: 0 | AM20: 0 | AN20: 0 | AO20: 0 | AP20: 0 | AQ20: 0 | AR20: 0 | AS20: 0 | AU20: 0 | AV20: 0 | AW20: 0 | AX20: 0 | AY20: 0 | AZ20: 0 | BA20: 0 | BB20: 0 | BC20: 0 | BD20: 0 | BE20: 0 | BF20: 0 | BG20: 0 | BH20: 0 | BI20: 0 | BJ20: 0 | BL20: 0 | BM20: 0 | BN20: 0 | BO20: 0 | BP20: 0 | BQ20: 0 | BR20: 0 | BS20: 0 | BT20: 0 | BU20: 0 | BV20: 0 | BW20: 0 | BX20: 0 | BY20: 0 | BZ20: 0 | CA20: 0 | CC20: 0 | CD20: 0 | CE20: 0 | CF20: 0 | CG20: 0 | CH20: 0 | CI20: 0 | CJ20: 0 | CK20: 0 | CL20: 0 | CM20: 0 | CN20: 0 | CO20: 0 | CP20: 0 | CQ20: 0 | CR20: 0 | CT20: 0 | CU20: 0 | CV20: 0 | CW20: 0 | CX20: 0 | CY20: 0 | CZ20: 0 | DA20: 0 | DB20: 0 | DC20: 0 | DD20: 0 | DE20: 0 | DF20: 0 | DG20: 0 | DH20: 0 | DI20: 0 | DK20: 0 | DL20: 0 | DM20: 0 | DN20: 0 | DO20: 0 | DP20: 0 | DQ20: 0 | DR20: 0 | DS20: 0 | DT20: 0 | DU20: 0 | DV20: 0 | DW20: 0 | DX20: 0 | DY20: 0 | DZ20: 0 | EB20: 0 | EC20: 0 | ED20: 0 | EE20: 0 | EF20: 0 | EG20: 0 | EH20: 0 | EI20: 0 | EJ20: 0 | EK20: 0 | EL20: 0 | EM20: 0 | EN20: 0 | EO20: 0 | EP20: 0 | EQ20: 0 | ES20: 0 | ET20: 0 | EU20: 0 | EV20: 0 | EW20: 0 | EX20: 0 | EY20: 0 | EZ20: 0 | FA20: 0 | FB20: 0 | FC20: 0 | FD20: 0 | FE20: 0 | FF20: 0 | FG20: 0 | FH20: 0 | FJ20: 0 | FK20: 0 | FL20: 0 | FM20: 0 | FN20: 0 | FO20: 0 | FP20: 0 | FQ20: 0 | FR20: 0 | FS20: 0 | FT20: 0 | FU20: 0 | FV20: 0 | FW20: 0 | FX20: 0 | FY20: 0 | GA20: 0 | GB20: 0 | GC20: 0 | GD20: 0 | GE20: 0 | GF20: 0 | GG20: 0 | GH20: 0 | GI20: 0 | GJ20: 0 | GK20: 0 | GL20: 0 | GM20: 0 | GN20: 0 | GO20: 0 | GP20: 0 | GR20: 0 | GS20: 0 | GT20: 0 | GU20: 0 | GV20: 0 | GW20: 0 | GX20: 0 | GY20: 0 | GZ20: 0 | HA20: 0 | HB20: 0 | HC20: 0 | HD20: 0 | HE20: 0 | HF20: 0 | HG20: 0 | HI20: 0 | HJ20: 0 | HK20: 0 | HL20: 0 | HM20: 0 | HN20: 0 | HO20: 0 | HP20: 0 | HQ20: 0 | HR20: 0 | HS20: 0 | HT20: 0 | HU20: 0 | HV20: 0 | HW20: 0 | HX20: 0
I21: =IF(OR($B21="",$E21="非燃料由来の非化石電気（オンサイトPPA含む）以外"),"",IFERROR(VLOOKUP(B21&C21&D21&E21&F21,'熱量換算係数(電気)'!$A$4:$G$24,7,FALSE),"熱量換算係数を入力")) ->  | J21: =IF(OR($B21="",$E21="非燃料由来の非化石電気（オンサイトPPA含む）以外"),"",IFERROR(VLOOKUP($G21,'排出係数(電気)'!$C$10:$D$1258,2,FALSE),IF(F21="化石分","基礎排出係数を入力",0))) ->  | K21: =IF(OR($B21="",$E21="非燃料由来の非化石電気（オンサイトPPA含む）以外"),"",IFERROR(VLOOKUP($G21&H21,'排出係数(電気)'!$A$10:$F$1258,6,FALSE),IF(ISNUMBER($J21)=TRUE,$J21,"調整後排出係数を入力"))) ->  | M21: 0 | N21: 0 | O21: 0 | P21: 0 | Q21: 0 | R21: 0 | S21: 0 | T21: 0 | U21: 0 | V21: 0 | W21: 0 | X21: 0 | Y21: 0 | Z21: 0 | AA21: 0 | AB21: 0 | AD21: 0 | AE21: 0 | AF21: 0 | AG21: 0 | AH21: 0 | AI21: 0 | AJ21: 0 | AK21: 0 | AL21: 0 | AM21: 0 | AN21: 0 | AO21: 0 | AP21: 0 | AQ21: 0 | AR21: 0 | AS21: 0 | AU21: 0 | AV21: 0 | AW21: 0 | AX21: 0 | AY21: 0 | AZ21: 0 | BA21: 0 | BB21: 0 | BC21: 0 | BD21: 0 | BE21: 0 | BF21: 0 | BG21: 0 | BH21: 0 | BI21: 0 | BJ21: 0 | BL21: 0 | BM21: 0 | BN21: 0 | BO21: 0 | BP21: 0 | BQ21: 0 | BR21: 0 | BS21: 0 | BT21: 0 | BU21: 0 | BV21: 0 | BW21: 0 | BX21: 0 | BY21: 0 | BZ21: 0 | CA21: 0 | CC21: 0 | CD21: 0 | CE21: 0 | CF21: 0 | CG21: 0 | CH21: 0 | CI21: 0 | CJ21: 0 | CK21: 0 | CL21: 0 | CM21: 0 | CN21: 0 | CO21: 0 | CP21: 0 | CQ21: 0 | CR21: 0 | CT21: 0 | CU21: 0 | CV21: 0 | CW21: 0 | CX21: 0 | CY21: 0 | CZ21: 0 | DA21: 0 | DB21: 0 | DC21: 0 | DD21: 0 | DE21: 0 | DF21: 0 | DG21: 0 | DH21: 0 | DI21: 0 | DK21: 0 | DL21: 0 | DM21: 0 | DN21: 0 | DO21: 0 | DP21: 0 | DQ21: 0 | DR21: 0 | DS21: 0 | DT21: 0 | DU21: 0 | DV21: 0 | DW21: 0 | DX21: 0 | DY21: 0 | DZ21: 0 | EB21: 0 | EC21: 0 | ED21: 0 | EE21: 0 | EF21: 0 | EG21: 0 | EH21: 0 | EI21: 0 | EJ21: 0 | EK21: 0 | EL21: 0 | EM21: 0 | EN21: 0 | EO21: 0 | EP21: 0 | EQ21: 0 | ES21: 0 | ET21: 0 | EU21: 0 | EV21: 0 | EW21: 0 | EX21: 0 | EY21: 0 | EZ21: 0 | FA21: 0 | FB21: 0 | FC21: 0 | FD21: 0 | FE21: 0 | FF21: 0 | FG21: 0 | FH21: 0 | FJ21: 0 | FK21: 0 | FL21: 0 | FM21: 0 | FN21: 0 | FO21: 0 | FP21: 0 | FQ21: 0 | FR21: 0 | FS21: 0 | FT21: 0 | FU21: 0 | FV21: 0 | FW21: 0 | FX21: 0 | FY21: 0 | GA21: 0 | GB21: 0 | GC21: 0 | GD21: 0 | GE21: 0 | GF21: 0 | GG21: 0 | GH21: 0 | GI21: 0 | GJ21: 0 | GK21: 0 | GL21: 0 | GM21: 0 | GN21: 0 | GO21: 0 | GP21: 0 | GR21: 0 | GS21: 0 | GT21: 0 | GU21: 0 | GV21: 0 | GW21: 0 | GX21: 0 | GY21: 0 | GZ21: 0 | HA21: 0 | HB21: 0 | HC21: 0 | HD21: 0 | HE21: 0 | HF21: 0 | HG21: 0 | HI21: 0 | HJ21: 0 | HK21: 0 | HL21: 0 | HM21: 0 | HN21: 0 | HO21: 0 | HP21: 0 | HQ21: 0 | HR21: 0 | HS21: 0 | HT21: 0 | HU21: 0 | HV21: 0 | HW21: 0 | HX21: 0
I22: =IF(OR($B22="",$E22="非燃料由来の非化石電気（オンサイトPPA含む）以外"),"",IFERROR(VLOOKUP(B22&C22&D22&E22&F22,'熱量換算係数(電気)'!$A$4:$G$24,7,FALSE),"熱量換算係数を入力")) ->  | J22: =IF(OR($B22="",$E22="非燃料由来の非化石電気（オンサイトPPA含む）以外"),"",IFERROR(VLOOKUP($G22,'排出係数(電気)'!$C$10:$D$1258,2,FALSE),IF(F22="化石分","基礎排出係数を入力",0))) ->  | K22: =IF(OR($B22="",$E22="非燃料由来の非化石電気（オンサイトPPA含む）以外"),"",IFERROR(VLOOKUP($G22&H22,'排出係数(電気)'!$A$10:$F$1258,6,FALSE),IF(ISNUMBER($J22)=TRUE,$J22,"調整後排出係数を入力"))) ->  | M22: 0 | N22: 0 | O22: 0 | P22: 0 | Q22: 0 | R22: 0 | S22: 0 | T22: 0 | U22: 0 | V22: 0 | W22: 0 | X22: 0 | Y22: 0 | Z22: 0 | AA22: 0 | AB22: 0 | AD22: 0 | AE22: 0 | AF22: 0 | AG22: 0 | AH22: 0 | AI22: 0 | AJ22: 0 | AK22: 0 | AL22: 0 | AM22: 0 | AN22: 0 | AO22: 0 | AP22: 0 | AQ22: 0 | AR22: 0 | AS22: 0 | AU22: 0 | AV22: 0 | AW22: 0 | AX22: 0 | AY22: 0 | AZ22: 0 | BA22: 0 | BB22: 0 | BC22: 0 | BD22: 0 | BE22: 0 | BF22: 0 | BG22: 0 | BH22: 0 | BI22: 0 | BJ22: 0 | BL22: 0 | BM22: 0 | BN22: 0 | BO22: 0 | BP22: 0 | BQ22: 0 | BR22: 0 | BS22: 0 | BT22: 0 | BU22: 0 | BV22: 0 | BW22: 0 | BX22: 0 | BY22: 0 | BZ22: 0 | CA22: 0 | CC22: 0 | CD22: 0 | CE22: 0 | CF22: 0 | CG22: 0 | CH22: 0 | CI22: 0 | CJ22: 0 | CK22: 0 | CL22: 0 | CM22: 0 | CN22: 0 | CO22: 0 | CP22: 0 | CQ22: 0 | CR22: 0 | CT22: 0 | CU22: 0 | CV22: 0 | CW22: 0 | CX22: 0 | CY22: 0 | CZ22: 0 | DA22: 0 | DB22: 0 | DC22: 0 | DD22: 0 | DE22: 0 | DF22: 0 | DG22: 0 | DH22: 0 | DI22: 0 | DK22: 0 | DL22: 0 | DM22: 0 | DN22: 0 | DO22: 0 | DP22: 0 | DQ22: 0 | DR22: 0 | DS22: 0 | DT22: 0 | DU22: 0 | DV22: 0 | DW22: 0 | DX22: 0 | DY22: 0 | DZ22: 0 | EB22: 0 | EC22: 0 | ED22: 0 | EE22: 0 | EF22: 0 | EG22: 0 | EH22: 0 | EI22: 0 | EJ22: 0 | EK22: 0 | EL22: 0 | EM22: 0 | EN22: 0 | EO22: 0 | EP22: 0 | EQ22: 0 | ES22: 0 | ET22: 0 | EU22: 0 | EV22: 0 | EW22: 0 | EX22: 0 | EY22: 0 | EZ22: 0 | FA22: 0 | FB22: 0 | FC22: 0 | FD22: 0 | FE22: 0 | FF22: 0 | FG22: 0 | FH22: 0 | FJ22: 0 | FK22: 0 | FL22: 0 | FM22: 0 | FN22: 0 | FO22: 0 | FP22: 0 | FQ22: 0 | FR22: 0 | FS22: 0 | FT22: 0 | FU22: 0 | FV22: 0 | FW22: 0 | FX22: 0 | FY22: 0 | GA22: 0 | GB22: 0 | GC22: 0 | GD22: 0 | GE22: 0 | GF22: 0 | GG22: 0 | GH22: 0 | GI22: 0 | GJ22: 0 | GK22: 0 | GL22: 0 | GM22: 0 | GN22: 0 | GO22: 0 | GP22: 0 | GR22: 0 | GS22: 0 | GT22: 0 | GU22: 0 | GV22: 0 | GW22: 0 | GX22: 0 | GY22: 0 | GZ22: 0 | HA22: 0 | HB22: 0 | HC22: 0 | HD22: 0 | HE22: 0 | HF22: 0 | HG22: 0 | HI22: 0 | HJ22: 0 | HK22: 0 | HL22: 0 | HM22: 0 | HN22: 0 | HO22: 0 | HP22: 0 | HQ22: 0 | HR22: 0 | HS22: 0 | HT22: 0 | HU22: 0 | HV22: 0 | HW22: 0 | HX22: 0
I23: =IF(OR($B23="",$E23="非燃料由来の非化石電気（オンサイトPPA含む）以外"),"",IFERROR(VLOOKUP(B23&C23&D23&E23&F23,'熱量換算係数(電気)'!$A$4:$G$24,7,FALSE),"熱量換算係数を入力")) ->  | J23: =IF(OR($B23="",$E23="非燃料由来の非化石電気（オンサイトPPA含む）以外"),"",IFERROR(VLOOKUP($G23,'排出係数(電気)'!$C$10:$D$1258,2,FALSE),IF(F23="化石分","基礎排出係数を入力",0))) ->  | K23: =IF(OR($B23="",$E23="非燃料由来の非化石電気（オンサイトPPA含む）以外"),"",IFERROR(VLOOKUP($G23&H23,'排出係数(電気)'!$A$10:$F$1258,6,FALSE),IF(ISNUMBER($J23)=TRUE,$J23,"調整後排出係数を入力"))) ->  | M23: 0 | N23: 0 | O23: 0 | P23: 0 | Q23: 0 | R23: 0 | S23: 0 | T23: 0 | U23: 0 | V23: 0 | W23: 0 | X23: 0 | Y23: 0 | Z23: 0 | AA23: 0 | AB23: 0 | AD23: 0 | AE23: 0 | AF23: 0 | AG23: 0 | AH23: 0 | AI23: 0 | AJ23: 0 | AK23: 0 | AL23: 0 | AM23: 0 | AN23: 0 | AO23: 0 | AP23: 0 | AQ23: 0 | AR23: 0 | AS23: 0 | AU23: 0 | AV23: 0 | AW23: 0 | AX23: 0 | AY23: 0 | AZ23: 0 | BA23: 0 | BB23: 0 | BC23: 0 | BD23: 0 | BE23: 0 | BF23: 0 | BG23: 0 | BH23: 0 | BI23: 0 | BJ23: 0 | BL23: 0 | BM23: 0 | BN23: 0 | BO23: 0 | BP23: 0 | BQ23: 0 | BR23: 0 | BS23: 0 | BT23: 0 | BU23: 0 | BV23: 0 | BW23: 0 | BX23: 0 | BY23: 0 | BZ23: 0 | CA23: 0 | CC23: 0 | CD23: 0 | CE23: 0 | CF23: 0 | CG23: 0 | CH23: 0 | CI23: 0 | CJ23: 0 | CK23: 0 | CL23: 0 | CM23: 0 | CN23: 0 | CO23: 0 | CP23: 0 | CQ23: 0 | CR23: 0 | CT23: 0 | CU23: 0 | CV23: 0 | CW23: 0 | CX23: 0 | CY23: 0 | CZ23: 0 | DA23: 0 | DB23: 0 | DC23: 0 | DD23: 0 | DE23: 0 | DF23: 0 | DG23: 0 | DH23: 0 | DI23: 0 | DK23: 0 | DL23: 0 | DM23: 0 | DN23: 0 | DO23: 0 | DP23: 0 | DQ23: 0 | DR23: 0 | DS23: 0 | DT23: 0 | DU23: 0 | DV23: 0 | DW23: 0 | DX23: 0 | DY23: 0 | DZ23: 0 | EB23: 0 | EC23: 0 | ED23: 0 | EE23: 0 | EF23: 0 | EG23: 0 | EH23: 0 | EI23: 0 | EJ23: 0 | EK23: 0 | EL23: 0 | EM23: 0 | EN23: 0 | EO23: 0 | EP23: 0 | EQ23: 0 | ES23: 0 | ET23: 0 | EU23: 0 | EV23: 0 | EW23: 0 | EX23: 0 | EY23: 0 | EZ23: 0 | FA23: 0 | FB23: 0 | FC23: 0 | FD23: 0 | FE23: 0 | FF23: 0 | FG23: 0 | FH23: 0 | FJ23: 0 | FK23: 0 | FL23: 0 | FM23: 0 | FN23: 0 | FO23: 0 | FP23: 0 | FQ23: 0 | FR23: 0 | FS23: 0 | FT23: 0 | FU23: 0 | FV23: 0 | FW23: 0 | FX23: 0 | FY23: 0 | GA23: 0 | GB23: 0 | GC23: 0 | GD23: 0 | GE23: 0 | GF23: 0 | GG23: 0 | GH23: 0 | GI23: 0 | GJ23: 0 | GK23: 0 | GL23: 0 | GM23: 0 | GN23: 0 | GO23: 0 | GP23: 0 | GR23: 0 | GS23: 0 | GT23: 0 | GU23: 0 | GV23: 0 | GW23: 0 | GX23: 0 | GY23: 0 | GZ23: 0 | HA23: 0 | HB23: 0 | HC23: 0 | HD23: 0 | HE23: 0 | HF23: 0 | HG23: 0 | HI23: 0 | HJ23: 0 | HK23: 0 | HL23: 0 | HM23: 0 | HN23: 0 | HO23: 0 | HP23: 0 | HQ23: 0 | HR23: 0 | HS23: 0 | HT23: 0 | HU23: 0 | HV23: 0 | HW23: 0 | HX23: 0
I24: =IF(OR($B24="",$E24="非燃料由来の非化石電気（オンサイトPPA含む）以外"),"",IFERROR(VLOOKUP(B24&C24&D24&E24&F24,'熱量換算係数(電気)'!$A$4:$G$24,7,FALSE),"熱量換算係数を入力")) ->  | J24: =IF(OR($B24="",$E24="非燃料由来の非化石電気（オンサイトPPA含む）以外"),"",IFERROR(VLOOKUP($G24,'排出係数(電気)'!$C$10:$D$1258,2,FALSE),IF(F24="化石分","基礎排出係数を入力",0))) ->  | K24: =IF(OR($B24="",$E24="非燃料由来の非化石電気（オンサイトPPA含む）以外"),"",IFERROR(VLOOKUP($G24&H24,'排出係数(電気)'!$A$10:$F$1258,6,FALSE),IF(ISNUMBER($J24)=TRUE,$J24,"調整後排出係数を入力"))) ->  | M24: 0 | N24: 0 | O24: 0 | P24: 0 | Q24: 0 | R24: 0 | S24: 0 | T24: 0 | U24: 0 | V24: 0 | W24: 0 | X24: 0 | Y24: 0 | Z24: 0 | AA24: 0 | AB24: 0 | AD24: 0 | AE24: 0 | AF24: 0 | AG24: 0 | AH24: 0 | AI24: 0 | AJ24: 0 | AK24: 0 | AL24: 0 | AM24: 0 | AN24: 0 | AO24: 0 | AP24: 0 | AQ24: 0 | AR24: 0 | AS24: 0 | AU24: 0 | AV24: 0 | AW24: 0 | AX24: 0 | AY24: 0 | AZ24: 0 | BA24: 0 | BB24: 0 | BC24: 0 | BD24: 0 | BE24: 0 | BF24: 0 | BG24: 0 | BH24: 0 | BI24: 0 | BJ24: 0 | BL24: 0 | BM24: 0 | BN24: 0 | BO24: 0 | BP24: 0 | BQ24: 0 | BR24: 0 | BS24: 0 | BT24: 0 | BU24: 0 | BV24: 0 | BW24: 0 | BX24: 0 | BY24: 0 | BZ24: 0 | CA24: 0 | CC24: 0 | CD24: 0 | CE24: 0 | CF24: 0 | CG24: 0 | CH24: 0 | CI24: 0 | CJ24: 0 | CK24: 0 | CL24: 0 | CM24: 0 | CN24: 0 | CO24: 0 | CP24: 0 | CQ24: 0 | CR24: 0 | CT24: 0 | CU24: 0 | CV24: 0 | CW24: 0 | CX24: 0 | CY24: 0 | CZ24: 0 | DA24: 0 | DB24: 0 | DC24: 0 | DD24: 0 | DE24: 0 | DF24: 0 | DG24: 0 | DH24: 0 | DI24: 0 | DK24: 0 | DL24: 0 | DM24: 0 | DN24: 0 | DO24: 0 | DP24: 0 | DQ24: 0 | DR24: 0 | DS24: 0 | DT24: 0 | DU24: 0 | DV24: 0 | DW24: 0 | DX24: 0 | DY24: 0 | DZ24: 0 | EB24: 0 | EC24: 0 | ED24: 0 | EE24: 0 | EF24: 0 | EG24: 0 | EH24: 0 | EI24: 0 | EJ24: 0 | EK24: 0 | EL24: 0 | EM24: 0 | EN24: 0 | EO24: 0 | EP24: 0 | EQ24: 0 | ES24: 0 | ET24: 0 | EU24: 0 | EV24: 0 | EW24: 0 | EX24: 0 | EY24: 0 | EZ24: 0 | FA24: 0 | FB24: 0 | FC24: 0 | FD24: 0 | FE24: 0 | FF24: 0 | FG24: 0 | FH24: 0 | FJ24: 0 | FK24: 0 | FL24: 0 | FM24: 0 | FN24: 0 | FO24: 0 | FP24: 0 | FQ24: 0 | FR24: 0 | FS24: 0 | FT24: 0 | FU24: 0 | FV24: 0 | FW24: 0 | FX24: 0 | FY24: 0 | GA24: 0 | GB24: 0 | GC24: 0 | GD24: 0 | GE24: 0 | GF24: 0 | GG24: 0 | GH24: 0 | GI24: 0 | GJ24: 0 | GK24: 0 | GL24: 0 | GM24: 0 | GN24: 0 | GO24: 0 | GP24: 0 | GR24: 0 | GS24: 0 | GT24: 0 | GU24: 0 | GV24: 0 | GW24: 0 | GX24: 0 | GY24: 0 | GZ24: 0 | HA24: 0 | HB24: 0 | HC24: 0 | HD24: 0 | HE24: 0 | HF24: 0 | HG24: 0 | HI24: 0 | HJ24: 0 | HK24: 0 | HL24: 0 | HM24: 0 | HN24: 0 | HO24: 0 | HP24: 0 | HQ24: 0 | HR24: 0 | HS24: 0 | HT24: 0 | HU24: 0 | HV24: 0 | HW24: 0 | HX24: 0
I25: =IF(OR($B25="",$E25="非燃料由来の非化石電気（オンサイトPPA含む）以外"),"",IFERROR(VLOOKUP(B25&C25&D25&E25&F25,'熱量換算係数(電気)'!$A$4:$G$24,7,FALSE),"熱量換算係数を入力")) ->  | J25: =IF(OR($B25="",$E25="非燃料由来の非化石電気（オンサイトPPA含む）以外"),"",IFERROR(VLOOKUP($G25,'排出係数(電気)'!$C$10:$D$1258,2,FALSE),IF(F25="化石分","基礎排出係数を入力",0))) ->  | K25: =IF(OR($B25="",$E25="非燃料由来の非化石電気（オンサイトPPA含む）以外"),"",IFERROR(VLOOKUP($G25&H25,'排出係数(電気)'!$A$10:$F$1258,6,FALSE),IF(ISNUMBER($J25)=TRUE,$J25,"調整後排出係数を入力"))) ->  | M25: 0 | N25: 0 | O25: 0 | P25: 0 | Q25: 0 | R25: 0 | S25: 0 | T25: 0 | U25: 0 | V25: 0 | W25: 0 | X25: 0 | Y25: 0 | Z25: 0 | AA25: 0 | AB25: 0 | AD25: 0 | AE25: 0 | AF25: 0 | AG25: 0 | AH25: 0 | AI25: 0 | AJ25: 0 | AK25: 0 | AL25: 0 | AM25: 0 | AN25: 0 | AO25: 0 | AP25: 0 | AQ25: 0 | AR25: 0 | AS25: 0 | AU25: 0 | AV25: 0 | AW25: 0 | AX25: 0 | AY25: 0 | AZ25: 0 | BA25: 0 | BB25: 0 | BC25: 0 | BD25: 0 | BE25: 0 | BF25: 0 | BG25: 0 | BH25: 0 | BI25: 0 | BJ25: 0 | BL25: 0 | BM25: 0 | BN25: 0 | BO25: 0 | BP25: 0 | BQ25: 0 | BR25: 0 | BS25: 0 | BT25: 0 | BU25: 0 | BV25: 0 | BW25: 0 | BX25: 0 | BY25: 0 | BZ25: 0 | CA25: 0 | CC25: 0 | CD25: 0 | CE25: 0 | CF25: 0 | CG25: 0 | CH25: 0 | CI25: 0 | CJ25: 0 | CK25: 0 | CL25: 0 | CM25: 0 | CN25: 0 | CO25: 0 | CP25: 0 | CQ25: 0 | CR25: 0 | CT25: 0 | CU25: 0 | CV25: 0 | CW25: 0 | CX25: 0 | CY25: 0 | CZ25: 0 | DA25: 0 | DB25: 0 | DC25: 0 | DD25: 0 | DE25: 0 | DF25: 0 | DG25: 0 | DH25: 0 | DI25: 0 | DK25: 0 | DL25: 0 | DM25: 0 | DN25: 0 | DO25: 0 | DP25: 0 | DQ25: 0 | DR25: 0 | DS25: 0 | DT25: 0 | DU25: 0 | DV25: 0 | DW25: 0 | DX25: 0 | DY25: 0 | DZ25: 0 | EB25: 0 | EC25: 0 | ED25: 0 | EE25: 0 | EF25: 0 | EG25: 0 | EH25: 0 | EI25: 0 | EJ25: 0 | EK25: 0 | EL25: 0 | EM25: 0 | EN25: 0 | EO25: 0 | EP25: 0 | EQ25: 0 | ES25: 0 | ET25: 0 | EU25: 0 | EV25: 0 | EW25: 0 | EX25: 0 | EY25: 0 | EZ25: 0 | FA25: 0 | FB25: 0 | FC25: 0 | FD25: 0 | FE25: 0 | FF25: 0 | FG25: 0 | FH25: 0 | FJ25: 0 | FK25: 0 | FL25: 0 | FM25: 0 | FN25: 0 | FO25: 0 | FP25: 0 | FQ25: 0 | FR25: 0 | FS25: 0 | FT25: 0 | FU25: 0 | FV25: 0 | FW25: 0 | FX25: 0 | FY25: 0 | GA25: 0 | GB25: 0 | GC25: 0 | GD25: 0 | GE25: 0 | GF25: 0 | GG25: 0 | GH25: 0 | GI25: 0 | GJ25: 0 | GK25: 0 | GL25: 0 | GM25: 0 | GN25: 0 | GO25: 0 | GP25: 0 | GR25: 0 | GS25: 0 | GT25: 0 | GU25: 0 | GV25: 0 | GW25: 0 | GX25: 0 | GY25: 0 | GZ25: 0 | HA25: 0 | HB25: 0 | HC25: 0 | HD25: 0 | HE25: 0 | HF25: 0 | HG25: 0 | HI25: 0 | HJ25: 0 | HK25: 0 | HL25: 0 | HM25: 0 | HN25: 0 | HO25: 0 | HP25: 0 | HQ25: 0 | HR25: 0 | HS25: 0 | HT25: 0 | HU25: 0 | HV25: 0 | HW25: 0 | HX25: 0
I26: =IF(OR($B26="",$E26="非燃料由来の非化石電気（オンサイトPPA含む）以外"),"",IFERROR(VLOOKUP(B26&C26&D26&E26&F26,'熱量換算係数(電気)'!$A$4:$G$24,7,FALSE),"熱量換算係数を入力")) ->  | J26: =IF(OR($B26="",$E26="非燃料由来の非化石電気（オンサイトPPA含む）以外"),"",IFERROR(VLOOKUP($G26,'排出係数(電気)'!$C$10:$D$1258,2,FALSE),IF(F26="化石分","基礎排出係数を入力",0))) ->  | K26: =IF(OR($B26="",$E26="非燃料由来の非化石電気（オンサイトPPA含む）以外"),"",IFERROR(VLOOKUP($G26&H26,'排出係数(電気)'!$A$10:$F$1258,6,FALSE),IF(ISNUMBER($J26)=TRUE,$J26,"調整後排出係数を入力"))) ->  | M26: 0 | N26: 0 | O26: 0 | P26: 0 | Q26: 0 | R26: 0 | S26: 0 | T26: 0 | U26: 0 | V26: 0 | W26: 0 | X26: 0 | Y26: 0 | Z26: 0 | AA26: 0 | AB26: 0 | AD26: 0 | AE26: 0 | AF26: 0 | AG26: 0 | AH26: 0 | AI26: 0 | AJ26: 0 | AK26: 0 | AL26: 0 | AM26: 0 | AN26: 0 | AO26: 0 | AP26: 0 | AQ26: 0 | AR26: 0 | AS26: 0 | AU26: 0 | AV26: 0 | AW26: 0 | AX26: 0 | AY26: 0 | AZ26: 0 | BA26: 0 | BB26: 0 | BC26: 0 | BD26: 0 | BE26: 0 | BF26: 0 | BG26: 0 | BH26: 0 | BI26: 0 | BJ26: 0 | BL26: 0 | BM26: 0 | BN26: 0 | BO26: 0 | BP26: 0 | BQ26: 0 | BR26: 0 | BS26: 0 | BT26: 0 | BU26: 0 | BV26: 0 | BW26: 0 | BX26: 0 | BY26: 0 | BZ26: 0 | CA26: 0 | CC26: 0 | CD26: 0 | CE26: 0 | CF26: 0 | CG26: 0 | CH26: 0 | CI26: 0 | CJ26: 0 | CK26: 0 | CL26: 0 | CM26: 0 | CN26: 0 | CO26: 0 | CP26: 0 | CQ26: 0 | CR26: 0 | CT26: 0 | CU26: 0 | CV26: 0 | CW26: 0 | CX26: 0 | CY26: 0 | CZ26: 0 | DA26: 0 | DB26: 0 | DC26: 0 | DD26: 0 | DE26: 0 | DF26: 0 | DG26: 0 | DH26: 0 | DI26: 0 | DK26: 0 | DL26: 0 | DM26: 0 | DN26: 0 | DO26: 0 | DP26: 0 | DQ26: 0 | DR26: 0 | DS26: 0 | DT26: 0 | DU26: 0 | DV26: 0 | DW26: 0 | DX26: 0 | DY26: 0 | DZ26: 0 | EB26: 0 | EC26: 0 | ED26: 0 | EE26: 0 | EF26: 0 | EG26: 0 | EH26: 0 | EI26: 0 | EJ26: 0 | EK26: 0 | EL26: 0 | EM26: 0 | EN26: 0 | EO26: 0 | EP26: 0 | EQ26: 0 | ES26: 0 | ET26: 0 | EU26: 0 | EV26: 0 | EW26: 0 | EX26: 0 | EY26: 0 | EZ26: 0 | FA26: 0 | FB26: 0 | FC26: 0 | FD26: 0 | FE26: 0 | FF26: 0 | FG26: 0 | FH26: 0 | FJ26: 0 | FK26: 0 | FL26: 0 | FM26: 0 | FN26: 0 | FO26: 0 | FP26: 0 | FQ26: 0 | FR26: 0 | FS26: 0 | FT26: 0 | FU26: 0 | FV26: 0 | FW26: 0 | FX26: 0 | FY26: 0 | GA26: 0 | GB26: 0 | GC26: 0 | GD26: 0 | GE26: 0 | GF26: 0 | GG26: 0 | GH26: 0 | GI26: 0 | GJ26: 0 | GK26: 0 | GL26: 0 | GM26: 0 | GN26: 0 | GO26: 0 | GP26: 0 | GR26: 0 | GS26: 0 | GT26: 0 | GU26: 0 | GV26: 0 | GW26: 0 | GX26: 0 | GY26: 0 | GZ26: 0 | HA26: 0 | HB26: 0 | HC26: 0 | HD26: 0 | HE26: 0 | HF26: 0 | HG26: 0 | HI26: 0 | HJ26: 0 | HK26: 0 | HL26: 0 | HM26: 0 | HN26: 0 | HO26: 0 | HP26: 0 | HQ26: 0 | HR26: 0 | HS26: 0 | HT26: 0 | HU26: 0 | HV26: 0 | HW26: 0 | HX26: 0
I27: =IF(OR($B27="",$E27="非燃料由来の非化石電気（オンサイトPPA含む）以外"),"",IFERROR(VLOOKUP(B27&C27&D27&E27&F27,'熱量換算係数(電気)'!$A$4:$G$24,7,FALSE),"熱量換算係数を入力")) ->  | J27: =IF(OR($B27="",$E27="非燃料由来の非化石電気（オンサイトPPA含む）以外"),"",IFERROR(VLOOKUP($G27,'排出係数(電気)'!$C$10:$D$1258,2,FALSE),IF(F27="化石分","基礎排出係数を入力",0))) ->  | K27: =IF(OR($B27="",$E27="非燃料由来の非化石電気（オンサイトPPA含む）以外"),"",IFERROR(VLOOKUP($G27&H27,'排出係数(電気)'!$A$10:$F$1258,6,FALSE),IF(ISNUMBER($J27)=TRUE,$J27,"調整後排出係数を入力"))) ->  | M27: 0 | N27: 0 | O27: 0 | P27: 0 | Q27: 0 | R27: 0 | S27: 0 | T27: 0 | U27: 0 | V27: 0 | W27: 0 | X27: 0 | Y27: 0 | Z27: 0 | AA27: 0 | AB27: 0 | AD27: 0 | AE27: 0 | AF27: 0 | AG27: 0 | AH27: 0 | AI27: 0 | AJ27: 0 | AK27: 0 | AL27: 0 | AM27: 0 | AN27: 0 | AO27: 0 | AP27: 0 | AQ27: 0 | AR27: 0 | AS27: 0 | AU27: 0 | AV27: 0 | AW27: 0 | AX27: 0 | AY27: 0 | AZ27: 0 | BA27: 0 | BB27: 0 | BC27: 0 | BD27: 0 | BE27: 0 | BF27: 0 | BG27: 0 | BH27: 0 | BI27: 0 | BJ27: 0 | BL27: 0 | BM27: 0 | BN27: 0 | BO27: 0 | BP27: 0 | BQ27: 0 | BR27: 0 | BS27: 0 | BT27: 0 | BU27: 0 | BV27: 0 | BW27: 0 | BX27: 0 | BY27: 0 | BZ27: 0 | CA27: 0 | CC27: 0 | CD27: 0 | CE27: 0 | CF27: 0 | CG27: 0 | CH27: 0 | CI27: 0 | CJ27: 0 | CK27: 0 | CL27: 0 | CM27: 0 | CN27: 0 | CO27: 0 | CP27: 0 | CQ27: 0 | CR27: 0 | CT27: 0 | CU27: 0 | CV27: 0 | CW27: 0 | CX27: 0 | CY27: 0 | CZ27: 0 | DA27: 0 | DB27: 0 | DC27: 0 | DD27: 0 | DE27: 0 | DF27: 0 | DG27: 0 | DH27: 0 | DI27: 0 | DK27: 0 | DL27: 0 | DM27: 0 | DN27: 0 | DO27: 0 | DP27: 0 | DQ27: 0 | DR27: 0 | DS27: 0 | DT27: 0 | DU27: 0 | DV27: 0 | DW27: 0 | DX27: 0 | DY27: 0 | DZ27: 0 | EB27: 0 | EC27: 0 | ED27: 0 | EE27: 0 | EF27: 0 | EG27: 0 | EH27: 0 | EI27: 0 | EJ27: 0 | EK27: 0 | EL27: 0 | EM27: 0 | EN27: 0 | EO27: 0 | EP27: 0 | EQ27: 0 | ES27: 0 | ET27: 0 | EU27: 0 | EV27: 0 | EW27: 0 | EX27: 0 | EY27: 0 | EZ27: 0 | FA27: 0 | FB27: 0 | FC27: 0 | FD27: 0 | FE27: 0 | FF27: 0 | FG27: 0 | FH27: 0 | FJ27: 0 | FK27: 0 | FL27: 0 | FM27: 0 | FN27: 0 | FO27: 0 | FP27: 0 | FQ27: 0 | FR27: 0 | FS27: 0 | FT27: 0 | FU27: 0 | FV27: 0 | FW27: 0 | FX27: 0 | FY27: 0 | GA27: 0 | GB27: 0 | GC27: 0 | GD27: 0 | GE27: 0 | GF27: 0 | GG27: 0 | GH27: 0 | GI27: 0 | GJ27: 0 | GK27: 0 | GL27: 0 | GM27: 0 | GN27: 0 | GO27: 0 | GP27: 0 | GR27: 0 | GS27: 0 | GT27: 0 | GU27: 0 | GV27: 0 | GW27: 0 | GX27: 0 | GY27: 0 | GZ27: 0 | HA27: 0 | HB27: 0 | HC27: 0 | HD27: 0 | HE27: 0 | HF27: 0 | HG27: 0 | HI27: 0 | HJ27: 0 | HK27: 0 | HL27: 0 | HM27: 0 | HN27: 0 | HO27: 0 | HP27: 0 | HQ27: 0 | HR27: 0 | HS27: 0 | HT27: 0 | HU27: 0 | HV27: 0 | HW27: 0 | HX27: 0
I28: =IF(OR($B28="",$E28="非燃料由来の非化石電気（オンサイトPPA含む）以外"),"",IFERROR(VLOOKUP(B28&C28&D28&E28&F28,'熱量換算係数(電気)'!$A$4:$G$24,7,FALSE),"熱量換算係数を入力")) ->  | J28: =IF(OR($B28="",$E28="非燃料由来の非化石電気（オンサイトPPA含む）以外"),"",IFERROR(VLOOKUP($G28,'排出係数(電気)'!$C$10:$D$1258,2,FALSE),IF(F28="化石分","基礎排出係数を入力",0))) ->  | K28: =IF(OR($B28="",$E28="非燃料由来の非化石電気（オンサイトPPA含む）以外"),"",IFERROR(VLOOKUP($G28&H28,'排出係数(電気)'!$A$10:$F$1258,6,FALSE),IF(ISNUMBER($J28)=TRUE,$J28,"調整後排出係数を入力"))) ->  | M28: 0 | N28: 0 | O28: 0 | P28: 0 | Q28: 0 | R28: 0 | S28: 0 | T28: 0 | U28: 0 | V28: 0 | W28: 0 | X28: 0 | Y28: 0 | Z28: 0 | AA28: 0 | AB28: 0 | AD28: 0 | AE28: 0 | AF28: 0 | AG28: 0 | AH28: 0 | AI28: 0 | AJ28: 0 | AK28: 0 | AL28: 0 | AM28: 0 | AN28: 0 | AO28: 0 | AP28: 0 | AQ28: 0 | AR28: 0 | AS28: 0 | AU28: 0 | AV28: 0 | AW28: 0 | AX28: 0 | AY28: 0 | AZ28: 0 | BA28: 0 | BB28: 0 | BC28: 0 | BD28: 0 | BE28: 0 | BF28: 0 | BG28: 0 | BH28: 0 | BI28: 0 | BJ28: 0 | BL28: 0 | BM28: 0 | BN28: 0 | BO28: 0 | BP28: 0 | BQ28: 0 | BR28: 0 | BS28: 0 | BT28: 0 | BU28: 0 | BV28: 0 | BW28: 0 | BX28: 0 | BY28: 0 | BZ28: 0 | CA28: 0 | CC28: 0 | CD28: 0 | CE28: 0 | CF28: 0 | CG28: 0 | CH28: 0 | CI28: 0 | CJ28: 0 | CK28: 0 | CL28: 0 | CM28: 0 | CN28: 0 | CO28: 0 | CP28: 0 | CQ28: 0 | CR28: 0 | CT28: 0 | CU28: 0 | CV28: 0 | CW28: 0 | CX28: 0 | CY28: 0 | CZ28: 0 | DA28: 0 | DB28: 0 | DC28: 0 | DD28: 0 | DE28: 0 | DF28: 0 | DG28: 0 | DH28: 0 | DI28: 0 | DK28: 0 | DL28: 0 | DM28: 0 | DN28: 0 | DO28: 0 | DP28: 0 | DQ28: 0 | DR28: 0 | DS28: 0 | DT28: 0 | DU28: 0 | DV28: 0 | DW28: 0 | DX28: 0 | DY28: 0 | DZ28: 0 | EB28: 0 | EC28: 0 | ED28: 0 | EE28: 0 | EF28: 0 | EG28: 0 | EH28: 0 | EI28: 0 | EJ28: 0 | EK28: 0 | EL28: 0 | EM28: 0 | EN28: 0 | EO28: 0 | EP28: 0 | EQ28: 0 | ES28: 0 | ET28: 0 | EU28: 0 | EV28: 0 | EW28: 0 | EX28: 0 | EY28: 0 | EZ28: 0 | FA28: 0 | FB28: 0 | FC28: 0 | FD28: 0 | FE28: 0 | FF28: 0 | FG28: 0 | FH28: 0 | FJ28: 0 | FK28: 0 | FL28: 0 | FM28: 0 | FN28: 0 | FO28: 0 | FP28: 0 | FQ28: 0 | FR28: 0 | FS28: 0 | FT28: 0 | FU28: 0 | FV28: 0 | FW28: 0 | FX28: 0 | FY28: 0 | GA28: 0 | GB28: 0 | GC28: 0 | GD28: 0 | GE28: 0 | GF28: 0 | GG28: 0 | GH28: 0 | GI28: 0 | GJ28: 0 | GK28: 0 | GL28: 0 | GM28: 0 | GN28: 0 | GO28: 0 | GP28: 0 | GR28: 0 | GS28: 0 | GT28: 0 | GU28: 0 | GV28: 0 | GW28: 0 | GX28: 0 | GY28: 0 | GZ28: 0 | HA28: 0 | HB28: 0 | HC28: 0 | HD28: 0 | HE28: 0 | HF28: 0 | HG28: 0 | HI28: 0 | HJ28: 0 | HK28: 0 | HL28: 0 | HM28: 0 | HN28: 0 | HO28: 0 | HP28: 0 | HQ28: 0 | HR28: 0 | HS28: 0 | HT28: 0 | HU28: 0 | HV28: 0 | HW28: 0 | HX28: 0
I29: =IF(OR($B29="",$E29="非燃料由来の非化石電気（オンサイトPPA含む）以外"),"",IFERROR(VLOOKUP(B29&C29&D29&E29&F29,'熱量換算係数(電気)'!$A$4:$G$24,7,FALSE),"熱量換算係数を入力")) ->  | J29: =IF(OR($B29="",$E29="非燃料由来の非化石電気（オンサイトPPA含む）以外"),"",IFERROR(VLOOKUP($G29,'排出係数(電気)'!$C$10:$D$1258,2,FALSE),IF(F29="化石分","基礎排出係数を入力",0))) ->  | K29: =IF(OR($B29="",$E29="非燃料由来の非化石電気（オンサイトPPA含む）以外"),"",IFERROR(VLOOKUP($G29&H29,'排出係数(電気)'!$A$10:$F$1258,6,FALSE),IF(ISNUMBER($J29)=TRUE,$J29,"調整後排出係数を入力"))) ->  | M29: 0 | N29: 0 | O29: 0 | P29: 0 | Q29: 0 | R29: 0 | S29: 0 | T29: 0 | U29: 0 | V29: 0 | W29: 0 | X29: 0 | Y29: 0 | Z29: 0 | AA29: 0 | AB29: 0 | AD29: 0 | AE29: 0 | AF29: 0 | AG29: 0 | AH29: 0 | AI29: 0 | AJ29: 0 | AK29: 0 | AL29: 0 | AM29: 0 | AN29: 0 | AO29: 0 | AP29: 0 | AQ29: 0 | AR29: 0 | AS29: 0 | AU29: 0 | AV29: 0 | AW29: 0 | AX29: 0 | AY29: 0 | AZ29: 0 | BA29: 0 | BB29: 0 | BC29: 0 | BD29: 0 | BE29: 0 | BF29: 0 | BG29: 0 | BH29: 0 | BI29: 0 | BJ29: 0 | BL29: 0 | BM29: 0 | BN29: 0 | BO29: 0 | BP29: 0 | BQ29: 0 | BR29: 0 | BS29: 0 | BT29: 0 | BU29: 0 | BV29: 0 | BW29: 0 | BX29: 0 | BY29: 0 | BZ29: 0 | CA29: 0 | CC29: 0 | CD29: 0 | CE29: 0 | CF29: 0 | CG29: 0 | CH29: 0 | CI29: 0 | CJ29: 0 | CK29: 0 | CL29: 0 | CM29: 0 | CN29: 0 | CO29: 0 | CP29: 0 | CQ29: 0 | CR29: 0 | CT29: 0 | CU29: 0 | CV29: 0 | CW29: 0 | CX29: 0 | CY29: 0 | CZ29: 0 | DA29: 0 | DB29: 0 | DC29: 0 | DD29: 0 | DE29: 0 | DF29: 0 | DG29: 0 | DH29: 0 | DI29: 0 | DK29: 0 | DL29: 0 | DM29: 0 | DN29: 0 | DO29: 0 | DP29: 0 | DQ29: 0 | DR29: 0 | DS29: 0 | DT29: 0 | DU29: 0 | DV29: 0 | DW29: 0 | DX29: 0 | DY29: 0 | DZ29: 0 | EB29: 0 | EC29: 0 | ED29: 0 | EE29: 0 | EF29: 0 | EG29: 0 | EH29: 0 | EI29: 0 | EJ29: 0 | EK29: 0 | EL29: 0 | EM29: 0 | EN29: 0 | EO29: 0 | EP29: 0 | EQ29: 0 | ES29: 0 | ET29: 0 | EU29: 0 | EV29: 0 | EW29: 0 | EX29: 0 | EY29: 0 | EZ29: 0 | FA29: 0 | FB29: 0 | FC29: 0 | FD29: 0 | FE29: 0 | FF29: 0 | FG29: 0 | FH29: 0 | FJ29: 0 | FK29: 0 | FL29: 0 | FM29: 0 | FN29: 0 | FO29: 0 | FP29: 0 | FQ29: 0 | FR29: 0 | FS29: 0 | FT29: 0 | FU29: 0 | FV29: 0 | FW29: 0 | FX29: 0 | FY29: 0 | GA29: 0 | GB29: 0 | GC29: 0 | GD29: 0 | GE29: 0 | GF29: 0 | GG29: 0 | GH29: 0 | GI29: 0 | GJ29: 0 | GK29: 0 | GL29: 0 | GM29: 0 | GN29: 0 | GO29: 0 | GP29: 0 | GR29: 0 | GS29: 0 | GT29: 0 | GU29: 0 | GV29: 0 | GW29: 0 | GX29: 0 | GY29: 0 | GZ29: 0 | HA29: 0 | HB29: 0 | HC29: 0 | HD29: 0 | HE29: 0 | HF29: 0 | HG29: 0 | HI29: 0 | HJ29: 0 | HK29: 0 | HL29: 0 | HM29: 0 | HN29: 0 | HO29: 0 | HP29: 0 | HQ29: 0 | HR29: 0 | HS29: 0 | HT29: 0 | HU29: 0 | HV29: 0 | HW29: 0 | HX29: 0
I30: =IF(OR($B30="",$E30="非燃料由来の非化石電気（オンサイトPPA含む）以外"),"",IFERROR(VLOOKUP(B30&C30&D30&E30&F30,'熱量換算係数(電気)'!$A$4:$G$24,7,FALSE),"熱量換算係数を入力")) ->  | J30: =IF(OR($B30="",$E30="非燃料由来の非化石電気（オンサイトPPA含む）以外"),"",IFERROR(VLOOKUP($G30,'排出係数(電気)'!$C$10:$D$1258,2,FALSE),IF(F30="化石分","基礎排出係数を入力",0))) ->  | K30: =IF(OR($B30="",$E30="非燃料由来の非化石電気（オンサイトPPA含む）以外"),"",IFERROR(VLOOKUP($G30&H30,'排出係数(電気)'!$A$10:$F$1258,6,FALSE),IF(ISNUMBER($J30)=TRUE,$J30,"調整後排出係数を入力"))) ->  | M30: 0 | N30: 0 | O30: 0 | P30: 0 | Q30: 0 | R30: 0 | S30: 0 | T30: 0 | U30: 0 | V30: 0 | W30: 0 | X30: 0 | Y30: 0 | Z30: 0 | AA30: 0 | AB30: 0 | AD30: 0 | AE30: 0 | AF30: 0 | AG30: 0 | AH30: 0 | AI30: 0 | AJ30: 0 | AK30: 0 | AL30: 0 | AM30: 0 | AN30: 0 | AO30: 0 | AP30: 0 | AQ30: 0 | AR30: 0 | AS30: 0 | AU30: 0 | AV30: 0 | AW30: 0 | AX30: 0 | AY30: 0 | AZ30: 0 | BA30: 0 | BB30: 0 | BC30: 0 | BD30: 0 | BE30: 0 | BF30: 0 | BG30: 0 | BH30: 0 | BI30: 0 | BJ30: 0 | BL30: 0 | BM30: 0 | BN30: 0 | BO30: 0 | BP30: 0 | BQ30: 0 | BR30: 0 | BS30: 0 | BT30: 0 | BU30: 0 | BV30: 0 | BW30: 0 | BX30: 0 | BY30: 0 | BZ30: 0 | CA30: 0 | CC30: 0 | CD30: 0 | CE30: 0 | CF30: 0 | CG30: 0 | CH30: 0 | CI30: 0 | CJ30: 0 | CK30: 0 | CL30: 0 | CM30: 0 | CN30: 0 | CO30: 0 | CP30: 0 | CQ30: 0 | CR30: 0 | CT30: 0 | CU30: 0 | CV30: 0 | CW30: 0 | CX30: 0 | CY30: 0 | CZ30: 0 | DA30: 0 | DB30: 0 | DC30: 0 | DD30: 0 | DE30: 0 | DF30: 0 | DG30: 0 | DH30: 0 | DI30: 0 | DK30: 0 | DL30: 0 | DM30: 0 | DN30: 0 | DO30: 0 | DP30: 0 | DQ30: 0 | DR30: 0 | DS30: 0 | DT30: 0 | DU30: 0 | DV30: 0 | DW30: 0 | DX30: 0 | DY30: 0 | DZ30: 0 | EB30: 0 | EC30: 0 | ED30: 0 | EE30: 0 | EF30: 0 | EG30: 0 | EH30: 0 | EI30: 0 | EJ30: 0 | EK30: 0 | EL30: 0 | EM30: 0 | EN30: 0 | EO30: 0 | EP30: 0 | EQ30: 0 | ES30: 0 | ET30: 0 | EU30: 0 | EV30: 0 | EW30: 0 | EX30: 0 | EY30: 0 | EZ30: 0 | FA30: 0 | FB30: 0 | FC30: 0 | FD30: 0 | FE30: 0 | FF30: 0 | FG30: 0 | FH30: 0 | FJ30: 0 | FK30: 0 | FL30: 0 | FM30: 0 | FN30: 0 | FO30: 0 | FP30: 0 | FQ30: 0 | FR30: 0 | FS30: 0 | FT30: 0 | FU30: 0 | FV30: 0 | FW30: 0 | FX30: 0 | FY30: 0 | GA30: 0 | GB30: 0 | GC30: 0 | GD30: 0 | GE30: 0 | GF30: 0 | GG30: 0 | GH30: 0 | GI30: 0 | GJ30: 0 | GK30: 0 | GL30: 0 | GM30: 0 | GN30: 0 | GO30: 0 | GP30: 0 | GR30: 0 | GS30: 0 | GT30: 0 | GU30: 0 | GV30: 0 | GW30: 0 | GX30: 0 | GY30: 0 | GZ30: 0 | HA30: 0 | HB30: 0 | HC30: 0 | HD30: 0 | HE30: 0 | HF30: 0 | HG30: 0 | HI30: 0 | HJ30: 0 | HK30: 0 | HL30: 0 | HM30: 0 | HN30: 0 | HO30: 0 | HP30: 0 | HQ30: 0 | HR30: 0 | HS30: 0 | HT30: 0 | HU30: 0 | HV30: 0 | HW30: 0 | HX30: 0
I31: =IF(OR($B31="",$E31="非燃料由来の非化石電気（オンサイトPPA含む）以外"),"",IFERROR(VLOOKUP(B31&C31&D31&E31&F31,'熱量換算係数(電気)'!$A$4:$G$24,7,FALSE),"熱量換算係数を入力")) ->  | J31: =IF(OR($B31="",$E31="非燃料由来の非化石電気（オンサイトPPA含む）以外"),"",IFERROR(VLOOKUP($G31,'排出係数(電気)'!$C$10:$D$1258,2,FALSE),IF(F31="化石分","基礎排出係数を入力",0))) ->  | K31: =IF(OR($B31="",$E31="非燃料由来の非化石電気（オンサイトPPA含む）以外"),"",IFERROR(VLOOKUP($G31&H31,'排出係数(電気)'!$A$10:$F$1258,6,FALSE),IF(ISNUMBER($J31)=TRUE,$J31,"調整後排出係数を入力"))) ->  | M31: 0 | N31: 0 | O31: 0 | P31: 0 | Q31: 0 | R31: 0 | S31: 0 | T31: 0 | U31: 0 | V31: 0 | W31: 0 | X31: 0 | Y31: 0 | Z31: 0 | AA31: 0 | AB31: 0 | AD31: 0 | AE31: 0 | AF31: 0 | AG31: 0 | AH31: 0 | AI31: 0 | AJ31: 0 | AK31: 0 | AL31: 0 | AM31: 0 | AN31: 0 | AO31: 0 | AP31: 0 | AQ31: 0 | AR31: 0 | AS31: 0 | AU31: 0 | AV31: 0 | AW31: 0 | AX31: 0 | AY31: 0 | AZ31: 0 | BA31: 0 | BB31: 0 | BC31: 0 | BD31: 0 | BE31: 0 | BF31: 0 | BG31: 0 | BH31: 0 | BI31: 0 | BJ31: 0 | BL31: 0 | BM31: 0 | BN31: 0 | BO31: 0 | BP31: 0 | BQ31: 0 | BR31: 0 | BS31: 0 | BT31: 0 | BU31: 0 | BV31: 0 | BW31: 0 | BX31: 0 | BY31: 0 | BZ31: 0 | CA31: 0 | CC31: 0 | CD31: 0 | CE31: 0 | CF31: 0 | CG31: 0 | CH31: 0 | CI31: 0 | CJ31: 0 | CK31: 0 | CL31: 0 | CM31: 0 | CN31: 0 | CO31: 0 | CP31: 0 | CQ31: 0 | CR31: 0 | CT31: 0 | CU31: 0 | CV31: 0 | CW31: 0 | CX31: 0 | CY31: 0 | CZ31: 0 | DA31: 0 | DB31: 0 | DC31: 0 | DD31: 0 | DE31: 0 | DF31: 0 | DG31: 0 | DH31: 0 | DI31: 0 | DK31: 0 | DL31: 0 | DM31: 0 | DN31: 0 | DO31: 0 | DP31: 0 | DQ31: 0 | DR31: 0 | DS31: 0 | DT31: 0 | DU31: 0 | DV31: 0 | DW31: 0 | DX31: 0 | DY31: 0 | DZ31: 0 | EB31: 0 | EC31: 0 | ED31: 0 | EE31: 0 | EF31: 0 | EG31: 0 | EH31: 0 | EI31: 0 | EJ31: 0 | EK31: 0 | EL31: 0 | EM31: 0 | EN31: 0 | EO31: 0 | EP31: 0 | EQ31: 0 | ES31: 0 | ET31: 0 | EU31: 0 | EV31: 0 | EW31: 0 | EX31: 0 | EY31: 0 | EZ31: 0 | FA31: 0 | FB31: 0 | FC31: 0 | FD31: 0 | FE31: 0 | FF31: 0 | FG31: 0 | FH31: 0 | FJ31: 0 | FK31: 0 | FL31: 0 | FM31: 0 | FN31: 0 | FO31: 0 | FP31: 0 | FQ31: 0 | FR31: 0 | FS31: 0 | FT31: 0 | FU31: 0 | FV31: 0 | FW31: 0 | FX31: 0 | FY31: 0 | GA31: 0 | GB31: 0 | GC31: 0 | GD31: 0 | GE31: 0 | GF31: 0 | GG31: 0 | GH31: 0 | GI31: 0 | GJ31: 0 | GK31: 0 | GL31: 0 | GM31: 0 | GN31: 0 | GO31: 0 | GP31: 0 | GR31: 0 | GS31: 0 | GT31: 0 | GU31: 0 | GV31: 0 | GW31: 0 | GX31: 0 | GY31: 0 | GZ31: 0 | HA31: 0 | HB31: 0 | HC31: 0 | HD31: 0 | HE31: 0 | HF31: 0 | HG31: 0 | HI31: 0 | HJ31: 0 | HK31: 0 | HL31: 0 | HM31: 0 | HN31: 0 | HO31: 0 | HP31: 0 | HQ31: 0 | HR31: 0 | HS31: 0 | HT31: 0 | HU31: 0 | HV31: 0 | HW31: 0 | HX31: 0
... 37 more rows

Sheet 入力補助(電気・時間別)(貨物) (hidden)
B1: ※E列で「非燃料由来の非化石電気（オンサイトPPA含む）」を選択した場合は、G列で「太陽光」～「水力」を選択。※電気の種類で全て「その他」を選択した場合は、必ず各種係数を手入力。また、第１表１－１にも必ず直接入力。
A2: 使用量 | J2: 全国平均係数(t-CO₂/千kWh)： | K2: ='排出係数(電気)'!D1266 -> 0.438 | EK2: ※昼間：8～22時 | FR2: ※昼間：8～22時 | GY2: ※昼間：8～22時 | KT2: ※昼間：8～22時 | MA2: ※昼間：8～22時 | NH2: ※昼間：8～22時 | OO2: ※昼間：8～22時
B3: 電気の種類 ※シート「熱量換算係数(電気)」を参考に選択 | G3: ○電気事業者からの買電の場合 →電気事業者名を選択 ○その他非化石電気の場合 →再エネの種類を選択（例：太陽光） ※その他の場合は空欄 | H3: ○電気事業者からの買電の場合 →電力メニューを選択 ※電気事業者からの買電の場合で、メニューがない場合は「―」を選択。その他の場合は空欄。 | I3: 熱量換算係数 （GJ/千kWh） | J3: CO2基礎排出係数 （tCO2/千kWh） | K3: CO2調整後排出係数 （tCO2/千kWh） | L3: 合計 | R3: 電気需要平準化対応 | AE3: 電気需要最適化対応 | AO3: 4月 | BV3: 5月 | DC3: 6月 | EJ3: 7月 | FQ3: 8月 | GX3: 9月 | IE3: 10月 | JL3: 11月 | KS3: 12月 | LZ3: 1月 | NG3: 2月 | ON3: 3月
M4: 使用量（千kWh） | P4: 熱量（GJ） | S4: CO2基礎排出量（tCO2） | V4: 参考：CO2調整後排出量（tCO2） | Z4: 使用量（千kWh） | AD4: 熱量（GJ） | AH4: CO2基礎排出量（tCO2） | AL4: 【参考】CO2調整後排出量（tCO2） | AP4: 使用量（千kWh）（電気需要平準化） | AT4: 使用量（千kWh）（電気需要最適化） | AX4: 熱量（GJ）（電気需要平準化） | BB4: 熱量（GJ）（電気需要最適化） | BF4: CO2基礎排出量（tCO2）（電気需要平準化） | BJ4: CO2基礎排出量（tCO2）（電気需要最適化） | BN4: 参考：CO2調整後排出量（tCO2）（平準化） | BR4: 参考：CO2調整後排出量（tCO2）（最適化） | BW4: 使用量（千kWh）（電気需要平準化） | CA4: 使用量（千kWh）（電気需要最適化） | CE4: 熱量（GJ）（電気需要平準化） | CI4: 熱量（GJ）（電気需要最適化） | CM4: CO2基礎排出量（tCO2）（電気需要平準化） | CQ4: CO2基礎排出量（tCO2）（電気需要最適化） | CU4: 参考：CO2調整後排出量（tCO2）（平準化） | CY4: 参考：CO2調整後排出量（tCO2）（最適化） | DD4: 使用量（千kWh）（電気需要平準化） | DH4: 使用量（千kWh）（電気需要最適化） | DL4: 熱量（GJ）（電気需要平準化） | DP4: 熱量（GJ）（電気需要最適化） | DT4: CO2基礎排出量（tCO2）（電気需要平準化） | DX4: CO2基礎排出量（tCO2）（電気需要最適化） | EB4: 参考：CO2調整後排出量（tCO2）（平準化） | EF4: 参考：CO2調整後排出量（tCO2）（最適化） | EK4: 使用量（千kWh）（電気需要平準化） | EO4: 使用量（千kWh）（電気需要最適化） | ES4: 熱量（GJ）（電気需要平準化） | EW4: 熱量（GJ）（電気需要最適化） | FA4: CO2基礎排出量（tCO2）（電気需要平準化） | FE4: CO2基礎排出量（tCO2）（電気需要最適化） | FI4: 参考：CO2調整後排出量（tCO2）（平準化） | FM4: 参考：CO2調整後排出量（tCO2）（最適化） | FR4: 使用量（千kWh）（電気需要平準化） | FV4: 使用量（千kWh）（電気需要最適化） | FZ4: 熱量（GJ）（電気需要平準化） | GD4: 熱量（GJ）（電気需要最適化） | GH4: CO2基礎排出量（tCO2）（電気需要平準化） | GL4: CO2基礎排出量（tCO2）（電気需要最適化） | GP4: 参考：CO2調整後排出量（tCO2）（平準化） | GT4: 参考：CO2調整後排出量（tCO2）（最適化） | GY4: 使用量（千kWh）（電気需要平準化） | HC4: 使用量（千kWh）（電気需要最適化） | HG4: 熱量（GJ）（電気需要平準化） | HK4: 熱量（GJ）（電気需要最適化） | HO4: CO2基礎排出量（tCO2）（電気需要平準化） | HS4: CO2基礎排出量（tCO2）（電気需要最適化） | HW4: 参考：CO2調整後排出量（tCO2）（平準化） | IA4: 参考：CO2調整後排出量（tCO2）（最適化） | IF4: 使用量（千kWh）（電気需要平準化） | IJ4: 使用量（千kWh）（電気需要最適化） | IN4: 熱量（GJ）（電気需要平準化） | IR4: 熱量（GJ）（電気需要最適化） | IV4: CO2基礎排出量（tCO2）（電気需要平準化） | IZ4: CO2基礎排出量（tCO2）（電気需要最適化） | JD4: 参考：CO2調整後排出量（tCO2）（平準化） | JH4: 参考：CO2調整後排出量（tCO2）（最適化） | JM4: 使用量（千kWh）（電気需要平準化） | JQ4: 使用量（千kWh）（電気需要最適化） | JU4: 熱量（GJ）（電気需要平準化） | JY4: 熱量（GJ）（電気需要最適化） | KC4: CO2基礎排出量（tCO2）（電気需要平準化） | KG4: CO2基礎排出量（tCO2）（電気需要最適化） | KK4: 参考：CO2調整後排出量（tCO2）（平準化） | KO4: 参考：CO2調整後排出量（tCO2）（最適化） | KT4: 使用量（千kWh）（電気需要平準化） | KX4: 使用量（千kWh）（電気需要最適化） | LB4: 熱量（GJ）（電気需要平準化） | LF4: 熱量（GJ）（電気需要最適化） | LJ4: CO2基礎排出量（tCO2）（電気需要平準化） | LN4: CO2基礎排出量（tCO2）（電気需要最適化） | LR4: 参考：CO2調整後排出量（tCO2）（平準化） | LV4: 参考：CO2調整後排出量（tCO2）（最適化） | MA4: 使用量（千kWh）（電気需要平準化） | ME4: 使用量（千kWh）（電気需要最適化） | MI4: 熱量（GJ）（電気需要平準化） | MM4: 熱量（GJ）（電気需要最適化） | MQ4: CO2基礎排出量（tCO2）（電気需要平準化） | MU4: CO2基礎排出量（tCO2）（電気需要最適化） | MY4: 参考：CO2調整後排出量（tCO2）（平準化） | NC4: 参考：CO2調整後排出量（tCO2）（最適化） | NH4: 使用量（千kWh）（電気需要平準化） | NL4: 使用量（千kWh）（電気需要最適化） | NP4: 熱量（GJ）（電気需要平準化） | NT4: 熱量（GJ）（電気需要最適化） | NX4: CO2基礎排出量（tCO2）（電気需要平準化） | OB4: CO2基礎排出量（tCO2）（電気需要最適化） | OF4: 参考：CO2調整後排出量（tCO2）（平準化） | OJ4: 参考：CO2調整後排出量（tCO2）（最適化） | OO4: 使用量（千kWh）（電気需要平準化） | OS4: 使用量（千kWh）（電気需要最適化） | OW4: 熱量（GJ）（電気需要平準化） | PA4: 熱量（GJ）（電気需要最適化） | PE4: CO2基礎排出量（tCO2）（電気需要平準化） | PI4: CO2基礎排出量（tCO2）（電気需要最適化） | PM4: 参考：CO2調整後排出量（tCO2）（平準化） | PQ4: 参考：CO2調整後排出量（tCO2）（最適化）
M5: 買電 | O5: 自家発 | P5: 買電 | R5: 自家発 | S5: 買電 | U5: 自家発 | V5: 買電 | X5: 自家発 | AS5: 小計 | AW5: 小計 | BA5: 小計 | BE5: 小計 | BI5: 小計 | BM5: 小計 | BQ5: 小計 | BU5: 小計 | BZ5: 小計 | CD5: 小計 | CH5: 小計 | CL5: 小計 | CP5: 小計 | CT5: 小計 | CX5: 小計 | DB5: 小計 | DG5: 小計 | DK5: 小計 | DO5: 小計 | DS5: 小計 | DW5: 小計 | EA5: 小計 | EE5: 小計 | EI5: 小計 | EN5: 小計 | ER5: 小計 | EV5: 小計 | EZ5: 小計 | FD5: 小計 | FH5: 小計 | FL5: 小計 | FP5: 小計 | FU5: 小計 | FY5: 小計 | GC5: 小計 | GG5: 小計 | GK5: 小計 | GO5: 小計 | GS5: 小計 | GW5: 小計 | HB5: 小計 | HF5: 小計 | HJ5: 小計 | HN5: 小計 | HR5: 小計 | HV5: 小計 | HZ5: 小計 | ID5: 小計 | II5: 小計 | IM5: 小計 | IQ5: 小計 | IU5: 小計 | IY5: 小計 | JC5: 小計 | JG5: 小計 | JK5: 小計 | JP5: 小計 | JT5: 小計 | JX5: 小計 | KB5: 小計 | KF5: 小計 | KJ5: 小計 | KN5: 小計 | KR5: 小計 | KW5: 小計 | LA5: 小計 | LE5: 小計 | LI5: 小計 | LM5: 小計 | LQ5: 小計 | LU5: 小計 | LY5: 小計 | MD5: 小計 | MH5: 小計 | ML5: 小計 | MP5: 小計 | MT5: 小計 | MX5: 小計 | NB5: 小計 | NF5: 小計 | NK5: 小計 | NO5: 小計 | NS5: 小計 | NW5: 小計 | OA5: 小計 | OE5: 小計 | OI5: 小計 | OM5: 小計 | OR5: 小計 | OV5: 小計 | OZ5: 小計 | PD5: 小計 | PH5: 小計 | PL5: 小計 | PP5: 小計 | PT5: 小計
Y6: 出力制御時間帯 | Z6: 需要が厳しい 時間帯 | AA6: その他の時間帯 | AB6: 小計 | AC6: 出力制御時間帯 | AD6: 需要が厳しい 時間帯 | AE6: その他の時間帯 | AF6: 小計 | AG6: 出力制御時間帯 | AH6: 需要が厳しい 時間帯 | AI6: その他の時間帯 | AJ6: 小計 | AK6: 出力制御時間帯 | AL6: 需要が厳しい 時間帯 | AM6: その他の時間帯 | AN6: 小計 | AP6: 買電 | AT6: 出力制御時間帯 | AU6: 需要が 厳しい 時間帯 | AV6: その他の時間帯 | AX6: 買電 | BB6: 出力制御時間帯 | BC6: 需要が 厳しい 時間帯 | BD6: その他の時間帯 | BF6: 買電 | BJ6: 出力制御時間帯 | BK6: 需要が 厳しい 時間帯 | BL6: その他の時間帯 | BN6: 買電 | BR6: 出力制御時間帯 | BS6: 需要が 厳しい 時間帯 | BT6: その他の時間帯 | BW6: 買電 | CA6: 出力制御時間帯 | CB6: 需要が 厳しい 時間帯 | CC6: その他の時間帯 | CE6: 買電 | CI6: 出力制御時間帯 | CJ6: 需要が 厳しい 時間帯 | CK6: その他の時間帯 | CM6: 買電 | CQ6: 出力制御時間帯 | CR6: 需要が 厳しい 時間帯 | CS6: その他の時間帯 | CU6: 買電 | CY6: 出力制御時間帯 | CZ6: 需要が 厳しい 時間帯 | DA6: その他の時間帯 | DD6: 買電 | DH6: 出力制御時間帯 | DI6: 需要が 厳しい 時間帯 | DJ6: その他の時間帯 | DL6: 買電 | DP6: 出力制御時間帯 | DQ6: 需要が 厳しい 時間帯 | DR6: その他の時間帯 | DT6: 買電 | DX6: 出力制御時間帯 | DY6: 需要が 厳しい 時間帯 | DZ6: その他の時間帯 | EB6: 買電 | EF6: 出力制御時間帯 | EG6: 需要が 厳しい 時間帯 | EH6: その他の時間帯 | EK6: 買電 | EO6: 出力制御時間帯 | EP6: 需要が 厳しい 時間帯 | EQ6: その他の時間帯 | ES6: 買電 | EW6: 出力制御時間帯 | EX6: 需要が 厳しい 時間帯 | EY6: その他の時間帯 | FA6: 買電 | FE6: 出力制御時間帯 | FF6: 需要が 厳しい 時間帯 | FG6: その他の時間帯 | FI6: 買電 | FM6: 出力制御時間帯 | FN6: 需要が 厳しい 時間帯 | FO6: その他の時間帯 | FR6: 買電 | FV6: 出力制御時間帯 | FW6: 需要が 厳しい 時間帯 | FX6: その他の時間帯 | FZ6: 買電 | GD6: 出力制御時間帯 | GE6: 需要が 厳しい 時間帯 | GF6: その他の時間帯 | GH6: 買電 | GL6: 出力制御時間帯 | GM6: 需要が 厳しい 時間帯 | GN6: その他の時間帯 | GP6: 買電 | GT6: 出力制御時間帯 | GU6: 需要が 厳しい 時間帯 | GV6: その他の時間帯 | GY6: 買電 | HC6: 出力制御時間帯 | HD6: 需要が 厳しい 時間帯 | HE6: その他の時間帯 | HG6: 買電 | HK6: 出力制御時間帯 | HL6: 需要が 厳しい 時間帯 | HM6: その他の時間帯 | HO6: 買電 | HS6: 出力制御時間帯 | HT6: 需要が 厳しい 時間帯 | HU6: その他の時間帯 | HW6: 買電 | IA6: 出力制御時間帯 | IB6: 需要が 厳しい 時間帯 | IC6: その他の時間帯 | IF6: 買電 | IJ6: 出力制御時間帯 | IK6: 需要が 厳しい 時間帯 | IL6: その他の時間帯 | IN6: 買電 | IR6: 出力制御時間帯 | IS6: 需要が 厳しい 時間帯 | IT6: その他の時間帯 | IV6: 買電 | IZ6: 出力制御時間帯 | JA6: 需要が 厳しい 時間帯 | JB6: その他の時間帯 | JD6: 買電 | JH6: 出力制御時間帯 | JI6: 需要が 厳しい 時間帯 | JJ6: その他の時間帯 | JM6: 買電 | JQ6: 出力制御時間帯 | JR6: 需要が 厳しい 時間帯 | JS6: その他の時間帯 | JU6: 買電 | JY6: 出力制御時間帯 | JZ6: 需要が 厳しい 時間帯 | KA6: その他の時間帯 | KC6: 買電 | KG6: 出力制御時間帯 | KH6: 需要が 厳しい 時間帯 | KI6: その他の時間帯 | KK6: 買電 | KO6: 出力制御時間帯 | KP6: 需要が 厳しい 時間帯 | KQ6: その他の時間帯 | KT6: 買電 | KX6: 出力制御時間帯 | KY6: 需要が 厳しい 時間帯 | KZ6: その他の時間帯 | LB6: 買電 | LF6: 出力制御時間帯 | LG6: 需要が 厳しい 時間帯 | LH6: その他の時間帯 | LJ6: 買電 | LN6: 出力制御時間帯 | LO6: 需要が 厳しい 時間帯 | LP6: その他の時間帯 | LR6: 買電 | LV6: 出力制御時間帯 | LW6: 需要が 厳しい 時間帯 | LX6: その他の時間帯 | MA6: 買電 | ME6: 出力制御時間帯 | MF6: 需要が 厳しい 時間帯 | MG6: その他の時間帯 | MI6: 買電 | MM6: 出力制御時間帯 | MN6: 需要が 厳しい 時間帯 | MO6: その他の時間帯 | MQ6: 買電 | MU6: 出力制御時間帯 | MV6: 需要が 厳しい 時間帯 | MW6: その他の時間帯 | MY6: 買電 | NC6: 出力制御時間帯 | ND6: 需要が 厳しい 時間帯 | NE6: その他の時間帯 | NH6: 買電 | NL6: 出力制御時間帯 | NM6: 需要が 厳しい 時間帯 | NN6: その他の時間帯 | NP6: 買電 | NT6: 出力制御時間帯 | NU6: 需要が 厳しい 時間帯 | NV6: その他の時間帯 | NX6: 買電 | OB6: 出力制御時間帯 | OC6: 需要が 厳しい 時間帯 | OD6: その他の時間帯 | OF6: 買電 | OJ6: 出力制御時間帯 | OK6: 需要が 厳しい 時間帯 | OL6: その他の時間帯 | OO6: 買電 | OS6: 出力制御時間帯 | OT6: 需要が 厳しい 時間帯 | OU6: その他の時間帯 | OW6: 買電 | PA6: 出力制御時間帯 | PB6: 需要が 厳しい 時間帯 | PC6: その他の時間帯 | PE6: 買電 | PI6: 出力制御時間帯 | PJ6: 需要が 厳しい 時間帯 | PK6: その他の時間帯 | PM6: 買電 | PQ6: 出力制御時間帯 | PR6: 需要が 厳しい 時間帯 | PS6: その他の時間帯
M7: 昼間 | N7: 夜間 | P7: 昼間 | Q7: 夜間 | S7: 昼間 | T7: 夜間 | V7: 昼間 | W7: 夜間 | AR7: 自家発 | AZ7: 自家発 | BH7: 自家発 | BP7: 自家発 | BY7: 自家発 | CG7: 自家発 | CO7: 自家発 | CW7: 自家発 | DF7: 自家発 | DN7: 自家発 | DV7: 自家発 | ED7: 自家発 | EM7: 自家発 | EU7: 自家発 | FC7: 自家発 | FK7: 自家発 | FT7: 自家発 | GB7: 自家発 | GJ7: 自家発 | GR7: 自家発 | HA7: 自家発 | HI7: 自家発 | HQ7: 自家発 | HY7: 自家発 | IH7: 自家発 | IP7: 自家発 | IX7: 自家発 | JF7: 自家発 | JO7: 自家発 | JW7: 自家発 | KE7: 自家発 | KM7: 自家発 | KV7: 自家発 | LD7: 自家発 | LL7: 自家発 | LT7: 自家発 | MC7: 自家発 | MK7: 自家発 | MS7: 自家発 | NA7: 自家発 | NJ7: 自家発 | NR7: 自家発 | NZ7: 自家発 | OH7: 自家発 | OQ7: 自家発 | OY7: 自家発 | PG7: 自家発 | PO7: 自家発
M8: =SUM(M9:M59) -> 0 | N8: =SUM(N9:N59) -> 0 | O8: =SUM(O9:O59) -> 0 | P8: =SUM(P9:P59) -> 0 | Q8: =SUM(Q9:Q59) -> 0 | R8: 0 | S8: 0 | T8: 0 | U8: 0 | V8: 0 | W8: 0 | X8: 0 | Y8: =SUM(Y9:Y59) -> 0 | Z8: =SUM(Z9:Z59) -> 0 | AA8: 0 | AB8: =SUM(Y8:AA8) -> 0 | AC8: 0 | AD8: 0 | AE8: 0 | AF8: =SUM(AC8:AE8) -> 0 | AG8: =SUM(AG9:AG59) -> 0 | AH8: =SUM(AH9:AH59) -> 0 | AI8: =SUM(AI9:AI59) -> 0 | AJ8: =SUM(AG8:AI8) -> 0 | AK8: =SUM(AK9:AK59) -> 0 | AL8: =SUM(AL9:AL59) -> 0 | AM8: =SUM(AM9:AM59) -> 0 | AN8: =SUM(AK8:AM8) -> 0 | AP8: 昼間 | AQ8: 夜間 | AX8: 昼間 | AY8: 夜間 | BF8: 昼間 | BG8: 夜間 | BN8: 昼間 | BO8: 夜間 | BW8: 昼間 | BX8: 夜間 | CE8: 昼間 | CF8: 夜間 | CM8: 昼間 | CN8: 夜間 | CU8: 昼間 | CV8: 夜間 | DD8: 昼間 | DE8: 夜間 | DL8: 昼間 | DM8: 夜間 | DT8: 昼間 | DU8: 夜間 | EB8: 昼間 | EC8: 夜間 | EK8: 昼間 | EL8: 夜間 | ES8: 昼間 | ET8: 夜間 | FA8: 昼間 | FB8: 夜間 | FI8: 昼間 | FJ8: 夜間 | FR8: 昼間 | FS8: 夜間 | FZ8: 昼間 | GA8: 夜間 | GH8: 昼間 | GI8: 夜間 | GP8: 昼間 | GQ8: 夜間 | GY8: 昼間 | GZ8: 夜間 | HG8: 昼間 | HH8: 夜間 | HO8: 昼間 | HP8: 夜間 | HW8: 昼間 | HX8: 夜間 | IF8: 昼間 | IG8: 夜間 | IN8: 昼間 | IO8: 夜間 | IV8: 昼間 | IW8: 夜間 | JD8: 昼間 | JE8: 夜間 | JM8: 昼間 | JN8: 夜間 | JU8: 昼間 | JV8: 夜間 | KC8: 昼間 | KD8: 夜間 | KK8: 昼間 | KL8: 夜間 | KT8: 昼間 | KU8: 夜間 | LB8: 昼間 | LC8: 夜間 | LJ8: 昼間 | LK8: 夜間 | LR8: 昼間 | LS8: 夜間 | MA8: 昼間 | MB8: 夜間 | MI8: 昼間 | MJ8: 夜間 | MQ8: 昼間 | MR8: 夜間 | MY8: 昼間 | MZ8: 夜間 | NH8: 昼間 | NI8: 夜間 | NP8: 昼間 | NQ8: 夜間 | NX8: 昼間 | NY8: 夜間 | OF8: 昼間 | OG8: 夜間 | OO8: 昼間 | OP8: 夜間 | OW8: 昼間 | OX8: 夜間 | PE8: 昼間 | PF8: 夜間 | PM8: 昼間 | PN8: 夜間
I9: =IF(OR($B9="",$E9="非燃料由来の非化石電気（オンサイトPPA含む）以外"),"",IFERROR(VLOOKUP(B9&C9&D9&E9&F9,'熱量換算係数(電気)'!$A$4:$G$24,7,FALSE),"熱量換算係数を入力")) ->  | J9: =IF(OR($B9="",$E9="非燃料由来の非化石電気（オンサイトPPA含む）以外"),"",IFERROR(VLOOKUP($G9,'排出係数(電気)'!$C$10:$D$1258,2,FALSE),IF(F9="化石分","基礎排出係数を入力",0))) ->  | K9: =IF(OR($B9="",$E9="非燃料由来の非化石電気（オンサイトPPA含む）以外"),"",IFERROR(VLOOKUP($G9&H9,'排出係数(電気)'!$A$10:$F$1258,6,FALSE),IF(ISNUMBER($J9)=TRUE,$J9,"調整後排出係数を入力"))) ->  | M9: =AP9+BW9+DD9+EK9+FR9+GY9+IF9+JM9+KT9+MA9+NH9+OO9 -> 0 | N9: =AQ9+BX9+DE9+EL9+FS9+GZ9+IG9+JN9+KU9+MB9+NI9+OP9 -> 0 | O9: =AR9+BY9+CO9+DF9+EM9+FT9+HA9+IH9+JO9+KV9+MC9+NJ9+OQ9 -> 0 | P9: =IF(OR($B9="",$E9="非燃料由来の非化石電気（オンサイトPPA含む）以外"),0,IF($I9<>"熱量換算係数を入力",$I9*M9,"熱量換算係数を入力")) -> 0 | Q9: 0 | R9: 0 | S9: =IF(OR($B9="",$E9="非燃料由来の非化石電気（オンサイトPPA含む）以外"),0,IF($J9<>"基礎排出係数を入力",$J9*M9,"基礎排出係数を入力")) -> 0 | T9: 0 | U9: 0 | V9: =IF(OR($B9="",$E9="非燃料由来の非化石電気（オンサイトPPA含む）以外"),0,IF($K9<>"調整後排出係数を入力",$K9*M9,"調整後排出係数を入力")) -> 0 | W9: =IF(OR($B9="",$E9="非燃料由来の非化石電気（オンサイトPPA含む）以外"),0,IF($K9<>"調整後排出係数を入力",$K9*Q9,"調整後排出係数を入力")) -> 0 | X9: =IF(OR($B9="",$E9="非燃料由来の非化石電気（オンサイトPPA含む）以外"),0,IF($K9<>"調整後排出係数を入力",$K9*R9,"調整後排出係数を入力")) -> 0 | Y9: =SUM(AT9,CA9,DH9,EO9,FV9,HC9,IJ9,JQ9,KX9,ME9,NL9,OS9) -> 0 | Z9: 0 | AA9: 0 | AB9: =SUM(Y9:AA9) -> 0 | AC9: =IF(OR($B9="",$E9="非燃料由来の非化石電気（オンサイトPPA含む）以外"),0,IF($I9<>"熱量換算係数を入力",$I9*Y9,"熱量換算係数を入力")) -> 0 | AD9: 0 | AE9: 0 | AF9: =SUM(AC9:AE9) -> 0 | AG9: =IF(OR($B9="",$E9="非燃料由来の非化石電気（オンサイトPPA含む）以外"),0,IF($J9<>"基礎排出係数を入力",$J9*Y9,"基礎排出係数を入力")) -> 0 | AH9: 0 | AI9: 0 | AJ9: =SUM(AG9:AI9) -> 0 | AK9: =IF(OR($B9="",$E9="非燃料由来の非化石電気（オンサイトPPA含む）以外"),0,IF($K9<>"調整後排出係数を入力",$K9*$Y9,"調整後排出係数を入力")) -> 0 | AL9: =IF(OR($B9="",$E9="非燃料由来の非化石電気（オンサイトPPA含む）以外"),0,IF($K9<>"調整後排出係数を入力",$K9*$Z9,"調整後排出係数を入力")) -> 0 | AM9: =IF(OR($B9="",$E9="非燃料由来の非化石電気（オンサイトPPA含む）以外"),0,IF($K9<>"調整後排出係数を入力",$K9*$AA9,"調整後排出係数を入力")) -> 0 | AN9: =SUM(AK9:AM9) -> 0 | AP9: 0 | AQ9: 0 | AR9: 0 | AS9: =SUM(AP9:AR9) -> 0 | AT9: 0 | AU9: 0 | AV9: 0 | AW9: =SUM(AT9:AV9) -> 0 | AX9: =IF(OR($B9="",$E9="非燃料由来の非化石電気（オンサイトPPA含む）以外"),0,IF($I9<>"熱量換算係数を入力",$I9*AP9,"熱量換算係数を入力")) -> 0 | AY9: 0 | AZ9: 0 | BA9: =SUM(AX9:AZ9) -> 0 | BB9: =IF(OR($B9="",$E9="非燃料由来の非化石電気（オンサイトPPA含む）以外"),0,IF($I9<>"熱量換算係数を入力",$I9*AT9,"熱量換算係数を入力")) -> 0 | BC9: 0 | BD9: 0 | BE9: =SUM(BB9:BD9) -> 0 | BF9: =IF(OR($B9="",$E9="非燃料由来の非化石電気（オンサイトPPA含む）以外"),0,IF($J9<>"基礎排出係数を入力",$J9*AP9,"基礎排出係数を入力")) -> 0 | BG9: 0 | BH9: 0 | BI9: =SUM(BF9:BH9) -> 0 | BJ9: =IF(OR($B9="",$E9="非燃料由来の非化石電気（オンサイトPPA含む）以外"),0,IF($J9<>"基礎排出係数を入力",$J9*AT9,"基礎排出係数を入力")) -> 0 | BK9: =IF(OR($B9="",$E9="非燃料由来の非化石電気（オンサイトPPA含む）以外"),0,IF($K9<>"基礎排出係数を入力",$K9*AU9,"基礎排出係数を入力")) -> 0 | BL9: =IF(OR($B9="",$E9="非燃料由来の非化石電気（オンサイトPPA含む）以外"),0,IF($K9<>"基礎排出係数を入力",$K9*AV9,"基礎排出係数を入力")) -> 0 | BM9: =SUM(BJ9:BL9) -> 0 | BN9: =IF(OR($B9="",$E9="非燃料由来の非化石電気（オンサイトPPA含む）以外"),0,IF($K9<>"調整後排出係数を入力",$K9*AP9,"調整後排出係数を入力")) -> 0 | BO9: =IF(OR($B9="",$E9="非燃料由来の非化石電気（オンサイトPPA含む）以外"),0,IF($J9<>"調整後排出係数を入力",$J9*AY9,"調整後排出係数を入力")) -> 0 | BP9: =IF(OR($B9="",$E9="非燃料由来の非化石電気（オンサイトPPA含む）以外"),0,IF($J9<>"調整後排出係数を入力",$J9*AZ9,"調整後排出係数を入力")) -> 0 | BQ9: =SUM(BN9:BP9) -> 0 | BR9: =IF(OR($B9="",$E9="非燃料由来の非化石電気（オンサイトPPA含む）以外"),0,IF($K9<>"調整後排出係数を入力",$K9*BB9,"調整後排出係数を入力")) -> 0 | BS9: 0 | BT9: 0 | BU9: =SUM(BR9:BT9) -> 0 | BW9: 0 | BX9: 0 | BY9: 0 | BZ9: =SUM(BW9:BY9) -> 0 | CA9: 0 | CB9: 0 | CC9: 0 | CD9: =SUM(CA9:CC9) -> 0 | CE9: =IF(OR($B9="",$E9="非燃料由来の非化石電気（オンサイトPPA含む）以外"),0,IF($I9<>"熱量換算係数を入力",$I9*BW9,"熱量換算係数を入力")) -> 0 | CF9: 0 | CG9: 0 | CH9: =SUM(CE9:CG9) -> 0 | CI9: =IF(OR($B9="",$E9="非燃料由来の非化石電気（オンサイトPPA含む）以外"),0,IF($I9<>"熱量換算係数を入力",$I9*CA9,"熱量換算係数を入力")) -> 0 | CJ9: 0 | CK9: 0 | CL9: =SUM(CI9:CK9) -> 0 | CM9: =IF(OR($B9="",$E9="非燃料由来の非化石電気（オンサイトPPA含む）以外"),0,IF($J9<>"基礎排出係数を入力",$J9*BW9,"基礎排出係数を入力")) -> 0 | CN9: 0 | CO9: 0 | CP9: =SUM(CM9:CO9) -> 0 | CQ9: =IF(OR($B9="",$E9="非燃料由来の非化石電気（オンサイトPPA含む）以外"),0,IF($J9<>"基礎排出係数を入力",$J9*CA9,"基礎排出係数を入力")) -> 0 | CR9: 0 | CS9: 0 | CT9: =SUM(CQ9:CS9) -> 0 | CU9: =IF(OR($B9="",$E9="非燃料由来の非化石電気（オンサイトPPA含む）以外"),0,IF($K9<>"調整後排出係数を入力",$K9*BW9,"調整後排出係数を入力")) -> 0 | CV9: =IF(OR($B9="",$E9="非燃料由来の非化石電気（オンサイトPPA含む）以外"),0,IF($K9<>"調整後排出係数を入力",$K9*CF9,"調整後排出係数を入力")) -> 0 | CW9: =IF(OR($B9="",$E9="非燃料由来の非化石電気（オンサイトPPA含む）以外"),0,IF($K9<>"調整後排出係数を入力",$K9*CG9,"調整後排出係数を入力")) -> 0 | CX9: =SUM(CU9:CW9) -> 0 | CY9: =IF(OR($B9="",$E9="非燃料由来の非化石電気（オンサイトPPA含む）以外"),0,IF($K9<>"調整後排出係数を入力",$K9*CI9,"調整後排出係数を入力")) -> 0 | CZ9: 0 | DA9: 0 | DB9: =SUM(CY9:DA9) -> 0 | DD9: 0 | DE9: 0 | DF9: 0 | DG9: =SUM(DD9:DF9) -> 0 | DH9: 0 | DI9: 0 | DJ9: 0 | DK9: =SUM(DH9:DJ9) -> 0 | DL9: =IF(OR($B9="",$E9="非燃料由来の非化石電気（オンサイトPPA含む）以外"),0,IF($I9<>"熱量換算係数を入力",$I9*DD9,"熱量換算係数を入力")) -> 0 | DM9: 0 | DN9: 0 | DO9: =SUM(DL9:DN9) -> 0 | DP9: =IF(OR($B9="",$E9="非燃料由来の非化石電気（オンサイトPPA含む）以外"),0,IF($I9<>"熱量換算係数を入力",$I9*DH9,"熱量換算係数を入力")) -> 0 | DQ9: 0 | DR9: 0 | DS9: =SUM(DP9:DR9) -> 0 | DT9: =IF(OR($B9="",$E9="非燃料由来の非化石電気（オンサイトPPA含む）以外"),0,IF($J9<>"基礎排出係数を入力",$J9*DD9,"基礎排出係数を入力")) -> 0 | DU9: 0 | DV9: 0 | DW9: =SUM(DT9:DV9) -> 0 | DX9: =IF(OR($B9="",$E9="非燃料由来の非化石電気（オンサイトPPA含む）以外"),0,IF($J9<>"基礎排出係数を入力",$J9*DH9,"基礎排出係数を入力")) -> 0 | DY9: 0 | DZ9: 0 | EA9: =SUM(DX9:DZ9) -> 0 | EB9: =IF(OR($B9="",$E9="非燃料由来の非化石電気（オンサイトPPA含む）以外"),0,IF($K9<>"調整後排出係数を入力",$K9*DD9,"調整後排出係数を入力")) -> 0 | EC9: =IF(OR($B9="",$E9="非燃料由来の非化石電気（オンサイトPPA含む）以外"),0,IF($K9<>"調整後排出係数を入力",$K9*DM9,"調整後排出係数を入力")) -> 0 | ED9: =IF(OR($B9="",$E9="非燃料由来の非化石電気（オンサイトPPA含む）以外"),0,IF($K9<>"調整後排出係数を入力",$K9*DN9,"調整後排出係数を入力")) -> 0 | EE9: =SUM(EB9:ED9) -> 0 | EF9: =IF(OR($B9="",$E9="非燃料由来の非化石電気（オンサイトPPA含む）以外"),0,IF($K9<>"調整後排出係数を入力",$J9*DP9,"調整後排出係数を入力")) -> 0 | EG9: =IF(OR($B9="",$E9="非燃料由来の非化石電気（オンサイトPPA含む）以外"),0,IF($K9<>"調整後排出係数を入力",$K9*DQ9,"調整後排出係数を入力")) -> 0 | EH9: =IF(OR($B9="",$E9="非燃料由来の非化石電気（オンサイトPPA含む）以外"),0,IF($K9<>"調整後排出係数を入力",$K9*DR9,"調整後排出係数を入力")) -> 0 | EI9: =SUM(EF9:EH9) -> 0 | EK9: 0 | EL9: 0 | EM9: 0 | EN9: =SUM(EK9:EM9) -> 0 | EO9: 0 | EP9: 0 | EQ9: 0 | ER9: =SUM(EO9:EQ9) -> 0 | ES9: =IF(OR($B9="",$E9="非燃料由来の非化石電気（オンサイトPPA含む）以外"),0,IF($I9<>"熱量換算係数を入力",1.3*$I9*EK9,"熱量換算係数を入力")) -> 0 | ET9: =IF(OR($B9="",$E9="非燃料由来の非化石電気（オンサイトPPA含む）以外"),0,IF($I9<>"熱量換算係数を入力",$I9*EL9,"熱量換算係数を入力")) -> 0 | EU9: =IF(OR($B9="",$E9="非燃料由来の非化石電気（オンサイトPPA含む）以外"),0,IF($I9<>"熱量換算係数を入力",$I9*EM9,"熱量換算係数を入力")) -> 0 | EV9: =SUM(ES9:EU9) -> 0 | EW9: =IF(OR($B9="",$E9="非燃料由来の非化石電気（オンサイトPPA含む）以外"),0,IF($I9<>"熱量換算係数を入力",$I9*EO9,"熱量換算係数を入力")) -> 0 | EX9: 0 | EY9: 0 | EZ9: =SUM(EW9:EY9) -> 0 | FA9: =IF(OR($B9="",$E9="非燃料由来の非化石電気（オンサイトPPA含む）以外"),0,IF($J9<>"基礎排出係数を入力",$J9*EK9,"基礎排出係数を入力")) -> 0 | FB9: 0 | FC9: 0 | FD9: =SUM(FA9:FC9) -> 0 | FE9: =IF(OR($B9="",$E9="非燃料由来の非化石電気（オンサイトPPA含む）以外"),0,IF($J9<>"基礎排出係数を入力",$J9*EO9,"基礎排出係数を入力")) -> 0 | FF9: 0 | FG9: 0 | FH9: =SUM(FE9:FG9) -> 0 | FI9: =IF(OR($B9="",$E9="非燃料由来の非化石電気（オンサイトPPA含む）以外"),0,IF($K9<>"調整後排出係数を入力",$K9*EK9,"調整後排出係数を入力")) -> 0 | FJ9: =IF(OR($B9="",$E9="非燃料由来の非化石電気（オンサイトPPA含む）以外"),0,IF($K9<>"調整後排出係数を入力",$K9*ET9,"調整後排出係数を入力")) -> 0 | FK9: =IF(OR($B9="",$E9="非燃料由来の非化石電気（オンサイトPPA含む）以外"),0,IF($K9<>"調整後排出係数を入力",$K9*EU9,"調整後排出係数を入力")) -> 0 | FL9: =SUM(FI9:FK9) -> 0 | FM9: =IF(OR($B9="",$E9="非燃料由来の非化石電気（オンサイトPPA含む）以外"),0,IF($K9<>"調整後排出係数を入力",$K9*EW9,"調整後排出係数を入力")) -> 0 | FN9: 0 | FO9: 0 | FP9: =SUM(FM9:FO9) -> 0 | FR9: 0 | FS9: 0 | FT9: 0 | FU9: =SUM(FR9:FT9) -> 0 | FV9: 0 | FW9: 0 | FX9: 0 | FY9: =SUM(FV9:FX9) -> 0 | FZ9: =IF(OR($B9="",$E9="非燃料由来の非化石電気（オンサイトPPA含む）以外"),0,IF($I9<>"熱量換算係数を入力",1.3*$I9*FR9,"熱量換算係数を入力")) -> 0 | GA9: =IF(OR($B9="",$E9="非燃料由来の非化石電気（オンサイトPPA含む）以外"),0,IF($I9<>"熱量換算係数を入力",$I9*FS9,"熱量換算係数を入力")) -> 0 | GB9: =IF(OR($B9="",$E9="非燃料由来の非化石電気（オンサイトPPA含む）以外"),0,IF($I9<>"熱量換算係数を入力",$I9*FT9,"熱量換算係数を入力")) -> 0 | GC9: =SUM(FZ9:GB9) -> 0 | GD9: =IF(OR($B9="",$E9="非燃料由来の非化石電気（オンサイトPPA含む）以外"),0,IF($I9<>"熱量換算係数を入力",$I9*FV9,"熱量換算係数を入力")) -> 0 | GE9: 0 | GF9: 0 | GG9: =SUM(GD9:GF9) -> 0 | GH9: =IF(OR($B9="",$E9="非燃料由来の非化石電気（オンサイトPPA含む）以外"),0,IF($J9<>"基礎排出係数を入力",$J9*FR9,"基礎排出係数を入力")) -> 0 | GI9: 0 | GJ9: 0 | GK9: =SUM(GH9:GJ9) -> 0 | GL9: =IF(OR($B9="",$E9="非燃料由来の非化石電気（オンサイトPPA含む）以外"),0,IF($J9<>"基礎排出係数を入力",$J9*FV9,"基礎排出係数を入力")) -> 0 | GM9: 0 | GN9: 0 | GO9: =SUM(GL9:GN9) -> 0 | GP9: =IF(OR($B9="",$E9="非燃料由来の非化石電気（オンサイトPPA含む）以外"),0,IF($K9<>"調整後排出係数を入力",$K9*FR9,"調整後排出係数を入力")) -> 0 | GQ9: =IF(OR($B9="",$E9="非燃料由来の非化石電気（オンサイトPPA含む）以外"),0,IF($K9<>"調整後排出係数を入力",$K9*GA9,"調整後排出係数を入力")) -> 0 | GR9: =IF(OR($B9="",$E9="非燃料由来の非化石電気（オンサイトPPA含む）以外"),0,IF($K9<>"調整後排出係数を入力",$K9*GB9,"調整後排出係数を入力")) -> 0 | GS9: =SUM(GP9:GR9) -> 0 | GT9: =IF(OR($B9="",$E9="非燃料由来の非化石電気（オンサイトPPA含む）以外"),0,IF($K9<>"調整後排出係数を入力",$K9*GD9,"調整後排出係数を入力")) -> 0 | GU9: 0 | GV9: 0 | GW9: =SUM(GT9:GV9) -> 0 | GY9: 0 | GZ9: 0 | HA9: 0 | HB9: =SUM(GY9:HA9) -> 0 | HC9: 0 | HD9: 0 | HE9: 0 | HF9: =SUM(HC9:HE9) -> 0 | HG9: =IF(OR($B9="",$E9="非燃料由来の非化石電気（オンサイトPPA含む）以外"),0,IF($I9<>"熱量換算係数を入力",1.3*$I9*GY9,"熱量換算係数を入力")) -> 0 | HH9: =IF(OR($B9="",$E9="非燃料由来の非化石電気（オンサイトPPA含む）以外"),0,IF($I9<>"熱量換算係数を入力",$I9*GZ9,"熱量換算係数を入力")) -> 0 | HI9: =IF(OR($B9="",$E9="非燃料由来の非化石電気（オンサイトPPA含む）以外"),0,IF($I9<>"熱量換算係数を入力",$I9*HA9,"熱量換算係数を入力")) -> 0 | HJ9: =SUM(HG9:HI9) -> 0 | HK9: =IF(OR($B9="",$E9="非燃料由来の非化石電気（オンサイトPPA含む）以外"),0,IF($I9<>"熱量換算係数を入力",$I9*HC9,"熱量換算係数を入力")) -> 0 | HL9: 0 | HM9: 0 | HN9: =SUM(HK9:HM9) -> 0 | HO9: =IF(OR($B9="",$E9="非燃料由来の非化石電気（オンサイトPPA含む）以外"),0,IF($J9<>"基礎排出係数を入力",$J9*GY9,"基礎排出係数を入力")) -> 0 | HP9: 0 | HQ9: 0 | HR9: =SUM(HO9:HQ9) -> 0 | HS9: =IF(OR($B9="",$E9="非燃料由来の非化石電気（オンサイトPPA含む）以外"),0,IF($J9<>"基礎排出係数を入力",$J9*HC9,"基礎排出係数を入力")) -> 0 | HT9: 0 | HU9: 0 | HV9: =SUM(HS9:HU9) -> 0 | HW9: =IF(OR($B9="",$E9="非燃料由来の非化石電気（オンサイトPPA含む）以外"),0,IF($K9<>"調整後排出係数を入力",$K9*GY9,"調整後排出係数を入力")) -> 0 | HX9: =IF(OR($B9="",$E9="非燃料由来の非化石電気（オンサイトPPA含む）以外"),0,IF($K9<>"調整後排出係数を入力",$K9*HH9,"調整後排出係数を入力")) -> 0 | HY9: =IF(OR($B9="",$E9="非燃料由来の非化石電気（オンサイトPPA含む）以外"),0,IF($K9<>"調整後排出係数を入力",$K9*HI9,"調整後排出係数を入力")) -> 0 | HZ9: =SUM(HW9:HY9) -> 0 | IA9: =IF(OR($B9="",$E9="非燃料由来の非化石電気（オンサイトPPA含む）以外"),0,IF($K9<>"調整後排出係数を入力",$K9*HK9,"調整後排出係数を入力")) -> 0 | IB9: 0 | IC9: 0 | ID9: =SUM(IA9:IC9) -> 0 | IF9: 0 | IG9: 0 | IH9: 0 | II9: =SUM(IF9:IH9) -> 0 | IJ9: 0 | IK9: 0 | IL9: 0 | IM9: =SUM(IJ9:IL9) -> 0 | IN9: =IF(OR($B9="",$E9="非燃料由来の非化石電気（オンサイトPPA含む）以外"),0,IF($I9<>"熱量換算係数を入力",$I9*IF9,"熱量換算係数を入力")) -> 0 | IO9: 0 | IP9: 0 | IQ9: =SUM(IN9:IP9) -> 0 | IR9: =IF(OR($B9="",$E9="非燃料由来の非化石電気（オンサイトPPA含む）以外"),0,IF($I9<>"熱量換算係数を入力",$I9*IJ9,"熱量換算係数を入力")) -> 0 | IS9: 0 | IT9: 0 | IU9: =SUM(IR9:IT9) -> 0 | IV9: =IF(OR($B9="",$E9="非燃料由来の非化石電気（オンサイトPPA含む）以外"),0,IF($J9<>"基礎排出係数を入力",$J9*IF9,"基礎排出係数を入力")) -> 0 | IW9: 0 | IX9: 0 | IY9: =SUM(IV9:IX9) -> 0 | IZ9: =IF(OR($B9="",$E9="非燃料由来の非化石電気（オンサイトPPA含む）以外"),0,IF($J9<>"基礎排出係数を入力",$J9*IJ9,"基礎排出係数を入力")) -> 0 | JA9: 0 | JB9: 0 | JC9: =SUM(IZ9:JB9) -> 0 | JD9: =IF(OR($B9="",$E9="非燃料由来の非化石電気（オンサイトPPA含む）以外"),0,IF($K9<>"調整後排出係数を入力",$K9*IF9,"調整後排出係数を入力")) -> 0 | JE9: =IF(OR($B9="",$E9="非燃料由来の非化石電気（オンサイトPPA含む）以外"),0,IF($K9<>"調整後排出係数を入力",$K9*IO9,"調整後排出係数を入力")) -> 0 | JF9: =IF(OR($B9="",$E9="非燃料由来の非化石電気（オンサイトPPA含む）以外"),0,IF($K9<>"調整後排出係数を入力",$K9*IP9,"調整後排出係数を入力")) -> 0 | JG9: =SUM(JD9:JF9) -> 0 | JH9: =IF(OR($B9="",$E9="非燃料由来の非化石電気（オンサイトPPA含む）以外"),0,IF($K9<>"調整後排出係数を入力",$K9*IR9,"調整後排出係数を入力")) -> 0 | JI9: 0 | JJ9: 0 | JK9: =SUM(JH9:JJ9) -> 0 | JM9: 0 | JN9: 0 | JO9: 0 | JP9: =SUM(JM9:JO9) -> 0 | JQ9: 0 | JR9: 0 | JS9: 0 | JT9: =SUM(JQ9:JS9) -> 0 | JU9: =IF(OR($B9="",$E9="非燃料由来の非化石電気（オンサイトPPA含む）以外"),0,IF($I9<>"熱量換算係数を入力",$I9*JM9,"熱量換算係数を入力")) -> 0 | JV9: 0 | JW9: 0 | JX9: =SUM(JU9:JW9) -> 0 | JY9: =IF(OR($B9="",$E9="非燃料由来の非化石電気（オンサイトPPA含む）以外"),0,IF($I9<>"熱量換算係数を入力",$I9*JQ9,"熱量換算係数を入力")) -> 0 | JZ9: 0 | KA9: 0 | KB9: =SUM(JY9:KA9) -> 0 | KC9: =IF(OR($B9="",$E9="非燃料由来の非化石電気（オンサイトPPA含む）以外"),0,IF($J9<>"基礎排出係数を入力",$J9*JM9,"基礎排出係数を入力")) -> 0 | KD9: 0 | KE9: 0 | KF9: =SUM(KC9:KE9) -> 0 | KG9: =IF(OR($B9="",$E9="非燃料由来の非化石電気（オンサイトPPA含む）以外"),0,IF($J9<>"基礎排出係数を入力",$J9*JQ9,"基礎排出係数を入力")) -> 0 | KH9: 0 | KI9: 0 | KJ9: =SUM(KG9:KI9) -> 0 | KK9: =IF(OR($B9="",$E9="非燃料由来の非化石電気（オンサイトPPA含む）以外"),0,IF($K9<>"調整後排出係数を入力",$K9*JM9,"調整後排出係数を入力")) -> 0 | KL9: =IF(OR($B9="",$E9="非燃料由来の非化石電気（オンサイトPPA含む）以外"),0,IF($K9<>"調整後排出係数を入力",$K9*JV9,"調整後排出係数を入力")) -> 0 | KM9: =IF(OR($B9="",$E9="非燃料由来の非化石電気（オンサイトPPA含む）以外"),0,IF($K9<>"調整後排出係数を入力",$K9*JW9,"調整後排出係数を入力")) -> 0 | KN9: =SUM(KK9:KM9) -> 0 | KO9: =IF(OR($B9="",$E9="非燃料由来の非化石電気（オンサイトPPA含む）以外"),0,IF($K9<>"調整後排出係数を入力",$K9*JY9,"調整後排出係数を入力")) -> 0 | KP9: 0 | KQ9: 0 | KR9: =SUM(KO9:KQ9) -> 0 | KT9: 0 | KU9: 0 | KV9: 0 | KW9: =SUM(KT9:KV9) -> 0 | KX9: 0 | KY9: 0 | KZ9: 0 | LA9: =SUM(KX9:KZ9) -> 0 | LB9: =IF(OR($B9="",$E9="非燃料由来の非化石電気（オンサイトPPA含む）以外"),0,IF($I9<>"熱量換算係数を入力",1.3*$I9*KT9,"熱量換算係数を入力")) -> 0 | LC9: =IF(OR($B9="",$E9="非燃料由来の非化石電気（オンサイトPPA含む）以外"),0,IF($I9<>"熱量換算係数を入力",$I9*KU9,"熱量換算係数を入力")) -> 0 | LD9: =IF(OR($B9="",$E9="非燃料由来の非化石電気（オンサイトPPA含む）以外"),0,IF($I9<>"熱量換算係数を入力",$I9*KV9,"熱量換算係数を入力")) -> 0 | LE9: =SUM(LB9:LD9) -> 0 | LF9: =IF(OR($B9="",$E9="非燃料由来の非化石電気（オンサイトPPA含む）以外"),0,IF($I9<>"熱量換算係数を入力",$I9*KX9,"熱量換算係数を入力")) -> 0 | LG9: 0 | LH9: 0 | LI9: =SUM(LF9:LH9) -> 0 | LJ9: =IF(OR($B9="",$E9="非燃料由来の非化石電気（オンサイトPPA含む）以外"),0,IF($J9<>"基礎排出係数を入力",$J9*KT9,"基礎排出係数を入力")) -> 0 | LK9: 0 | LL9: 0 | LM9: =SUM(LJ9:LL9) -> 0 | LN9: =IF(OR($B9="",$E9="非燃料由来の非化石電気（オンサイトPPA含む）以外"),0,IF($J9<>"基礎排出係数を入力",$J9*KX9,"基礎排出係数を入力")) -> 0 | LO9: 0 | LP9: 0 | LQ9: =SUM(LN9:LP9) -> 0 | LR9: =IF(OR($B9="",$E9="非燃料由来の非化石電気（オンサイトPPA含む）以外"),0,IF($K9<>"調整後排出係数を入力",$K9*KT9,"調整後排出係数を入力")) -> 0 | LS9: =IF(OR($B9="",$E9="非燃料由来の非化石電気（オンサイトPPA含む）以外"),0,IF($K9<>"調整後排出係数を入力",$K9*LC9,"調整後排出係数を入力")) -> 0 | LT9: =IF(OR($B9="",$E9="非燃料由来の非化石電気（オンサイトPPA含む）以外"),0,IF($K9<>"調整後排出係数を入力",$K9*LD9,"調整後排出係数を入力")) -> 0 | LU9: =SUM(LR9:LT9) -> 0 | LV9: =IF(OR($B9="",$E9="非燃料由来の非化石電気（オンサイトPPA含む）以外"),0,IF($K9<>"調整後排出係数を入力",$K9*LF9,"調整後排出係数を入力")) -> 0 | LW9: 0 | LX9: 0 | LY9: =SUM(LV9:LX9) -> 0 | MA9: 0 | MB9: 0 | MC9: 0 | MD9: =SUM(MA9:MC9) -> 0 | ME9: 0 | MF9: 0 | MG9: 0 | MH9: =SUM(ME9:MG9) -> 0 | MI9: =IF(OR($B9="",$E9="非燃料由来の非化石電気（オンサイトPPA含む）以外"),0,IF($I9<>"熱量換算係数を入力",1.3*$I9*MA9,"熱量換算係数を入力")) -> 0 | MJ9: =IF(OR($B9="",$E9="非燃料由来の非化石電気（オンサイトPPA含む）以外"),0,IF($I9<>"熱量換算係数を入力",$I9*MB9,"熱量換算係数を入力")) -> 0 | MK9: =IF(OR($B9="",$E9="非燃料由来の非化石電気（オンサイトPPA含む）以外"),0,IF($I9<>"熱量換算係数を入力",$I9*MC9,"熱量換算係数を入力")) -> 0 | ML9: =SUM(MI9:MK9) -> 0 | MM9: =IF(OR($B9="",$E9="非燃料由来の非化石電気（オンサイトPPA含む）以外"),0,IF($I9<>"熱量換算係数を入力",$I9*ME9,"熱量換算係数を入力")) -> 0 | MN9: 0 | MO9: 0 | MP9: =SUM(MM9:MO9) -> 0 | MQ9: =IF(OR($B9="",$E9="非燃料由来の非化石電気（オンサイトPPA含む）以外"),0,IF($J9<>"基礎排出係数を入力",$J9*MA9,"基礎排出係数を入力")) -> 0 | MR9: 0 | MS9: 0 | MT9: =SUM(MQ9:MS9) -> 0 | MU9: =IF(OR($B9="",$E9="非燃料由来の非化石電気（オンサイトPPA含む）以外"),0,IF($J9<>"基礎排出係数を入力",$J9*ME9,"基礎排出係数を入力")) -> 0 | MV9: 0 | MW9: 0 | MX9: =SUM(MU9:MW9) -> 0 | MY9: =IF(OR($B9="",$E9="非燃料由来の非化石電気（オンサイトPPA含む）以外"),0,IF($K9<>"調整後排出係数を入力",$K9*MA9,"調整後排出係数を入力")) -> 0 | MZ9: =IF(OR($B9="",$E9="非燃料由来の非化石電気（オンサイトPPA含む）以外"),0,IF($K9<>"調整後排出係数を入力",$K9*MJ9,"調整後排出係数を入力")) -> 0 | NA9: =IF(OR($B9="",$E9="非燃料由来の非化石電気（オンサイトPPA含む）以外"),0,IF($K9<>"調整後排出係数を入力",$K9*MK9,"調整後排出係数を入力")) -> 0 | NB9: =SUM(MY9:NA9) -> 0 | NC9: =IF(OR($B9="",$E9="非燃料由来の非化石電気（オンサイトPPA含む）以外"),0,IF($K9<>"調整後排出係数を入力",$K9*MM9,"調整後排出係数を入力")) -> 0 | ND9: 0 | NE9: 0 | NF9: =SUM(NC9:NE9) -> 0 | NH9: 0 | NI9: 0 | NJ9: 0 | NK9: =SUM(NH9:NJ9) -> 0 | NL9: 0 | NM9: 0 | NN9: 0 | NO9: =SUM(NL9:NN9) -> 0 | NP9: =IF(OR($B9="",$E9="非燃料由来の非化石電気（オンサイトPPA含む）以外"),0,IF($I9<>"熱量換算係数を入力",1.3*$I9*NH9,"熱量換算係数を入力")) -> 0 | NQ9: =IF(OR($B9="",$E9="非燃料由来の非化石電気（オンサイトPPA含む）以外"),0,IF($I9<>"熱量換算係数を入力",$I9*NI9,"熱量換算係数を入力")) -> 0 | NR9: =IF(OR($B9="",$E9="非燃料由来の非化石電気（オンサイトPPA含む）以外"),0,IF($I9<>"熱量換算係数を入力",$I9*NJ9,"熱量換算係数を入力")) -> 0 | NS9: =SUM(NP9:NR9) -> 0 | NT9: =IF(OR($B9="",$E9="非燃料由来の非化石電気（オンサイトPPA含む）以外"),0,IF($I9<>"熱量換算係数を入力",$I9*NL9,"熱量換算係数を入力")) -> 0 | NU9: 0 | NV9: 0 | NW9: =SUM(NT9:NV9) -> 0 | NX9: =IF(OR($B9="",$E9="非燃料由来の非化石電気（オンサイトPPA含む）以外"),0,IF($J9<>"基礎排出係数を入力",$J9*NH9,"基礎排出係数を入力")) -> 0 | NY9: 0 | NZ9: 0 | OA9: =SUM(NX9:NZ9) -> 0 | OB9: =IF(OR($B9="",$E9="非燃料由来の非化石電気（オンサイトPPA含む）以外"),0,IF($J9<>"基礎排出係数を入力",$J9*NL9,"基礎排出係数を入力")) -> 0 | OC9: 0 | OD9: 0 | OE9: =SUM(OB9:OD9) -> 0 | OF9: =IF(OR($B9="",$E9="非燃料由来の非化石電気（オンサイトPPA含む）以外"),0,IF($K9<>"調整後排出係数を入力",$K9*NH9,"調整後排出係数を入力")) -> 0 | OG9: =IF(OR($B9="",$E9="非燃料由来の非化石電気（オンサイトPPA含む）以外"),0,IF($K9<>"調整後排出係数を入力",$K9*NQ9,"調整後排出係数を入力")) -> 0 | OH9: =IF(OR($B9="",$E9="非燃料由来の非化石電気（オンサイトPPA含む）以外"),0,IF($K9<>"調整後排出係数を入力",$K9*NR9,"調整後排出係数を入力")) -> 0 | OI9: =SUM(OF9:OH9) -> 0 | OJ9: =IF(OR($B9="",$E9="非燃料由来の非化石電気（オンサイトPPA含む）以外"),0,IF($K9<>"調整後排出係数を入力",$K9*NT9,"調整後排出係数を入力")) -> 0 | OK9: 0 | OL9: 0 | OM9: =SUM(OJ9:OL9) -> 0 | OO9: 0 | OP9: 0 | OQ9: 0 | OR9: =SUM(OO9:OQ9) -> 0 | OS9: 0 | OT9: 0 | OU9: 0 | OV9: =SUM(OS9:OU9) -> 0 | OW9: =IF(OR($B9="",$E9="非燃料由来の非化石電気（オンサイトPPA含む）以外"),0,IF($I9<>"熱量換算係数を入力",1.3*$I9*OO9,"熱量換算係数を入力")) -> 0 | OX9: =IF(OR($B9="",$E9="非燃料由来の非化石電気（オンサイトPPA含む）以外"),0,IF($I9<>"熱量換算係数を入力",$I9*OP9,"熱量換算係数を入力")) -> 0 | OY9: =IF(OR($B9="",$E9="非燃料由来の非化石電気（オンサイトPPA含む）以外"),0,IF($I9<>"熱量換算係数を入力",$I9*OQ9,"熱量換算係数を入力")) -> 0 | OZ9: =SUM(OW9:OY9) -> 0 | PA9: =IF(OR($B9="",$E9="非燃料由来の非化石電気（オンサイトPPA含む）以外"),0,IF($I9<>"熱量換算係数を入力",$I9*OS9,"熱量換算係数を入力")) -> 0 | PB9: 0 | PC9: 0 | PD9: =SUM(PA9:PC9) -> 0 | PE9: =IF(OR($B9="",$E9="非燃料由来の非化石電気（オンサイトPPA含む）以外"),0,IF($J9<>"基礎排出係数を入力",$J9*OO9,"基礎排出係数を入力")) -> 0 | PF9: 0 | PG9: 0 | PH9: =SUM(PE9:PG9) -> 0 | PI9: =IF(OR($B9="",$E9="非燃料由来の非化石電気（オンサイトPPA含む）以外"),0,IF($J9<>"基礎排出係数を入力",$J9*OS9,"基礎排出係数を入力")) -> 0 | PJ9: 0 | PK9: 0 | PL9: =SUM(PI9:PK9) -> 0 | PM9: =IF(OR($B9="",$E9="非燃料由来の非化石電気（オンサイトPPA含む）以外"),0,IF($K9<>"調整後排出係数を入力",$K9*OO9,"調整後排出係数を入力")) -> 0 | PN9: =IF(OR($B9="",$E9="非燃料由来の非化石電気（オンサイトPPA含む）以外"),0,IF($K9<>"調整後排出係数を入力",$K9*OX9,"調整後排出係数を入力")) -> 0 | PO9: =IF(OR($B9="",$E9="非燃料由来の非化石電気（オンサイトPPA含む）以外"),0,IF($K9<>"調整後排出係数を入力",$K9*OY9,"調整後排出係数を入力")) -> 0 | PP9: =SUM(PM9:PO9) -> 0 | PQ9: =IF(OR($B9="",$E9="非燃料由来の非化石電気（オンサイトPPA含む）以外"),0,IF($K9<>"調整後排出係数を入力",$K9*PA9,"調整後排出係数を入力")) -> 0 | PR9: 0 | PS9: 0 | PT9: =SUM(PQ9:PS9) -> 0
I10: =IF(OR($B10="",$E10="非燃料由来の非化石電気（オンサイトPPA含む）以外"),"",IFERROR(VLOOKUP(B10&C10&D10&E10&F10,'熱量換算係数(電気)'!$A$4:$G$24,7,FALSE),"熱量換算係数を入力")) ->  | J10: =IF(OR($B10="",$E10="非燃料由来の非化石電気（オンサイトPPA含む）以外"),"",IFERROR(VLOOKUP($G10,'排出係数(電気)'!$C$10:$D$1258,2,FALSE),IF(F10="化石分","基礎排出係数を入力",0))) ->  | K10: =IF(OR($B10="",$E10="非燃料由来の非化石電気（オンサイトPPA含む）以外"),"",IFERROR(VLOOKUP($G10&H10,'排出係数(電気)'!$A$10:$F$1258,6,FALSE),IF(ISNUMBER($J10)=TRUE,$J10,"調整後排出係数を入力"))) ->  | M10: =AP10+BW10+DD10+EK10+FR10+GY10+IF10+JM10+KT10+MA10+NH10+OO10 -> 0 | N10: 0 | O10: =AR10+BY10+CO10+DF10+EM10+FT10+HA10+IH10+JO10+KV10+MC10+NJ10+OQ10 -> 0 | P10: 0 | Q10: 0 | R10: 0 | S10: 0 | T10: 0 | U10: 0 | V10: =IF(OR($B10="",$E10="非燃料由来の非化石電気（オンサイトPPA含む）以外"),0,IF($K10<>"調整後排出係数を入力",$K10*M10,"調整後排出係数を入力")) -> 0 | W10: =IF(OR($B10="",$E10="非燃料由来の非化石電気（オンサイトPPA含む）以外"),0,IF($K10<>"調整後排出係数を入力",$K10*Q10,"調整後排出係数を入力")) -> 0 | X10: =IF(OR($B10="",$E10="非燃料由来の非化石電気（オンサイトPPA含む）以外"),0,IF($K10<>"調整後排出係数を入力",$K10*R10,"調整後排出係数を入力")) -> 0 | Y10: 0 | Z10: 0 | AA10: 0 | AB10: =SUM(Y10:AA10) -> 0 | AC10: 0 | AD10: 0 | AE10: 0 | AF10: =SUM(AC10:AE10) -> 0 | AG10: 0 | AH10: 0 | AI10: 0 | AJ10: =SUM(AG10:AI10) -> 0 | AK10: =IF(OR($B10="",$E10="非燃料由来の非化石電気（オンサイトPPA含む）以外"),0,IF($K10<>"調整後排出係数を入力",$K10*$Y10,"調整後排出係数を入力")) -> 0 | AL10: =IF(OR($B10="",$E10="非燃料由来の非化石電気（オンサイトPPA含む）以外"),0,IF($K10<>"調整後排出係数を入力",$K10*$Z10,"調整後排出係数を入力")) -> 0 | AM10: =IF(OR($B10="",$E10="非燃料由来の非化石電気（オンサイトPPA含む）以外"),0,IF($K10<>"調整後排出係数を入力",$K10*$AA10,"調整後排出係数を入力")) -> 0 | AN10: =SUM(AK10:AM10) -> 0 | AP10: 0 | AQ10: 0 | AR10: 0 | AS10: =SUM(AP10:AR10) -> 0 | AT10: 0 | AU10: 0 | AV10: 0 | AW10: =SUM(AT10:AV10) -> 0 | AX10: 0 | AY10: 0 | AZ10: 0 | BA10: =SUM(AX10:AZ10) -> 0 | BB10: 0 | BC10: 0 | BD10: 0 | BE10: =SUM(BB10:BD10) -> 0 | BF10: 0 | BG10: 0 | BH10: 0 | BI10: =SUM(BF10:BH10) -> 0 | BJ10: =IF(OR($B10="",$E10="非燃料由来の非化石電気（オンサイトPPA含む）以外"),0,IF($J10<>"基礎排出係数を入力",$J10*AT10,"基礎排出係数を入力")) -> 0 | BK10: =IF(OR($B10="",$E10="非燃料由来の非化石電気（オンサイトPPA含む）以外"),0,IF($K10<>"基礎排出係数を入力",$K10*AU10,"基礎排出係数を入力")) -> 0 | BL10: =IF(OR($B10="",$E10="非燃料由来の非化石電気（オンサイトPPA含む）以外"),0,IF($K10<>"基礎排出係数を入力",$K10*AV10,"基礎排出係数を入力")) -> 0 | BM10: =SUM(BJ10:BL10) -> 0 | BN10: =IF(OR($B10="",$E10="非燃料由来の非化石電気（オンサイトPPA含む）以外"),0,IF($K10<>"調整後排出係数を入力",$K10*AP10,"調整後排出係数を入力")) -> 0 | BO10: =IF(OR($B10="",$E10="非燃料由来の非化石電気（オンサイトPPA含む）以外"),0,IF($J10<>"調整後排出係数を入力",$J10*AY10,"調整後排出係数を入力")) -> 0 | BP10: =IF(OR($B10="",$E10="非燃料由来の非化石電気（オンサイトPPA含む）以外"),0,IF($J10<>"調整後排出係数を入力",$J10*AZ10,"調整後排出係数を入力")) -> 0 | BQ10: =SUM(BN10:BP10) -> 0 | BR10: 0 | BS10: 0 | BT10: 0 | BU10: =SUM(BR10:BT10) -> 0 | BW10: 0 | BX10: 0 | BY10: 0 | BZ10: =SUM(BW10:BY10) -> 0 | CA10: 0 | CB10: 0 | CC10: 0 | CD10: =SUM(CA10:CC10) -> 0 | CE10: 0 | CF10: 0 | CG10: 0 | CH10: =SUM(CE10:CG10) -> 0 | CI10: 0 | CJ10: 0 | CK10: 0 | CL10: =SUM(CI10:CK10) -> 0 | CM10: 0 | CN10: 0 | CO10: 0 | CP10: =SUM(CM10:CO10) -> 0 | CQ10: 0 | CR10: 0 | CS10: 0 | CT10: =SUM(CQ10:CS10) -> 0 | CU10: =IF(OR($B10="",$E10="非燃料由来の非化石電気（オンサイトPPA含む）以外"),0,IF($K10<>"調整後排出係数を入力",$K10*BW10,"調整後排出係数を入力")) -> 0 | CV10: =IF(OR($B10="",$E10="非燃料由来の非化石電気（オンサイトPPA含む）以外"),0,IF($K10<>"調整後排出係数を入力",$K10*CF10,"調整後排出係数を入力")) -> 0 | CW10: =IF(OR($B10="",$E10="非燃料由来の非化石電気（オンサイトPPA含む）以外"),0,IF($K10<>"調整後排出係数を入力",$K10*CG10,"調整後排出係数を入力")) -> 0 | CX10: =SUM(CU10:CW10) -> 0 | CY10: 0 | CZ10: 0 | DA10: 0 | DB10: =SUM(CY10:DA10) -> 0 | DD10: 0 | DE10: 0 | DF10: 0 | DG10: =SUM(DD10:DF10) -> 0 | DH10: 0 | DI10: 0 | DJ10: 0 | DK10: =SUM(DH10:DJ10) -> 0 | DL10: 0 | DM10: 0 | DN10: 0 | DO10: =SUM(DL10:DN10) -> 0 | DP10: 0 | DQ10: 0 | DR10: 0 | DS10: =SUM(DP10:DR10) -> 0 | DT10: 0 | DU10: 0 | DV10: 0 | DW10: =SUM(DT10:DV10) -> 0 | DX10: 0 | DY10: 0 | DZ10: 0 | EA10: =SUM(DX10:DZ10) -> 0 | EB10: =IF(OR($B10="",$E10="非燃料由来の非化石電気（オンサイトPPA含む）以外"),0,IF($K10<>"調整後排出係数を入力",$K10*DD10,"調整後排出係数を入力")) -> 0 | EC10: =IF(OR($B10="",$E10="非燃料由来の非化石電気（オンサイトPPA含む）以外"),0,IF($K10<>"調整後排出係数を入力",$K10*DM10,"調整後排出係数を入力")) -> 0 | ED10: =IF(OR($B10="",$E10="非燃料由来の非化石電気（オンサイトPPA含む）以外"),0,IF($K10<>"調整後排出係数を入力",$K10*DN10,"調整後排出係数を入力")) -> 0 | EE10: =SUM(EB10:ED10) -> 0 | EF10: =IF(OR($B10="",$E10="非燃料由来の非化石電気（オンサイトPPA含む）以外"),0,IF($K10<>"調整後排出係数を入力",$J10*DP10,"調整後排出係数を入力")) -> 0 | EG10: =IF(OR($B10="",$E10="非燃料由来の非化石電気（オンサイトPPA含む）以外"),0,IF($K10<>"調整後排出係数を入力",$K10*DQ10,"調整後排出係数を入力")) -> 0 | EH10: =IF(OR($B10="",$E10="非燃料由来の非化石電気（オンサイトPPA含む）以外"),0,IF($K10<>"調整後排出係数を入力",$K10*DR10,"調整後排出係数を入力")) -> 0 | EI10: =SUM(EF10:EH10) -> 0 | EK10: 0 | EL10: 0 | EM10: 0 | EN10: =SUM(EK10:EM10) -> 0 | EO10: 0 | EP10: 0 | EQ10: 0 | ER10: =SUM(EO10:EQ10) -> 0 | ES10: =IF(OR($B10="",$E10="非燃料由来の非化石電気（オンサイトPPA含む）以外"),0,IF($I10<>"熱量換算係数を入力",1.3*$I10*EK10,"熱量換算係数を入力")) -> 0 | ET10: =IF(OR($B10="",$E10="非燃料由来の非化石電気（オンサイトPPA含む）以外"),0,IF($I10<>"熱量換算係数を入力",$I10*EL10,"熱量換算係数を入力")) -> 0 | EU10: =IF(OR($B10="",$E10="非燃料由来の非化石電気（オンサイトPPA含む）以外"),0,IF($I10<>"熱量換算係数を入力",$I10*EM10,"熱量換算係数を入力")) -> 0 | EV10: =SUM(ES10:EU10) -> 0 | EW10: 0 | EX10: 0 | EY10: 0 | EZ10: =SUM(EW10:EY10) -> 0 | FA10: 0 | FB10: 0 | FC10: 0 | FD10: =SUM(FA10:FC10) -> 0 | FE10: 0 | FF10: 0 | FG10: 0 | FH10: =SUM(FE10:FG10) -> 0 | FI10: =IF(OR($B10="",$E10="非燃料由来の非化石電気（オンサイトPPA含む）以外"),0,IF($K10<>"調整後排出係数を入力",$K10*EK10,"調整後排出係数を入力")) -> 0 | FJ10: =IF(OR($B10="",$E10="非燃料由来の非化石電気（オンサイトPPA含む）以外"),0,IF($K10<>"調整後排出係数を入力",$K10*ET10,"調整後排出係数を入力")) -> 0 | FK10: =IF(OR($B10="",$E10="非燃料由来の非化石電気（オンサイトPPA含む）以外"),0,IF($K10<>"調整後排出係数を入力",$K10*EU10,"調整後排出係数を入力")) -> 0 | FL10: =SUM(FI10:FK10) -> 0 | FM10: 0 | FN10: 0 | FO10: 0 | FP10: =SUM(FM10:FO10) -> 0 | FR10: 0 | FS10: 0 | FT10: 0 | FU10: =SUM(FR10:FT10) -> 0 | FV10: 0 | FW10: 0 | FX10: 0 | FY10: =SUM(FV10:FX10) -> 0 | FZ10: =IF(OR($B10="",$E10="非燃料由来の非化石電気（オンサイトPPA含む）以外"),0,IF($I10<>"熱量換算係数を入力",1.3*$I10*FR10,"熱量換算係数を入力")) -> 0 | GA10: =IF(OR($B10="",$E10="非燃料由来の非化石電気（オンサイトPPA含む）以外"),0,IF($I10<>"熱量換算係数を入力",$I10*FS10,"熱量換算係数を入力")) -> 0 | GB10: =IF(OR($B10="",$E10="非燃料由来の非化石電気（オンサイトPPA含む）以外"),0,IF($I10<>"熱量換算係数を入力",$I10*FT10,"熱量換算係数を入力")) -> 0 | GC10: =SUM(FZ10:GB10) -> 0 | GD10: 0 | GE10: 0 | GF10: 0 | GG10: =SUM(GD10:GF10) -> 0 | GH10: 0 | GI10: 0 | GJ10: 0 | GK10: =SUM(GH10:GJ10) -> 0 | GL10: 0 | GM10: 0 | GN10: 0 | GO10: =SUM(GL10:GN10) -> 0 | GP10: =IF(OR($B10="",$E10="非燃料由来の非化石電気（オンサイトPPA含む）以外"),0,IF($K10<>"調整後排出係数を入力",$K10*FR10,"調整後排出係数を入力")) -> 0 | GQ10: =IF(OR($B10="",$E10="非燃料由来の非化石電気（オンサイトPPA含む）以外"),0,IF($K10<>"調整後排出係数を入力",$K10*GA10,"調整後排出係数を入力")) -> 0 | GR10: =IF(OR($B10="",$E10="非燃料由来の非化石電気（オンサイトPPA含む）以外"),0,IF($K10<>"調整後排出係数を入力",$K10*GB10,"調整後排出係数を入力")) -> 0 | GS10: =SUM(GP10:GR10) -> 0 | GT10: 0 | GU10: 0 | GV10: 0 | GW10: =SUM(GT10:GV10) -> 0 | GY10: 0 | GZ10: 0 | HA10: 0 | HB10: =SUM(GY10:HA10) -> 0 | HC10: 0 | HD10: 0 | HE10: 0 | HF10: =SUM(HC10:HE10) -> 0 | HG10: =IF(OR($B10="",$E10="非燃料由来の非化石電気（オンサイトPPA含む）以外"),0,IF($I10<>"熱量換算係数を入力",1.3*$I10*GY10,"熱量換算係数を入力")) -> 0 | HH10: =IF(OR($B10="",$E10="非燃料由来の非化石電気（オンサイトPPA含む）以外"),0,IF($I10<>"熱量換算係数を入力",$I10*GZ10,"熱量換算係数を入力")) -> 0 | HI10: =IF(OR($B10="",$E10="非燃料由来の非化石電気（オンサイトPPA含む）以外"),0,IF($I10<>"熱量換算係数を入力",$I10*HA10,"熱量換算係数を入力")) -> 0 | HJ10: =SUM(HG10:HI10) -> 0 | HK10: 0 | HL10: 0 | HM10: 0 | HN10: =SUM(HK10:HM10) -> 0 | HO10: 0 | HP10: 0 | HQ10: 0 | HR10: =SUM(HO10:HQ10) -> 0 | HS10: 0 | HT10: 0 | HU10: 0 | HV10: =SUM(HS10:HU10) -> 0 | HW10: =IF(OR($B10="",$E10="非燃料由来の非化石電気（オンサイトPPA含む）以外"),0,IF($K10<>"調整後排出係数を入力",$K10*GY10,"調整後排出係数を入力")) -> 0 | HX10: =IF(OR($B10="",$E10="非燃料由来の非化石電気（オンサイトPPA含む）以外"),0,IF($K10<>"調整後排出係数を入力",$K10*HH10,"調整後排出係数を入力")) -> 0 | HY10: =IF(OR($B10="",$E10="非燃料由来の非化石電気（オンサイトPPA含む）以外"),0,IF($K10<>"調整後排出係数を入力",$K10*HI10,"調整後排出係数を入力")) -> 0 | HZ10: =SUM(HW10:HY10) -> 0 | IA10: 0 | IB10: 0 | IC10: 0 | ID10: =SUM(IA10:IC10) -> 0 | IF10: 0 | IG10: 0 | IH10: 0 | II10: =SUM(IF10:IH10) -> 0 | IJ10: 0 | IK10: 0 | IL10: 0 | IM10: =SUM(IJ10:IL10) -> 0 | IN10: 0 | IO10: 0 | IP10: 0 | IQ10: =SUM(IN10:IP10) -> 0 | IR10: 0 | IS10: 0 | IT10: 0 | IU10: =SUM(IR10:IT10) -> 0 | IV10: 0 | IW10: 0 | IX10: 0 | IY10: =SUM(IV10:IX10) -> 0 | IZ10: 0 | JA10: 0 | JB10: 0 | JC10: =SUM(IZ10:JB10) -> 0 | JD10: =IF(OR($B10="",$E10="非燃料由来の非化石電気（オンサイトPPA含む）以外"),0,IF($K10<>"調整後排出係数を入力",$K10*IF10,"調整後排出係数を入力")) -> 0 | JE10: =IF(OR($B10="",$E10="非燃料由来の非化石電気（オンサイトPPA含む）以外"),0,IF($K10<>"調整後排出係数を入力",$K10*IO10,"調整後排出係数を入力")) -> 0 | JF10: =IF(OR($B10="",$E10="非燃料由来の非化石電気（オンサイトPPA含む）以外"),0,IF($K10<>"調整後排出係数を入力",$K10*IP10,"調整後排出係数を入力")) -> 0 | JG10: =SUM(JD10:JF10) -> 0 | JH10: 0 | JI10: 0 | JJ10: 0 | JK10: =SUM(JH10:JJ10) -> 0 | JM10: 0 | JN10: 0 | JO10: 0 | JP10: =SUM(JM10:JO10) -> 0 | JQ10: 0 | JR10: 0 | JS10: 0 | JT10: =SUM(JQ10:JS10) -> 0 | JU10: 0 | JV10: 0 | JW10: 0 | JX10: =SUM(JU10:JW10) -> 0 | JY10: 0 | JZ10: 0 | KA10: 0 | KB10: =SUM(JY10:KA10) -> 0 | KC10: 0 | KD10: 0 | KE10: 0 | KF10: =SUM(KC10:KE10) -> 0 | KG10: 0 | KH10: 0 | KI10: 0 | KJ10: =SUM(KG10:KI10) -> 0 | KK10: =IF(OR($B10="",$E10="非燃料由来の非化石電気（オンサイトPPA含む）以外"),0,IF($K10<>"調整後排出係数を入力",$K10*JM10,"調整後排出係数を入力")) -> 0 | KL10: =IF(OR($B10="",$E10="非燃料由来の非化石電気（オンサイトPPA含む）以外"),0,IF($K10<>"調整後排出係数を入力",$K10*JV10,"調整後排出係数を入力")) -> 0 | KM10: =IF(OR($B10="",$E10="非燃料由来の非化石電気（オンサイトPPA含む）以外"),0,IF($K10<>"調整後排出係数を入力",$K10*JW10,"調整後排出係数を入力")) -> 0 | KN10: =SUM(KK10:KM10) -> 0 | KO10: 0 | KP10: 0 | KQ10: 0 | KR10: =SUM(KO10:KQ10) -> 0 | KT10: 0 | KU10: 0 | KV10: 0 | KW10: =SUM(KT10:KV10) -> 0 | KX10: 0 | KY10: 0 | KZ10: 0 | LA10: =SUM(KX10:KZ10) -> 0 | LB10: =IF(OR($B10="",$E10="非燃料由来の非化石電気（オンサイトPPA含む）以外"),0,IF($I10<>"熱量換算係数を入力",1.3*$I10*KT10,"熱量換算係数を入力")) -> 0 | LC10: =IF(OR($B10="",$E10="非燃料由来の非化石電気（オンサイトPPA含む）以外"),0,IF($I10<>"熱量換算係数を入力",$I10*KU10,"熱量換算係数を入力")) -> 0 | LD10: =IF(OR($B10="",$E10="非燃料由来の非化石電気（オンサイトPPA含む）以外"),0,IF($I10<>"熱量換算係数を入力",$I10*KV10,"熱量換算係数を入力")) -> 0 | LE10: =SUM(LB10:LD10) -> 0 | LF10: 0 | LG10: 0 | LH10: 0 | LI10: =SUM(LF10:LH10) -> 0 | LJ10: 0 | LK10: 0 | LL10: 0 | LM10: =SUM(LJ10:LL10) -> 0 | LN10: 0 | LO10: 0 | LP10: 0 | LQ10: =SUM(LN10:LP10) -> 0 | LR10: =IF(OR($B10="",$E10="非燃料由来の非化石電気（オンサイトPPA含む）以外"),0,IF($K10<>"調整後排出係数を入力",$K10*KT10,"調整後排出係数を入力")) -> 0 | LS10: =IF(OR($B10="",$E10="非燃料由来の非化石電気（オンサイトPPA含む）以外"),0,IF($K10<>"調整後排出係数を入力",$K10*LC10,"調整後排出係数を入力")) -> 0 | LT10: =IF(OR($B10="",$E10="非燃料由来の非化石電気（オンサイトPPA含む）以外"),0,IF($K10<>"調整後排出係数を入力",$K10*LD10,"調整後排出係数を入力")) -> 0 | LU10: =SUM(LR10:LT10) -> 0 | LV10: 0 | LW10: 0 | LX10: 0 | LY10: =SUM(LV10:LX10) -> 0 | MA10: 0 | MB10: 0 | MC10: 0 | MD10: =SUM(MA10:MC10) -> 0 | ME10: 0 | MF10: 0 | MG10: 0 | MH10: =SUM(ME10:MG10) -> 0 | MI10: =IF(OR($B10="",$E10="非燃料由来の非化石電気（オンサイトPPA含む）以外"),0,IF($I10<>"熱量換算係数を入力",1.3*$I10*MA10,"熱量換算係数を入力")) -> 0 | MJ10: =IF(OR($B10="",$E10="非燃料由来の非化石電気（オンサイトPPA含む）以外"),0,IF($I10<>"熱量換算係数を入力",$I10*MB10,"熱量換算係数を入力")) -> 0 | MK10: =IF(OR($B10="",$E10="非燃料由来の非化石電気（オンサイトPPA含む）以外"),0,IF($I10<>"熱量換算係数を入力",$I10*MC10,"熱量換算係数を入力")) -> 0 | ML10: =SUM(MI10:MK10) -> 0 | MM10: 0 | MN10: 0 | MO10: 0 | MP10: =SUM(MM10:MO10) -> 0 | MQ10: 0 | MR10: 0 | MS10: 0 | MT10: =SUM(MQ10:MS10) -> 0 | MU10: 0 | MV10: 0 | MW10: 0 | MX10: =SUM(MU10:MW10) -> 0 | MY10: =IF(OR($B10="",$E10="非燃料由来の非化石電気（オンサイトPPA含む）以外"),0,IF($K10<>"調整後排出係数を入力",$K10*MA10,"調整後排出係数を入力")) -> 0 | MZ10: =IF(OR($B10="",$E10="非燃料由来の非化石電気（オンサイトPPA含む）以外"),0,IF($K10<>"調整後排出係数を入力",$K10*MJ10,"調整後排出係数を入力")) -> 0 | NA10: =IF(OR($B10="",$E10="非燃料由来の非化石電気（オンサイトPPA含む）以外"),0,IF($K10<>"調整後排出係数を入力",$K10*MK10,"調整後排出係数を入力")) -> 0 | NB10: =SUM(MY10:NA10) -> 0 | NC10: 0 | ND10: 0 | NE10: 0 | NF10: =SUM(NC10:NE10) -> 0 | NH10: 0 | NI10: 0 | NJ10: 0 | NK10: =SUM(NH10:NJ10) -> 0 | NL10: 0 | NM10: 0 | NN10: 0 | NO10: =SUM(NL10:NN10) -> 0 | NP10: =IF(OR($B10="",$E10="非燃料由来の非化石電気（オンサイトPPA含む）以外"),0,IF($I10<>"熱量換算係数を入力",1.3*$I10*NH10,"熱量換算係数を入力")) -> 0 | NQ10: =IF(OR($B10="",$E10="非燃料由来の非化石電気（オンサイトPPA含む）以外"),0,IF($I10<>"熱量換算係数を入力",$I10*NI10,"熱量換算係数を入力")) -> 0 | NR10: =IF(OR($B10="",$E10="非燃料由来の非化石電気（オンサイトPPA含む）以外"),0,IF($I10<>"熱量換算係数を入力",$I10*NJ10,"熱量換算係数を入力")) -> 0 | NS10: =SUM(NP10:NR10) -> 0 | NT10: 0 | NU10: 0 | NV10: 0 | NW10: =SUM(NT10:NV10) -> 0 | NX10: 0 | NY10: 0 | NZ10: 0 | OA10: =SUM(NX10:NZ10) -> 0 | OB10: 0 | OC10: 0 | OD10: 0 | OE10: =SUM(OB10:OD10) -> 0 | OF10: =IF(OR($B10="",$E10="非燃料由来の非化石電気（オンサイトPPA含む）以外"),0,IF($K10<>"調整後排出係数を入力",$K10*NH10,"調整後排出係数を入力")) -> 0 | OG10: =IF(OR($B10="",$E10="非燃料由来の非化石電気（オンサイトPPA含む）以外"),0,IF($K10<>"調整後排出係数を入力",$K10*NQ10,"調整後排出係数を入力")) -> 0 | OH10: =IF(OR($B10="",$E10="非燃料由来の非化石電気（オンサイトPPA含む）以外"),0,IF($K10<>"調整後排出係数を入力",$K10*NR10,"調整後排出係数を入力")) -> 0 | OI10: =SUM(OF10:OH10) -> 0 | OJ10: 0 | OK10: 0 | OL10: 0 | OM10: =SUM(OJ10:OL10) -> 0 | OO10: 0 | OP10: 0 | OQ10: 0 | OR10: =SUM(OO10:OQ10) -> 0 | OS10: 0 | OT10: 0 | OU10: 0 | OV10: =SUM(OS10:OU10) -> 0 | OW10: =IF(OR($B10="",$E10="非燃料由来の非化石電気（オンサイトPPA含む）以外"),0,IF($I10<>"熱量換算係数を入力",1.3*$I10*OO10,"熱量換算係数を入力")) -> 0 | OX10: =IF(OR($B10="",$E10="非燃料由来の非化石電気（オンサイトPPA含む）以外"),0,IF($I10<>"熱量換算係数を入力",$I10*OP10,"熱量換算係数を入力")) -> 0 | OY10: =IF(OR($B10="",$E10="非燃料由来の非化石電気（オンサイトPPA含む）以外"),0,IF($I10<>"熱量換算係数を入力",$I10*OQ10,"熱量換算係数を入力")) -> 0 | OZ10: =SUM(OW10:OY10) -> 0 | PA10: 0 | PB10: 0 | PC10: 0 | PD10: =SUM(PA10:PC10) -> 0 | PE10: 0 | PF10: 0 | PG10: 0 | PH10: =SUM(PE10:PG10) -> 0 | PI10: 0 | PJ10: 0 | PK10: 0 | PL10: =SUM(PI10:PK10) -> 0 | PM10: =IF(OR($B10="",$E10="非燃料由来の非化石電気（オンサイトPPA含む）以外"),0,IF($K10<>"調整後排出係数を入力",$K10*OO10,"調整後排出係数を入力")) -> 0 | PN10: =IF(OR($B10="",$E10="非燃料由来の非化石電気（オンサイトPPA含む）以外"),0,IF($K10<>"調整後排出係数を入力",$K10*OX10,"調整後排出係数を入力")) -> 0 | PO10: =IF(OR($B10="",$E10="非燃料由来の非化石電気（オンサイトPPA含む）以外"),0,IF($K10<>"調整後排出係数を入力",$K10*OY10,"調整後排出係数を入力")) -> 0 | PP10: =SUM(PM10:PO10) -> 0 | PQ10: 0 | PR10: 0 | PS10: 0 | PT10: =SUM(PQ10:PS10) -> 0
I11: =IF(OR($B11="",$E11="非燃料由来の非化石電気（オンサイトPPA含む）以外"),"",IFERROR(VLOOKUP(B11&C11&D11&E11&F11,'熱量換算係数(電気)'!$A$4:$G$24,7,FALSE),"熱量換算係数を入力")) ->  | J11: =IF(OR($B11="",$E11="非燃料由来の非化石電気（オンサイトPPA含む）以外"),"",IFERROR(VLOOKUP($G11,'排出係数(電気)'!$C$10:$D$1258,2,FALSE),IF(F11="化石分","基礎排出係数を入力",0))) ->  | K11: =IF(OR($B11="",$E11="非燃料由来の非化石電気（オンサイトPPA含む）以外"),"",IFERROR(VLOOKUP($G11&H11,'排出係数(電気)'!$A$10:$F$1258,6,FALSE),IF(ISNUMBER($J11)=TRUE,$J11,"調整後排出係数を入力"))) ->  | M11: 0 | N11: 0 | O11: 0 | P11: =IF(OR($B11="",$E11="非燃料由来の非化石電気（オンサイトPPA含む）以外"),0,IF($I11<>"熱量換算係数を入力",$I11*M11,"熱量換算係数を入力")) -> 0 | Q11: =IF(OR($B11="",$E11="非燃料由来の非化石電気（オンサイトPPA含む）以外"),0,IF($I11<>"熱量換算係数を入力",$I11*N11,"熱量換算係数を入力")) -> 0 | R11: =IF(OR($B11="",$E11="非燃料由来の非化石電気（オンサイトPPA含む）以外"),0,IF($I11<>"熱量換算係数を入力",$I11*O11,"熱量換算係数を入力")) -> 0 | S11: =IF(OR($B11="",$E11="非燃料由来の非化石電気（オンサイトPPA含む）以外"),0,IF($J11<>"基礎排出係数を入力",$J11*M11,"基礎排出係数を入力")) -> 0 | T11: =IF(OR($B11="",$E11="非燃料由来の非化石電気（オンサイトPPA含む）以外"),0,IF($J11<>"基礎排出係数を入力",$J11*N11,"基礎排出係数を入力")) -> 0 | U11: =IF(OR($B11="",$E11="非燃料由来の非化石電気（オンサイトPPA含む）以外"),0,IF($J11<>"基礎排出係数を入力",$J11*O11,"基礎排出係数を入力")) -> 0 | V11: =IF(OR($B11="",$E11="非燃料由来の非化石電気（オンサイトPPA含む）以外"),0,IF($K11<>"調整後排出係数を入力",$K11*M11,"調整後排出係数を入力")) -> 0 | W11: =IF(OR($B11="",$E11="非燃料由来の非化石電気（オンサイトPPA含む）以外"),0,IF($K11<>"調整後排出係数を入力",$K11*Q11,"調整後排出係数を入力")) -> 0 | X11: =IF(OR($B11="",$E11="非燃料由来の非化石電気（オンサイトPPA含む）以外"),0,IF($K11<>"調整後排出係数を入力",$K11*R11,"調整後排出係数を入力")) -> 0 | Y11: =SUM(AT11,CA11,DH11,EO11,FV11,HC11,IJ11,JQ11,KX11,ME11,NL11,OS11) -> 0 | Z11: =SUM(AU11,CB11,DI11,EP11,FW11,HD11,IK11,JR11,KY11,MF11,NM11,OT11) -> 0 | AA11: =SUM(AV11,CC11,DJ11,EQ11,FX11,HE11,IL11,JS11,KZ11,MG11,NN11,OU11) -> 0 | AB11: =SUM(Y11:AA11) -> 0 | AC11: =IF(OR($B11="",$E11="非燃料由来の非化石電気（オンサイトPPA含む）以外"),0,IF($I11<>"熱量換算係数を入力",$I11*Y11,"熱量換算係数を入力")) -> 0 | AD11: =IF(OR($B11="",$E11="非燃料由来の非化石電気（オンサイトPPA含む）以外"),0,IF($I11<>"熱量換算係数を入力",$I11*Z11,"熱量換算係数を入力")) -> 0 | AE11: =IF(OR($B11="",$E11="非燃料由来の非化石電気（オンサイトPPA含む）以外"),0,IF($I11<>"熱量換算係数を入力",$I11*AA11,"熱量換算係数を入力")) -> 0 | AF11: =SUM(AC11:AE11) -> 0 | AG11: =IF(OR($B11="",$E11="非燃料由来の非化石電気（オンサイトPPA含む）以外"),0,IF($J11<>"基礎排出係数を入力",$J11*Y11,"基礎排出係数を入力")) -> 0 | AH11: =IF(OR($B11="",$E11="非燃料由来の非化石電気（オンサイトPPA含む）以外"),0,IF($J11<>"基礎排出係数を入力",$J11*Z11,"基礎排出係数を入力")) -> 0 | AI11: =IF(OR($B11="",$E11="非燃料由来の非化石電気（オンサイトPPA含む）以外"),0,IF($J11<>"基礎排出係数を入力",$J11*AA11,"基礎排出係数を入力")) -> 0 | AJ11: =SUM(AG11:AI11) -> 0 | AK11: =IF(OR($B11="",$E11="非燃料由来の非化石電気（オンサイトPPA含む）以外"),0,IF($K11<>"調整後排出係数を入力",$K11*$Y11,"調整後排出係数を入力")) -> 0 | AL11: =IF(OR($B11="",$E11="非燃料由来の非化石電気（オンサイトPPA含む）以外"),0,IF($K11<>"調整後排出係数を入力",$K11*$Z11,"調整後排出係数を入力")) -> 0 | AM11: =IF(OR($B11="",$E11="非燃料由来の非化石電気（オンサイトPPA含む）以外"),0,IF($K11<>"調整後排出係数を入力",$K11*$AA11,"調整後排出係数を入力")) -> 0 | AN11: =SUM(AK11:AM11) -> 0 | AP11: 0 | AQ11: 0 | AR11: 0 | AS11: =SUM(AP11:AR11) -> 0 | AT11: 0 | AU11: 0 | AV11: 0 | AW11: =SUM(AT11:AV11) -> 0 | AX11: =IF(OR($B11="",$E11="非燃料由来の非化石電気（オンサイトPPA含む）以外"),0,IF($I11<>"熱量換算係数を入力",$I11*AP11,"熱量換算係数を入力")) -> 0 | AY11: =IF(OR($B11="",$E11="非燃料由来の非化石電気（オンサイトPPA含む）以外"),0,IF($I11<>"熱量換算係数を入力",$I11*AQ11,"熱量換算係数を入力")) -> 0 | AZ11: =IF(OR($B11="",$E11="非燃料由来の非化石電気（オンサイトPPA含む）以外"),0,IF($I11<>"熱量換算係数を入力",$I11*AR11,"熱量換算係数を入力")) -> 0 | BA11: =SUM(AX11:AZ11) -> 0 | BB11: =IF(OR($B11="",$E11="非燃料由来の非化石電気（オンサイトPPA含む）以外"),0,IF($I11<>"熱量換算係数を入力",$I11*AT11,"熱量換算係数を入力")) -> 0 | BC11: =IF(OR($B11="",$E11="非燃料由来の非化石電気（オンサイトPPA含む）以外"),0,IF($I11<>"熱量換算係数を入力",$I11*AU11,"熱量換算係数を入力")) -> 0 | BD11: =IF(OR($B11="",$E11="非燃料由来の非化石電気（オンサイトPPA含む）以外"),0,IF($I11<>"熱量換算係数を入力",$I11*AV11,"熱量換算係数を入力")) -> 0 | BE11: =SUM(BB11:BD11) -> 0 | BF11: =IF(OR($B11="",$E11="非燃料由来の非化石電気（オンサイトPPA含む）以外"),0,IF($J11<>"基礎排出係数を入力",$J11*AP11,"基礎排出係数を入力")) -> 0 | BG11: =IF(OR($B11="",$E11="非燃料由来の非化石電気（オンサイトPPA含む）以外"),0,IF($J11<>"基礎排出係数を入力",$J11*AQ11,"基礎排出係数を入力")) -> 0 | BH11: =IF(OR($B11="",$E11="非燃料由来の非化石電気（オンサイトPPA含む）以外"),0,IF($J11<>"基礎排出係数を入力",$J11*AR11,"基礎排出係数を入力")) -> 0 | BI11: =SUM(BF11:BH11) -> 0 | BJ11: =IF(OR($B11="",$E11="非燃料由来の非化石電気（オンサイトPPA含む）以外"),0,IF($J11<>"基礎排出係数を入力",$J11*AT11,"基礎排出係数を入力")) -> 0 | BK11: 0 | BL11: 0 | BM11: =SUM(BJ11:BL11) -> 0 | BN11: =IF(OR($B11="",$E11="非燃料由来の非化石電気（オンサイトPPA含む）以外"),0,IF($K11<>"調整後排出係数を入力",$K11*AP11,"調整後排出係数を入力")) -> 0 | BO11: =IF(OR($B11="",$E11="非燃料由来の非化石電気（オンサイトPPA含む）以外"),0,IF($J11<>"調整後排出係数を入力",$J11*AY11,"調整後排出係数を入力")) -> 0 | BP11: =IF(OR($B11="",$E11="非燃料由来の非化石電気（オンサイトPPA含む）以外"),0,IF($J11<>"調整後排出係数を入力",$J11*AZ11,"調整後排出係数を入力")) -> 0 | BQ11: =SUM(BN11:BP11) -> 0 | BR11: =IF(OR($B11="",$E11="非燃料由来の非化石電気（オンサイトPPA含む）以外"),0,IF($K11<>"調整後排出係数を入力",$K11*BB11,"調整後排出係数を入力")) -> 0 | BS11: =IF(OR($B11="",$E11="非燃料由来の非化石電気（オンサイトPPA含む）以外"),0,IF($K11<>"調整後排出係数を入力",$K11*BC11,"調整後排出係数を入力")) -> 0 | BT11: =IF(OR($B11="",$E11="非燃料由来の非化石電気（オンサイトPPA含む）以外"),0,IF($K11<>"調整後排出係数を入力",$K11*BD11,"調整後排出係数を入力")) -> 0 | BU11: =SUM(BR11:BT11) -> 0 | BW11: 0 | BX11: 0 | BY11: 0 | BZ11: =SUM(BW11:BY11) -> 0 | CA11: 0 | CB11: 0 | CC11: 0 | CD11: =SUM(CA11:CC11) -> 0 | CE11: =IF(OR($B11="",$E11="非燃料由来の非化石電気（オンサイトPPA含む）以外"),0,IF($I11<>"熱量換算係数を入力",$I11*BW11,"熱量換算係数を入力")) -> 0 | CF11: =IF(OR($B11="",$E11="非燃料由来の非化石電気（オンサイトPPA含む）以外"),0,IF($I11<>"熱量換算係数を入力",$I11*BX11,"熱量換算係数を入力")) -> 0 | CG11: =IF(OR($B11="",$E11="非燃料由来の非化石電気（オンサイトPPA含む）以外"),0,IF($I11<>"熱量換算係数を入力",$I11*BY11,"熱量換算係数を入力")) -> 0 | CH11: =SUM(CE11:CG11) -> 0 | CI11: =IF(OR($B11="",$E11="非燃料由来の非化石電気（オンサイトPPA含む）以外"),0,IF($I11<>"熱量換算係数を入力",$I11*CA11,"熱量換算係数を入力")) -> 0 | CJ11: =IF(OR($B11="",$E11="非燃料由来の非化石電気（オンサイトPPA含む）以外"),0,IF($I11<>"熱量換算係数を入力",$I11*CB11,"熱量換算係数を入力")) -> 0 | CK11: =IF(OR($B11="",$E11="非燃料由来の非化石電気（オンサイトPPA含む）以外"),0,IF($I11<>"熱量換算係数を入力",$I11*CC11,"熱量換算係数を入力")) -> 0 | CL11: =SUM(CI11:CK11) -> 0 | CM11: =IF(OR($B11="",$E11="非燃料由来の非化石電気（オンサイトPPA含む）以外"),0,IF($J11<>"基礎排出係数を入力",$J11*BW11,"基礎排出係数を入力")) -> 0 | CN11: =IF(OR($B11="",$E11="非燃料由来の非化石電気（オンサイトPPA含む）以外"),0,IF($J11<>"基礎排出係数を入力",$J11*BX11,"基礎排出係数を入力")) -> 0 | CO11: =IF(OR($B11="",$E11="非燃料由来の非化石電気（オンサイトPPA含む）以外"),0,IF($J11<>"基礎排出係数を入力",$J11*BY11,"基礎排出係数を入力")) -> 0 | CP11: =SUM(CM11:CO11) -> 0 | CQ11: =IF(OR($B11="",$E11="非燃料由来の非化石電気（オンサイトPPA含む）以外"),0,IF($J11<>"基礎排出係数を入力",$J11*CA11,"基礎排出係数を入力")) -> 0 | CR11: =IF(OR($B11="",$E11="非燃料由来の非化石電気（オンサイトPPA含む）以外"),0,IF($J11<>"基礎排出係数を入力",$J11*CB11,"基礎排出係数を入力")) -> 0 | CS11: =IF(OR($B11="",$E11="非燃料由来の非化石電気（オンサイトPPA含む）以外"),0,IF($J11<>"基礎排出係数を入力",$J11*CC11,"基礎排出係数を入力")) -> 0 | CT11: =SUM(CQ11:CS11) -> 0 | CU11: =IF(OR($B11="",$E11="非燃料由来の非化石電気（オンサイトPPA含む）以外"),0,IF($K11<>"調整後排出係数を入力",$K11*BW11,"調整後排出係数を入力")) -> 0 | CV11: =IF(OR($B11="",$E11="非燃料由来の非化石電気（オンサイトPPA含む）以外"),0,IF($K11<>"調整後排出係数を入力",$K11*CF11,"調整後排出係数を入力")) -> 0 | CW11: =IF(OR($B11="",$E11="非燃料由来の非化石電気（オンサイトPPA含む）以外"),0,IF($K11<>"調整後排出係数を入力",$K11*CG11,"調整後排出係数を入力")) -> 0 | CX11: =SUM(CU11:CW11) -> 0 | CY11: =IF(OR($B11="",$E11="非燃料由来の非化石電気（オンサイトPPA含む）以外"),0,IF($K11<>"調整後排出係数を入力",$K11*CI11,"調整後排出係数を入力")) -> 0 | CZ11: =IF(OR($B11="",$E11="非燃料由来の非化石電気（オンサイトPPA含む）以外"),0,IF($K11<>"調整後排出係数を入力",$K11*CJ11,"調整後排出係数を入力")) -> 0 | DA11: =IF(OR($B11="",$E11="非燃料由来の非化石電気（オンサイトPPA含む）以外"),0,IF($K11<>"調整後排出係数を入力",$K11*CK11,"調整後排出係数を入力")) -> 0 | DB11: =SUM(CY11:DA11) -> 0 | DD11: 0 | DE11: 0 | DF11: 0 | DG11: =SUM(DD11:DF11) -> 0 | DH11: 0 | DI11: 0 | DJ11: 0 | DK11: =SUM(DH11:DJ11) -> 0 | DL11: =IF(OR($B11="",$E11="非燃料由来の非化石電気（オンサイトPPA含む）以外"),0,IF($I11<>"熱量換算係数を入力",$I11*DD11,"熱量換算係数を入力")) -> 0 | DM11: =IF(OR($B11="",$E11="非燃料由来の非化石電気（オンサイトPPA含む）以外"),0,IF($I11<>"熱量換算係数を入力",$I11*DE11,"熱量換算係数を入力")) -> 0 | DN11: =IF(OR($B11="",$E11="非燃料由来の非化石電気（オンサイトPPA含む）以外"),0,IF($I11<>"熱量換算係数を入力",$I11*DF11,"熱量換算係数を入力")) -> 0 | DO11: =SUM(DL11:DN11) -> 0 | DP11: =IF(OR($B11="",$E11="非燃料由来の非化石電気（オンサイトPPA含む）以外"),0,IF($I11<>"熱量換算係数を入力",$I11*DH11,"熱量換算係数を入力")) -> 0 | DQ11: =IF(OR($B11="",$E11="非燃料由来の非化石電気（オンサイトPPA含む）以外"),0,IF($I11<>"熱量換算係数を入力",$I11*DI11,"熱量換算係数を入力")) -> 0 | DR11: =IF(OR($B11="",$E11="非燃料由来の非化石電気（オンサイトPPA含む）以外"),0,IF($I11<>"熱量換算係数を入力",$I11*DJ11,"熱量換算係数を入力")) -> 0 | DS11: =SUM(DP11:DR11) -> 0 | DT11: =IF(OR($B11="",$E11="非燃料由来の非化石電気（オンサイトPPA含む）以外"),0,IF($J11<>"基礎排出係数を入力",$J11*DD11,"基礎排出係数を入力")) -> 0 | DU11: =IF(OR($B11="",$E11="非燃料由来の非化石電気（オンサイトPPA含む）以外"),0,IF($J11<>"基礎排出係数を入力",$J11*DE11,"基礎排出係数を入力")) -> 0 | DV11: =IF(OR($B11="",$E11="非燃料由来の非化石電気（オンサイトPPA含む）以外"),0,IF($J11<>"基礎排出係数を入力",$J11*DF11,"基礎排出係数を入力")) -> 0 | DW11: =SUM(DT11:DV11) -> 0 | DX11: =IF(OR($B11="",$E11="非燃料由来の非化石電気（オンサイトPPA含む）以外"),0,IF($J11<>"基礎排出係数を入力",$J11*DH11,"基礎排出係数を入力")) -> 0 | DY11: =IF(OR($B11="",$E11="非燃料由来の非化石電気（オンサイトPPA含む）以外"),0,IF($J11<>"基礎排出係数を入力",$J11*DI11,"基礎排出係数を入力")) -> 0 | DZ11: =IF(OR($B11="",$E11="非燃料由来の非化石電気（オンサイトPPA含む）以外"),0,IF($J11<>"基礎排出係数を入力",$J11*DJ11,"基礎排出係数を入力")) -> 0 | EA11: =SUM(DX11:DZ11) -> 0 | EB11: =IF(OR($B11="",$E11="非燃料由来の非化石電気（オンサイトPPA含む）以外"),0,IF($K11<>"調整後排出係数を入力",$K11*DD11,"調整後排出係数を入力")) -> 0 | EC11: =IF(OR($B11="",$E11="非燃料由来の非化石電気（オンサイトPPA含む）以外"),0,IF($K11<>"調整後排出係数を入力",$K11*DM11,"調整後排出係数を入力")) -> 0 | ED11: =IF(OR($B11="",$E11="非燃料由来の非化石電気（オンサイトPPA含む）以外"),0,IF($K11<>"調整後排出係数を入力",$K11*DN11,"調整後排出係数を入力")) -> 0 | EE11: =SUM(EB11:ED11) -> 0 | EF11: =IF(OR($B11="",$E11="非燃料由来の非化石電気（オンサイトPPA含む）以外"),0,IF($K11<>"調整後排出係数を入力",$J11*DP11,"調整後排出係数を入力")) -> 0 | EG11: =IF(OR($B11="",$E11="非燃料由来の非化石電気（オンサイトPPA含む）以外"),0,IF($K11<>"調整後排出係数を入力",$K11*DQ11,"調整後排出係数を入力")) -> 0 | EH11: =IF(OR($B11="",$E11="非燃料由来の非化石電気（オンサイトPPA含む）以外"),0,IF($K11<>"調整後排出係数を入力",$K11*DR11,"調整後排出係数を入力")) -> 0 | EI11: =SUM(EF11:EH11) -> 0 | EK11: 0 | EL11: 0 | EM11: 0 | EN11: =SUM(EK11:EM11) -> 0 | EO11: 0 | EP11: 0 | EQ11: 0 | ER11: =SUM(EO11:EQ11) -> 0 | ES11: 0 | ET11: =IF(OR($B11="",$E11="非燃料由来の非化石電気（オンサイトPPA含む）以外"),0,IF($I11<>"熱量換算係数を入力",$I11*EL11,"熱量換算係数を入力")) -> 0 | EU11: =IF(OR($B11="",$E11="非燃料由来の非化石電気（オンサイトPPA含む）以外"),0,IF($I11<>"熱量換算係数を入力",$I11*EM11,"熱量換算係数を入力")) -> 0 | EV11: =SUM(ES11:EU11) -> 0 | EW11: =IF(OR($B11="",$E11="非燃料由来の非化石電気（オンサイトPPA含む）以外"),0,IF($I11<>"熱量換算係数を入力",$I11*EO11,"熱量換算係数を入力")) -> 0 | EX11: =IF(OR($B11="",$E11="非燃料由来の非化石電気（オンサイトPPA含む）以外"),0,IF($I11<>"熱量換算係数を入力",$I11*EP11,"熱量換算係数を入力")) -> 0 | EY11: =IF(OR($B11="",$E11="非燃料由来の非化石電気（オンサイトPPA含む）以外"),0,IF($I11<>"熱量換算係数を入力",$I11*EQ11,"熱量換算係数を入力")) -> 0 | EZ11: =SUM(EW11:EY11) -> 0 | FA11: =IF(OR($B11="",$E11="非燃料由来の非化石電気（オンサイトPPA含む）以外"),0,IF($J11<>"基礎排出係数を入力",$J11*EK11,"基礎排出係数を入力")) -> 0 | FB11: =IF(OR($B11="",$E11="非燃料由来の非化石電気（オンサイトPPA含む）以外"),0,IF($J11<>"基礎排出係数を入力",$J11*EL11,"基礎排出係数を入力")) -> 0 | FC11: =IF(OR($B11="",$E11="非燃料由来の非化石電気（オンサイトPPA含む）以外"),0,IF($J11<>"基礎排出係数を入力",$J11*EM11,"基礎排出係数を入力")) -> 0 | FD11: =SUM(FA11:FC11) -> 0 | FE11: =IF(OR($B11="",$E11="非燃料由来の非化石電気（オンサイトPPA含む）以外"),0,IF($J11<>"基礎排出係数を入力",$J11*EO11,"基礎排出係数を入力")) -> 0 | FF11: =IF(OR($B11="",$E11="非燃料由来の非化石電気（オンサイトPPA含む）以外"),0,IF($J11<>"基礎排出係数を入力",$J11*EP11,"基礎排出係数を入力")) -> 0 | FG11: =IF(OR($B11="",$E11="非燃料由来の非化石電気（オンサイトPPA含む）以外"),0,IF($J11<>"基礎排出係数を入力",$J11*EQ11,"基礎排出係数を入力")) -> 0 | FH11: =SUM(FE11:FG11) -> 0 | FI11: =IF(OR($B11="",$E11="非燃料由来の非化石電気（オンサイトPPA含む）以外"),0,IF($K11<>"調整後排出係数を入力",$K11*EK11,"調整後排出係数を入力")) -> 0 | FJ11: =IF(OR($B11="",$E11="非燃料由来の非化石電気（オンサイトPPA含む）以外"),0,IF($K11<>"調整後排出係数を入力",$K11*ET11,"調整後排出係数を入力")) -> 0 | FK11: =IF(OR($B11="",$E11="非燃料由来の非化石電気（オンサイトPPA含む）以外"),0,IF($K11<>"調整後排出係数を入力",$K11*EU11,"調整後排出係数を入力")) -> 0 | FL11: =SUM(FI11:FK11) -> 0 | FM11: =IF(OR($B11="",$E11="非燃料由来の非化石電気（オンサイトPPA含む）以外"),0,IF($K11<>"調整後排出係数を入力",$K11*EW11,"調整後排出係数を入力")) -> 0 | FN11: =IF(OR($B11="",$E11="非燃料由来の非化石電気（オンサイトPPA含む）以外"),0,IF($K11<>"調整後排出係数を入力",$K11*EX11,"調整後排出係数を入力")) -> 0 | FO11: =IF(OR($B11="",$E11="非燃料由来の非化石電気（オンサイトPPA含む）以外"),0,IF($K11<>"調整後排出係数を入力",$K11*EY11,"調整後排出係数を入力")) -> 0 | FP11: =SUM(FM11:FO11) -> 0 | FR11: 0 | FS11: 0 | FT11: 0 | FU11: =SUM(FR11:FT11) -> 0 | FV11: 0 | FW11: 0 | FX11: 0 | FY11: =SUM(FV11:FX11) -> 0 | FZ11: 0 | GA11: =IF(OR($B11="",$E11="非燃料由来の非化石電気（オンサイトPPA含む）以外"),0,IF($I11<>"熱量換算係数を入力",$I11*FS11,"熱量換算係数を入力")) -> 0 | GB11: =IF(OR($B11="",$E11="非燃料由来の非化石電気（オンサイトPPA含む）以外"),0,IF($I11<>"熱量換算係数を入力",$I11*FT11,"熱量換算係数を入力")) -> 0 | GC11: =SUM(FZ11:GB11) -> 0 | GD11: =IF(OR($B11="",$E11="非燃料由来の非化石電気（オンサイトPPA含む）以外"),0,IF($I11<>"熱量換算係数を入力",$I11*FV11,"熱量換算係数を入力")) -> 0 | GE11: =IF(OR($B11="",$E11="非燃料由来の非化石電気（オンサイトPPA含む）以外"),0,IF($I11<>"熱量換算係数を入力",$I11*FW11,"熱量換算係数を入力")) -> 0 | GF11: =IF(OR($B11="",$E11="非燃料由来の非化石電気（オンサイトPPA含む）以外"),0,IF($I11<>"熱量換算係数を入力",$I11*FX11,"熱量換算係数を入力")) -> 0 | GG11: =SUM(GD11:GF11) -> 0 | GH11: =IF(OR($B11="",$E11="非燃料由来の非化石電気（オンサイトPPA含む）以外"),0,IF($J11<>"基礎排出係数を入力",$J11*FR11,"基礎排出係数を入力")) -> 0 | GI11: =IF(OR($B11="",$E11="非燃料由来の非化石電気（オンサイトPPA含む）以外"),0,IF($J11<>"基礎排出係数を入力",$J11*FS11,"基礎排出係数を入力")) -> 0 | GJ11: =IF(OR($B11="",$E11="非燃料由来の非化石電気（オンサイトPPA含む）以外"),0,IF($J11<>"基礎排出係数を入力",$J11*FT11,"基礎排出係数を入力")) -> 0 | GK11: =SUM(GH11:GJ11) -> 0 | GL11: =IF(OR($B11="",$E11="非燃料由来の非化石電気（オンサイトPPA含む）以外"),0,IF($J11<>"基礎排出係数を入力",$J11*FV11,"基礎排出係数を入力")) -> 0 | GM11: =IF(OR($B11="",$E11="非燃料由来の非化石電気（オンサイトPPA含む）以外"),0,IF($J11<>"基礎排出係数を入力",$J11*FW11,"基礎排出係数を入力")) -> 0 | GN11: =IF(OR($B11="",$E11="非燃料由来の非化石電気（オンサイトPPA含む）以外"),0,IF($J11<>"基礎排出係数を入力",$J11*FX11,"基礎排出係数を入力")) -> 0 | GO11: =SUM(GL11:GN11) -> 0 | GP11: =IF(OR($B11="",$E11="非燃料由来の非化石電気（オンサイトPPA含む）以外"),0,IF($K11<>"調整後排出係数を入力",$K11*FR11,"調整後排出係数を入力")) -> 0 | GQ11: =IF(OR($B11="",$E11="非燃料由来の非化石電気（オンサイトPPA含む）以外"),0,IF($K11<>"調整後排出係数を入力",$K11*GA11,"調整後排出係数を入力")) -> 0 | GR11: =IF(OR($B11="",$E11="非燃料由来の非化石電気（オンサイトPPA含む）以外"),0,IF($K11<>"調整後排出係数を入力",$K11*GB11,"調整後排出係数を入力")) -> 0 | GS11: =SUM(GP11:GR11) -> 0 | GT11: =IF(OR($B11="",$E11="非燃料由来の非化石電気（オンサイトPPA含む）以外"),0,IF($K11<>"調整後排出係数を入力",$K11*GD11,"調整後排出係数を入力")) -> 0 | GU11: =IF(OR($B11="",$E11="非燃料由来の非化石電気（オンサイトPPA含む）以外"),0,IF($K11<>"調整後排出係数を入力",$K11*GE11,"調整後排出係数を入力")) -> 0 | GV11: =IF(OR($B11="",$E11="非燃料由来の非化石電気（オンサイトPPA含む）以外"),0,IF($K11<>"調整後排出係数を入力",$K11*GF11,"調整後排出係数を入力")) -> 0 | GW11: =SUM(GT11:GV11) -> 0 | GY11: 0 | GZ11: 0 | HA11: 0 | HB11: =SUM(GY11:HA11) -> 0 | HC11: 0 | HD11: 0 | HE11: 0 | HF11: =SUM(HC11:HE11) -> 0 | HG11: 0 | HH11: =IF(OR($B11="",$E11="非燃料由来の非化石電気（オンサイトPPA含む）以外"),0,IF($I11<>"熱量換算係数を入力",$I11*GZ11,"熱量換算係数を入力")) -> 0 | HI11: =IF(OR($B11="",$E11="非燃料由来の非化石電気（オンサイトPPA含む）以外"),0,IF($I11<>"熱量換算係数を入力",$I11*HA11,"熱量換算係数を入力")) -> 0 | HJ11: =SUM(HG11:HI11) -> 0 | HK11: =IF(OR($B11="",$E11="非燃料由来の非化石電気（オンサイトPPA含む）以外"),0,IF($I11<>"熱量換算係数を入力",$I11*HC11,"熱量換算係数を入力")) -> 0 | HL11: =IF(OR($B11="",$E11="非燃料由来の非化石電気（オンサイトPPA含む）以外"),0,IF($I11<>"熱量換算係数を入力",$I11*HD11,"熱量換算係数を入力")) -> 0 | HM11: =IF(OR($B11="",$E11="非燃料由来の非化石電気（オンサイトPPA含む）以外"),0,IF($I11<>"熱量換算係数を入力",$I11*HE11,"熱量換算係数を入力")) -> 0 | HN11: =SUM(HK11:HM11) -> 0 | HO11: =IF(OR($B11="",$E11="非燃料由来の非化石電気（オンサイトPPA含む）以外"),0,IF($J11<>"基礎排出係数を入力",$J11*GY11,"基礎排出係数を入力")) -> 0 | HP11: =IF(OR($B11="",$E11="非燃料由来の非化石電気（オンサイトPPA含む）以外"),0,IF($J11<>"基礎排出係数を入力",$J11*GZ11,"基礎排出係数を入力")) -> 0 | HQ11: =IF(OR($B11="",$E11="非燃料由来の非化石電気（オンサイトPPA含む）以外"),0,IF($J11<>"基礎排出係数を入力",$J11*HA11,"基礎排出係数を入力")) -> 0 | HR11: =SUM(HO11:HQ11) -> 0 | HS11: =IF(OR($B11="",$E11="非燃料由来の非化石電気（オンサイトPPA含む）以外"),0,IF($J11<>"基礎排出係数を入力",$J11*HC11,"基礎排出係数を入力")) -> 0 | HT11: =IF(OR($B11="",$E11="非燃料由来の非化石電気（オンサイトPPA含む）以外"),0,IF($J11<>"基礎排出係数を入力",$J11*HD11,"基礎排出係数を入力")) -> 0 | HU11: =IF(OR($B11="",$E11="非燃料由来の非化石電気（オンサイトPPA含む）以外"),0,IF($J11<>"基礎排出係数を入力",$J11*HE11,"基礎排出係数を入力")) -> 0 | HV11: =SUM(HS11:HU11) -> 0 | HW11: =IF(OR($B11="",$E11="非燃料由来の非化石電気（オンサイトPPA含む）以外"),0,IF($K11<>"調整後排出係数を入力",$K11*GY11,"調整後排出係数を入力")) -> 0 | HX11: =IF(OR($B11="",$E11="非燃料由来の非化石電気（オンサイトPPA含む）以外"),0,IF($K11<>"調整後排出係数を入力",$K11*HH11,"調整後排出係数を入力")) -> 0 | HY11: =IF(OR($B11="",$E11="非燃料由来の非化石電気（オンサイトPPA含む）以外"),0,IF($K11<>"調整後排出係数を入力",$K11*HI11,"調整後排出係数を入力")) -> 0 | HZ11: =SUM(HW11:HY11) -> 0 | IA11: =IF(OR($B11="",$E11="非燃料由来の非化石電気（オンサイトPPA含む）以外"),0,IF($K11<>"調整後排出係数を入力",$K11*HK11,"調整後排出係数を入力")) -> 0 | IB11: =IF(OR($B11="",$E11="非燃料由来の非化石電気（オンサイトPPA含む）以外"),0,IF($K11<>"調整後排出係数を入力",$K11*HL11,"調整後排出係数を入力")) -> 0 | IC11: =IF(OR($B11="",$E11="非燃料由来の非化石電気（オンサイトPPA含む）以外"),0,IF($K11<>"調整後排出係数を入力",$K11*HM11,"調整後排出係数を入力")) -> 0 | ID11: =SUM(IA11:IC11) -> 0 | IF11: 0 | IG11: 0 | IH11: 0 | II11: =SUM(IF11:IH11) -> 0 | IJ11: 0 | IK11: 0 | IL11: 0 | IM11: =SUM(IJ11:IL11) -> 0 | IN11: =IF(OR($B11="",$E11="非燃料由来の非化石電気（オンサイトPPA含む）以外"),0,IF($I11<>"熱量換算係数を入力",$I11*IF11,"熱量換算係数を入力")) -> 0 | IO11: =IF(OR($B11="",$E11="非燃料由来の非化石電気（オンサイトPPA含む）以外"),0,IF($I11<>"熱量換算係数を入力",$I11*IG11,"熱量換算係数を入力")) -> 0 | IP11: =IF(OR($B11="",$E11="非燃料由来の非化石電気（オンサイトPPA含む）以外"),0,IF($I11<>"熱量換算係数を入力",$I11*IH11,"熱量換算係数を入力")) -> 0 | IQ11: =SUM(IN11:IP11) -> 0 | IR11: =IF(OR($B11="",$E11="非燃料由来の非化石電気（オンサイトPPA含む）以外"),0,IF($I11<>"熱量換算係数を入力",$I11*IJ11,"熱量換算係数を入力")) -> 0 | IS11: =IF(OR($B11="",$E11="非燃料由来の非化石電気（オンサイトPPA含む）以外"),0,IF($I11<>"熱量換算係数を入力",$I11*IK11,"熱量換算係数を入力")) -> 0 | IT11: =IF(OR($B11="",$E11="非燃料由来の非化石電気（オンサイトPPA含む）以外"),0,IF($I11<>"熱量換算係数を入力",$I11*IL11,"熱量換算係数を入力")) -> 0 | IU11: =SUM(IR11:IT11) -> 0 | IV11: =IF(OR($B11="",$E11="非燃料由来の非化石電気（オンサイトPPA含む）以外"),0,IF($J11<>"基礎排出係数を入力",$J11*IF11,"基礎排出係数を入力")) -> 0 | IW11: =IF(OR($B11="",$E11="非燃料由来の非化石電気（オンサイトPPA含む）以外"),0,IF($J11<>"基礎排出係数を入力",$J11*IG11,"基礎排出係数を入力")) -> 0 | IX11: =IF(OR($B11="",$E11="非燃料由来の非化石電気（オンサイトPPA含む）以外"),0,IF($J11<>"基礎排出係数を入力",$J11*IH11,"基礎排出係数を入力")) -> 0 | IY11: =SUM(IV11:IX11) -> 0 | IZ11: =IF(OR($B11="",$E11="非燃料由来の非化石電気（オンサイトPPA含む）以外"),0,IF($J11<>"基礎排出係数を入力",$J11*IJ11,"基礎排出係数を入力")) -> 0 | JA11: =IF(OR($B11="",$E11="非燃料由来の非化石電気（オンサイトPPA含む）以外"),0,IF($J11<>"基礎排出係数を入力",$J11*IK11,"基礎排出係数を入力")) -> 0 | JB11: =IF(OR($B11="",$E11="非燃料由来の非化石電気（オンサイトPPA含む）以外"),0,IF($J11<>"基礎排出係数を入力",$J11*IL11,"基礎排出係数を入力")) -> 0 | JC11: =SUM(IZ11:JB11) -> 0 | JD11: =IF(OR($B11="",$E11="非燃料由来の非化石電気（オンサイトPPA含む）以外"),0,IF($K11<>"調整後排出係数を入力",$K11*IF11,"調整後排出係数を入力")) -> 0 | JE11: =IF(OR($B11="",$E11="非燃料由来の非化石電気（オンサイトPPA含む）以外"),0,IF($K11<>"調整後排出係数を入力",$K11*IO11,"調整後排出係数を入力")) -> 0 | JF11: =IF(OR($B11="",$E11="非燃料由来の非化石電気（オンサイトPPA含む）以外"),0,IF($K11<>"調整後排出係数を入力",$K11*IP11,"調整後排出係数を入力")) -> 0 | JG11: =SUM(JD11:JF11) -> 0 | JH11: =IF(OR($B11="",$E11="非燃料由来の非化石電気（オンサイトPPA含む）以外"),0,IF($K11<>"調整後排出係数を入力",$K11*IR11,"調整後排出係数を入力")) -> 0 | JI11: =IF(OR($B11="",$E11="非燃料由来の非化石電気（オンサイトPPA含む）以外"),0,IF($K11<>"調整後排出係数を入力",$K11*IS11,"調整後排出係数を入力")) -> 0 | JJ11: =IF(OR($B11="",$E11="非燃料由来の非化石電気（オンサイトPPA含む）以外"),0,IF($K11<>"調整後排出係数を入力",$K11*IT11,"調整後排出係数を入力")) -> 0 | JK11: =SUM(JH11:JJ11) -> 0 | JM11: 0 | JN11: 0 | JO11: 0 | JP11: =SUM(JM11:JO11) -> 0 | JQ11: 0 | JR11: 0 | JS11: 0 | JT11: =SUM(JQ11:JS11) -> 0 | JU11: =IF(OR($B11="",$E11="非燃料由来の非化石電気（オンサイトPPA含む）以外"),0,IF($I11<>"熱量換算係数を入力",$I11*JM11,"熱量換算係数を入力")) -> 0 | JV11: =IF(OR($B11="",$E11="非燃料由来の非化石電気（オンサイトPPA含む）以外"),0,IF($I11<>"熱量換算係数を入力",$I11*JN11,"熱量換算係数を入力")) -> 0 | JW11: =IF(OR($B11="",$E11="非燃料由来の非化石電気（オンサイトPPA含む）以外"),0,IF($I11<>"熱量換算係数を入力",$I11*JO11,"熱量換算係数を入力")) -> 0 | JX11: =SUM(JU11:JW11) -> 0 | JY11: =IF(OR($B11="",$E11="非燃料由来の非化石電気（オンサイトPPA含む）以外"),0,IF($I11<>"熱量換算係数を入力",$I11*JQ11,"熱量換算係数を入力")) -> 0 | JZ11: =IF(OR($B11="",$E11="非燃料由来の非化石電気（オンサイトPPA含む）以外"),0,IF($I11<>"熱量換算係数を入力",$I11*JR11,"熱量換算係数を入力")) -> 0 | KA11: =IF(OR($B11="",$E11="非燃料由来の非化石電気（オンサイトPPA含む）以外"),0,IF($I11<>"熱量換算係数を入力",$I11*JS11,"熱量換算係数を入力")) -> 0 | KB11: =SUM(JY11:KA11) -> 0 | KC11: =IF(OR($B11="",$E11="非燃料由来の非化石電気（オンサイトPPA含む）以外"),0,IF($J11<>"基礎排出係数を入力",$J11*JM11,"基礎排出係数を入力")) -> 0 | KD11: =IF(OR($B11="",$E11="非燃料由来の非化石電気（オンサイトPPA含む）以外"),0,IF($J11<>"基礎排出係数を入力",$J11*JN11,"基礎排出係数を入力")) -> 0 | KE11: =IF(OR($B11="",$E11="非燃料由来の非化石電気（オンサイトPPA含む）以外"),0,IF($J11<>"基礎排出係数を入力",$J11*JO11,"基礎排出係数を入力")) -> 0 | KF11: =SUM(KC11:KE11) -> 0 | KG11: =IF(OR($B11="",$E11="非燃料由来の非化石電気（オンサイトPPA含む）以外"),0,IF($J11<>"基礎排出係数を入力",$J11*JQ11,"基礎排出係数を入力")) -> 0 | KH11: =IF(OR($B11="",$E11="非燃料由来の非化石電気（オンサイトPPA含む）以外"),0,IF($J11<>"基礎排出係数を入力",$J11*JR11,"基礎排出係数を入力")) -> 0 | KI11: =IF(OR($B11="",$E11="非燃料由来の非化石電気（オンサイトPPA含む）以外"),0,IF($J11<>"基礎排出係数を入力",$J11*JS11,"基礎排出係数を入力")) -> 0 | KJ11: =SUM(KG11:KI11) -> 0 | KK11: =IF(OR($B11="",$E11="非燃料由来の非化石電気（オンサイトPPA含む）以外"),0,IF($K11<>"調整後排出係数を入力",$K11*JM11,"調整後排出係数を入力")) -> 0 | KL11: =IF(OR($B11="",$E11="非燃料由来の非化石電気（オンサイトPPA含む）以外"),0,IF($K11<>"調整後排出係数を入力",$K11*JV11,"調整後排出係数を入力")) -> 0 | KM11: =IF(OR($B11="",$E11="非燃料由来の非化石電気（オンサイトPPA含む）以外"),0,IF($K11<>"調整後排出係数を入力",$K11*JW11,"調整後排出係数を入力")) -> 0 | KN11: =SUM(KK11:KM11) -> 0 | KO11: =IF(OR($B11="",$E11="非燃料由来の非化石電気（オンサイトPPA含む）以外"),0,IF($K11<>"調整後排出係数を入力",$K11*JY11,"調整後排出係数を入力")) -> 0 | KP11: =IF(OR($B11="",$E11="非燃料由来の非化石電気（オンサイトPPA含む）以外"),0,IF($K11<>"調整後排出係数を入力",$K11*JZ11,"調整後排出係数を入力")) -> 0 | KQ11: =IF(OR($B11="",$E11="非燃料由来の非化石電気（オンサイトPPA含む）以外"),0,IF($K11<>"調整後排出係数を入力",$K11*KA11,"調整後排出係数を入力")) -> 0 | KR11: =SUM(KO11:KQ11) -> 0 | KT11: 0 | KU11: 0 | KV11: 0 | KW11: =SUM(KT11:KV11) -> 0 | KX11: 0 | KY11: 0 | KZ11: 0 | LA11: =SUM(KX11:KZ11) -> 0 | LB11: 0 | LC11: =IF(OR($B11="",$E11="非燃料由来の非化石電気（オンサイトPPA含む）以外"),0,IF($I11<>"熱量換算係数を入力",$I11*KU11,"熱量換算係数を入力")) -> 0 | LD11: =IF(OR($B11="",$E11="非燃料由来の非化石電気（オンサイトPPA含む）以外"),0,IF($I11<>"熱量換算係数を入力",$I11*KV11,"熱量換算係数を入力")) -> 0 | LE11: =SUM(LB11:LD11) -> 0 | LF11: =IF(OR($B11="",$E11="非燃料由来の非化石電気（オンサイトPPA含む）以外"),0,IF($I11<>"熱量換算係数を入力",$I11*KX11,"熱量換算係数を入力")) -> 0 | LG11: =IF(OR($B11="",$E11="非燃料由来の非化石電気（オンサイトPPA含む）以外"),0,IF($I11<>"熱量換算係数を入力",$I11*KY11,"熱量換算係数を入力")) -> 0 | LH11: =IF(OR($B11="",$E11="非燃料由来の非化石電気（オンサイトPPA含む）以外"),0,IF($I11<>"熱量換算係数を入力",$I11*KZ11,"熱量換算係数を入力")) -> 0 | LI11: =SUM(LF11:LH11) -> 0 | LJ11: =IF(OR($B11="",$E11="非燃料由来の非化石電気（オンサイトPPA含む）以外"),0,IF($J11<>"基礎排出係数を入力",$J11*KT11,"基礎排出係数を入力")) -> 0 | LK11: =IF(OR($B11="",$E11="非燃料由来の非化石電気（オンサイトPPA含む）以外"),0,IF($J11<>"基礎排出係数を入力",$J11*KU11,"基礎排出係数を入力")) -> 0 | LL11: =IF(OR($B11="",$E11="非燃料由来の非化石電気（オンサイトPPA含む）以外"),0,IF($J11<>"基礎排出係数を入力",$J11*KV11,"基礎排出係数を入力")) -> 0 | LM11: =SUM(LJ11:LL11) -> 0 | LN11: =IF(OR($B11="",$E11="非燃料由来の非化石電気（オンサイトPPA含む）以外"),0,IF($J11<>"基礎排出係数を入力",$J11*KX11,"基礎排出係数を入力")) -> 0 | LO11: =IF(OR($B11="",$E11="非燃料由来の非化石電気（オンサイトPPA含む）以外"),0,IF($J11<>"基礎排出係数を入力",$J11*KY11,"基礎排出係数を入力")) -> 0 | LP11: =IF(OR($B11="",$E11="非燃料由来の非化石電気（オンサイトPPA含む）以外"),0,IF($J11<>"基礎排出係数を入力",$J11*KZ11,"基礎排出係数を入力")) -> 0 | LQ11: =SUM(LN11:LP11) -> 0 | LR11: =IF(OR($B11="",$E11="非燃料由来の非化石電気（オンサイトPPA含む）以外"),0,IF($K11<>"調整後排出係数を入力",$K11*KT11,"調整後排出係数を入力")) -> 0 | LS11: =IF(OR($B11="",$E11="非燃料由来の非化石電気（オンサイトPPA含む）以外"),0,IF($K11<>"調整後排出係数を入力",$K11*LC11,"調整後排出係数を入力")) -> 0 | LT11: =IF(OR($B11="",$E11="非燃料由来の非化石電気（オンサイトPPA含む）以外"),0,IF($K11<>"調整後排出係数を入力",$K11*LD11,"調整後排出係数を入力")) -> 0 | LU11: =SUM(LR11:LT11) -> 0 | LV11: =IF(OR($B11="",$E11="非燃料由来の非化石電気（オンサイトPPA含む）以外"),0,IF($K11<>"調整後排出係数を入力",$K11*LF11,"調整後排出係数を入力")) -> 0 | LW11: =IF(OR($B11="",$E11="非燃料由来の非化石電気（オンサイトPPA含む）以外"),0,IF($K11<>"調整後排出係数を入力",$K11*LG11,"調整後排出係数を入力")) -> 0 | LX11: =IF(OR($B11="",$E11="非燃料由来の非化石電気（オンサイトPPA含む）以外"),0,IF($K11<>"調整後排出係数を入力",$K11*LH11,"調整後排出係数を入力")) -> 0 | LY11: =SUM(LV11:LX11) -> 0 | MA11: 0 | MB11: 0 | MC11: 0 | MD11: =SUM(MA11:MC11) -> 0 | ME11: 0 | MF11: 0 | MG11: 0 | MH11: =SUM(ME11:MG11) -> 0 | MI11: 0 | MJ11: =IF(OR($B11="",$E11="非燃料由来の非化石電気（オンサイトPPA含む）以外"),0,IF($I11<>"熱量換算係数を入力",$I11*MB11,"熱量換算係数を入力")) -> 0 | MK11: =IF(OR($B11="",$E11="非燃料由来の非化石電気（オンサイトPPA含む）以外"),0,IF($I11<>"熱量換算係数を入力",$I11*MC11,"熱量換算係数を入力")) -> 0 | ML11: =SUM(MI11:MK11) -> 0 | MM11: =IF(OR($B11="",$E11="非燃料由来の非化石電気（オンサイトPPA含む）以外"),0,IF($I11<>"熱量換算係数を入力",$I11*ME11,"熱量換算係数を入力")) -> 0 | MN11: =IF(OR($B11="",$E11="非燃料由来の非化石電気（オンサイトPPA含む）以外"),0,IF($I11<>"熱量換算係数を入力",$I11*MF11,"熱量換算係数を入力")) -> 0 | MO11: =IF(OR($B11="",$E11="非燃料由来の非化石電気（オンサイトPPA含む）以外"),0,IF($I11<>"熱量換算係数を入力",$I11*MG11,"熱量換算係数を入力")) -> 0 | MP11: =SUM(MM11:MO11) -> 0 | MQ11: =IF(OR($B11="",$E11="非燃料由来の非化石電気（オンサイトPPA含む）以外"),0,IF($J11<>"基礎排出係数を入力",$J11*MA11,"基礎排出係数を入力")) -> 0 | MR11: =IF(OR($B11="",$E11="非燃料由来の非化石電気（オンサイトPPA含む）以外"),0,IF($J11<>"基礎排出係数を入力",$J11*MB11,"基礎排出係数を入力")) -> 0 | MS11: =IF(OR($B11="",$E11="非燃料由来の非化石電気（オンサイトPPA含む）以外"),0,IF($J11<>"基礎排出係数を入力",$J11*MC11,"基礎排出係数を入力")) -> 0 | MT11: =SUM(MQ11:MS11) -> 0 | MU11: =IF(OR($B11="",$E11="非燃料由来の非化石電気（オンサイトPPA含む）以外"),0,IF($J11<>"基礎排出係数を入力",$J11*ME11,"基礎排出係数を入力")) -> 0 | MV11: =IF(OR($B11="",$E11="非燃料由来の非化石電気（オンサイトPPA含む）以外"),0,IF($J11<>"基礎排出係数を入力",$J11*MF11,"基礎排出係数を入力")) -> 0 | MW11: =IF(OR($B11="",$E11="非燃料由来の非化石電気（オンサイトPPA含む）以外"),0,IF($J11<>"基礎排出係数を入力",$J11*MG11,"基礎排出係数を入力")) -> 0 | MX11: =SUM(MU11:MW11) -> 0 | MY11: =IF(OR($B11="",$E11="非燃料由来の非化石電気（オンサイトPPA含む）以外"),0,IF($K11<>"調整後排出係数を入力",$K11*MA11,"調整後排出係数を入力")) -> 0 | MZ11: =IF(OR($B11="",$E11="非燃料由来の非化石電気（オンサイトPPA含む）以外"),0,IF($K11<>"調整後排出係数を入力",$K11*MJ11,"調整後排出係数を入力")) -> 0 | NA11: =IF(OR($B11="",$E11="非燃料由来の非化石電気（オンサイトPPA含む）以外"),0,IF($K11<>"調整後排出係数を入力",$K11*MK11,"調整後排出係数を入力")) -> 0 | NB11: =SUM(MY11:NA11) -> 0 | NC11: =IF(OR($B11="",$E11="非燃料由来の非化石電気（オンサイトPPA含む）以外"),0,IF($K11<>"調整後排出係数を入力",$K11*MM11,"調整後排出係数を入力")) -> 0 | ND11: =IF(OR($B11="",$E11="非燃料由来の非化石電気（オンサイトPPA含む）以外"),0,IF($K11<>"調整後排出係数を入力",$K11*MN11,"調整後排出係数を入力")) -> 0 | NE11: =IF(OR($B11="",$E11="非燃料由来の非化石電気（オンサイトPPA含む）以外"),0,IF($K11<>"調整後排出係数を入力",$K11*MO11,"調整後排出係数を入力")) -> 0 | NF11: =SUM(NC11:NE11) -> 0 | NH11: 0 | NI11: 0 | NJ11: 0 | NK11: =SUM(NH11:NJ11) -> 0 | NL11: 0 | NM11: 0 | NN11: 0 | NO11: =SUM(NL11:NN11) -> 0 | NP11: 0 | NQ11: =IF(OR($B11="",$E11="非燃料由来の非化石電気（オンサイトPPA含む）以外"),0,IF($I11<>"熱量換算係数を入力",$I11*NI11,"熱量換算係数を入力")) -> 0 | NR11: =IF(OR($B11="",$E11="非燃料由来の非化石電気（オンサイトPPA含む）以外"),0,IF($I11<>"熱量換算係数を入力",$I11*NJ11,"熱量換算係数を入力")) -> 0 | NS11: =SUM(NP11:NR11) -> 0 | NT11: =IF(OR($B11="",$E11="非燃料由来の非化石電気（オンサイトPPA含む）以外"),0,IF($I11<>"熱量換算係数を入力",$I11*NL11,"熱量換算係数を入力")) -> 0 | NU11: =IF(OR($B11="",$E11="非燃料由来の非化石電気（オンサイトPPA含む）以外"),0,IF($I11<>"熱量換算係数を入力",$I11*NM11,"熱量換算係数を入力")) -> 0 | NV11: =IF(OR($B11="",$E11="非燃料由来の非化石電気（オンサイトPPA含む）以外"),0,IF($I11<>"熱量換算係数を入力",$I11*NN11,"熱量換算係数を入力")) -> 0 | NW11: =SUM(NT11:NV11) -> 0 | NX11: =IF(OR($B11="",$E11="非燃料由来の非化石電気（オンサイトPPA含む）以外"),0,IF($J11<>"基礎排出係数を入力",$J11*NH11,"基礎排出係数を入力")) -> 0 | NY11: =IF(OR($B11="",$E11="非燃料由来の非化石電気（オンサイトPPA含む）以外"),0,IF($J11<>"基礎排出係数を入力",$J11*NI11,"基礎排出係数を入力")) -> 0 | NZ11: =IF(OR($B11="",$E11="非燃料由来の非化石電気（オンサイトPPA含む）以外"),0,IF($J11<>"基礎排出係数を入力",$J11*NJ11,"基礎排出係数を入力")) -> 0 | OA11: =SUM(NX11:NZ11) -> 0 | OB11: =IF(OR($B11="",$E11="非燃料由来の非化石電気（オンサイトPPA含む）以外"),0,IF($J11<>"基礎排出係数を入力",$J11*NL11,"基礎排出係数を入力")) -> 0 | OC11: =IF(OR($B11="",$E11="非燃料由来の非化石電気（オンサイトPPA含む）以外"),0,IF($J11<>"基礎排出係数を入力",$J11*NM11,"基礎排出係数を入力")) -> 0 | OD11: =IF(OR($B11="",$E11="非燃料由来の非化石電気（オンサイトPPA含む）以外"),0,IF($J11<>"基礎排出係数を入力",$J11*NN11,"基礎排出係数を入力")) -> 0 | OE11: =SUM(OB11:OD11) -> 0 | OF11: =IF(OR($B11="",$E11="非燃料由来の非化石電気（オンサイトPPA含む）以外"),0,IF($K11<>"調整後排出係数を入力",$K11*NH11,"調整後排出係数を入力")) -> 0 | OG11: =IF(OR($B11="",$E11="非燃料由来の非化石電気（オンサイトPPA含む）以外"),0,IF($K11<>"調整後排出係数を入力",$K11*NQ11,"調整後排出係数を入力")) -> 0 | OH11: =IF(OR($B11="",$E11="非燃料由来の非化石電気（オンサイトPPA含む）以外"),0,IF($K11<>"調整後排出係数を入力",$K11*NR11,"調整後排出係数を入力")) -> 0 | OI11: =SUM(OF11:OH11) -> 0 | OJ11: =IF(OR($B11="",$E11="非燃料由来の非化石電気（オンサイトPPA含む）以外"),0,IF($K11<>"調整後排出係数を入力",$K11*NT11,"調整後排出係数を入力")) -> 0 | OK11: =IF(OR($B11="",$E11="非燃料由来の非化石電気（オンサイトPPA含む）以外"),0,IF($K11<>"調整後排出係数を入力",$K11*NU11,"調整後排出係数を入力")) -> 0 | OL11: =IF(OR($B11="",$E11="非燃料由来の非化石電気（オンサイトPPA含む）以外"),0,IF($K11<>"調整後排出係数を入力",$K11*NV11,"調整後排出係数を入力")) -> 0 | OM11: =SUM(OJ11:OL11) -> 0 | OO11: 0 | OP11: 0 | OQ11: 0 | OR11: =SUM(OO11:OQ11) -> 0 | OS11: 0 | OT11: 0 | OU11: 0 | OV11: =SUM(OS11:OU11) -> 0 | OW11: 0 | OX11: =IF(OR($B11="",$E11="非燃料由来の非化石電気（オンサイトPPA含む）以外"),0,IF($I11<>"熱量換算係数を入力",$I11*OP11,"熱量換算係数を入力")) -> 0 | OY11: =IF(OR($B11="",$E11="非燃料由来の非化石電気（オンサイトPPA含む）以外"),0,IF($I11<>"熱量換算係数を入力",$I11*OQ11,"熱量換算係数を入力")) -> 0 | OZ11: =SUM(OW11:OY11) -> 0 | PA11: =IF(OR($B11="",$E11="非燃料由来の非化石電気（オンサイトPPA含む）以外"),0,IF($I11<>"熱量換算係数を入力",$I11*OS11,"熱量換算係数を入力")) -> 0 | PB11: =IF(OR($B11="",$E11="非燃料由来の非化石電気（オンサイトPPA含む）以外"),0,IF($I11<>"熱量換算係数を入力",$I11*OT11,"熱量換算係数を入力")) -> 0 | PC11: =IF(OR($B11="",$E11="非燃料由来の非化石電気（オンサイトPPA含む）以外"),0,IF($I11<>"熱量換算係数を入力",$I11*OU11,"熱量換算係数を入力")) -> 0 | PD11: =SUM(PA11:PC11) -> 0 | PE11: =IF(OR($B11="",$E11="非燃料由来の非化石電気（オンサイトPPA含む）以外"),0,IF($J11<>"基礎排出係数を入力",$J11*OO11,"基礎排出係数を入力")) -> 0 | PF11: =IF(OR($B11="",$E11="非燃料由来の非化石電気（オンサイトPPA含む）以外"),0,IF($J11<>"基礎排出係数を入力",$J11*OP11,"基礎排出係数を入力")) -> 0 | PG11: =IF(OR($B11="",$E11="非燃料由来の非化石電気（オンサイトPPA含む）以外"),0,IF($J11<>"基礎排出係数を入力",$J11*OQ11,"基礎排出係数を入力")) -> 0 | PH11: =SUM(PE11:PG11) -> 0 | PI11: =IF(OR($B11="",$E11="非燃料由来の非化石電気（オンサイトPPA含む）以外"),0,IF($J11<>"基礎排出係数を入力",$J11*OS11,"基礎排出係数を入力")) -> 0 | PJ11: =IF(OR($B11="",$E11="非燃料由来の非化石電気（オンサイトPPA含む）以外"),0,IF($J11<>"基礎排出係数を入力",$J11*OT11,"基礎排出係数を入力")) -> 0 | PK11: =IF(OR($B11="",$E11="非燃料由来の非化石電気（オンサイトPPA含む）以外"),0,IF($J11<>"基礎排出係数を入力",$J11*OU11,"基礎排出係数を入力")) -> 0 | PL11: =SUM(PI11:PK11) -> 0 | PM11: =IF(OR($B11="",$E11="非燃料由来の非化石電気（オンサイトPPA含む）以外"),0,IF($K11<>"調整後排出係数を入力",$K11*OO11,"調整後排出係数を入力")) -> 0 | PN11: =IF(OR($B11="",$E11="非燃料由来の非化石電気（オンサイトPPA含む）以外"),0,IF($K11<>"調整後排出係数を入力",$K11*OX11,"調整後排出係数を入力")) -> 0 | PO11: =IF(OR($B11="",$E11="非燃料由来の非化石電気（オンサイトPPA含む）以外"),0,IF($K11<>"調整後排出係数を入力",$K11*OY11,"調整後排出係数を入力")) -> 0 | PP11: =SUM(PM11:PO11) -> 0 | PQ11: =IF(OR($B11="",$E11="非燃料由来の非化石電気（オンサイトPPA含む）以外"),0,IF($K11<>"調整後排出係数を入力",$K11*PA11,"調整後排出係数を入力")) -> 0 | PR11: =IF(OR($B11="",$E11="非燃料由来の非化石電気（オンサイトPPA含む）以外"),0,IF($K11<>"調整後排出係数を入力",$K11*PB11,"調整後排出係数を入力")) -> 0 | PS11: =IF(OR($B11="",$E11="非燃料由来の非化石電気（オンサイトPPA含む）以外"),0,IF($K11<>"調整後排出係数を入力",$K11*PC11,"調整後排出係数を入力")) -> 0 | PT11: =SUM(PQ11:PS11) -> 0
I12: =IF(OR($B12="",$E12="非燃料由来の非化石電気（オンサイトPPA含む）以外"),"",IFERROR(VLOOKUP(B12&C12&D12&E12&F12,'熱量換算係数(電気)'!$A$4:$G$24,7,FALSE),"熱量換算係数を入力")) ->  | J12: =IF(OR($B12="",$E12="非燃料由来の非化石電気（オンサイトPPA含む）以外"),"",IFERROR(VLOOKUP($G12,'排出係数(電気)'!$C$10:$D$1258,2,FALSE),IF(F12="化石分","基礎排出係数を入力",0))) ->  | K12: =IF(OR($B12="",$E12="非燃料由来の非化石電気（オンサイトPPA含む）以外"),"",IFERROR(VLOOKUP($G12&H12,'排出係数(電気)'!$A$10:$F$1258,6,FALSE),IF(ISNUMBER($J12)=TRUE,$J12,"調整後排出係数を入力"))) ->  | M12: 0 | N12: 0 | O12: 0 | P12: 0 | Q12: 0 | R12: 0 | S12: 0 | T12: 0 | U12: 0 | V12: 0 | W12: 0 | X12: 0 | Y12: 0 | Z12: 0 | AA12: 0 | AB12: 0 | AC12: 0 | AD12: 0 | AE12: 0 | AF12: 0 | AG12: 0 | AH12: 0 | AI12: 0 | AJ12: 0 | AK12: 0 | AL12: 0 | AM12: 0 | AN12: 0 | AP12: 0 | AQ12: 0 | AR12: 0 | AS12: 0 | AT12: 0 | AU12: 0 | AV12: 0 | AW12: 0 | AX12: 0 | AY12: 0 | AZ12: 0 | BA12: 0 | BB12: 0 | BC12: 0 | BD12: 0 | BE12: 0 | BF12: 0 | BG12: 0 | BH12: 0 | BI12: 0 | BJ12: 0 | BK12: 0 | BL12: 0 | BM12: 0 | BN12: 0 | BO12: 0 | BP12: 0 | BQ12: 0 | BR12: 0 | BS12: 0 | BT12: 0 | BU12: 0 | BW12: 0 | BX12: 0 | BY12: 0 | BZ12: 0 | CA12: 0 | CB12: 0 | CC12: 0 | CD12: 0 | CE12: 0 | CF12: 0 | CG12: 0 | CH12: 0 | CI12: 0 | CJ12: 0 | CK12: 0 | CL12: 0 | CM12: 0 | CN12: 0 | CO12: 0 | CP12: 0 | CQ12: 0 | CR12: 0 | CS12: 0 | CT12: 0 | CU12: 0 | CV12: 0 | CW12: 0 | CX12: 0 | CY12: 0 | CZ12: 0 | DA12: 0 | DB12: 0 | DD12: 0 | DE12: 0 | DF12: 0 | DG12: 0 | DH12: 0 | DI12: 0 | DJ12: 0 | DK12: 0 | DL12: 0 | DM12: 0 | DN12: 0 | DO12: 0 | DP12: 0 | DQ12: 0 | DR12: 0 | DS12: 0 | DT12: 0 | DU12: 0 | DV12: 0 | DW12: 0 | DX12: 0 | DY12: 0 | DZ12: 0 | EA12: 0 | EB12: 0 | EC12: 0 | ED12: 0 | EE12: 0 | EF12: 0 | EG12: 0 | EH12: 0 | EI12: 0 | EK12: 0 | EL12: 0 | EM12: 0 | EN12: 0 | EO12: 0 | EP12: 0 | EQ12: 0 | ER12: 0 | ES12: 0 | ET12: 0 | EU12: 0 | EV12: 0 | EW12: 0 | EX12: 0 | EY12: 0 | EZ12: 0 | FA12: 0 | FB12: 0 | FC12: 0 | FD12: 0 | FE12: 0 | FF12: 0 | FG12: 0 | FH12: 0 | FI12: 0 | FJ12: 0 | FK12: 0 | FL12: 0 | FM12: 0 | FN12: 0 | FO12: 0 | FP12: 0 | FR12: 0 | FS12: 0 | FT12: 0 | FU12: 0 | FV12: 0 | FW12: 0 | FX12: 0 | FY12: 0 | FZ12: 0 | GA12: 0 | GB12: 0 | GC12: 0 | GD12: 0 | GE12: 0 | GF12: 0 | GG12: 0 | GH12: 0 | GI12: 0 | GJ12: 0 | GK12: 0 | GL12: 0 | GM12: 0 | GN12: 0 | GO12: 0 | GP12: 0 | GQ12: 0 | GR12: 0 | GS12: 0 | GT12: 0 | GU12: 0 | GV12: 0 | GW12: 0 | GY12: 0 | GZ12: 0 | HA12: 0 | HB12: 0 | HC12: 0 | HD12: 0 | HE12: 0 | HF12: 0 | HG12: 0 | HH12: 0 | HI12: 0 | HJ12: 0 | HK12: 0 | HL12: 0 | HM12: 0 | HN12: 0 | HO12: 0 | HP12: 0 | HQ12: 0 | HR12: 0 | HS12: 0 | HT12: 0 | HU12: 0 | HV12: 0 | HW12: 0 | HX12: 0 | HY12: 0 | HZ12: 0 | IA12: 0 | IB12: 0 | IC12: 0 | ID12: 0 | IF12: 0 | IG12: 0 | IH12: 0 | II12: 0 | IJ12: 0 | IK12: 0 | IL12: 0 | IM12: 0 | IN12: 0 | IO12: 0 | IP12: 0 | IQ12: 0 | IR12: 0 | IS12: 0 | IT12: 0 | IU12: 0 | IV12: 0 | IW12: 0 | IX12: 0 | IY12: 0 | IZ12: 0 | JA12: 0 | JB12: 0 | JC12: 0 | JD12: 0 | JE12: 0 | JF12: 0 | JG12: 0 | JH12: 0 | JI12: 0 | JJ12: 0 | JK12: 0 | JM12: 0 | JN12: 0 | JO12: 0 | JP12: 0 | JQ12: 0 | JR12: 0 | JS12: 0 | JT12: 0 | JU12: 0 | JV12: 0 | JW12: 0 | JX12: 0 | JY12: 0 | JZ12: 0 | KA12: 0 | KB12: 0 | KC12: 0 | KD12: 0 | KE12: 0 | KF12: 0 | KG12: 0 | KH12: 0 | KI12: 0 | KJ12: 0 | KK12: 0 | KL12: 0 | KM12: 0 | KN12: 0 | KO12: 0 | KP12: 0 | KQ12: 0 | KR12: 0 | KT12: 0 | KU12: 0 | KV12: 0 | KW12: 0 | KX12: 0 | KY12: 0 | KZ12: 0 | LA12: 0 | LB12: 0 | LC12: 0 | LD12: 0 | LE12: 0 | LF12: 0 | LG12: 0 | LH12: 0 | LI12: 0 | LJ12: 0 | LK12: 0 | LL12: 0 | LM12: 0 | LN12: 0 | LO12: 0 | LP12: 0 | LQ12: 0 | LR12: 0 | LS12: 0 | LT12: 0 | LU12: 0 | LV12: 0 | LW12: 0 | LX12: 0 | LY12: 0 | MA12: 0 | MB12: 0 | MC12: 0 | MD12: 0 | ME12: 0 | MF12: 0 | MG12: 0 | MH12: 0 | MI12: 0 | MJ12: 0 | MK12: 0 | ML12: 0 | MM12: 0 | MN12: 0 | MO12: 0 | MP12: 0 | MQ12: 0 | MR12: 0 | MS12: 0 | MT12: 0 | MU12: 0 | MV12: 0 | MW12: 0 | MX12: 0 | MY12: 0 | MZ12: 0 | NA12: 0 | NB12: 0 | NC12: 0 | ND12: 0 | NE12: 0 | NF12: 0 | NH12: 0 | NI12: 0 | NJ12: 0 | NK12: 0 | NL12: 0 | NM12: 0 | NN12: 0 | NO12: 0 | NP12: 0 | NQ12: 0 | NR12: 0 | NS12: 0 | NT12: 0 | NU12: 0 | NV12: 0 | NW12: 0 | NX12: 0 | NY12: 0 | NZ12: 0 | OA12: 0 | OB12: 0 | OC12: 0 | OD12: 0 | OE12: 0 | OF12: 0 | OG12: 0 | OH12: 0 | OI12: 0 | OJ12: 0 | OK12: 0 | OL12: 0 | OM12: 0 | OO12: 0 | OP12: 0 | OQ12: 0 | OR12: 0 | OS12: 0 | OT12: 0 | OU12: 0 | OV12: 0 | OW12: 0 | OX12: 0 | OY12: 0 | OZ12: 0 | PA12: 0 | PB12: 0 | PC12: 0 | PD12: 0 | PE12: 0 | PF12: 0 | PG12: 0 | PH12: 0 | PI12: 0 | PJ12: 0 | PK12: 0 | PL12: 0 | PM12: 0 | PN12: 0 | PO12: 0 | PP12: 0 | PQ12: 0 | PR12: 0 | PS12: 0 | PT12: 0
I13: =IF(OR($B13="",$E13="非燃料由来の非化石電気（オンサイトPPA含む）以外"),"",IFERROR(VLOOKUP(B13&C13&D13&E13&F13,'熱量換算係数(電気)'!$A$4:$G$24,7,FALSE),"熱量換算係数を入力")) ->  | J13: =IF(OR($B13="",$E13="非燃料由来の非化石電気（オンサイトPPA含む）以外"),"",IFERROR(VLOOKUP($G13,'排出係数(電気)'!$C$10:$D$1258,2,FALSE),IF(F13="化石分","基礎排出係数を入力",0))) ->  | K13: =IF(OR($B13="",$E13="非燃料由来の非化石電気（オンサイトPPA含む）以外"),"",IFERROR(VLOOKUP($G13&H13,'排出係数(電気)'!$A$10:$F$1258,6,FALSE),IF(ISNUMBER($J13)=TRUE,$J13,"調整後排出係数を入力"))) ->  | M13: 0 | N13: 0 | O13: 0 | P13: 0 | Q13: 0 | R13: 0 | S13: 0 | T13: 0 | U13: 0 | V13: 0 | W13: 0 | X13: 0 | Y13: 0 | Z13: 0 | AA13: 0 | AB13: 0 | AC13: 0 | AD13: 0 | AE13: 0 | AF13: 0 | AG13: 0 | AH13: 0 | AI13: 0 | AJ13: 0 | AK13: 0 | AL13: 0 | AM13: 0 | AN13: 0 | AP13: 0 | AQ13: 0 | AR13: 0 | AS13: 0 | AT13: 0 | AU13: 0 | AV13: 0 | AW13: 0 | AX13: 0 | AY13: 0 | AZ13: 0 | BA13: 0 | BB13: 0 | BC13: 0 | BD13: 0 | BE13: 0 | BF13: 0 | BG13: 0 | BH13: 0 | BI13: 0 | BJ13: 0 | BK13: 0 | BL13: 0 | BM13: 0 | BN13: 0 | BO13: 0 | BP13: 0 | BQ13: 0 | BR13: 0 | BS13: 0 | BT13: 0 | BU13: 0 | BW13: 0 | BX13: 0 | BY13: 0 | BZ13: 0 | CA13: 0 | CB13: 0 | CC13: 0 | CD13: 0 | CE13: 0 | CF13: 0 | CG13: 0 | CH13: 0 | CI13: 0 | CJ13: 0 | CK13: 0 | CL13: 0 | CM13: 0 | CN13: 0 | CO13: 0 | CP13: 0 | CQ13: 0 | CR13: 0 | CS13: 0 | CT13: 0 | CU13: 0 | CV13: 0 | CW13: 0 | CX13: 0 | CY13: 0 | CZ13: 0 | DA13: 0 | DB13: 0 | DD13: 0 | DE13: 0 | DF13: 0 | DG13: 0 | DH13: 0 | DI13: 0 | DJ13: 0 | DK13: 0 | DL13: 0 | DM13: 0 | DN13: 0 | DO13: 0 | DP13: 0 | DQ13: 0 | DR13: 0 | DS13: 0 | DT13: 0 | DU13: 0 | DV13: 0 | DW13: 0 | DX13: 0 | DY13: 0 | DZ13: 0 | EA13: 0 | EB13: 0 | EC13: 0 | ED13: 0 | EE13: 0 | EF13: 0 | EG13: 0 | EH13: 0 | EI13: 0 | EK13: 0 | EL13: 0 | EM13: 0 | EN13: 0 | EO13: 0 | EP13: 0 | EQ13: 0 | ER13: 0 | ES13: 0 | ET13: 0 | EU13: 0 | EV13: 0 | EW13: 0 | EX13: 0 | EY13: 0 | EZ13: 0 | FA13: 0 | FB13: 0 | FC13: 0 | FD13: 0 | FE13: 0 | FF13: 0 | FG13: 0 | FH13: 0 | FI13: 0 | FJ13: 0 | FK13: 0 | FL13: 0 | FM13: 0 | FN13: 0 | FO13: 0 | FP13: 0 | FR13: 0 | FS13: 0 | FT13: 0 | FU13: 0 | FV13: 0 | FW13: 0 | FX13: 0 | FY13: 0 | FZ13: 0 | GA13: 0 | GB13: 0 | GC13: 0 | GD13: 0 | GE13: 0 | GF13: 0 | GG13: 0 | GH13: 0 | GI13: 0 | GJ13: 0 | GK13: 0 | GL13: 0 | GM13: 0 | GN13: 0 | GO13: 0 | GP13: 0 | GQ13: 0 | GR13: 0 | GS13: 0 | GT13: 0 | GU13: 0 | GV13: 0 | GW13: 0 | GY13: 0 | GZ13: 0 | HA13: 0 | HB13: 0 | HC13: 0 | HD13: 0 | HE13: 0 | HF13: 0 | HG13: 0 | HH13: 0 | HI13: 0 | HJ13: 0 | HK13: 0 | HL13: 0 | HM13: 0 | HN13: 0 | HO13: 0 | HP13: 0 | HQ13: 0 | HR13: 0 | HS13: 0 | HT13: 0 | HU13: 0 | HV13: 0 | HW13: 0 | HX13: 0 | HY13: 0 | HZ13: 0 | IA13: 0 | IB13: 0 | IC13: 0 | ID13: 0 | IF13: 0 | IG13: 0 | IH13: 0 | II13: 0 | IJ13: 0 | IK13: 0 | IL13: 0 | IM13: 0 | IN13: 0 | IO13: 0 | IP13: 0 | IQ13: 0 | IR13: 0 | IS13: 0 | IT13: 0 | IU13: 0 | IV13: 0 | IW13: 0 | IX13: 0 | IY13: 0 | IZ13: 0 | JA13: 0 | JB13: 0 | JC13: 0 | JD13: 0 | JE13: 0 | JF13: 0 | JG13: 0 | JH13: 0 | JI13: 0 | JJ13: 0 | JK13: 0 | JM13: 0 | JN13: 0 | JO13: 0 | JP13: 0 | JQ13: 0 | JR13: 0 | JS13: 0 | JT13: 0 | JU13: 0 | JV13: 0 | JW13: 0 | JX13: 0 | JY13: 0 | JZ13: 0 | KA13: 0 | KB13: 0 | KC13: 0 | KD13: 0 | KE13: 0 | KF13: 0 | KG13: 0 | KH13: 0 | KI13: 0 | KJ13: 0 | KK13: 0 | KL13: 0 | KM13: 0 | KN13: 0 | KO13: 0 | KP13: 0 | KQ13: 0 | KR13: 0 | KT13: 0 | KU13: 0 | KV13: 0 | KW13: 0 | KX13: 0 | KY13: 0 | KZ13: 0 | LA13: 0 | LB13: 0 | LC13: 0 | LD13: 0 | LE13: 0 | LF13: 0 | LG13: 0 | LH13: 0 | LI13: 0 | LJ13: 0 | LK13: 0 | LL13: 0 | LM13: 0 | LN13: 0 | LO13: 0 | LP13: 0 | LQ13: 0 | LR13: 0 | LS13: 0 | LT13: 0 | LU13: 0 | LV13: 0 | LW13: 0 | LX13: 0 | LY13: 0 | MA13: 0 | MB13: 0 | MC13: 0 | MD13: 0 | ME13: 0 | MF13: 0 | MG13: 0 | MH13: 0 | MI13: 0 | MJ13: 0 | MK13: 0 | ML13: 0 | MM13: 0 | MN13: 0 | MO13: 0 | MP13: 0 | MQ13: 0 | MR13: 0 | MS13: 0 | MT13: 0 | MU13: 0 | MV13: 0 | MW13: 0 | MX13: 0 | MY13: 0 | MZ13: 0 | NA13: 0 | NB13: 0 | NC13: 0 | ND13: 0 | NE13: 0 | NF13: 0 | NH13: 0 | NI13: 0 | NJ13: 0 | NK13: 0 | NL13: 0 | NM13: 0 | NN13: 0 | NO13: 0 | NP13: 0 | NQ13: 0 | NR13: 0 | NS13: 0 | NT13: 0 | NU13: 0 | NV13: 0 | NW13: 0 | NX13: 0 | NY13: 0 | NZ13: 0 | OA13: 0 | OB13: 0 | OC13: 0 | OD13: 0 | OE13: 0 | OF13: 0 | OG13: 0 | OH13: 0 | OI13: 0 | OJ13: 0 | OK13: 0 | OL13: 0 | OM13: 0 | OO13: 0 | OP13: 0 | OQ13: 0 | OR13: 0 | OS13: 0 | OT13: 0 | OU13: 0 | OV13: 0 | OW13: 0 | OX13: 0 | OY13: 0 | OZ13: 0 | PA13: 0 | PB13: 0 | PC13: 0 | PD13: 0 | PE13: 0 | PF13: 0 | PG13: 0 | PH13: 0 | PI13: 0 | PJ13: 0 | PK13: 0 | PL13: 0 | PM13: 0 | PN13: 0 | PO13: 0 | PP13: 0 | PQ13: 0 | PR13: 0 | PS13: 0 | PT13: 0
I14: =IF(OR($B14="",$E14="非燃料由来の非化石電気（オンサイトPPA含む）以外"),"",IFERROR(VLOOKUP(B14&C14&D14&E14&F14,'熱量換算係数(電気)'!$A$4:$G$24,7,FALSE),"熱量換算係数を入力")) ->  | J14: =IF(OR($B14="",$E14="非燃料由来の非化石電気（オンサイトPPA含む）以外"),"",IFERROR(VLOOKUP($G14,'排出係数(電気)'!$C$10:$D$1258,2,FALSE),IF(F14="化石分","基礎排出係数を入力",0))) ->  | K14: =IF(OR($B14="",$E14="非燃料由来の非化石電気（オンサイトPPA含む）以外"),"",IFERROR(VLOOKUP($G14&H14,'排出係数(電気)'!$A$10:$F$1258,6,FALSE),IF(ISNUMBER($J14)=TRUE,$J14,"調整後排出係数を入力"))) ->  | M14: 0 | N14: 0 | O14: 0 | P14: 0 | Q14: 0 | R14: 0 | S14: 0 | T14: 0 | U14: 0 | V14: 0 | W14: 0 | X14: 0 | Y14: 0 | Z14: 0 | AA14: 0 | AB14: 0 | AC14: 0 | AD14: 0 | AE14: 0 | AF14: 0 | AG14: 0 | AH14: 0 | AI14: 0 | AJ14: 0 | AK14: 0 | AL14: 0 | AM14: 0 | AN14: 0 | AP14: 0 | AQ14: 0 | AR14: 0 | AS14: 0 | AT14: 0 | AU14: 0 | AV14: 0 | AW14: 0 | AX14: 0 | AY14: 0 | AZ14: 0 | BA14: 0 | BB14: 0 | BC14: 0 | BD14: 0 | BE14: 0 | BF14: 0 | BG14: 0 | BH14: 0 | BI14: 0 | BJ14: 0 | BK14: 0 | BL14: 0 | BM14: 0 | BN14: 0 | BO14: 0 | BP14: 0 | BQ14: 0 | BR14: 0 | BS14: 0 | BT14: 0 | BU14: 0 | BW14: 0 | BX14: 0 | BY14: 0 | BZ14: 0 | CA14: 0 | CB14: 0 | CC14: 0 | CD14: 0 | CE14: 0 | CF14: 0 | CG14: 0 | CH14: 0 | CI14: 0 | CJ14: 0 | CK14: 0 | CL14: 0 | CM14: 0 | CN14: 0 | CO14: 0 | CP14: 0 | CQ14: 0 | CR14: 0 | CS14: 0 | CT14: 0 | CU14: 0 | CV14: 0 | CW14: 0 | CX14: 0 | CY14: 0 | CZ14: 0 | DA14: 0 | DB14: 0 | DD14: 0 | DE14: 0 | DF14: 0 | DG14: 0 | DH14: 0 | DI14: 0 | DJ14: 0 | DK14: 0 | DL14: 0 | DM14: 0 | DN14: 0 | DO14: 0 | DP14: 0 | DQ14: 0 | DR14: 0 | DS14: 0 | DT14: 0 | DU14: 0 | DV14: 0 | DW14: 0 | DX14: 0 | DY14: 0 | DZ14: 0 | EA14: 0 | EB14: 0 | EC14: 0 | ED14: 0 | EE14: 0 | EF14: 0 | EG14: 0 | EH14: 0 | EI14: 0 | EK14: 0 | EL14: 0 | EM14: 0 | EN14: 0 | EO14: 0 | EP14: 0 | EQ14: 0 | ER14: 0 | ES14: 0 | ET14: 0 | EU14: 0 | EV14: 0 | EW14: 0 | EX14: 0 | EY14: 0 | EZ14: 0 | FA14: 0 | FB14: 0 | FC14: 0 | FD14: 0 | FE14: 0 | FF14: 0 | FG14: 0 | FH14: 0 | FI14: 0 | FJ14: 0 | FK14: 0 | FL14: 0 | FM14: 0 | FN14: 0 | FO14: 0 | FP14: 0 | FR14: 0 | FS14: 0 | FT14: 0 | FU14: 0 | FV14: 0 | FW14: 0 | FX14: 0 | FY14: 0 | FZ14: 0 | GA14: 0 | GB14: 0 | GC14: 0 | GD14: 0 | GE14: 0 | GF14: 0 | GG14: 0 | GH14: 0 | GI14: 0 | GJ14: 0 | GK14: 0 | GL14: 0 | GM14: 0 | GN14: 0 | GO14: 0 | GP14: 0 | GQ14: 0 | GR14: 0 | GS14: 0 | GT14: 0 | GU14: 0 | GV14: 0 | GW14: 0 | GY14: 0 | GZ14: 0 | HA14: 0 | HB14: 0 | HC14: 0 | HD14: 0 | HE14: 0 | HF14: 0 | HG14: 0 | HH14: 0 | HI14: 0 | HJ14: 0 | HK14: 0 | HL14: 0 | HM14: 0 | HN14: 0 | HO14: 0 | HP14: 0 | HQ14: 0 | HR14: 0 | HS14: 0 | HT14: 0 | HU14: 0 | HV14: 0 | HW14: 0 | HX14: 0 | HY14: 0 | HZ14: 0 | IA14: 0 | IB14: 0 | IC14: 0 | ID14: 0 | IF14: 0 | IG14: 0 | IH14: 0 | II14: 0 | IJ14: 0 | IK14: 0 | IL14: 0 | IM14: 0 | IN14: 0 | IO14: 0 | IP14: 0 | IQ14: 0 | IR14: 0 | IS14: 0 | IT14: 0 | IU14: 0 | IV14: 0 | IW14: 0 | IX14: 0 | IY14: 0 | IZ14: 0 | JA14: 0 | JB14: 0 | JC14: 0 | JD14: 0 | JE14: 0 | JF14: 0 | JG14: 0 | JH14: 0 | JI14: 0 | JJ14: 0 | JK14: 0 | JM14: 0 | JN14: 0 | JO14: 0 | JP14: 0 | JQ14: 0 | JR14: 0 | JS14: 0 | JT14: 0 | JU14: 0 | JV14: 0 | JW14: 0 | JX14: 0 | JY14: 0 | JZ14: 0 | KA14: 0 | KB14: 0 | KC14: 0 | KD14: 0 | KE14: 0 | KF14: 0 | KG14: 0 | KH14: 0 | KI14: 0 | KJ14: 0 | KK14: 0 | KL14: 0 | KM14: 0 | KN14: 0 | KO14: 0 | KP14: 0 | KQ14: 0 | KR14: 0 | KT14: 0 | KU14: 0 | KV14: 0 | KW14: 0 | KX14: 0 | KY14: 0 | KZ14: 0 | LA14: 0 | LB14: 0 | LC14: 0 | LD14: 0 | LE14: 0 | LF14: 0 | LG14: 0 | LH14: 0 | LI14: 0 | LJ14: 0 | LK14: 0 | LL14: 0 | LM14: 0 | LN14: 0 | LO14: 0 | LP14: 0 | LQ14: 0 | LR14: 0 | LS14: 0 | LT14: 0 | LU14: 0 | LV14: 0 | LW14: 0 | LX14: 0 | LY14: 0 | MA14: 0 | MB14: 0 | MC14: 0 | MD14: 0 | ME14: 0 | MF14: 0 | MG14: 0 | MH14: 0 | MI14: 0 | MJ14: 0 | MK14: 0 | ML14: 0 | MM14: 0 | MN14: 0 | MO14: 0 | MP14: 0 | MQ14: 0 | MR14: 0 | MS14: 0 | MT14: 0 | MU14: 0 | MV14: 0 | MW14: 0 | MX14: 0 | MY14: 0 | MZ14: 0 | NA14: 0 | NB14: 0 | NC14: 0 | ND14: 0 | NE14: 0 | NF14: 0 | NH14: 0 | NI14: 0 | NJ14: 0 | NK14: 0 | NL14: 0 | NM14: 0 | NN14: 0 | NO14: 0 | NP14: 0 | NQ14: 0 | NR14: 0 | NS14: 0 | NT14: 0 | NU14: 0 | NV14: 0 | NW14: 0 | NX14: 0 | NY14: 0 | NZ14: 0 | OA14: 0 | OB14: 0 | OC14: 0 | OD14: 0 | OE14: 0 | OF14: 0 | OG14: 0 | OH14: 0 | OI14: 0 | OJ14: 0 | OK14: 0 | OL14: 0 | OM14: 0 | OO14: 0 | OP14: 0 | OQ14: 0 | OR14: 0 | OS14: 0 | OT14: 0 | OU14: 0 | OV14: 0 | OW14: 0 | OX14: 0 | OY14: 0 | OZ14: 0 | PA14: 0 | PB14: 0 | PC14: 0 | PD14: 0 | PE14: 0 | PF14: 0 | PG14: 0 | PH14: 0 | PI14: 0 | PJ14: 0 | PK14: 0 | PL14: 0 | PM14: 0 | PN14: 0 | PO14: 0 | PP14: 0 | PQ14: 0 | PR14: 0 | PS14: 0 | PT14: 0
I15: =IF(OR($B15="",$E15="非燃料由来の非化石電気（オンサイトPPA含む）以外"),"",IFERROR(VLOOKUP(B15&C15&D15&E15&F15,'熱量換算係数(電気)'!$A$4:$G$24,7,FALSE),"熱量換算係数を入力")) ->  | J15: =IF(OR($B15="",$E15="非燃料由来の非化石電気（オンサイトPPA含む）以外"),"",IFERROR(VLOOKUP($G15,'排出係数(電気)'!$C$10:$D$1258,2,FALSE),IF(F15="化石分","基礎排出係数を入力",0))) ->  | K15: =IF(OR($B15="",$E15="非燃料由来の非化石電気（オンサイトPPA含む）以外"),"",IFERROR(VLOOKUP($G15&H15,'排出係数(電気)'!$A$10:$F$1258,6,FALSE),IF(ISNUMBER($J15)=TRUE,$J15,"調整後排出係数を入力"))) ->  | M15: 0 | N15: 0 | O15: 0 | P15: 0 | Q15: 0 | R15: 0 | S15: 0 | T15: 0 | U15: 0 | V15: 0 | W15: 0 | X15: 0 | Y15: 0 | Z15: 0 | AA15: 0 | AB15: 0 | AC15: 0 | AD15: 0 | AE15: 0 | AF15: 0 | AG15: 0 | AH15: 0 | AI15: 0 | AJ15: 0 | AK15: 0 | AL15: 0 | AM15: 0 | AN15: 0 | AP15: 0 | AQ15: 0 | AR15: 0 | AS15: 0 | AT15: 0 | AU15: 0 | AV15: 0 | AW15: 0 | AX15: 0 | AY15: 0 | AZ15: 0 | BA15: 0 | BB15: 0 | BC15: 0 | BD15: 0 | BE15: 0 | BF15: 0 | BG15: 0 | BH15: 0 | BI15: 0 | BJ15: 0 | BK15: 0 | BL15: 0 | BM15: 0 | BN15: 0 | BO15: 0 | BP15: 0 | BQ15: 0 | BR15: 0 | BS15: 0 | BT15: 0 | BU15: 0 | BW15: 0 | BX15: 0 | BY15: 0 | BZ15: 0 | CA15: 0 | CB15: 0 | CC15: 0 | CD15: 0 | CE15: 0 | CF15: 0 | CG15: 0 | CH15: 0 | CI15: 0 | CJ15: 0 | CK15: 0 | CL15: 0 | CM15: 0 | CN15: 0 | CO15: 0 | CP15: 0 | CQ15: 0 | CR15: 0 | CS15: 0 | CT15: 0 | CU15: 0 | CV15: 0 | CW15: 0 | CX15: 0 | CY15: 0 | CZ15: 0 | DA15: 0 | DB15: 0 | DD15: 0 | DE15: 0 | DF15: 0 | DG15: 0 | DH15: 0 | DI15: 0 | DJ15: 0 | DK15: 0 | DL15: 0 | DM15: 0 | DN15: 0 | DO15: 0 | DP15: 0 | DQ15: 0 | DR15: 0 | DS15: 0 | DT15: 0 | DU15: 0 | DV15: 0 | DW15: 0 | DX15: 0 | DY15: 0 | DZ15: 0 | EA15: 0 | EB15: 0 | EC15: 0 | ED15: 0 | EE15: 0 | EF15: 0 | EG15: 0 | EH15: 0 | EI15: 0 | EK15: 0 | EL15: 0 | EM15: 0 | EN15: 0 | EO15: 0 | EP15: 0 | EQ15: 0 | ER15: 0 | ES15: 0 | ET15: 0 | EU15: 0 | EV15: 0 | EW15: 0 | EX15: 0 | EY15: 0 | EZ15: 0 | FA15: 0 | FB15: 0 | FC15: 0 | FD15: 0 | FE15: 0 | FF15: 0 | FG15: 0 | FH15: 0 | FI15: 0 | FJ15: 0 | FK15: 0 | FL15: 0 | FM15: 0 | FN15: 0 | FO15: 0 | FP15: 0 | FR15: 0 | FS15: 0 | FT15: 0 | FU15: 0 | FV15: 0 | FW15: 0 | FX15: 0 | FY15: 0 | FZ15: 0 | GA15: 0 | GB15: 0 | GC15: 0 | GD15: 0 | GE15: 0 | GF15: 0 | GG15: 0 | GH15: 0 | GI15: 0 | GJ15: 0 | GK15: 0 | GL15: 0 | GM15: 0 | GN15: 0 | GO15: 0 | GP15: 0 | GQ15: 0 | GR15: 0 | GS15: 0 | GT15: 0 | GU15: 0 | GV15: 0 | GW15: 0 | GY15: 0 | GZ15: 0 | HA15: 0 | HB15: 0 | HC15: 0 | HD15: 0 | HE15: 0 | HF15: 0 | HG15: 0 | HH15: 0 | HI15: 0 | HJ15: 0 | HK15: 0 | HL15: 0 | HM15: 0 | HN15: 0 | HO15: 0 | HP15: 0 | HQ15: 0 | HR15: 0 | HS15: 0 | HT15: 0 | HU15: 0 | HV15: 0 | HW15: 0 | HX15: 0 | HY15: 0 | HZ15: 0 | IA15: 0 | IB15: 0 | IC15: 0 | ID15: 0 | IF15: 0 | IG15: 0 | IH15: 0 | II15: 0 | IJ15: 0 | IK15: 0 | IL15: 0 | IM15: 0 | IN15: 0 | IO15: 0 | IP15: 0 | IQ15: 0 | IR15: 0 | IS15: 0 | IT15: 0 | IU15: 0 | IV15: 0 | IW15: 0 | IX15: 0 | IY15: 0 | IZ15: 0 | JA15: 0 | JB15: 0 | JC15: 0 | JD15: 0 | JE15: 0 | JF15: 0 | JG15: 0 | JH15: 0 | JI15: 0 | JJ15: 0 | JK15: 0 | JM15: 0 | JN15: 0 | JO15: 0 | JP15: 0 | JQ15: 0 | JR15: 0 | JS15: 0 | JT15: 0 | JU15: 0 | JV15: 0 | JW15: 0 | JX15: 0 | JY15: 0 | JZ15: 0 | KA15: 0 | KB15: 0 | KC15: 0 | KD15: 0 | KE15: 0 | KF15: 0 | KG15: 0 | KH15: 0 | KI15: 0 | KJ15: 0 | KK15: 0 | KL15: 0 | KM15: 0 | KN15: 0 | KO15: 0 | KP15: 0 | KQ15: 0 | KR15: 0 | KT15: 0 | KU15: 0 | KV15: 0 | KW15: 0 | KX15: 0 | KY15: 0 | KZ15: 0 | LA15: 0 | LB15: 0 | LC15: 0 | LD15: 0 | LE15: 0 | LF15: 0 | LG15: 0 | LH15: 0 | LI15: 0 | LJ15: 0 | LK15: 0 | LL15: 0 | LM15: 0 | LN15: 0 | LO15: 0 | LP15: 0 | LQ15: 0 | LR15: 0 | LS15: 0 | LT15: 0 | LU15: 0 | LV15: 0 | LW15: 0 | LX15: 0 | LY15: 0 | MA15: 0 | MB15: 0 | MC15: 0 | MD15: 0 | ME15: 0 | MF15: 0 | MG15: 0 | MH15: 0 | MI15: 0 | MJ15: 0 | MK15: 0 | ML15: 0 | MM15: 0 | MN15: 0 | MO15: 0 | MP15: 0 | MQ15: 0 | MR15: 0 | MS15: 0 | MT15: 0 | MU15: 0 | MV15: 0 | MW15: 0 | MX15: 0 | MY15: 0 | MZ15: 0 | NA15: 0 | NB15: 0 | NC15: 0 | ND15: 0 | NE15: 0 | NF15: 0 | NH15: 0 | NI15: 0 | NJ15: 0 | NK15: 0 | NL15: 0 | NM15: 0 | NN15: 0 | NO15: 0 | NP15: 0 | NQ15: 0 | NR15: 0 | NS15: 0 | NT15: 0 | NU15: 0 | NV15: 0 | NW15: 0 | NX15: 0 | NY15: 0 | NZ15: 0 | OA15: 0 | OB15: 0 | OC15: 0 | OD15: 0 | OE15: 0 | OF15: 0 | OG15: 0 | OH15: 0 | OI15: 0 | OJ15: 0 | OK15: 0 | OL15: 0 | OM15: 0 | OO15: 0 | OP15: 0 | OQ15: 0 | OR15: 0 | OS15: 0 | OT15: 0 | OU15: 0 | OV15: 0 | OW15: 0 | OX15: 0 | OY15: 0 | OZ15: 0 | PA15: 0 | PB15: 0 | PC15: 0 | PD15: 0 | PE15: 0 | PF15: 0 | PG15: 0 | PH15: 0 | PI15: 0 | PJ15: 0 | PK15: 0 | PL15: 0 | PM15: 0 | PN15: 0 | PO15: 0 | PP15: 0 | PQ15: 0 | PR15: 0 | PS15: 0 | PT15: 0
I16: =IF(OR($B16="",$E16="非燃料由来の非化石電気（オンサイトPPA含む）以外"),"",IFERROR(VLOOKUP(B16&C16&D16&E16&F16,'熱量換算係数(電気)'!$A$4:$G$24,7,FALSE),"熱量換算係数を入力")) ->  | J16: =IF(OR($B16="",$E16="非燃料由来の非化石電気（オンサイトPPA含む）以外"),"",IFERROR(VLOOKUP($G16,'排出係数(電気)'!$C$10:$D$1258,2,FALSE),IF(F16="化石分","基礎排出係数を入力",0))) ->  | K16: =IF(OR($B16="",$E16="非燃料由来の非化石電気（オンサイトPPA含む）以外"),"",IFERROR(VLOOKUP($G16&H16,'排出係数(電気)'!$A$10:$F$1258,6,FALSE),IF(ISNUMBER($J16)=TRUE,$J16,"調整後排出係数を入力"))) ->  | M16: 0 | N16: 0 | O16: 0 | P16: 0 | Q16: 0 | R16: 0 | S16: 0 | T16: 0 | U16: 0 | V16: 0 | W16: 0 | X16: 0 | Y16: 0 | Z16: 0 | AA16: 0 | AB16: 0 | AC16: 0 | AD16: 0 | AE16: 0 | AF16: 0 | AG16: 0 | AH16: 0 | AI16: 0 | AJ16: 0 | AK16: 0 | AL16: 0 | AM16: 0 | AN16: 0 | AP16: 0 | AQ16: 0 | AR16: 0 | AS16: 0 | AT16: 0 | AU16: 0 | AV16: 0 | AW16: 0 | AX16: 0 | AY16: 0 | AZ16: 0 | BA16: 0 | BB16: 0 | BC16: 0 | BD16: 0 | BE16: 0 | BF16: 0 | BG16: 0 | BH16: 0 | BI16: 0 | BJ16: 0 | BK16: 0 | BL16: 0 | BM16: 0 | BN16: 0 | BO16: 0 | BP16: 0 | BQ16: 0 | BR16: 0 | BS16: 0 | BT16: 0 | BU16: 0 | BW16: 0 | BX16: 0 | BY16: 0 | BZ16: 0 | CA16: 0 | CB16: 0 | CC16: 0 | CD16: 0 | CE16: 0 | CF16: 0 | CG16: 0 | CH16: 0 | CI16: 0 | CJ16: 0 | CK16: 0 | CL16: 0 | CM16: 0 | CN16: 0 | CO16: 0 | CP16: 0 | CQ16: 0 | CR16: 0 | CS16: 0 | CT16: 0 | CU16: 0 | CV16: 0 | CW16: 0 | CX16: 0 | CY16: 0 | CZ16: 0 | DA16: 0 | DB16: 0 | DD16: 0 | DE16: 0 | DF16: 0 | DG16: 0 | DH16: 0 | DI16: 0 | DJ16: 0 | DK16: 0 | DL16: 0 | DM16: 0 | DN16: 0 | DO16: 0 | DP16: 0 | DQ16: 0 | DR16: 0 | DS16: 0 | DT16: 0 | DU16: 0 | DV16: 0 | DW16: 0 | DX16: 0 | DY16: 0 | DZ16: 0 | EA16: 0 | EB16: 0 | EC16: 0 | ED16: 0 | EE16: 0 | EF16: 0 | EG16: 0 | EH16: 0 | EI16: 0 | EK16: 0 | EL16: 0 | EM16: 0 | EN16: 0 | EO16: 0 | EP16: 0 | EQ16: 0 | ER16: 0 | ES16: 0 | ET16: 0 | EU16: 0 | EV16: 0 | EW16: 0 | EX16: 0 | EY16: 0 | EZ16: 0 | FA16: 0 | FB16: 0 | FC16: 0 | FD16: 0 | FE16: 0 | FF16: 0 | FG16: 0 | FH16: 0 | FI16: 0 | FJ16: 0 | FK16: 0 | FL16: 0 | FM16: 0 | FN16: 0 | FO16: 0 | FP16: 0 | FR16: 0 | FS16: 0 | FT16: 0 | FU16: 0 | FV16: 0 | FW16: 0 | FX16: 0 | FY16: 0 | FZ16: 0 | GA16: 0 | GB16: 0 | GC16: 0 | GD16: 0 | GE16: 0 | GF16: 0 | GG16: 0 | GH16: 0 | GI16: 0 | GJ16: 0 | GK16: 0 | GL16: 0 | GM16: 0 | GN16: 0 | GO16: 0 | GP16: 0 | GQ16: 0 | GR16: 0 | GS16: 0 | GT16: 0 | GU16: 0 | GV16: 0 | GW16: 0 | GY16: 0 | GZ16: 0 | HA16: 0 | HB16: 0 | HC16: 0 | HD16: 0 | HE16: 0 | HF16: 0 | HG16: 0 | HH16: 0 | HI16: 0 | HJ16: 0 | HK16: 0 | HL16: 0 | HM16: 0 | HN16: 0 | HO16: 0 | HP16: 0 | HQ16: 0 | HR16: 0 | HS16: 0 | HT16: 0 | HU16: 0 | HV16: 0 | HW16: 0 | HX16: 0 | HY16: 0 | HZ16: 0 | IA16: 0 | IB16: 0 | IC16: 0 | ID16: 0 | IF16: 0 | IG16: 0 | IH16: 0 | II16: 0 | IJ16: 0 | IK16: 0 | IL16: 0 | IM16: 0 | IN16: 0 | IO16: 0 | IP16: 0 | IQ16: 0 | IR16: 0 | IS16: 0 | IT16: 0 | IU16: 0 | IV16: 0 | IW16: 0 | IX16: 0 | IY16: 0 | IZ16: 0 | JA16: 0 | JB16: 0 | JC16: 0 | JD16: 0 | JE16: 0 | JF16: 0 | JG16: 0 | JH16: 0 | JI16: 0 | JJ16: 0 | JK16: 0 | JM16: 0 | JN16: 0 | JO16: 0 | JP16: 0 | JQ16: 0 | JR16: 0 | JS16: 0 | JT16: 0 | JU16: 0 | JV16: 0 | JW16: 0 | JX16: 0 | JY16: 0 | JZ16: 0 | KA16: 0 | KB16: 0 | KC16: 0 | KD16: 0 | KE16: 0 | KF16: 0 | KG16: 0 | KH16: 0 | KI16: 0 | KJ16: 0 | KK16: 0 | KL16: 0 | KM16: 0 | KN16: 0 | KO16: 0 | KP16: 0 | KQ16: 0 | KR16: 0 | KT16: 0 | KU16: 0 | KV16: 0 | KW16: 0 | KX16: 0 | KY16: 0 | KZ16: 0 | LA16: 0 | LB16: 0 | LC16: 0 | LD16: 0 | LE16: 0 | LF16: 0 | LG16: 0 | LH16: 0 | LI16: 0 | LJ16: 0 | LK16: 0 | LL16: 0 | LM16: 0 | LN16: 0 | LO16: 0 | LP16: 0 | LQ16: 0 | LR16: 0 | LS16: 0 | LT16: 0 | LU16: 0 | LV16: 0 | LW16: 0 | LX16: 0 | LY16: 0 | MA16: 0 | MB16: 0 | MC16: 0 | MD16: 0 | ME16: 0 | MF16: 0 | MG16: 0 | MH16: 0 | MI16: 0 | MJ16: 0 | MK16: 0 | ML16: 0 | MM16: 0 | MN16: 0 | MO16: 0 | MP16: 0 | MQ16: 0 | MR16: 0 | MS16: 0 | MT16: 0 | MU16: 0 | MV16: 0 | MW16: 0 | MX16: 0 | MY16: 0 | MZ16: 0 | NA16: 0 | NB16: 0 | NC16: 0 | ND16: 0 | NE16: 0 | NF16: 0 | NH16: 0 | NI16: 0 | NJ16: 0 | NK16: 0 | NL16: 0 | NM16: 0 | NN16: 0 | NO16: 0 | NP16: 0 | NQ16: 0 | NR16: 0 | NS16: 0 | NT16: 0 | NU16: 0 | NV16: 0 | NW16: 0 | NX16: 0 | NY16: 0 | NZ16: 0 | OA16: 0 | OB16: 0 | OC16: 0 | OD16: 0 | OE16: 0 | OF16: 0 | OG16: 0 | OH16: 0 | OI16: 0 | OJ16: 0 | OK16: 0 | OL16: 0 | OM16: 0 | OO16: 0 | OP16: 0 | OQ16: 0 | OR16: 0 | OS16: 0 | OT16: 0 | OU16: 0 | OV16: 0 | OW16: 0 | OX16: 0 | OY16: 0 | OZ16: 0 | PA16: 0 | PB16: 0 | PC16: 0 | PD16: 0 | PE16: 0 | PF16: 0 | PG16: 0 | PH16: 0 | PI16: 0 | PJ16: 0 | PK16: 0 | PL16: 0 | PM16: 0 | PN16: 0 | PO16: 0 | PP16: 0 | PQ16: 0 | PR16: 0 | PS16: 0 | PT16: 0
I17: =IF(OR($B17="",$E17="非燃料由来の非化石電気（オンサイトPPA含む）以外"),"",IFERROR(VLOOKUP(B17&C17&D17&E17&F17,'熱量換算係数(電気)'!$A$4:$G$24,7,FALSE),"熱量換算係数を入力")) ->  | J17: =IF(OR($B17="",$E17="非燃料由来の非化石電気（オンサイトPPA含む）以外"),"",IFERROR(VLOOKUP($G17,'排出係数(電気)'!$C$10:$D$1258,2,FALSE),IF(F17="化石分","基礎排出係数を入力",0))) ->  | K17: =IF(OR($B17="",$E17="非燃料由来の非化石電気（オンサイトPPA含む）以外"),"",IFERROR(VLOOKUP($G17&H17,'排出係数(電気)'!$A$10:$F$1258,6,FALSE),IF(ISNUMBER($J17)=TRUE,$J17,"調整後排出係数を入力"))) ->  | M17: 0 | N17: 0 | O17: 0 | P17: 0 | Q17: 0 | R17: 0 | S17: 0 | T17: 0 | U17: 0 | V17: 0 | W17: 0 | X17: 0 | Y17: 0 | Z17: 0 | AA17: 0 | AB17: 0 | AC17: 0 | AD17: 0 | AE17: 0 | AF17: 0 | AG17: 0 | AH17: 0 | AI17: 0 | AJ17: 0 | AK17: 0 | AL17: 0 | AM17: 0 | AN17: 0 | AP17: 0 | AQ17: 0 | AR17: 0 | AS17: 0 | AT17: 0 | AU17: 0 | AV17: 0 | AW17: 0 | AX17: 0 | AY17: 0 | AZ17: 0 | BA17: 0 | BB17: 0 | BC17: 0 | BD17: 0 | BE17: 0 | BF17: 0 | BG17: 0 | BH17: 0 | BI17: 0 | BJ17: 0 | BK17: 0 | BL17: 0 | BM17: 0 | BN17: 0 | BO17: 0 | BP17: 0 | BQ17: 0 | BR17: 0 | BS17: 0 | BT17: 0 | BU17: 0 | BW17: 0 | BX17: 0 | BY17: 0 | BZ17: 0 | CA17: 0 | CB17: 0 | CC17: 0 | CD17: 0 | CE17: 0 | CF17: 0 | CG17: 0 | CH17: 0 | CI17: 0 | CJ17: 0 | CK17: 0 | CL17: 0 | CM17: 0 | CN17: 0 | CO17: 0 | CP17: 0 | CQ17: 0 | CR17: 0 | CS17: 0 | CT17: 0 | CU17: 0 | CV17: 0 | CW17: 0 | CX17: 0 | CY17: 0 | CZ17: 0 | DA17: 0 | DB17: 0 | DD17: 0 | DE17: 0 | DF17: 0 | DG17: 0 | DH17: 0 | DI17: 0 | DJ17: 0 | DK17: 0 | DL17: 0 | DM17: 0 | DN17: 0 | DO17: 0 | DP17: 0 | DQ17: 0 | DR17: 0 | DS17: 0 | DT17: 0 | DU17: 0 | DV17: 0 | DW17: 0 | DX17: 0 | DY17: 0 | DZ17: 0 | EA17: 0 | EB17: 0 | EC17: 0 | ED17: 0 | EE17: 0 | EF17: 0 | EG17: 0 | EH17: 0 | EI17: 0 | EK17: 0 | EL17: 0 | EM17: 0 | EN17: 0 | EO17: 0 | EP17: 0 | EQ17: 0 | ER17: 0 | ES17: 0 | ET17: 0 | EU17: 0 | EV17: 0 | EW17: 0 | EX17: 0 | EY17: 0 | EZ17: 0 | FA17: 0 | FB17: 0 | FC17: 0 | FD17: 0 | FE17: 0 | FF17: 0 | FG17: 0 | FH17: 0 | FI17: 0 | FJ17: 0 | FK17: 0 | FL17: 0 | FM17: 0 | FN17: 0 | FO17: 0 | FP17: 0 | FR17: 0 | FS17: 0 | FT17: 0 | FU17: 0 | FV17: 0 | FW17: 0 | FX17: 0 | FY17: 0 | FZ17: 0 | GA17: 0 | GB17: 0 | GC17: 0 | GD17: 0 | GE17: 0 | GF17: 0 | GG17: 0 | GH17: 0 | GI17: 0 | GJ17: 0 | GK17: 0 | GL17: 0 | GM17: 0 | GN17: 0 | GO17: 0 | GP17: 0 | GQ17: 0 | GR17: 0 | GS17: 0 | GT17: 0 | GU17: 0 | GV17: 0 | GW17: 0 | GY17: 0 | GZ17: 0 | HA17: 0 | HB17: 0 | HC17: 0 | HD17: 0 | HE17: 0 | HF17: 0 | HG17: 0 | HH17: 0 | HI17: 0 | HJ17: 0 | HK17: 0 | HL17: 0 | HM17: 0 | HN17: 0 | HO17: 0 | HP17: 0 | HQ17: 0 | HR17: 0 | HS17: 0 | HT17: 0 | HU17: 0 | HV17: 0 | HW17: 0 | HX17: 0 | HY17: 0 | HZ17: 0 | IA17: 0 | IB17: 0 | IC17: 0 | ID17: 0 | IF17: 0 | IG17: 0 | IH17: 0 | II17: 0 | IJ17: 0 | IK17: 0 | IL17: 0 | IM17: 0 | IN17: 0 | IO17: 0 | IP17: 0 | IQ17: 0 | IR17: 0 | IS17: 0 | IT17: 0 | IU17: 0 | IV17: 0 | IW17: 0 | IX17: 0 | IY17: 0 | IZ17: 0 | JA17: 0 | JB17: 0 | JC17: 0 | JD17: 0 | JE17: 0 | JF17: 0 | JG17: 0 | JH17: 0 | JI17: 0 | JJ17: 0 | JK17: 0 | JM17: 0 | JN17: 0 | JO17: 0 | JP17: 0 | JQ17: 0 | JR17: 0 | JS17: 0 | JT17: 0 | JU17: 0 | JV17: 0 | JW17: 0 | JX17: 0 | JY17: 0 | JZ17: 0 | KA17: 0 | KB17: 0 | KC17: 0 | KD17: 0 | KE17: 0 | KF17: 0 | KG17: 0 | KH17: 0 | KI17: 0 | KJ17: 0 | KK17: 0 | KL17: 0 | KM17: 0 | KN17: 0 | KO17: 0 | KP17: 0 | KQ17: 0 | KR17: 0 | KT17: 0 | KU17: 0 | KV17: 0 | KW17: 0 | KX17: 0 | KY17: 0 | KZ17: 0 | LA17: 0 | LB17: 0 | LC17: 0 | LD17: 0 | LE17: 0 | LF17: 0 | LG17: 0 | LH17: 0 | LI17: 0 | LJ17: 0 | LK17: 0 | LL17: 0 | LM17: 0 | LN17: 0 | LO17: 0 | LP17: 0 | LQ17: 0 | LR17: 0 | LS17: 0 | LT17: 0 | LU17: 0 | LV17: 0 | LW17: 0 | LX17: 0 | LY17: 0 | MA17: 0 | MB17: 0 | MC17: 0 | MD17: 0 | ME17: 0 | MF17: 0 | MG17: 0 | MH17: 0 | MI17: 0 | MJ17: 0 | MK17: 0 | ML17: 0 | MM17: 0 | MN17: 0 | MO17: 0 | MP17: 0 | MQ17: 0 | MR17: 0 | MS17: 0 | MT17: 0 | MU17: 0 | MV17: 0 | MW17: 0 | MX17: 0 | MY17: 0 | MZ17: 0 | NA17: 0 | NB17: 0 | NC17: 0 | ND17: 0 | NE17: 0 | NF17: 0 | NH17: 0 | NI17: 0 | NJ17: 0 | NK17: 0 | NL17: 0 | NM17: 0 | NN17: 0 | NO17: 0 | NP17: 0 | NQ17: 0 | NR17: 0 | NS17: 0 | NT17: 0 | NU17: 0 | NV17: 0 | NW17: 0 | NX17: 0 | NY17: 0 | NZ17: 0 | OA17: 0 | OB17: 0 | OC17: 0 | OD17: 0 | OE17: 0 | OF17: 0 | OG17: 0 | OH17: 0 | OI17: 0 | OJ17: 0 | OK17: 0 | OL17: 0 | OM17: 0 | OO17: 0 | OP17: 0 | OQ17: 0 | OR17: 0 | OS17: 0 | OT17: 0 | OU17: 0 | OV17: 0 | OW17: 0 | OX17: 0 | OY17: 0 | OZ17: 0 | PA17: 0 | PB17: 0 | PC17: 0 | PD17: 0 | PE17: 0 | PF17: 0 | PG17: 0 | PH17: 0 | PI17: 0 | PJ17: 0 | PK17: 0 | PL17: 0 | PM17: 0 | PN17: 0 | PO17: 0 | PP17: 0 | PQ17: 0 | PR17: 0 | PS17: 0 | PT17: 0
I18: =IF(OR($B18="",$E18="非燃料由来の非化石電気（オンサイトPPA含む）以外"),"",IFERROR(VLOOKUP(B18&C18&D18&E18&F18,'熱量換算係数(電気)'!$A$4:$G$24,7,FALSE),"熱量換算係数を入力")) ->  | J18: =IF(OR($B18="",$E18="非燃料由来の非化石電気（オンサイトPPA含む）以外"),"",IFERROR(VLOOKUP($G18,'排出係数(電気)'!$C$10:$D$1258,2,FALSE),IF(F18="化石分","基礎排出係数を入力",0))) ->  | K18: =IF(OR($B18="",$E18="非燃料由来の非化石電気（オンサイトPPA含む）以外"),"",IFERROR(VLOOKUP($G18&H18,'排出係数(電気)'!$A$10:$F$1258,6,FALSE),IF(ISNUMBER($J18)=TRUE,$J18,"調整後排出係数を入力"))) ->  | M18: 0 | N18: 0 | O18: 0 | P18: 0 | Q18: 0 | R18: 0 | S18: 0 | T18: 0 | U18: 0 | V18: 0 | W18: 0 | X18: 0 | Y18: 0 | Z18: 0 | AA18: 0 | AB18: 0 | AC18: 0 | AD18: 0 | AE18: 0 | AF18: 0 | AG18: 0 | AH18: 0 | AI18: 0 | AJ18: 0 | AK18: 0 | AL18: 0 | AM18: 0 | AN18: 0 | AP18: 0 | AQ18: 0 | AR18: 0 | AS18: 0 | AT18: 0 | AU18: 0 | AV18: 0 | AW18: 0 | AX18: 0 | AY18: 0 | AZ18: 0 | BA18: 0 | BB18: 0 | BC18: 0 | BD18: 0 | BE18: 0 | BF18: 0 | BG18: 0 | BH18: 0 | BI18: 0 | BJ18: 0 | BK18: 0 | BL18: 0 | BM18: 0 | BN18: 0 | BO18: 0 | BP18: 0 | BQ18: 0 | BR18: 0 | BS18: 0 | BT18: 0 | BU18: 0 | BW18: 0 | BX18: 0 | BY18: 0 | BZ18: 0 | CA18: 0 | CB18: 0 | CC18: 0 | CD18: 0 | CE18: 0 | CF18: 0 | CG18: 0 | CH18: 0 | CI18: 0 | CJ18: 0 | CK18: 0 | CL18: 0 | CM18: 0 | CN18: 0 | CO18: 0 | CP18: 0 | CQ18: 0 | CR18: 0 | CS18: 0 | CT18: 0 | CU18: 0 | CV18: 0 | CW18: 0 | CX18: 0 | CY18: 0 | CZ18: 0 | DA18: 0 | DB18: 0 | DD18: 0 | DE18: 0 | DF18: 0 | DG18: 0 | DH18: 0 | DI18: 0 | DJ18: 0 | DK18: 0 | DL18: 0 | DM18: 0 | DN18: 0 | DO18: 0 | DP18: 0 | DQ18: 0 | DR18: 0 | DS18: 0 | DT18: 0 | DU18: 0 | DV18: 0 | DW18: 0 | DX18: 0 | DY18: 0 | DZ18: 0 | EA18: 0 | EB18: 0 | EC18: 0 | ED18: 0 | EE18: 0 | EF18: 0 | EG18: 0 | EH18: 0 | EI18: 0 | EK18: 0 | EL18: 0 | EM18: 0 | EN18: 0 | EO18: 0 | EP18: 0 | EQ18: 0 | ER18: 0 | ES18: 0 | ET18: 0 | EU18: 0 | EV18: 0 | EW18: 0 | EX18: 0 | EY18: 0 | EZ18: 0 | FA18: 0 | FB18: 0 | FC18: 0 | FD18: 0 | FE18: 0 | FF18: 0 | FG18: 0 | FH18: 0 | FI18: 0 | FJ18: 0 | FK18: 0 | FL18: 0 | FM18: 0 | FN18: 0 | FO18: 0 | FP18: 0 | FR18: 0 | FS18: 0 | FT18: 0 | FU18: 0 | FV18: 0 | FW18: 0 | FX18: 0 | FY18: 0 | FZ18: 0 | GA18: 0 | GB18: 0 | GC18: 0 | GD18: 0 | GE18: 0 | GF18: 0 | GG18: 0 | GH18: 0 | GI18: 0 | GJ18: 0 | GK18: 0 | GL18: 0 | GM18: 0 | GN18: 0 | GO18: 0 | GP18: 0 | GQ18: 0 | GR18: 0 | GS18: 0 | GT18: 0 | GU18: 0 | GV18: 0 | GW18: 0 | GY18: 0 | GZ18: 0 | HA18: 0 | HB18: 0 | HC18: 0 | HD18: 0 | HE18: 0 | HF18: 0 | HG18: 0 | HH18: 0 | HI18: 0 | HJ18: 0 | HK18: 0 | HL18: 0 | HM18: 0 | HN18: 0 | HO18: 0 | HP18: 0 | HQ18: 0 | HR18: 0 | HS18: 0 | HT18: 0 | HU18: 0 | HV18: 0 | HW18: 0 | HX18: 0 | HY18: 0 | HZ18: 0 | IA18: 0 | IB18: 0 | IC18: 0 | ID18: 0 | IF18: 0 | IG18: 0 | IH18: 0 | II18: 0 | IJ18: 0 | IK18: 0 | IL18: 0 | IM18: 0 | IN18: 0 | IO18: 0 | IP18: 0 | IQ18: 0 | IR18: 0 | IS18: 0 | IT18: 0 | IU18: 0 | IV18: 0 | IW18: 0 | IX18: 0 | IY18: 0 | IZ18: 0 | JA18: 0 | JB18: 0 | JC18: 0 | JD18: 0 | JE18: 0 | JF18: 0 | JG18: 0 | JH18: 0 | JI18: 0 | JJ18: 0 | JK18: 0 | JM18: 0 | JN18: 0 | JO18: 0 | JP18: 0 | JQ18: 0 | JR18: 0 | JS18: 0 | JT18: 0 | JU18: 0 | JV18: 0 | JW18: 0 | JX18: 0 | JY18: 0 | JZ18: 0 | KA18: 0 | KB18: 0 | KC18: 0 | KD18: 0 | KE18: 0 | KF18: 0 | KG18: 0 | KH18: 0 | KI18: 0 | KJ18: 0 | KK18: 0 | KL18: 0 | KM18: 0 | KN18: 0 | KO18: 0 | KP18: 0 | KQ18: 0 | KR18: 0 | KT18: 0 | KU18: 0 | KV18: 0 | KW18: 0 | KX18: 0 | KY18: 0 | KZ18: 0 | LA18: 0 | LB18: 0 | LC18: 0 | LD18: 0 | LE18: 0 | LF18: 0 | LG18: 0 | LH18: 0 | LI18: 0 | LJ18: 0 | LK18: 0 | LL18: 0 | LM18: 0 | LN18: 0 | LO18: 0 | LP18: 0 | LQ18: 0 | LR18: 0 | LS18: 0 | LT18: 0 | LU18: 0 | LV18: 0 | LW18: 0 | LX18: 0 | LY18: 0 | MA18: 0 | MB18: 0 | MC18: 0 | MD18: 0 | ME18: 0 | MF18: 0 | MG18: 0 | MH18: 0 | MI18: 0 | MJ18: 0 | MK18: 0 | ML18: 0 | MM18: 0 | MN18: 0 | MO18: 0 | MP18: 0 | MQ18: 0 | MR18: 0 | MS18: 0 | MT18: 0 | MU18: 0 | MV18: 0 | MW18: 0 | MX18: 0 | MY18: 0 | MZ18: 0 | NA18: 0 | NB18: 0 | NC18: 0 | ND18: 0 | NE18: 0 | NF18: 0 | NH18: 0 | NI18: 0 | NJ18: 0 | NK18: 0 | NL18: 0 | NM18: 0 | NN18: 0 | NO18: 0 | NP18: 0 | NQ18: 0 | NR18: 0 | NS18: 0 | NT18: 0 | NU18: 0 | NV18: 0 | NW18: 0 | NX18: 0 | NY18: 0 | NZ18: 0 | OA18: 0 | OB18: 0 | OC18: 0 | OD18: 0 | OE18: 0 | OF18: 0 | OG18: 0 | OH18: 0 | OI18: 0 | OJ18: 0 | OK18: 0 | OL18: 0 | OM18: 0 | OO18: 0 | OP18: 0 | OQ18: 0 | OR18: 0 | OS18: 0 | OT18: 0 | OU18: 0 | OV18: 0 | OW18: 0 | OX18: 0 | OY18: 0 | OZ18: 0 | PA18: 0 | PB18: 0 | PC18: 0 | PD18: 0 | PE18: 0 | PF18: 0 | PG18: 0 | PH18: 0 | PI18: 0 | PJ18: 0 | PK18: 0 | PL18: 0 | PM18: 0 | PN18: 0 | PO18: 0 | PP18: 0 | PQ18: 0 | PR18: 0 | PS18: 0 | PT18: 0
I19: =IF(OR($B19="",$E19="非燃料由来の非化石電気（オンサイトPPA含む）以外"),"",IFERROR(VLOOKUP(B19&C19&D19&E19&F19,'熱量換算係数(電気)'!$A$4:$G$24,7,FALSE),"熱量換算係数を入力")) ->  | J19: =IF(OR($B19="",$E19="非燃料由来の非化石電気（オンサイトPPA含む）以外"),"",IFERROR(VLOOKUP($G19,'排出係数(電気)'!$C$10:$D$1258,2,FALSE),IF(F19="化石分","基礎排出係数を入力",0))) ->  | K19: =IF(OR($B19="",$E19="非燃料由来の非化石電気（オンサイトPPA含む）以外"),"",IFERROR(VLOOKUP($G19&H19,'排出係数(電気)'!$A$10:$F$1258,6,FALSE),IF(ISNUMBER($J19)=TRUE,$J19,"調整後排出係数を入力"))) ->  | M19: 0 | N19: 0 | O19: 0 | P19: 0 | Q19: 0 | R19: 0 | S19: 0 | T19: 0 | U19: 0 | V19: 0 | W19: 0 | X19: 0 | Y19: 0 | Z19: 0 | AA19: 0 | AB19: 0 | AC19: 0 | AD19: 0 | AE19: 0 | AF19: 0 | AG19: 0 | AH19: 0 | AI19: 0 | AJ19: 0 | AK19: 0 | AL19: 0 | AM19: 0 | AN19: 0 | AP19: 0 | AQ19: 0 | AR19: 0 | AS19: 0 | AT19: 0 | AU19: 0 | AV19: 0 | AW19: 0 | AX19: 0 | AY19: 0 | AZ19: 0 | BA19: 0 | BB19: 0 | BC19: 0 | BD19: 0 | BE19: 0 | BF19: 0 | BG19: 0 | BH19: 0 | BI19: 0 | BJ19: 0 | BK19: 0 | BL19: 0 | BM19: 0 | BN19: 0 | BO19: 0 | BP19: 0 | BQ19: 0 | BR19: 0 | BS19: 0 | BT19: 0 | BU19: 0 | BW19: 0 | BX19: 0 | BY19: 0 | BZ19: 0 | CA19: 0 | CB19: 0 | CC19: 0 | CD19: 0 | CE19: 0 | CF19: 0 | CG19: 0 | CH19: 0 | CI19: 0 | CJ19: 0 | CK19: 0 | CL19: 0 | CM19: 0 | CN19: 0 | CO19: 0 | CP19: 0 | CQ19: 0 | CR19: 0 | CS19: 0 | CT19: 0 | CU19: 0 | CV19: 0 | CW19: 0 | CX19: 0 | CY19: 0 | CZ19: 0 | DA19: 0 | DB19: 0 | DD19: 0 | DE19: 0 | DF19: 0 | DG19: 0 | DH19: 0 | DI19: 0 | DJ19: 0 | DK19: 0 | DL19: 0 | DM19: 0 | DN19: 0 | DO19: 0 | DP19: 0 | DQ19: 0 | DR19: 0 | DS19: 0 | DT19: 0 | DU19: 0 | DV19: 0 | DW19: 0 | DX19: 0 | DY19: 0 | DZ19: 0 | EA19: 0 | EB19: 0 | EC19: 0 | ED19: 0 | EE19: 0 | EF19: 0 | EG19: 0 | EH19: 0 | EI19: 0 | EK19: 0 | EL19: 0 | EM19: 0 | EN19: 0 | EO19: 0 | EP19: 0 | EQ19: 0 | ER19: 0 | ES19: 0 | ET19: 0 | EU19: 0 | EV19: 0 | EW19: 0 | EX19: 0 | EY19: 0 | EZ19: 0 | FA19: 0 | FB19: 0 | FC19: 0 | FD19: 0 | FE19: 0 | FF19: 0 | FG19: 0 | FH19: 0 | FI19: 0 | FJ19: 0 | FK19: 0 | FL19: 0 | FM19: 0 | FN19: 0 | FO19: 0 | FP19: 0 | FR19: 0 | FS19: 0 | FT19: 0 | FU19: 0 | FV19: 0 | FW19: 0 | FX19: 0 | FY19: 0 | FZ19: 0 | GA19: 0 | GB19: 0 | GC19: 0 | GD19: 0 | GE19: 0 | GF19: 0 | GG19: 0 | GH19: 0 | GI19: 0 | GJ19: 0 | GK19: 0 | GL19: 0 | GM19: 0 | GN19: 0 | GO19: 0 | GP19: 0 | GQ19: 0 | GR19: 0 | GS19: 0 | GT19: 0 | GU19: 0 | GV19: 0 | GW19: 0 | GY19: 0 | GZ19: 0 | HA19: 0 | HB19: 0 | HC19: 0 | HD19: 0 | HE19: 0 | HF19: 0 | HG19: 0 | HH19: 0 | HI19: 0 | HJ19: 0 | HK19: 0 | HL19: 0 | HM19: 0 | HN19: 0 | HO19: 0 | HP19: 0 | HQ19: 0 | HR19: 0 | HS19: 0 | HT19: 0 | HU19: 0 | HV19: 0 | HW19: 0 | HX19: 0 | HY19: 0 | HZ19: 0 | IA19: 0 | IB19: 0 | IC19: 0 | ID19: 0 | IF19: 0 | IG19: 0 | IH19: 0 | II19: 0 | IJ19: 0 | IK19: 0 | IL19: 0 | IM19: 0 | IN19: 0 | IO19: 0 | IP19: 0 | IQ19: 0 | IR19: 0 | IS19: 0 | IT19: 0 | IU19: 0 | IV19: 0 | IW19: 0 | IX19: 0 | IY19: 0 | IZ19: 0 | JA19: 0 | JB19: 0 | JC19: 0 | JD19: 0 | JE19: 0 | JF19: 0 | JG19: 0 | JH19: 0 | JI19: 0 | JJ19: 0 | JK19: 0 | JM19: 0 | JN19: 0 | JO19: 0 | JP19: 0 | JQ19: 0 | JR19: 0 | JS19: 0 | JT19: 0 | JU19: 0 | JV19: 0 | JW19: 0 | JX19: 0 | JY19: 0 | JZ19: 0 | KA19: 0 | KB19: 0 | KC19: 0 | KD19: 0 | KE19: 0 | KF19: 0 | KG19: 0 | KH19: 0 | KI19: 0 | KJ19: 0 | KK19: 0 | KL19: 0 | KM19: 0 | KN19: 0 | KO19: 0 | KP19: 0 | KQ19: 0 | KR19: 0 | KT19: 0 | KU19: 0 | KV19: 0 | KW19: 0 | KX19: 0 | KY19: 0 | KZ19: 0 | LA19: 0 | LB19: 0 | LC19: 0 | LD19: 0 | LE19: 0 | LF19: 0 | LG19: 0 | LH19: 0 | LI19: 0 | LJ19: 0 | LK19: 0 | LL19: 0 | LM19: 0 | LN19: 0 | LO19: 0 | LP19: 0 | LQ19: 0 | LR19: 0 | LS19: 0 | LT19: 0 | LU19: 0 | LV19: 0 | LW19: 0 | LX19: 0 | LY19: 0 | MA19: 0 | MB19: 0 | MC19: 0 | MD19: 0 | ME19: 0 | MF19: 0 | MG19: 0 | MH19: 0 | MI19: 0 | MJ19: 0 | MK19: 0 | ML19: 0 | MM19: 0 | MN19: 0 | MO19: 0 | MP19: 0 | MQ19: 0 | MR19: 0 | MS19: 0 | MT19: 0 | MU19: 0 | MV19: 0 | MW19: 0 | MX19: 0 | MY19: 0 | MZ19: 0 | NA19: 0 | NB19: 0 | NC19: 0 | ND19: 0 | NE19: 0 | NF19: 0 | NH19: 0 | NI19: 0 | NJ19: 0 | NK19: 0 | NL19: 0 | NM19: 0 | NN19: 0 | NO19: 0 | NP19: 0 | NQ19: 0 | NR19: 0 | NS19: 0 | NT19: 0 | NU19: 0 | NV19: 0 | NW19: 0 | NX19: 0 | NY19: 0 | NZ19: 0 | OA19: 0 | OB19: 0 | OC19: 0 | OD19: 0 | OE19: 0 | OF19: 0 | OG19: 0 | OH19: 0 | OI19: 0 | OJ19: 0 | OK19: 0 | OL19: 0 | OM19: 0 | OO19: 0 | OP19: 0 | OQ19: 0 | OR19: 0 | OS19: 0 | OT19: 0 | OU19: 0 | OV19: 0 | OW19: 0 | OX19: 0 | OY19: 0 | OZ19: 0 | PA19: 0 | PB19: 0 | PC19: 0 | PD19: 0 | PE19: 0 | PF19: 0 | PG19: 0 | PH19: 0 | PI19: 0 | PJ19: 0 | PK19: 0 | PL19: 0 | PM19: 0 | PN19: 0 | PO19: 0 | PP19: 0 | PQ19: 0 | PR19: 0 | PS19: 0 | PT19: 0
I20: =IF(OR($B20="",$E20="非燃料由来の非化石電気（オンサイトPPA含む）以外"),"",IFERROR(VLOOKUP(B20&C20&D20&E20&F20,'熱量換算係数(電気)'!$A$4:$G$24,7,FALSE),"熱量換算係数を入力")) ->  | J20: =IF(OR($B20="",$E20="非燃料由来の非化石電気（オンサイトPPA含む）以外"),"",IFERROR(VLOOKUP($G20,'排出係数(電気)'!$C$10:$D$1258,2,FALSE),IF(F20="化石分","基礎排出係数を入力",0))) ->  | K20: =IF(OR($B20="",$E20="非燃料由来の非化石電気（オンサイトPPA含む）以外"),"",IFERROR(VLOOKUP($G20&H20,'排出係数(電気)'!$A$10:$F$1258,6,FALSE),IF(ISNUMBER($J20)=TRUE,$J20,"調整後排出係数を入力"))) ->  | M20: 0 | N20: 0 | O20: 0 | P20: 0 | Q20: 0 | R20: 0 | S20: 0 | T20: 0 | U20: 0 | V20: 0 | W20: 0 | X20: 0 | Y20: 0 | Z20: 0 | AA20: 0 | AB20: 0 | AC20: 0 | AD20: 0 | AE20: 0 | AF20: 0 | AG20: 0 | AH20: 0 | AI20: 0 | AJ20: 0 | AK20: 0 | AL20: 0 | AM20: 0 | AN20: 0 | AP20: 0 | AQ20: 0 | AR20: 0 | AS20: 0 | AT20: 0 | AU20: 0 | AV20: 0 | AW20: 0 | AX20: 0 | AY20: 0 | AZ20: 0 | BA20: 0 | BB20: 0 | BC20: 0 | BD20: 0 | BE20: 0 | BF20: 0 | BG20: 0 | BH20: 0 | BI20: 0 | BJ20: 0 | BK20: 0 | BL20: 0 | BM20: 0 | BN20: 0 | BO20: 0 | BP20: 0 | BQ20: 0 | BR20: 0 | BS20: 0 | BT20: 0 | BU20: 0 | BW20: 0 | BX20: 0 | BY20: 0 | BZ20: 0 | CA20: 0 | CB20: 0 | CC20: 0 | CD20: 0 | CE20: 0 | CF20: 0 | CG20: 0 | CH20: 0 | CI20: 0 | CJ20: 0 | CK20: 0 | CL20: 0 | CM20: 0 | CN20: 0 | CO20: 0 | CP20: 0 | CQ20: 0 | CR20: 0 | CS20: 0 | CT20: 0 | CU20: 0 | CV20: 0 | CW20: 0 | CX20: 0 | CY20: 0 | CZ20: 0 | DA20: 0 | DB20: 0 | DD20: 0 | DE20: 0 | DF20: 0 | DG20: 0 | DH20: 0 | DI20: 0 | DJ20: 0 | DK20: 0 | DL20: 0 | DM20: 0 | DN20: 0 | DO20: 0 | DP20: 0 | DQ20: 0 | DR20: 0 | DS20: 0 | DT20: 0 | DU20: 0 | DV20: 0 | DW20: 0 | DX20: 0 | DY20: 0 | DZ20: 0 | EA20: 0 | EB20: 0 | EC20: 0 | ED20: 0 | EE20: 0 | EF20: 0 | EG20: 0 | EH20: 0 | EI20: 0 | EK20: 0 | EL20: 0 | EM20: 0 | EN20: 0 | EO20: 0 | EP20: 0 | EQ20: 0 | ER20: 0 | ES20: 0 | ET20: 0 | EU20: 0 | EV20: 0 | EW20: 0 | EX20: 0 | EY20: 0 | EZ20: 0 | FA20: 0 | FB20: 0 | FC20: 0 | FD20: 0 | FE20: 0 | FF20: 0 | FG20: 0 | FH20: 0 | FI20: 0 | FJ20: 0 | FK20: 0 | FL20: 0 | FM20: 0 | FN20: 0 | FO20: 0 | FP20: 0 | FR20: 0 | FS20: 0 | FT20: 0 | FU20: 0 | FV20: 0 | FW20: 0 | FX20: 0 | FY20: 0 | FZ20: 0 | GA20: 0 | GB20: 0 | GC20: 0 | GD20: 0 | GE20: 0 | GF20: 0 | GG20: 0 | GH20: 0 | GI20: 0 | GJ20: 0 | GK20: 0 | GL20: 0 | GM20: 0 | GN20: 0 | GO20: 0 | GP20: 0 | GQ20: 0 | GR20: 0 | GS20: 0 | GT20: 0 | GU20: 0 | GV20: 0 | GW20: 0 | GY20: 0 | GZ20: 0 | HA20: 0 | HB20: 0 | HC20: 0 | HD20: 0 | HE20: 0 | HF20: 0 | HG20: 0 | HH20: 0 | HI20: 0 | HJ20: 0 | HK20: 0 | HL20: 0 | HM20: 0 | HN20: 0 | HO20: 0 | HP20: 0 | HQ20: 0 | HR20: 0 | HS20: 0 | HT20: 0 | HU20: 0 | HV20: 0 | HW20: 0 | HX20: 0 | HY20: 0 | HZ20: 0 | IA20: 0 | IB20: 0 | IC20: 0 | ID20: 0 | IF20: 0 | IG20: 0 | IH20: 0 | II20: 0 | IJ20: 0 | IK20: 0 | IL20: 0 | IM20: 0 | IN20: 0 | IO20: 0 | IP20: 0 | IQ20: 0 | IR20: 0 | IS20: 0 | IT20: 0 | IU20: 0 | IV20: 0 | IW20: 0 | IX20: 0 | IY20: 0 | IZ20: 0 | JA20: 0 | JB20: 0 | JC20: 0 | JD20: 0 | JE20: 0 | JF20: 0 | JG20: 0 | JH20: 0 | JI20: 0 | JJ20: 0 | JK20: 0 | JM20: 0 | JN20: 0 | JO20: 0 | JP20: 0 | JQ20: 0 | JR20: 0 | JS20: 0 | JT20: 0 | JU20: 0 | JV20: 0 | JW20: 0 | JX20: 0 | JY20: 0 | JZ20: 0 | KA20: 0 | KB20: 0 | KC20: 0 | KD20: 0 | KE20: 0 | KF20: 0 | KG20: 0 | KH20: 0 | KI20: 0 | KJ20: 0 | KK20: 0 | KL20: 0 | KM20: 0 | KN20: 0 | KO20: 0 | KP20: 0 | KQ20: 0 | KR20: 0 | KT20: 0 | KU20: 0 | KV20: 0 | KW20: 0 | KX20: 0 | KY20: 0 | KZ20: 0 | LA20: 0 | LB20: 0 | LC20: 0 | LD20: 0 | LE20: 0 | LF20: 0 | LG20: 0 | LH20: 0 | LI20: 0 | LJ20: 0 | LK20: 0 | LL20: 0 | LM20: 0 | LN20: 0 | LO20: 0 | LP20: 0 | LQ20: 0 | LR20: 0 | LS20: 0 | LT20: 0 | LU20: 0 | LV20: 0 | LW20: 0 | LX20: 0 | LY20: 0 | MA20: 0 | MB20: 0 | MC20: 0 | MD20: 0 | ME20: 0 | MF20: 0 | MG20: 0 | MH20: 0 | MI20: 0 | MJ20: 0 | MK20: 0 | ML20: 0 | MM20: 0 | MN20: 0 | MO20: 0 | MP20: 0 | MQ20: 0 | MR20: 0 | MS20: 0 | MT20: 0 | MU20: 0 | MV20: 0 | MW20: 0 | MX20: 0 | MY20: 0 | MZ20: 0 | NA20: 0 | NB20: 0 | NC20: 0 | ND20: 0 | NE20: 0 | NF20: 0 | NH20: 0 | NI20: 0 | NJ20: 0 | NK20: 0 | NL20: 0 | NM20: 0 | NN20: 0 | NO20: 0 | NP20: 0 | NQ20: 0 | NR20: 0 | NS20: 0 | NT20: 0 | NU20: 0 | NV20: 0 | NW20: 0 | NX20: 0 | NY20: 0 | NZ20: 0 | OA20: 0 | OB20: 0 | OC20: 0 | OD20: 0 | OE20: 0 | OF20: 0 | OG20: 0 | OH20: 0 | OI20: 0 | OJ20: 0 | OK20: 0 | OL20: 0 | OM20: 0 | OO20: 0 | OP20: 0 | OQ20: 0 | OR20: 0 | OS20: 0 | OT20: 0 | OU20: 0 | OV20: 0 | OW20: 0 | OX20: 0 | OY20: 0 | OZ20: 0 | PA20: 0 | PB20: 0 | PC20: 0 | PD20: 0 | PE20: 0 | PF20: 0 | PG20: 0 | PH20: 0 | PI20: 0 | PJ20: 0 | PK20: 0 | PL20: 0 | PM20: 0 | PN20: 0 | PO20: 0 | PP20: 0 | PQ20: 0 | PR20: 0 | PS20: 0 | PT20: 0
I21: =IF(OR($B21="",$E21="非燃料由来の非化石電気（オンサイトPPA含む）以外"),"",IFERROR(VLOOKUP(B21&C21&D21&E21&F21,'熱量換算係数(電気)'!$A$4:$G$24,7,FALSE),"熱量換算係数を入力")) ->  | J21: =IF(OR($B21="",$E21="非燃料由来の非化石電気（オンサイトPPA含む）以外"),"",IFERROR(VLOOKUP($G21,'排出係数(電気)'!$C$10:$D$1258,2,FALSE),IF(F21="化石分","基礎排出係数を入力",0))) ->  | K21: =IF(OR($B21="",$E21="非燃料由来の非化石電気（オンサイトPPA含む）以外"),"",IFERROR(VLOOKUP($G21&H21,'排出係数(電気)'!$A$10:$F$1258,6,FALSE),IF(ISNUMBER($J21)=TRUE,$J21,"調整後排出係数を入力"))) ->  | M21: 0 | N21: 0 | O21: 0 | P21: 0 | Q21: 0 | R21: 0 | S21: 0 | T21: 0 | U21: 0 | V21: 0 | W21: 0 | X21: 0 | Y21: 0 | Z21: 0 | AA21: 0 | AB21: 0 | AC21: 0 | AD21: 0 | AE21: 0 | AF21: 0 | AG21: 0 | AH21: 0 | AI21: 0 | AJ21: 0 | AK21: 0 | AL21: 0 | AM21: 0 | AN21: 0 | AP21: 0 | AQ21: 0 | AR21: 0 | AS21: 0 | AT21: 0 | AU21: 0 | AV21: 0 | AW21: 0 | AX21: 0 | AY21: 0 | AZ21: 0 | BA21: 0 | BB21: 0 | BC21: 0 | BD21: 0 | BE21: 0 | BF21: 0 | BG21: 0 | BH21: 0 | BI21: 0 | BJ21: 0 | BK21: 0 | BL21: 0 | BM21: 0 | BN21: 0 | BO21: 0 | BP21: 0 | BQ21: 0 | BR21: 0 | BS21: 0 | BT21: 0 | BU21: 0 | BW21: 0 | BX21: 0 | BY21: 0 | BZ21: 0 | CA21: 0 | CB21: 0 | CC21: 0 | CD21: 0 | CE21: 0 | CF21: 0 | CG21: 0 | CH21: 0 | CI21: 0 | CJ21: 0 | CK21: 0 | CL21: 0 | CM21: 0 | CN21: 0 | CO21: 0 | CP21: 0 | CQ21: 0 | CR21: 0 | CS21: 0 | CT21: 0 | CU21: 0 | CV21: 0 | CW21: 0 | CX21: 0 | CY21: 0 | CZ21: 0 | DA21: 0 | DB21: 0 | DD21: 0 | DE21: 0 | DF21: 0 | DG21: 0 | DH21: 0 | DI21: 0 | DJ21: 0 | DK21: 0 | DL21: 0 | DM21: 0 | DN21: 0 | DO21: 0 | DP21: 0 | DQ21: 0 | DR21: 0 | DS21: 0 | DT21: 0 | DU21: 0 | DV21: 0 | DW21: 0 | DX21: 0 | DY21: 0 | DZ21: 0 | EA21: 0 | EB21: 0 | EC21: 0 | ED21: 0 | EE21: 0 | EF21: 0 | EG21: 0 | EH21: 0 | EI21: 0 | EK21: 0 | EL21: 0 | EM21: 0 | EN21: 0 | EO21: 0 | EP21: 0 | EQ21: 0 | ER21: 0 | ES21: 0 | ET21: 0 | EU21: 0 | EV21: 0 | EW21: 0 | EX21: 0 | EY21: 0 | EZ21: 0 | FA21: 0 | FB21: 0 | FC21: 0 | FD21: 0 | FE21: 0 | FF21: 0 | FG21: 0 | FH21: 0 | FI21: 0 | FJ21: 0 | FK21: 0 | FL21: 0 | FM21: 0 | FN21: 0 | FO21: 0 | FP21: 0 | FR21: 0 | FS21: 0 | FT21: 0 | FU21: 0 | FV21: 0 | FW21: 0 | FX21: 0 | FY21: 0 | FZ21: 0 | GA21: 0 | GB21: 0 | GC21: 0 | GD21: 0 | GE21: 0 | GF21: 0 | GG21: 0 | GH21: 0 | GI21: 0 | GJ21: 0 | GK21: 0 | GL21: 0 | GM21: 0 | GN21: 0 | GO21: 0 | GP21: 0 | GQ21: 0 | GR21: 0 | GS21: 0 | GT21: 0 | GU21: 0 | GV21: 0 | GW21: 0 | GY21: 0 | GZ21: 0 | HA21: 0 | HB21: 0 | HC21: 0 | HD21: 0 | HE21: 0 | HF21: 0 | HG21: 0 | HH21: 0 | HI21: 0 | HJ21: 0 | HK21: 0 | HL21: 0 | HM21: 0 | HN21: 0 | HO21: 0 | HP21: 0 | HQ21: 0 | HR21: 0 | HS21: 0 | HT21: 0 | HU21: 0 | HV21: 0 | HW21: 0 | HX21: 0 | HY21: 0 | HZ21: 0 | IA21: 0 | IB21: 0 | IC21: 0 | ID21: 0 | IF21: 0 | IG21: 0 | IH21: 0 | II21: 0 | IJ21: 0 | IK21: 0 | IL21: 0 | IM21: 0 | IN21: 0 | IO21: 0 | IP21: 0 | IQ21: 0 | IR21: 0 | IS21: 0 | IT21: 0 | IU21: 0 | IV21: 0 | IW21: 0 | IX21: 0 | IY21: 0 | IZ21: 0 | JA21: 0 | JB21: 0 | JC21: 0 | JD21: 0 | JE21: 0 | JF21: 0 | JG21: 0 | JH21: 0 | JI21: 0 | JJ21: 0 | JK21: 0 | JM21: 0 | JN21: 0 | JO21: 0 | JP21: 0 | JQ21: 0 | JR21: 0 | JS21: 0 | JT21: 0 | JU21: 0 | JV21: 0 | JW21: 0 | JX21: 0 | JY21: 0 | JZ21: 0 | KA21: 0 | KB21: 0 | KC21: 0 | KD21: 0 | KE21: 0 | KF21: 0 | KG21: 0 | KH21: 0 | KI21: 0 | KJ21: 0 | KK21: 0 | KL21: 0 | KM21: 0 | KN21: 0 | KO21: 0 | KP21: 0 | KQ21: 0 | KR21: 0 | KT21: 0 | KU21: 0 | KV21: 0 | KW21: 0 | KX21: 0 | KY21: 0 | KZ21: 0 | LA21: 0 | LB21: 0 | LC21: 0 | LD21: 0 | LE21: 0 | LF21: 0 | LG21: 0 | LH21: 0 | LI21: 0 | LJ21: 0 | LK21: 0 | LL21: 0 | LM21: 0 | LN21: 0 | LO21: 0 | LP21: 0 | LQ21: 0 | LR21: 0 | LS21: 0 | LT21: 0 | LU21: 0 | LV21: 0 | LW21: 0 | LX21: 0 | LY21: 0 | MA21: 0 | MB21: 0 | MC21: 0 | MD21: 0 | ME21: 0 | MF21: 0 | MG21: 0 | MH21: 0 | MI21: 0 | MJ21: 0 | MK21: 0 | ML21: 0 | MM21: 0 | MN21: 0 | MO21: 0 | MP21: 0 | MQ21: 0 | MR21: 0 | MS21: 0 | MT21: 0 | MU21: 0 | MV21: 0 | MW21: 0 | MX21: 0 | MY21: 0 | MZ21: 0 | NA21: 0 | NB21: 0 | NC21: 0 | ND21: 0 | NE21: 0 | NF21: 0 | NH21: 0 | NI21: 0 | NJ21: 0 | NK21: 0 | NL21: 0 | NM21: 0 | NN21: 0 | NO21: 0 | NP21: 0 | NQ21: 0 | NR21: 0 | NS21: 0 | NT21: 0 | NU21: 0 | NV21: 0 | NW21: 0 | NX21: 0 | NY21: 0 | NZ21: 0 | OA21: 0 | OB21: 0 | OC21: 0 | OD21: 0 | OE21: 0 | OF21: 0 | OG21: 0 | OH21: 0 | OI21: 0 | OJ21: 0 | OK21: 0 | OL21: 0 | OM21: 0 | OO21: 0 | OP21: 0 | OQ21: 0 | OR21: 0 | OS21: 0 | OT21: 0 | OU21: 0 | OV21: 0 | OW21: 0 | OX21: 0 | OY21: 0 | OZ21: 0 | PA21: 0 | PB21: 0 | PC21: 0 | PD21: 0 | PE21: 0 | PF21: 0 | PG21: 0 | PH21: 0 | PI21: 0 | PJ21: 0 | PK21: 0 | PL21: 0 | PM21: 0 | PN21: 0 | PO21: 0 | PP21: 0 | PQ21: 0 | PR21: 0 | PS21: 0 | PT21: 0
I22: =IF(OR($B22="",$E22="非燃料由来の非化石電気（オンサイトPPA含む）以外"),"",IFERROR(VLOOKUP(B22&C22&D22&E22&F22,'熱量換算係数(電気)'!$A$4:$G$24,7,FALSE),"熱量換算係数を入力")) ->  | J22: =IF(OR($B22="",$E22="非燃料由来の非化石電気（オンサイトPPA含む）以外"),"",IFERROR(VLOOKUP($G22,'排出係数(電気)'!$C$10:$D$1258,2,FALSE),IF(F22="化石分","基礎排出係数を入力",0))) ->  | K22: =IF(OR($B22="",$E22="非燃料由来の非化石電気（オンサイトPPA含む）以外"),"",IFERROR(VLOOKUP($G22&H22,'排出係数(電気)'!$A$10:$F$1258,6,FALSE),IF(ISNUMBER($J22)=TRUE,$J22,"調整後排出係数を入力"))) ->  | M22: 0 | N22: 0 | O22: 0 | P22: 0 | Q22: 0 | R22: 0 | S22: 0 | T22: 0 | U22: 0 | V22: 0 | W22: 0 | X22: 0 | Y22: 0 | Z22: 0 | AA22: 0 | AB22: 0 | AC22: 0 | AD22: 0 | AE22: 0 | AF22: 0 | AG22: 0 | AH22: 0 | AI22: 0 | AJ22: 0 | AK22: 0 | AL22: 0 | AM22: 0 | AN22: 0 | AP22: 0 | AQ22: 0 | AR22: 0 | AS22: 0 | AT22: 0 | AU22: 0 | AV22: 0 | AW22: 0 | AX22: 0 | AY22: 0 | AZ22: 0 | BA22: 0 | BB22: 0 | BC22: 0 | BD22: 0 | BE22: 0 | BF22: 0 | BG22: 0 | BH22: 0 | BI22: 0 | BJ22: 0 | BK22: 0 | BL22: 0 | BM22: 0 | BN22: 0 | BO22: 0 | BP22: 0 | BQ22: 0 | BR22: 0 | BS22: 0 | BT22: 0 | BU22: 0 | BW22: 0 | BX22: 0 | BY22: 0 | BZ22: 0 | CA22: 0 | CB22: 0 | CC22: 0 | CD22: 0 | CE22: 0 | CF22: 0 | CG22: 0 | CH22: 0 | CI22: 0 | CJ22: 0 | CK22: 0 | CL22: 0 | CM22: 0 | CN22: 0 | CO22: 0 | CP22: 0 | CQ22: 0 | CR22: 0 | CS22: 0 | CT22: 0 | CU22: 0 | CV22: 0 | CW22: 0 | CX22: 0 | CY22: 0 | CZ22: 0 | DA22: 0 | DB22: 0 | DD22: 0 | DE22: 0 | DF22: 0 | DG22: 0 | DH22: 0 | DI22: 0 | DJ22: 0 | DK22: 0 | DL22: 0 | DM22: 0 | DN22: 0 | DO22: 0 | DP22: 0 | DQ22: 0 | DR22: 0 | DS22: 0 | DT22: 0 | DU22: 0 | DV22: 0 | DW22: 0 | DX22: 0 | DY22: 0 | DZ22: 0 | EA22: 0 | EB22: 0 | EC22: 0 | ED22: 0 | EE22: 0 | EF22: 0 | EG22: 0 | EH22: 0 | EI22: 0 | EK22: 0 | EL22: 0 | EM22: 0 | EN22: 0 | EO22: 0 | EP22: 0 | EQ22: 0 | ER22: 0 | ES22: 0 | ET22: 0 | EU22: 0 | EV22: 0 | EW22: 0 | EX22: 0 | EY22: 0 | EZ22: 0 | FA22: 0 | FB22: 0 | FC22: 0 | FD22: 0 | FE22: 0 | FF22: 0 | FG22: 0 | FH22: 0 | FI22: 0 | FJ22: 0 | FK22: 0 | FL22: 0 | FM22: 0 | FN22: 0 | FO22: 0 | FP22: 0 | FR22: 0 | FS22: 0 | FT22: 0 | FU22: 0 | FV22: 0 | FW22: 0 | FX22: 0 | FY22: 0 | FZ22: 0 | GA22: 0 | GB22: 0 | GC22: 0 | GD22: 0 | GE22: 0 | GF22: 0 | GG22: 0 | GH22: 0 | GI22: 0 | GJ22: 0 | GK22: 0 | GL22: 0 | GM22: 0 | GN22: 0 | GO22: 0 | GP22: 0 | GQ22: 0 | GR22: 0 | GS22: 0 | GT22: 0 | GU22: 0 | GV22: 0 | GW22: 0 | GY22: 0 | GZ22: 0 | HA22: 0 | HB22: 0 | HC22: 0 | HD22: 0 | HE22: 0 | HF22: 0 | HG22: 0 | HH22: 0 | HI22: 0 | HJ22: 0 | HK22: 0 | HL22: 0 | HM22: 0 | HN22: 0 | HO22: 0 | HP22: 0 | HQ22: 0 | HR22: 0 | HS22: 0 | HT22: 0 | HU22: 0 | HV22: 0 | HW22: 0 | HX22: 0 | HY22: 0 | HZ22: 0 | IA22: 0 | IB22: 0 | IC22: 0 | ID22: 0 | IF22: 0 | IG22: 0 | IH22: 0 | II22: 0 | IJ22: 0 | IK22: 0 | IL22: 0 | IM22: 0 | IN22: 0 | IO22: 0 | IP22: 0 | IQ22: 0 | IR22: 0 | IS22: 0 | IT22: 0 | IU22: 0 | IV22: 0 | IW22: 0 | IX22: 0 | IY22: 0 | IZ22: 0 | JA22: 0 | JB22: 0 | JC22: 0 | JD22: 0 | JE22: 0 | JF22: 0 | JG22: 0 | JH22: 0 | JI22: 0 | JJ22: 0 | JK22: 0 | JM22: 0 | JN22: 0 | JO22: 0 | JP22: 0 | JQ22: 0 | JR22: 0 | JS22: 0 | JT22: 0 | JU22: 0 | JV22: 0 | JW22: 0 | JX22: 0 | JY22: 0 | JZ22: 0 | KA22: 0 | KB22: 0 | KC22: 0 | KD22: 0 | KE22: 0 | KF22: 0 | KG22: 0 | KH22: 0 | KI22: 0 | KJ22: 0 | KK22: 0 | KL22: 0 | KM22: 0 | KN22: 0 | KO22: 0 | KP22: 0 | KQ22: 0 | KR22: 0 | KT22: 0 | KU22: 0 | KV22: 0 | KW22: 0 | KX22: 0 | KY22: 0 | KZ22: 0 | LA22: 0 | LB22: 0 | LC22: 0 | LD22: 0 | LE22: 0 | LF22: 0 | LG22: 0 | LH22: 0 | LI22: 0 | LJ22: 0 | LK22: 0 | LL22: 0 | LM22: 0 | LN22: 0 | LO22: 0 | LP22: 0 | LQ22: 0 | LR22: 0 | LS22: 0 | LT22: 0 | LU22: 0 | LV22: 0 | LW22: 0 | LX22: 0 | LY22: 0 | MA22: 0 | MB22: 0 | MC22: 0 | MD22: 0 | ME22: 0 | MF22: 0 | MG22: 0 | MH22: 0 | MI22: 0 | MJ22: 0 | MK22: 0 | ML22: 0 | MM22: 0 | MN22: 0 | MO22: 0 | MP22: 0 | MQ22: 0 | MR22: 0 | MS22: 0 | MT22: 0 | MU22: 0 | MV22: 0 | MW22: 0 | MX22: 0 | MY22: 0 | MZ22: 0 | NA22: 0 | NB22: 0 | NC22: 0 | ND22: 0 | NE22: 0 | NF22: 0 | NH22: 0 | NI22: 0 | NJ22: 0 | NK22: 0 | NL22: 0 | NM22: 0 | NN22: 0 | NO22: 0 | NP22: 0 | NQ22: 0 | NR22: 0 | NS22: 0 | NT22: 0 | NU22: 0 | NV22: 0 | NW22: 0 | NX22: 0 | NY22: 0 | NZ22: 0 | OA22: 0 | OB22: 0 | OC22: 0 | OD22: 0 | OE22: 0 | OF22: 0 | OG22: 0 | OH22: 0 | OI22: 0 | OJ22: 0 | OK22: 0 | OL22: 0 | OM22: 0 | OO22: 0 | OP22: 0 | OQ22: 0 | OR22: 0 | OS22: 0 | OT22: 0 | OU22: 0 | OV22: 0 | OW22: 0 | OX22: 0 | OY22: 0 | OZ22: 0 | PA22: 0 | PB22: 0 | PC22: 0 | PD22: 0 | PE22: 0 | PF22: 0 | PG22: 0 | PH22: 0 | PI22: 0 | PJ22: 0 | PK22: 0 | PL22: 0 | PM22: 0 | PN22: 0 | PO22: 0 | PP22: 0 | PQ22: 0 | PR22: 0 | PS22: 0 | PT22: 0
I23: =IF(OR($B23="",$E23="非燃料由来の非化石電気（オンサイトPPA含む）以外"),"",IFERROR(VLOOKUP(B23&C23&D23&E23&F23,'熱量換算係数(電気)'!$A$4:$G$24,7,FALSE),"熱量換算係数を入力")) ->  | J23: =IF(OR($B23="",$E23="非燃料由来の非化石電気（オンサイトPPA含む）以外"),"",IFERROR(VLOOKUP($G23,'排出係数(電気)'!$C$10:$D$1258,2,FALSE),IF(F23="化石分","基礎排出係数を入力",0))) ->  | K23: =IF(OR($B23="",$E23="非燃料由来の非化石電気（オンサイトPPA含む）以外"),"",IFERROR(VLOOKUP($G23&H23,'排出係数(電気)'!$A$10:$F$1258,6,FALSE),IF(ISNUMBER($J23)=TRUE,$J23,"調整後排出係数を入力"))) ->  | M23: 0 | N23: 0 | O23: 0 | P23: 0 | Q23: 0 | R23: 0 | S23: 0 | T23: 0 | U23: 0 | V23: 0 | W23: 0 | X23: 0 | Y23: 0 | Z23: 0 | AA23: 0 | AB23: 0 | AC23: 0 | AD23: 0 | AE23: 0 | AF23: 0 | AG23: 0 | AH23: 0 | AI23: 0 | AJ23: 0 | AK23: 0 | AL23: 0 | AM23: 0 | AN23: 0 | AP23: 0 | AQ23: 0 | AR23: 0 | AS23: 0 | AT23: 0 | AU23: 0 | AV23: 0 | AW23: 0 | AX23: 0 | AY23: 0 | AZ23: 0 | BA23: 0 | BB23: 0 | BC23: 0 | BD23: 0 | BE23: 0 | BF23: 0 | BG23: 0 | BH23: 0 | BI23: 0 | BJ23: 0 | BK23: 0 | BL23: 0 | BM23: 0 | BN23: 0 | BO23: 0 | BP23: 0 | BQ23: 0 | BR23: 0 | BS23: 0 | BT23: 0 | BU23: 0 | BW23: 0 | BX23: 0 | BY23: 0 | BZ23: 0 | CA23: 0 | CB23: 0 | CC23: 0 | CD23: 0 | CE23: 0 | CF23: 0 | CG23: 0 | CH23: 0 | CI23: 0 | CJ23: 0 | CK23: 0 | CL23: 0 | CM23: 0 | CN23: 0 | CO23: 0 | CP23: 0 | CQ23: 0 | CR23: 0 | CS23: 0 | CT23: 0 | CU23: 0 | CV23: 0 | CW23: 0 | CX23: 0 | CY23: 0 | CZ23: 0 | DA23: 0 | DB23: 0 | DD23: 0 | DE23: 0 | DF23: 0 | DG23: 0 | DH23: 0 | DI23: 0 | DJ23: 0 | DK23: 0 | DL23: 0 | DM23: 0 | DN23: 0 | DO23: 0 | DP23: 0 | DQ23: 0 | DR23: 0 | DS23: 0 | DT23: 0 | DU23: 0 | DV23: 0 | DW23: 0 | DX23: 0 | DY23: 0 | DZ23: 0 | EA23: 0 | EB23: 0 | EC23: 0 | ED23: 0 | EE23: 0 | EF23: 0 | EG23: 0 | EH23: 0 | EI23: 0 | EK23: 0 | EL23: 0 | EM23: 0 | EN23: 0 | EO23: 0 | EP23: 0 | EQ23: 0 | ER23: 0 | ES23: 0 | ET23: 0 | EU23: 0 | EV23: 0 | EW23: 0 | EX23: 0 | EY23: 0 | EZ23: 0 | FA23: 0 | FB23: 0 | FC23: 0 | FD23: 0 | FE23: 0 | FF23: 0 | FG23: 0 | FH23: 0 | FI23: 0 | FJ23: 0 | FK23: 0 | FL23: 0 | FM23: 0 | FN23: 0 | FO23: 0 | FP23: 0 | FR23: 0 | FS23: 0 | FT23: 0 | FU23: 0 | FV23: 0 | FW23: 0 | FX23: 0 | FY23: 0 | FZ23: 0 | GA23: 0 | GB23: 0 | GC23: 0 | GD23: 0 | GE23: 0 | GF23: 0 | GG23: 0 | GH23: 0 | GI23: 0 | GJ23: 0 | GK23: 0 | GL23: 0 | GM23: 0 | GN23: 0 | GO23: 0 | GP23: 0 | GQ23: 0 | GR23: 0 | GS23: 0 | GT23: 0 | GU23: 0 | GV23: 0 | GW23: 0 | GY23: 0 | GZ23: 0 | HA23: 0 | HB23: 0 | HC23: 0 | HD23: 0 | HE23: 0 | HF23: 0 | HG23: 0 | HH23: 0 | HI23: 0 | HJ23: 0 | HK23: 0 | HL23: 0 | HM23: 0 | HN23: 0 | HO23: 0 | HP23: 0 | HQ23: 0 | HR23: 0 | HS23: 0 | HT23: 0 | HU23: 0 | HV23: 0 | HW23: 0 | HX23: 0 | HY23: 0 | HZ23: 0 | IA23: 0 | IB23: 0 | IC23: 0 | ID23: 0 | IF23: 0 | IG23: 0 | IH23: 0 | II23: 0 | IJ23: 0 | IK23: 0 | IL23: 0 | IM23: 0 | IN23: 0 | IO23: 0 | IP23: 0 | IQ23: 0 | IR23: 0 | IS23: 0 | IT23: 0 | IU23: 0 | IV23: 0 | IW23: 0 | IX23: 0 | IY23: 0 | IZ23: 0 | JA23: 0 | JB23: 0 | JC23: 0 | JD23: 0 | JE23: 0 | JF23: 0 | JG23: 0 | JH23: 0 | JI23: 0 | JJ23: 0 | JK23: 0 | JM23: 0 | JN23: 0 | JO23: 0 | JP23: 0 | JQ23: 0 | JR23: 0 | JS23: 0 | JT23: 0 | JU23: 0 | JV23: 0 | JW23: 0 | JX23: 0 | JY23: 0 | JZ23: 0 | KA23: 0 | KB23: 0 | KC23: 0 | KD23: 0 | KE23: 0 | KF23: 0 | KG23: 0 | KH23: 0 | KI23: 0 | KJ23: 0 | KK23: 0 | KL23: 0 | KM23: 0 | KN23: 0 | KO23: 0 | KP23: 0 | KQ23: 0 | KR23: 0 | KT23: 0 | KU23: 0 | KV23: 0 | KW23: 0 | KX23: 0 | KY23: 0 | KZ23: 0 | LA23: 0 | LB23: 0 | LC23: 0 | LD23: 0 | LE23: 0 | LF23: 0 | LG23: 0 | LH23: 0 | LI23: 0 | LJ23: 0 | LK23: 0 | LL23: 0 | LM23: 0 | LN23: 0 | LO23: 0 | LP23: 0 | LQ23: 0 | LR23: 0 | LS23: 0 | LT23: 0 | LU23: 0 | LV23: 0 | LW23: 0 | LX23: 0 | LY23: 0 | MA23: 0 | MB23: 0 | MC23: 0 | MD23: 0 | ME23: 0 | MF23: 0 | MG23: 0 | MH23: 0 | MI23: 0 | MJ23: 0 | MK23: 0 | ML23: 0 | MM23: 0 | MN23: 0 | MO23: 0 | MP23: 0 | MQ23: 0 | MR23: 0 | MS23: 0 | MT23: 0 | MU23: 0 | MV23: 0 | MW23: 0 | MX23: 0 | MY23: 0 | MZ23: 0 | NA23: 0 | NB23: 0 | NC23: 0 | ND23: 0 | NE23: 0 | NF23: 0 | NH23: 0 | NI23: 0 | NJ23: 0 | NK23: 0 | NL23: 0 | NM23: 0 | NN23: 0 | NO23: 0 | NP23: 0 | NQ23: 0 | NR23: 0 | NS23: 0 | NT23: 0 | NU23: 0 | NV23: 0 | NW23: 0 | NX23: 0 | NY23: 0 | NZ23: 0 | OA23: 0 | OB23: 0 | OC23: 0 | OD23: 0 | OE23: 0 | OF23: 0 | OG23: 0 | OH23: 0 | OI23: 0 | OJ23: 0 | OK23: 0 | OL23: 0 | OM23: 0 | OO23: 0 | OP23: 0 | OQ23: 0 | OR23: 0 | OS23: 0 | OT23: 0 | OU23: 0 | OV23: 0 | OW23: 0 | OX23: 0 | OY23: 0 | OZ23: 0 | PA23: 0 | PB23: 0 | PC23: 0 | PD23: 0 | PE23: 0 | PF23: 0 | PG23: 0 | PH23: 0 | PI23: 0 | PJ23: 0 | PK23: 0 | PL23: 0 | PM23: 0 | PN23: 0 | PO23: 0 | PP23: 0 | PQ23: 0 | PR23: 0 | PS23: 0 | PT23: 0
I24: =IF(OR($B24="",$E24="非燃料由来の非化石電気（オンサイトPPA含む）以外"),"",IFERROR(VLOOKUP(B24&C24&D24&E24&F24,'熱量換算係数(電気)'!$A$4:$G$24,7,FALSE),"熱量換算係数を入力")) ->  | J24: =IF(OR($B24="",$E24="非燃料由来の非化石電気（オンサイトPPA含む）以外"),"",IFERROR(VLOOKUP($G24,'排出係数(電気)'!$C$10:$D$1258,2,FALSE),IF(F24="化石分","基礎排出係数を入力",0))) ->  | K24: =IF(OR($B24="",$E24="非燃料由来の非化石電気（オンサイトPPA含む）以外"),"",IFERROR(VLOOKUP($G24&H24,'排出係数(電気)'!$A$10:$F$1258,6,FALSE),IF(ISNUMBER($J24)=TRUE,$J24,"調整後排出係数を入力"))) ->  | M24: 0 | N24: 0 | O24: 0 | P24: 0 | Q24: 0 | R24: 0 | S24: 0 | T24: 0 | U24: 0 | V24: 0 | W24: 0 | X24: 0 | Y24: 0 | Z24: 0 | AA24: 0 | AB24: 0 | AC24: 0 | AD24: 0 | AE24: 0 | AF24: 0 | AG24: 0 | AH24: 0 | AI24: 0 | AJ24: 0 | AK24: 0 | AL24: 0 | AM24: 0 | AN24: 0 | AP24: 0 | AQ24: 0 | AR24: 0 | AS24: 0 | AT24: 0 | AU24: 0 | AV24: 0 | AW24: 0 | AX24: 0 | AY24: 0 | AZ24: 0 | BA24: 0 | BB24: 0 | BC24: 0 | BD24: 0 | BE24: 0 | BF24: 0 | BG24: 0 | BH24: 0 | BI24: 0 | BJ24: 0 | BK24: 0 | BL24: 0 | BM24: 0 | BN24: 0 | BO24: 0 | BP24: 0 | BQ24: 0 | BR24: 0 | BS24: 0 | BT24: 0 | BU24: 0 | BW24: 0 | BX24: 0 | BY24: 0 | BZ24: 0 | CA24: 0 | CB24: 0 | CC24: 0 | CD24: 0 | CE24: 0 | CF24: 0 | CG24: 0 | CH24: 0 | CI24: 0 | CJ24: 0 | CK24: 0 | CL24: 0 | CM24: 0 | CN24: 0 | CO24: 0 | CP24: 0 | CQ24: 0 | CR24: 0 | CS24: 0 | CT24: 0 | CU24: 0 | CV24: 0 | CW24: 0 | CX24: 0 | CY24: 0 | CZ24: 0 | DA24: 0 | DB24: 0 | DD24: 0 | DE24: 0 | DF24: 0 | DG24: 0 | DH24: 0 | DI24: 0 | DJ24: 0 | DK24: 0 | DL24: 0 | DM24: 0 | DN24: 0 | DO24: 0 | DP24: 0 | DQ24: 0 | DR24: 0 | DS24: 0 | DT24: 0 | DU24: 0 | DV24: 0 | DW24: 0 | DX24: 0 | DY24: 0 | DZ24: 0 | EA24: 0 | EB24: 0 | EC24: 0 | ED24: 0 | EE24: 0 | EF24: 0 | EG24: 0 | EH24: 0 | EI24: 0 | EK24: 0 | EL24: 0 | EM24: 0 | EN24: 0 | EO24: 0 | EP24: 0 | EQ24: 0 | ER24: 0 | ES24: 0 | ET24: 0 | EU24: 0 | EV24: 0 | EW24: 0 | EX24: 0 | EY24: 0 | EZ24: 0 | FA24: 0 | FB24: 0 | FC24: 0 | FD24: 0 | FE24: 0 | FF24: 0 | FG24: 0 | FH24: 0 | FI24: 0 | FJ24: 0 | FK24: 0 | FL24: 0 | FM24: 0 | FN24: 0 | FO24: 0 | FP24: 0 | FR24: 0 | FS24: 0 | FT24: 0 | FU24: 0 | FV24: 0 | FW24: 0 | FX24: 0 | FY24: 0 | FZ24: 0 | GA24: 0 | GB24: 0 | GC24: 0 | GD24: 0 | GE24: 0 | GF24: 0 | GG24: 0 | GH24: 0 | GI24: 0 | GJ24: 0 | GK24: 0 | GL24: 0 | GM24: 0 | GN24: 0 | GO24: 0 | GP24: 0 | GQ24: 0 | GR24: 0 | GS24: 0 | GT24: 0 | GU24: 0 | GV24: 0 | GW24: 0 | GY24: 0 | GZ24: 0 | HA24: 0 | HB24: 0 | HC24: 0 | HD24: 0 | HE24: 0 | HF24: 0 | HG24: 0 | HH24: 0 | HI24: 0 | HJ24: 0 | HK24: 0 | HL24: 0 | HM24: 0 | HN24: 0 | HO24: 0 | HP24: 0 | HQ24: 0 | HR24: 0 | HS24: 0 | HT24: 0 | HU24: 0 | HV24: 0 | HW24: 0 | HX24: 0 | HY24: 0 | HZ24: 0 | IA24: 0 | IB24: 0 | IC24: 0 | ID24: 0 | IF24: 0 | IG24: 0 | IH24: 0 | II24: 0 | IJ24: 0 | IK24: 0 | IL24: 0 | IM24: 0 | IN24: 0 | IO24: 0 | IP24: 0 | IQ24: 0 | IR24: 0 | IS24: 0 | IT24: 0 | IU24: 0 | IV24: 0 | IW24: 0 | IX24: 0 | IY24: 0 | IZ24: 0 | JA24: 0 | JB24: 0 | JC24: 0 | JD24: 0 | JE24: 0 | JF24: 0 | JG24: 0 | JH24: 0 | JI24: 0 | JJ24: 0 | JK24: 0 | JM24: 0 | JN24: 0 | JO24: 0 | JP24: 0 | JQ24: 0 | JR24: 0 | JS24: 0 | JT24: 0 | JU24: 0 | JV24: 0 | JW24: 0 | JX24: 0 | JY24: 0 | JZ24: 0 | KA24: 0 | KB24: 0 | KC24: 0 | KD24: 0 | KE24: 0 | KF24: 0 | KG24: 0 | KH24: 0 | KI24: 0 | KJ24: 0 | KK24: 0 | KL24: 0 | KM24: 0 | KN24: 0 | KO24: 0 | KP24: 0 | KQ24: 0 | KR24: 0 | KT24: 0 | KU24: 0 | KV24: 0 | KW24: 0 | KX24: 0 | KY24: 0 | KZ24: 0 | LA24: 0 | LB24: 0 | LC24: 0 | LD24: 0 | LE24: 0 | LF24: 0 | LG24: 0 | LH24: 0 | LI24: 0 | LJ24: 0 | LK24: 0 | LL24: 0 | LM24: 0 | LN24: 0 | LO24: 0 | LP24: 0 | LQ24: 0 | LR24: 0 | LS24: 0 | LT24: 0 | LU24: 0 | LV24: 0 | LW24: 0 | LX24: 0 | LY24: 0 | MA24: 0 | MB24: 0 | MC24: 0 | MD24: 0 | ME24: 0 | MF24: 0 | MG24: 0 | MH24: 0 | MI24: 0 | MJ24: 0 | MK24: 0 | ML24: 0 | MM24: 0 | MN24: 0 | MO24: 0 | MP24: 0 | MQ24: 0 | MR24: 0 | MS24: 0 | MT24: 0 | MU24: 0 | MV24: 0 | MW24: 0 | MX24: 0 | MY24: 0 | MZ24: 0 | NA24: 0 | NB24: 0 | NC24: 0 | ND24: 0 | NE24: 0 | NF24: 0 | NH24: 0 | NI24: 0 | NJ24: 0 | NK24: 0 | NL24: 0 | NM24: 0 | NN24: 0 | NO24: 0 | NP24: 0 | NQ24: 0 | NR24: 0 | NS24: 0 | NT24: 0 | NU24: 0 | NV24: 0 | NW24: 0 | NX24: 0 | NY24: 0 | NZ24: 0 | OA24: 0 | OB24: 0 | OC24: 0 | OD24: 0 | OE24: 0 | OF24: 0 | OG24: 0 | OH24: 0 | OI24: 0 | OJ24: 0 | OK24: 0 | OL24: 0 | OM24: 0 | OO24: 0 | OP24: 0 | OQ24: 0 | OR24: 0 | OS24: 0 | OT24: 0 | OU24: 0 | OV24: 0 | OW24: 0 | OX24: 0 | OY24: 0 | OZ24: 0 | PA24: 0 | PB24: 0 | PC24: 0 | PD24: 0 | PE24: 0 | PF24: 0 | PG24: 0 | PH24: 0 | PI24: 0 | PJ24: 0 | PK24: 0 | PL24: 0 | PM24: 0 | PN24: 0 | PO24: 0 | PP24: 0 | PQ24: 0 | PR24: 0 | PS24: 0 | PT24: 0
I25: =IF(OR($B25="",$E25="非燃料由来の非化石電気（オンサイトPPA含む）以外"),"",IFERROR(VLOOKUP(B25&C25&D25&E25&F25,'熱量換算係数(電気)'!$A$4:$G$24,7,FALSE),"熱量換算係数を入力")) ->  | J25: =IF(OR($B25="",$E25="非燃料由来の非化石電気（オンサイトPPA含む）以外"),"",IFERROR(VLOOKUP($G25,'排出係数(電気)'!$C$10:$D$1258,2,FALSE),IF(F25="化石分","基礎排出係数を入力",0))) ->  | K25: =IF(OR($B25="",$E25="非燃料由来の非化石電気（オンサイトPPA含む）以外"),"",IFERROR(VLOOKUP($G25&H25,'排出係数(電気)'!$A$10:$F$1258,6,FALSE),IF(ISNUMBER($J25)=TRUE,$J25,"調整後排出係数を入力"))) ->  | M25: 0 | N25: 0 | O25: 0 | P25: 0 | Q25: 0 | R25: 0 | S25: 0 | T25: 0 | U25: 0 | V25: 0 | W25: 0 | X25: 0 | Y25: 0 | Z25: 0 | AA25: 0 | AB25: 0 | AC25: 0 | AD25: 0 | AE25: 0 | AF25: 0 | AG25: 0 | AH25: 0 | AI25: 0 | AJ25: 0 | AK25: 0 | AL25: 0 | AM25: 0 | AN25: 0 | AP25: 0 | AQ25: 0 | AR25: 0 | AS25: 0 | AT25: 0 | AU25: 0 | AV25: 0 | AW25: 0 | AX25: 0 | AY25: 0 | AZ25: 0 | BA25: 0 | BB25: 0 | BC25: 0 | BD25: 0 | BE25: 0 | BF25: 0 | BG25: 0 | BH25: 0 | BI25: 0 | BJ25: 0 | BK25: 0 | BL25: 0 | BM25: 0 | BN25: 0 | BO25: 0 | BP25: 0 | BQ25: 0 | BR25: 0 | BS25: 0 | BT25: 0 | BU25: 0 | BW25: 0 | BX25: 0 | BY25: 0 | BZ25: 0 | CA25: 0 | CB25: 0 | CC25: 0 | CD25: 0 | CE25: 0 | CF25: 0 | CG25: 0 | CH25: 0 | CI25: 0 | CJ25: 0 | CK25: 0 | CL25: 0 | CM25: 0 | CN25: 0 | CO25: 0 | CP25: 0 | CQ25: 0 | CR25: 0 | CS25: 0 | CT25: 0 | CU25: 0 | CV25: 0 | CW25: 0 | CX25: 0 | CY25: 0 | CZ25: 0 | DA25: 0 | DB25: 0 | DD25: 0 | DE25: 0 | DF25: 0 | DG25: 0 | DH25: 0 | DI25: 0 | DJ25: 0 | DK25: 0 | DL25: 0 | DM25: 0 | DN25: 0 | DO25: 0 | DP25: 0 | DQ25: 0 | DR25: 0 | DS25: 0 | DT25: 0 | DU25: 0 | DV25: 0 | DW25: 0 | DX25: 0 | DY25: 0 | DZ25: 0 | EA25: 0 | EB25: 0 | EC25: 0 | ED25: 0 | EE25: 0 | EF25: 0 | EG25: 0 | EH25: 0 | EI25: 0 | EK25: 0 | EL25: 0 | EM25: 0 | EN25: 0 | EO25: 0 | EP25: 0 | EQ25: 0 | ER25: 0 | ES25: 0 | ET25: 0 | EU25: 0 | EV25: 0 | EW25: 0 | EX25: 0 | EY25: 0 | EZ25: 0 | FA25: 0 | FB25: 0 | FC25: 0 | FD25: 0 | FE25: 0 | FF25: 0 | FG25: 0 | FH25: 0 | FI25: 0 | FJ25: 0 | FK25: 0 | FL25: 0 | FM25: 0 | FN25: 0 | FO25: 0 | FP25: 0 | FR25: 0 | FS25: 0 | FT25: 0 | FU25: 0 | FV25: 0 | FW25: 0 | FX25: 0 | FY25: 0 | FZ25: 0 | GA25: 0 | GB25: 0 | GC25: 0 | GD25: 0 | GE25: 0 | GF25: 0 | GG25: 0 | GH25: 0 | GI25: 0 | GJ25: 0 | GK25: 0 | GL25: 0 | GM25: 0 | GN25: 0 | GO25: 0 | GP25: 0 | GQ25: 0 | GR25: 0 | GS25: 0 | GT25: 0 | GU25: 0 | GV25: 0 | GW25: 0 | GY25: 0 | GZ25: 0 | HA25: 0 | HB25: 0 | HC25: 0 | HD25: 0 | HE25: 0 | HF25: 0 | HG25: 0 | HH25: 0 | HI25: 0 | HJ25: 0 | HK25: 0 | HL25: 0 | HM25: 0 | HN25: 0 | HO25: 0 | HP25: 0 | HQ25: 0 | HR25: 0 | HS25: 0 | HT25: 0 | HU25: 0 | HV25: 0 | HW25: 0 | HX25: 0 | HY25: 0 | HZ25: 0 | IA25: 0 | IB25: 0 | IC25: 0 | ID25: 0 | IF25: 0 | IG25: 0 | IH25: 0 | II25: 0 | IJ25: 0 | IK25: 0 | IL25: 0 | IM25: 0 | IN25: 0 | IO25: 0 | IP25: 0 | IQ25: 0 | IR25: 0 | IS25: 0 | IT25: 0 | IU25: 0 | IV25: 0 | IW25: 0 | IX25: 0 | IY25: 0 | IZ25: 0 | JA25: 0 | JB25: 0 | JC25: 0 | JD25: 0 | JE25: 0 | JF25: 0 | JG25: 0 | JH25: 0 | JI25: 0 | JJ25: 0 | JK25: 0 | JM25: 0 | JN25: 0 | JO25: 0 | JP25: 0 | JQ25: 0 | JR25: 0 | JS25: 0 | JT25: 0 | JU25: 0 | JV25: 0 | JW25: 0 | JX25: 0 | JY25: 0 | JZ25: 0 | KA25: 0 | KB25: 0 | KC25: 0 | KD25: 0 | KE25: 0 | KF25: 0 | KG25: 0 | KH25: 0 | KI25: 0 | KJ25: 0 | KK25: 0 | KL25: 0 | KM25: 0 | KN25: 0 | KO25: 0 | KP25: 0 | KQ25: 0 | KR25: 0 | KT25: 0 | KU25: 0 | KV25: 0 | KW25: 0 | KX25: 0 | KY25: 0 | KZ25: 0 | LA25: 0 | LB25: 0 | LC25: 0 | LD25: 0 | LE25: 0 | LF25: 0 | LG25: 0 | LH25: 0 | LI25: 0 | LJ25: 0 | LK25: 0 | LL25: 0 | LM25: 0 | LN25: 0 | LO25: 0 | LP25: 0 | LQ25: 0 | LR25: 0 | LS25: 0 | LT25: 0 | LU25: 0 | LV25: 0 | LW25: 0 | LX25: 0 | LY25: 0 | MA25: 0 | MB25: 0 | MC25: 0 | MD25: 0 | ME25: 0 | MF25: 0 | MG25: 0 | MH25: 0 | MI25: 0 | MJ25: 0 | MK25: 0 | ML25: 0 | MM25: 0 | MN25: 0 | MO25: 0 | MP25: 0 | MQ25: 0 | MR25: 0 | MS25: 0 | MT25: 0 | MU25: 0 | MV25: 0 | MW25: 0 | MX25: 0 | MY25: 0 | MZ25: 0 | NA25: 0 | NB25: 0 | NC25: 0 | ND25: 0 | NE25: 0 | NF25: 0 | NH25: 0 | NI25: 0 | NJ25: 0 | NK25: 0 | NL25: 0 | NM25: 0 | NN25: 0 | NO25: 0 | NP25: 0 | NQ25: 0 | NR25: 0 | NS25: 0 | NT25: 0 | NU25: 0 | NV25: 0 | NW25: 0 | NX25: 0 | NY25: 0 | NZ25: 0 | OA25: 0 | OB25: 0 | OC25: 0 | OD25: 0 | OE25: 0 | OF25: 0 | OG25: 0 | OH25: 0 | OI25: 0 | OJ25: 0 | OK25: 0 | OL25: 0 | OM25: 0 | OO25: 0 | OP25: 0 | OQ25: 0 | OR25: 0 | OS25: 0 | OT25: 0 | OU25: 0 | OV25: 0 | OW25: 0 | OX25: 0 | OY25: 0 | OZ25: 0 | PA25: 0 | PB25: 0 | PC25: 0 | PD25: 0 | PE25: 0 | PF25: 0 | PG25: 0 | PH25: 0 | PI25: 0 | PJ25: 0 | PK25: 0 | PL25: 0 | PM25: 0 | PN25: 0 | PO25: 0 | PP25: 0 | PQ25: 0 | PR25: 0 | PS25: 0 | PT25: 0
I26: =IF(OR($B26="",$E26="非燃料由来の非化石電気（オンサイトPPA含む）以外"),"",IFERROR(VLOOKUP(B26&C26&D26&E26&F26,'熱量換算係数(電気)'!$A$4:$G$24,7,FALSE),"熱量換算係数を入力")) ->  | J26: =IF(OR($B26="",$E26="非燃料由来の非化石電気（オンサイトPPA含む）以外"),"",IFERROR(VLOOKUP($G26,'排出係数(電気)'!$C$10:$D$1258,2,FALSE),IF(F26="化石分","基礎排出係数を入力",0))) ->  | K26: =IF(OR($B26="",$E26="非燃料由来の非化石電気（オンサイトPPA含む）以外"),"",IFERROR(VLOOKUP($G26&H26,'排出係数(電気)'!$A$10:$F$1258,6,FALSE),IF(ISNUMBER($J26)=TRUE,$J26,"調整後排出係数を入力"))) ->  | M26: 0 | N26: 0 | O26: 0 | P26: 0 | Q26: 0 | R26: 0 | S26: 0 | T26: 0 | U26: 0 | V26: 0 | W26: 0 | X26: 0 | Y26: 0 | Z26: 0 | AA26: 0 | AB26: 0 | AC26: 0 | AD26: 0 | AE26: 0 | AF26: 0 | AG26: 0 | AH26: 0 | AI26: 0 | AJ26: 0 | AK26: 0 | AL26: 0 | AM26: 0 | AN26: 0 | AP26: 0 | AQ26: 0 | AR26: 0 | AS26: 0 | AT26: 0 | AU26: 0 | AV26: 0 | AW26: 0 | AX26: 0 | AY26: 0 | AZ26: 0 | BA26: 0 | BB26: 0 | BC26: 0 | BD26: 0 | BE26: 0 | BF26: 0 | BG26: 0 | BH26: 0 | BI26: 0 | BJ26: 0 | BK26: 0 | BL26: 0 | BM26: 0 | BN26: 0 | BO26: 0 | BP26: 0 | BQ26: 0 | BR26: 0 | BS26: 0 | BT26: 0 | BU26: 0 | BW26: 0 | BX26: 0 | BY26: 0 | BZ26: 0 | CA26: 0 | CB26: 0 | CC26: 0 | CD26: 0 | CE26: 0 | CF26: 0 | CG26: 0 | CH26: 0 | CI26: 0 | CJ26: 0 | CK26: 0 | CL26: 0 | CM26: 0 | CN26: 0 | CO26: 0 | CP26: 0 | CQ26: 0 | CR26: 0 | CS26: 0 | CT26: 0 | CU26: 0 | CV26: 0 | CW26: 0 | CX26: 0 | CY26: 0 | CZ26: 0 | DA26: 0 | DB26: 0 | DD26: 0 | DE26: 0 | DF26: 0 | DG26: 0 | DH26: 0 | DI26: 0 | DJ26: 0 | DK26: 0 | DL26: 0 | DM26: 0 | DN26: 0 | DO26: 0 | DP26: 0 | DQ26: 0 | DR26: 0 | DS26: 0 | DT26: 0 | DU26: 0 | DV26: 0 | DW26: 0 | DX26: 0 | DY26: 0 | DZ26: 0 | EA26: 0 | EB26: 0 | EC26: 0 | ED26: 0 | EE26: 0 | EF26: 0 | EG26: 0 | EH26: 0 | EI26: 0 | EK26: 0 | EL26: 0 | EM26: 0 | EN26: 0 | EO26: 0 | EP26: 0 | EQ26: 0 | ER26: 0 | ES26: 0 | ET26: 0 | EU26: 0 | EV26: 0 | EW26: 0 | EX26: 0 | EY26: 0 | EZ26: 0 | FA26: 0 | FB26: 0 | FC26: 0 | FD26: 0 | FE26: 0 | FF26: 0 | FG26: 0 | FH26: 0 | FI26: 0 | FJ26: 0 | FK26: 0 | FL26: 0 | FM26: 0 | FN26: 0 | FO26: 0 | FP26: 0 | FR26: 0 | FS26: 0 | FT26: 0 | FU26: 0 | FV26: 0 | FW26: 0 | FX26: 0 | FY26: 0 | FZ26: 0 | GA26: 0 | GB26: 0 | GC26: 0 | GD26: 0 | GE26: 0 | GF26: 0 | GG26: 0 | GH26: 0 | GI26: 0 | GJ26: 0 | GK26: 0 | GL26: 0 | GM26: 0 | GN26: 0 | GO26: 0 | GP26: 0 | GQ26: 0 | GR26: 0 | GS26: 0 | GT26: 0 | GU26: 0 | GV26: 0 | GW26: 0 | GY26: 0 | GZ26: 0 | HA26: 0 | HB26: 0 | HC26: 0 | HD26: 0 | HE26: 0 | HF26: 0 | HG26: 0 | HH26: 0 | HI26: 0 | HJ26: 0 | HK26: 0 | HL26: 0 | HM26: 0 | HN26: 0 | HO26: 0 | HP26: 0 | HQ26: 0 | HR26: 0 | HS26: 0 | HT26: 0 | HU26: 0 | HV26: 0 | HW26: 0 | HX26: 0 | HY26: 0 | HZ26: 0 | IA26: 0 | IB26: 0 | IC26: 0 | ID26: 0 | IF26: 0 | IG26: 0 | IH26: 0 | II26: 0 | IJ26: 0 | IK26: 0 | IL26: 0 | IM26: 0 | IN26: 0 | IO26: 0 | IP26: 0 | IQ26: 0 | IR26: 0 | IS26: 0 | IT26: 0 | IU26: 0 | IV26: 0 | IW26: 0 | IX26: 0 | IY26: 0 | IZ26: 0 | JA26: 0 | JB26: 0 | JC26: 0 | JD26: 0 | JE26: 0 | JF26: 0 | JG26: 0 | JH26: 0 | JI26: 0 | JJ26: 0 | JK26: 0 | JM26: 0 | JN26: 0 | JO26: 0 | JP26: 0 | JQ26: 0 | JR26: 0 | JS26: 0 | JT26: 0 | JU26: 0 | JV26: 0 | JW26: 0 | JX26: 0 | JY26: 0 | JZ26: 0 | KA26: 0 | KB26: 0 | KC26: 0 | KD26: 0 | KE26: 0 | KF26: 0 | KG26: 0 | KH26: 0 | KI26: 0 | KJ26: 0 | KK26: 0 | KL26: 0 | KM26: 0 | KN26: 0 | KO26: 0 | KP26: 0 | KQ26: 0 | KR26: 0 | KT26: 0 | KU26: 0 | KV26: 0 | KW26: 0 | KX26: 0 | KY26: 0 | KZ26: 0 | LA26: 0 | LB26: 0 | LC26: 0 | LD26: 0 | LE26: 0 | LF26: 0 | LG26: 0 | LH26: 0 | LI26: 0 | LJ26: 0 | LK26: 0 | LL26: 0 | LM26: 0 | LN26: 0 | LO26: 0 | LP26: 0 | LQ26: 0 | LR26: 0 | LS26: 0 | LT26: 0 | LU26: 0 | LV26: 0 | LW26: 0 | LX26: 0 | LY26: 0 | MA26: 0 | MB26: 0 | MC26: 0 | MD26: 0 | ME26: 0 | MF26: 0 | MG26: 0 | MH26: 0 | MI26: 0 | MJ26: 0 | MK26: 0 | ML26: 0 | MM26: 0 | MN26: 0 | MO26: 0 | MP26: 0 | MQ26: 0 | MR26: 0 | MS26: 0 | MT26: 0 | MU26: 0 | MV26: 0 | MW26: 0 | MX26: 0 | MY26: 0 | MZ26: 0 | NA26: 0 | NB26: 0 | NC26: 0 | ND26: 0 | NE26: 0 | NF26: 0 | NH26: 0 | NI26: 0 | NJ26: 0 | NK26: 0 | NL26: 0 | NM26: 0 | NN26: 0 | NO26: 0 | NP26: 0 | NQ26: 0 | NR26: 0 | NS26: 0 | NT26: 0 | NU26: 0 | NV26: 0 | NW26: 0 | NX26: 0 | NY26: 0 | NZ26: 0 | OA26: 0 | OB26: 0 | OC26: 0 | OD26: 0 | OE26: 0 | OF26: 0 | OG26: 0 | OH26: 0 | OI26: 0 | OJ26: 0 | OK26: 0 | OL26: 0 | OM26: 0 | OO26: 0 | OP26: 0 | OQ26: 0 | OR26: 0 | OS26: 0 | OT26: 0 | OU26: 0 | OV26: 0 | OW26: 0 | OX26: 0 | OY26: 0 | OZ26: 0 | PA26: 0 | PB26: 0 | PC26: 0 | PD26: 0 | PE26: 0 | PF26: 0 | PG26: 0 | PH26: 0 | PI26: 0 | PJ26: 0 | PK26: 0 | PL26: 0 | PM26: 0 | PN26: 0 | PO26: 0 | PP26: 0 | PQ26: 0 | PR26: 0 | PS26: 0 | PT26: 0
I27: =IF(OR($B27="",$E27="非燃料由来の非化石電気（オンサイトPPA含む）以外"),"",IFERROR(VLOOKUP(B27&C27&D27&E27&F27,'熱量換算係数(電気)'!$A$4:$G$24,7,FALSE),"熱量換算係数を入力")) ->  | J27: =IF(OR($B27="",$E27="非燃料由来の非化石電気（オンサイトPPA含む）以外"),"",IFERROR(VLOOKUP($G27,'排出係数(電気)'!$C$10:$D$1258,2,FALSE),IF(F27="化石分","基礎排出係数を入力",0))) ->  | K27: =IF(OR($B27="",$E27="非燃料由来の非化石電気（オンサイトPPA含む）以外"),"",IFERROR(VLOOKUP($G27&H27,'排出係数(電気)'!$A$10:$F$1258,6,FALSE),IF(ISNUMBER($J27)=TRUE,$J27,"調整後排出係数を入力"))) ->  | M27: 0 | N27: 0 | O27: 0 | P27: 0 | Q27: 0 | R27: 0 | S27: 0 | T27: 0 | U27: 0 | V27: 0 | W27: 0 | X27: 0 | Y27: 0 | Z27: 0 | AA27: 0 | AB27: 0 | AC27: 0 | AD27: 0 | AE27: 0 | AF27: 0 | AG27: 0 | AH27: 0 | AI27: 0 | AJ27: 0 | AK27: 0 | AL27: 0 | AM27: 0 | AN27: 0 | AP27: 0 | AQ27: 0 | AR27: 0 | AS27: 0 | AT27: 0 | AU27: 0 | AV27: 0 | AW27: 0 | AX27: 0 | AY27: 0 | AZ27: 0 | BA27: 0 | BB27: 0 | BC27: 0 | BD27: 0 | BE27: 0 | BF27: 0 | BG27: 0 | BH27: 0 | BI27: 0 | BJ27: 0 | BK27: 0 | BL27: 0 | BM27: 0 | BN27: 0 | BO27: 0 | BP27: 0 | BQ27: 0 | BR27: 0 | BS27: 0 | BT27: 0 | BU27: 0 | BW27: 0 | BX27: 0 | BY27: 0 | BZ27: 0 | CA27: 0 | CB27: 0 | CC27: 0 | CD27: 0 | CE27: 0 | CF27: 0 | CG27: 0 | CH27: 0 | CI27: 0 | CJ27: 0 | CK27: 0 | CL27: 0 | CM27: 0 | CN27: 0 | CO27: 0 | CP27: 0 | CQ27: 0 | CR27: 0 | CS27: 0 | CT27: 0 | CU27: 0 | CV27: 0 | CW27: 0 | CX27: 0 | CY27: 0 | CZ27: 0 | DA27: 0 | DB27: 0 | DD27: 0 | DE27: 0 | DF27: 0 | DG27: 0 | DH27: 0 | DI27: 0 | DJ27: 0 | DK27: 0 | DL27: 0 | DM27: 0 | DN27: 0 | DO27: 0 | DP27: 0 | DQ27: 0 | DR27: 0 | DS27: 0 | DT27: 0 | DU27: 0 | DV27: 0 | DW27: 0 | DX27: 0 | DY27: 0 | DZ27: 0 | EA27: 0 | EB27: 0 | EC27: 0 | ED27: 0 | EE27: 0 | EF27: 0 | EG27: 0 | EH27: 0 | EI27: 0 | EK27: 0 | EL27: 0 | EM27: 0 | EN27: 0 | EO27: 0 | EP27: 0 | EQ27: 0 | ER27: 0 | ES27: 0 | ET27: 0 | EU27: 0 | EV27: 0 | EW27: 0 | EX27: 0 | EY27: 0 | EZ27: 0 | FA27: 0 | FB27: 0 | FC27: 0 | FD27: 0 | FE27: 0 | FF27: 0 | FG27: 0 | FH27: 0 | FI27: 0 | FJ27: 0 | FK27: 0 | FL27: 0 | FM27: 0 | FN27: 0 | FO27: 0 | FP27: 0 | FR27: 0 | FS27: 0 | FT27: 0 | FU27: 0 | FV27: 0 | FW27: 0 | FX27: 0 | FY27: 0 | FZ27: 0 | GA27: 0 | GB27: 0 | GC27: 0 | GD27: 0 | GE27: 0 | GF27: 0 | GG27: 0 | GH27: 0 | GI27: 0 | GJ27: 0 | GK27: 0 | GL27: 0 | GM27: 0 | GN27: 0 | GO27: 0 | GP27: 0 | GQ27: 0 | GR27: 0 | GS27: 0 | GT27: 0 | GU27: 0 | GV27: 0 | GW27: 0 | GY27: 0 | GZ27: 0 | HA27: 0 | HB27: 0 | HC27: 0 | HD27: 0 | HE27: 0 | HF27: 0 | HG27: 0 | HH27: 0 | HI27: 0 | HJ27: 0 | HK27: 0 | HL27: 0 | HM27: 0 | HN27: 0 | HO27: 0 | HP27: 0 | HQ27: 0 | HR27: 0 | HS27: 0 | HT27: 0 | HU27: 0 | HV27: 0 | HW27: 0 | HX27: 0 | HY27: 0 | HZ27: 0 | IA27: 0 | IB27: 0 | IC27: 0 | ID27: 0 | IF27: 0 | IG27: 0 | IH27: 0 | II27: 0 | IJ27: 0 | IK27: 0 | IL27: 0 | IM27: 0 | IN27: 0 | IO27: 0 | IP27: 0 | IQ27: 0 | IR27: 0 | IS27: 0 | IT27: 0 | IU27: 0 | IV27: 0 | IW27: 0 | IX27: 0 | IY27: 0 | IZ27: 0 | JA27: 0 | JB27: 0 | JC27: 0 | JD27: 0 | JE27: 0 | JF27: 0 | JG27: 0 | JH27: 0 | JI27: 0 | JJ27: 0 | JK27: 0 | JM27: 0 | JN27: 0 | JO27: 0 | JP27: 0 | JQ27: 0 | JR27: 0 | JS27: 0 | JT27: 0 | JU27: 0 | JV27: 0 | JW27: 0 | JX27: 0 | JY27: 0 | JZ27: 0 | KA27: 0 | KB27: 0 | KC27: 0 | KD27: 0 | KE27: 0 | KF27: 0 | KG27: 0 | KH27: 0 | KI27: 0 | KJ27: 0 | KK27: 0 | KL27: 0 | KM27: 0 | KN27: 0 | KO27: 0 | KP27: 0 | KQ27: 0 | KR27: 0 | KT27: 0 | KU27: 0 | KV27: 0 | KW27: 0 | KX27: 0 | KY27: 0 | KZ27: 0 | LA27: 0 | LB27: 0 | LC27: 0 | LD27: 0 | LE27: 0 | LF27: 0 | LG27: 0 | LH27: 0 | LI27: 0 | LJ27: 0 | LK27: 0 | LL27: 0 | LM27: 0 | LN27: 0 | LO27: 0 | LP27: 0 | LQ27: 0 | LR27: 0 | LS27: 0 | LT27: 0 | LU27: 0 | LV27: 0 | LW27: 0 | LX27: 0 | LY27: 0 | MA27: 0 | MB27: 0 | MC27: 0 | MD27: 0 | ME27: 0 | MF27: 0 | MG27: 0 | MH27: 0 | MI27: 0 | MJ27: 0 | MK27: 0 | ML27: 0 | MM27: 0 | MN27: 0 | MO27: 0 | MP27: 0 | MQ27: 0 | MR27: 0 | MS27: 0 | MT27: 0 | MU27: 0 | MV27: 0 | MW27: 0 | MX27: 0 | MY27: 0 | MZ27: 0 | NA27: 0 | NB27: 0 | NC27: 0 | ND27: 0 | NE27: 0 | NF27: 0 | NH27: 0 | NI27: 0 | NJ27: 0 | NK27: 0 | NL27: 0 | NM27: 0 | NN27: 0 | NO27: 0 | NP27: 0 | NQ27: 0 | NR27: 0 | NS27: 0 | NT27: 0 | NU27: 0 | NV27: 0 | NW27: 0 | NX27: 0 | NY27: 0 | NZ27: 0 | OA27: 0 | OB27: 0 | OC27: 0 | OD27: 0 | OE27: 0 | OF27: 0 | OG27: 0 | OH27: 0 | OI27: 0 | OJ27: 0 | OK27: 0 | OL27: 0 | OM27: 0 | OO27: 0 | OP27: 0 | OQ27: 0 | OR27: 0 | OS27: 0 | OT27: 0 | OU27: 0 | OV27: 0 | OW27: 0 | OX27: 0 | OY27: 0 | OZ27: 0 | PA27: 0 | PB27: 0 | PC27: 0 | PD27: 0 | PE27: 0 | PF27: 0 | PG27: 0 | PH27: 0 | PI27: 0 | PJ27: 0 | PK27: 0 | PL27: 0 | PM27: 0 | PN27: 0 | PO27: 0 | PP27: 0 | PQ27: 0 | PR27: 0 | PS27: 0 | PT27: 0
I28: =IF(OR($B28="",$E28="非燃料由来の非化石電気（オンサイトPPA含む）以外"),"",IFERROR(VLOOKUP(B28&C28&D28&E28&F28,'熱量換算係数(電気)'!$A$4:$G$24,7,FALSE),"熱量換算係数を入力")) ->  | J28: =IF(OR($B28="",$E28="非燃料由来の非化石電気（オンサイトPPA含む）以外"),"",IFERROR(VLOOKUP($G28,'排出係数(電気)'!$C$10:$D$1258,2,FALSE),IF(F28="化石分","基礎排出係数を入力",0))) ->  | K28: =IF(OR($B28="",$E28="非燃料由来の非化石電気（オンサイトPPA含む）以外"),"",IFERROR(VLOOKUP($G28&H28,'排出係数(電気)'!$A$10:$F$1258,6,FALSE),IF(ISNUMBER($J28)=TRUE,$J28,"調整後排出係数を入力"))) ->  | M28: 0 | N28: 0 | O28: 0 | P28: 0 | Q28: 0 | R28: 0 | S28: 0 | T28: 0 | U28: 0 | V28: 0 | W28: 0 | X28: 0 | Y28: 0 | Z28: 0 | AA28: 0 | AB28: 0 | AC28: 0 | AD28: 0 | AE28: 0 | AF28: 0 | AG28: 0 | AH28: 0 | AI28: 0 | AJ28: 0 | AK28: 0 | AL28: 0 | AM28: 0 | AN28: 0 | AP28: 0 | AQ28: 0 | AR28: 0 | AS28: 0 | AT28: 0 | AU28: 0 | AV28: 0 | AW28: 0 | AX28: 0 | AY28: 0 | AZ28: 0 | BA28: 0 | BB28: 0 | BC28: 0 | BD28: 0 | BE28: 0 | BF28: 0 | BG28: 0 | BH28: 0 | BI28: 0 | BJ28: 0 | BK28: 0 | BL28: 0 | BM28: 0 | BN28: 0 | BO28: 0 | BP28: 0 | BQ28: 0 | BR28: 0 | BS28: 0 | BT28: 0 | BU28: 0 | BW28: 0 | BX28: 0 | BY28: 0 | BZ28: 0 | CA28: 0 | CB28: 0 | CC28: 0 | CD28: 0 | CE28: 0 | CF28: 0 | CG28: 0 | CH28: 0 | CI28: 0 | CJ28: 0 | CK28: 0 | CL28: 0 | CM28: 0 | CN28: 0 | CO28: 0 | CP28: 0 | CQ28: 0 | CR28: 0 | CS28: 0 | CT28: 0 | CU28: 0 | CV28: 0 | CW28: 0 | CX28: 0 | CY28: 0 | CZ28: 0 | DA28: 0 | DB28: 0 | DD28: 0 | DE28: 0 | DF28: 0 | DG28: 0 | DH28: 0 | DI28: 0 | DJ28: 0 | DK28: 0 | DL28: 0 | DM28: 0 | DN28: 0 | DO28: 0 | DP28: 0 | DQ28: 0 | DR28: 0 | DS28: 0 | DT28: 0 | DU28: 0 | DV28: 0 | DW28: 0 | DX28: 0 | DY28: 0 | DZ28: 0 | EA28: 0 | EB28: 0 | EC28: 0 | ED28: 0 | EE28: 0 | EF28: 0 | EG28: 0 | EH28: 0 | EI28: 0 | EK28: 0 | EL28: 0 | EM28: 0 | EN28: 0 | EO28: 0 | EP28: 0 | EQ28: 0 | ER28: 0 | ES28: 0 | ET28: 0 | EU28: 0 | EV28: 0 | EW28: 0 | EX28: 0 | EY28: 0 | EZ28: 0 | FA28: 0 | FB28: 0 | FC28: 0 | FD28: 0 | FE28: 0 | FF28: 0 | FG28: 0 | FH28: 0 | FI28: 0 | FJ28: 0 | FK28: 0 | FL28: 0 | FM28: 0 | FN28: 0 | FO28: 0 | FP28: 0 | FR28: 0 | FS28: 0 | FT28: 0 | FU28: 0 | FV28: 0 | FW28: 0 | FX28: 0 | FY28: 0 | FZ28: 0 | GA28: 0 | GB28: 0 | GC28: 0 | GD28: 0 | GE28: 0 | GF28: 0 | GG28: 0 | GH28: 0 | GI28: 0 | GJ28: 0 | GK28: 0 | GL28: 0 | GM28: 0 | GN28: 0 | GO28: 0 | GP28: 0 | GQ28: 0 | GR28: 0 | GS28: 0 | GT28: 0 | GU28: 0 | GV28: 0 | GW28: 0 | GY28: 0 | GZ28: 0 | HA28: 0 | HB28: 0 | HC28: 0 | HD28: 0 | HE28: 0 | HF28: 0 | HG28: 0 | HH28: 0 | HI28: 0 | HJ28: 0 | HK28: 0 | HL28: 0 | HM28: 0 | HN28: 0 | HO28: 0 | HP28: 0 | HQ28: 0 | HR28: 0 | HS28: 0 | HT28: 0 | HU28: 0 | HV28: 0 | HW28: 0 | HX28: 0 | HY28: 0 | HZ28: 0 | IA28: 0 | IB28: 0 | IC28: 0 | ID28: 0 | IF28: 0 | IG28: 0 | IH28: 0 | II28: 0 | IJ28: 0 | IK28: 0 | IL28: 0 | IM28: 0 | IN28: 0 | IO28: 0 | IP28: 0 | IQ28: 0 | IR28: 0 | IS28: 0 | IT28: 0 | IU28: 0 | IV28: 0 | IW28: 0 | IX28: 0 | IY28: 0 | IZ28: 0 | JA28: 0 | JB28: 0 | JC28: 0 | JD28: 0 | JE28: 0 | JF28: 0 | JG28: 0 | JH28: 0 | JI28: 0 | JJ28: 0 | JK28: 0 | JM28: 0 | JN28: 0 | JO28: 0 | JP28: 0 | JQ28: 0 | JR28: 0 | JS28: 0 | JT28: 0 | JU28: 0 | JV28: 0 | JW28: 0 | JX28: 0 | JY28: 0 | JZ28: 0 | KA28: 0 | KB28: 0 | KC28: 0 | KD28: 0 | KE28: 0 | KF28: 0 | KG28: 0 | KH28: 0 | KI28: 0 | KJ28: 0 | KK28: 0 | KL28: 0 | KM28: 0 | KN28: 0 | KO28: 0 | KP28: 0 | KQ28: 0 | KR28: 0 | KT28: 0 | KU28: 0 | KV28: 0 | KW28: 0 | KX28: 0 | KY28: 0 | KZ28: 0 | LA28: 0 | LB28: 0 | LC28: 0 | LD28: 0 | LE28: 0 | LF28: 0 | LG28: 0 | LH28: 0 | LI28: 0 | LJ28: 0 | LK28: 0 | LL28: 0 | LM28: 0 | LN28: 0 | LO28: 0 | LP28: 0 | LQ28: 0 | LR28: 0 | LS28: 0 | LT28: 0 | LU28: 0 | LV28: 0 | LW28: 0 | LX28: 0 | LY28: 0 | MA28: 0 | MB28: 0 | MC28: 0 | MD28: 0 | ME28: 0 | MF28: 0 | MG28: 0 | MH28: 0 | MI28: 0 | MJ28: 0 | MK28: 0 | ML28: 0 | MM28: 0 | MN28: 0 | MO28: 0 | MP28: 0 | MQ28: 0 | MR28: 0 | MS28: 0 | MT28: 0 | MU28: 0 | MV28: 0 | MW28: 0 | MX28: 0 | MY28: 0 | MZ28: 0 | NA28: 0 | NB28: 0 | NC28: 0 | ND28: 0 | NE28: 0 | NF28: 0 | NH28: 0 | NI28: 0 | NJ28: 0 | NK28: 0 | NL28: 0 | NM28: 0 | NN28: 0 | NO28: 0 | NP28: 0 | NQ28: 0 | NR28: 0 | NS28: 0 | NT28: 0 | NU28: 0 | NV28: 0 | NW28: 0 | NX28: 0 | NY28: 0 | NZ28: 0 | OA28: 0 | OB28: 0 | OC28: 0 | OD28: 0 | OE28: 0 | OF28: 0 | OG28: 0 | OH28: 0 | OI28: 0 | OJ28: 0 | OK28: 0 | OL28: 0 | OM28: 0 | OO28: 0 | OP28: 0 | OQ28: 0 | OR28: 0 | OS28: 0 | OT28: 0 | OU28: 0 | OV28: 0 | OW28: 0 | OX28: 0 | OY28: 0 | OZ28: 0 | PA28: 0 | PB28: 0 | PC28: 0 | PD28: 0 | PE28: 0 | PF28: 0 | PG28: 0 | PH28: 0 | PI28: 0 | PJ28: 0 | PK28: 0 | PL28: 0 | PM28: 0 | PN28: 0 | PO28: 0 | PP28: 0 | PQ28: 0 | PR28: 0 | PS28: 0 | PT28: 0
I29: =IF(OR($B29="",$E29="非燃料由来の非化石電気（オンサイトPPA含む）以外"),"",IFERROR(VLOOKUP(B29&C29&D29&E29&F29,'熱量換算係数(電気)'!$A$4:$G$24,7,FALSE),"熱量換算係数を入力")) ->  | J29: =IF(OR($B29="",$E29="非燃料由来の非化石電気（オンサイトPPA含む）以外"),"",IFERROR(VLOOKUP($G29,'排出係数(電気)'!$C$10:$D$1258,2,FALSE),IF(F29="化石分","基礎排出係数を入力",0))) ->  | K29: =IF(OR($B29="",$E29="非燃料由来の非化石電気（オンサイトPPA含む）以外"),"",IFERROR(VLOOKUP($G29&H29,'排出係数(電気)'!$A$10:$F$1258,6,FALSE),IF(ISNUMBER($J29)=TRUE,$J29,"調整後排出係数を入力"))) ->  | M29: 0 | N29: 0 | O29: 0 | P29: 0 | Q29: 0 | R29: 0 | S29: 0 | T29: 0 | U29: 0 | V29: 0 | W29: 0 | X29: 0 | Y29: 0 | Z29: 0 | AA29: 0 | AB29: 0 | AC29: 0 | AD29: 0 | AE29: 0 | AF29: 0 | AG29: 0 | AH29: 0 | AI29: 0 | AJ29: 0 | AK29: 0 | AL29: 0 | AM29: 0 | AN29: 0 | AP29: 0 | AQ29: 0 | AR29: 0 | AS29: 0 | AT29: 0 | AU29: 0 | AV29: 0 | AW29: 0 | AX29: 0 | AY29: 0 | AZ29: 0 | BA29: 0 | BB29: 0 | BC29: 0 | BD29: 0 | BE29: 0 | BF29: 0 | BG29: 0 | BH29: 0 | BI29: 0 | BJ29: 0 | BK29: 0 | BL29: 0 | BM29: 0 | BN29: 0 | BO29: 0 | BP29: 0 | BQ29: 0 | BR29: 0 | BS29: 0 | BT29: 0 | BU29: 0 | BW29: 0 | BX29: 0 | BY29: 0 | BZ29: 0 | CA29: 0 | CB29: 0 | CC29: 0 | CD29: 0 | CE29: 0 | CF29: 0 | CG29: 0 | CH29: 0 | CI29: 0 | CJ29: 0 | CK29: 0 | CL29: 0 | CM29: 0 | CN29: 0 | CO29: 0 | CP29: 0 | CQ29: 0 | CR29: 0 | CS29: 0 | CT29: 0 | CU29: 0 | CV29: 0 | CW29: 0 | CX29: 0 | CY29: 0 | CZ29: 0 | DA29: 0 | DB29: 0 | DD29: 0 | DE29: 0 | DF29: 0 | DG29: 0 | DH29: 0 | DI29: 0 | DJ29: 0 | DK29: 0 | DL29: 0 | DM29: 0 | DN29: 0 | DO29: 0 | DP29: 0 | DQ29: 0 | DR29: 0 | DS29: 0 | DT29: 0 | DU29: 0 | DV29: 0 | DW29: 0 | DX29: 0 | DY29: 0 | DZ29: 0 | EA29: 0 | EB29: 0 | EC29: 0 | ED29: 0 | EE29: 0 | EF29: 0 | EG29: 0 | EH29: 0 | EI29: 0 | EK29: 0 | EL29: 0 | EM29: 0 | EN29: 0 | EO29: 0 | EP29: 0 | EQ29: 0 | ER29: 0 | ES29: 0 | ET29: 0 | EU29: 0 | EV29: 0 | EW29: 0 | EX29: 0 | EY29: 0 | EZ29: 0 | FA29: 0 | FB29: 0 | FC29: 0 | FD29: 0 | FE29: 0 | FF29: 0 | FG29: 0 | FH29: 0 | FI29: 0 | FJ29: 0 | FK29: 0 | FL29: 0 | FM29: 0 | FN29: 0 | FO29: 0 | FP29: 0 | FR29: 0 | FS29: 0 | FT29: 0 | FU29: 0 | FV29: 0 | FW29: 0 | FX29: 0 | FY29: 0 | FZ29: 0 | GA29: 0 | GB29: 0 | GC29: 0 | GD29: 0 | GE29: 0 | GF29: 0 | GG29: 0 | GH29: 0 | GI29: 0 | GJ29: 0 | GK29: 0 | GL29: 0 | GM29: 0 | GN29: 0 | GO29: 0 | GP29: 0 | GQ29: 0 | GR29: 0 | GS29: 0 | GT29: 0 | GU29: 0 | GV29: 0 | GW29: 0 | GY29: 0 | GZ29: 0 | HA29: 0 | HB29: 0 | HC29: 0 | HD29: 0 | HE29: 0 | HF29: 0 | HG29: 0 | HH29: 0 | HI29: 0 | HJ29: 0 | HK29: 0 | HL29: 0 | HM29: 0 | HN29: 0 | HO29: 0 | HP29: 0 | HQ29: 0 | HR29: 0 | HS29: 0 | HT29: 0 | HU29: 0 | HV29: 0 | HW29: 0 | HX29: 0 | HY29: 0 | HZ29: 0 | IA29: 0 | IB29: 0 | IC29: 0 | ID29: 0 | IF29: 0 | IG29: 0 | IH29: 0 | II29: 0 | IJ29: 0 | IK29: 0 | IL29: 0 | IM29: 0 | IN29: 0 | IO29: 0 | IP29: 0 | IQ29: 0 | IR29: 0 | IS29: 0 | IT29: 0 | IU29: 0 | IV29: 0 | IW29: 0 | IX29: 0 | IY29: 0 | IZ29: 0 | JA29: 0 | JB29: 0 | JC29: 0 | JD29: 0 | JE29: 0 | JF29: 0 | JG29: 0 | JH29: 0 | JI29: 0 | JJ29: 0 | JK29: 0 | JM29: 0 | JN29: 0 | JO29: 0 | JP29: 0 | JQ29: 0 | JR29: 0 | JS29: 0 | JT29: 0 | JU29: 0 | JV29: 0 | JW29: 0 | JX29: 0 | JY29: 0 | JZ29: 0 | KA29: 0 | KB29: 0 | KC29: 0 | KD29: 0 | KE29: 0 | KF29: 0 | KG29: 0 | KH29: 0 | KI29: 0 | KJ29: 0 | KK29: 0 | KL29: 0 | KM29: 0 | KN29: 0 | KO29: 0 | KP29: 0 | KQ29: 0 | KR29: 0 | KT29: 0 | KU29: 0 | KV29: 0 | KW29: 0 | KX29: 0 | KY29: 0 | KZ29: 0 | LA29: 0 | LB29: 0 | LC29: 0 | LD29: 0 | LE29: 0 | LF29: 0 | LG29: 0 | LH29: 0 | LI29: 0 | LJ29: 0 | LK29: 0 | LL29: 0 | LM29: 0 | LN29: 0 | LO29: 0 | LP29: 0 | LQ29: 0 | LR29: 0 | LS29: 0 | LT29: 0 | LU29: 0 | LV29: 0 | LW29: 0 | LX29: 0 | LY29: 0 | MA29: 0 | MB29: 0 | MC29: 0 | MD29: 0 | ME29: 0 | MF29: 0 | MG29: 0 | MH29: 0 | MI29: 0 | MJ29: 0 | MK29: 0 | ML29: 0 | MM29: 0 | MN29: 0 | MO29: 0 | MP29: 0 | MQ29: 0 | MR29: 0 | MS29: 0 | MT29: 0 | MU29: 0 | MV29: 0 | MW29: 0 | MX29: 0 | MY29: 0 | MZ29: 0 | NA29: 0 | NB29: 0 | NC29: 0 | ND29: 0 | NE29: 0 | NF29: 0 | NH29: 0 | NI29: 0 | NJ29: 0 | NK29: 0 | NL29: 0 | NM29: 0 | NN29: 0 | NO29: 0 | NP29: 0 | NQ29: 0 | NR29: 0 | NS29: 0 | NT29: 0 | NU29: 0 | NV29: 0 | NW29: 0 | NX29: 0 | NY29: 0 | NZ29: 0 | OA29: 0 | OB29: 0 | OC29: 0 | OD29: 0 | OE29: 0 | OF29: 0 | OG29: 0 | OH29: 0 | OI29: 0 | OJ29: 0 | OK29: 0 | OL29: 0 | OM29: 0 | OO29: 0 | OP29: 0 | OQ29: 0 | OR29: 0 | OS29: 0 | OT29: 0 | OU29: 0 | OV29: 0 | OW29: 0 | OX29: 0 | OY29: 0 | OZ29: 0 | PA29: 0 | PB29: 0 | PC29: 0 | PD29: 0 | PE29: 0 | PF29: 0 | PG29: 0 | PH29: 0 | PI29: 0 | PJ29: 0 | PK29: 0 | PL29: 0 | PM29: 0 | PN29: 0 | PO29: 0 | PP29: 0 | PQ29: 0 | PR29: 0 | PS29: 0 | PT29: 0
I30: =IF(OR($B30="",$E30="非燃料由来の非化石電気（オンサイトPPA含む）以外"),"",IFERROR(VLOOKUP(B30&C30&D30&E30&F30,'熱量換算係数(電気)'!$A$4:$G$24,7,FALSE),"熱量換算係数を入力")) ->  | J30: =IF(OR($B30="",$E30="非燃料由来の非化石電気（オンサイトPPA含む）以外"),"",IFERROR(VLOOKUP($G30,'排出係数(電気)'!$C$10:$D$1258,2,FALSE),IF(F30="化石分","基礎排出係数を入力",0))) ->  | K30: =IF(OR($B30="",$E30="非燃料由来の非化石電気（オンサイトPPA含む）以外"),"",IFERROR(VLOOKUP($G30&H30,'排出係数(電気)'!$A$10:$F$1258,6,FALSE),IF(ISNUMBER($J30)=TRUE,$J30,"調整後排出係数を入力"))) ->  | M30: 0 | N30: 0 | O30: 0 | P30: 0 | Q30: 0 | R30: 0 | S30: 0 | T30: 0 | U30: 0 | V30: 0 | W30: 0 | X30: 0 | Y30: 0 | Z30: 0 | AA30: 0 | AB30: 0 | AC30: 0 | AD30: 0 | AE30: 0 | AF30: 0 | AG30: 0 | AH30: 0 | AI30: 0 | AJ30: 0 | AK30: 0 | AL30: 0 | AM30: 0 | AN30: 0 | AP30: 0 | AQ30: 0 | AR30: 0 | AS30: 0 | AT30: 0 | AU30: 0 | AV30: 0 | AW30: 0 | AX30: 0 | AY30: 0 | AZ30: 0 | BA30: 0 | BB30: 0 | BC30: 0 | BD30: 0 | BE30: 0 | BF30: 0 | BG30: 0 | BH30: 0 | BI30: 0 | BJ30: 0 | BK30: 0 | BL30: 0 | BM30: 0 | BN30: 0 | BO30: 0 | BP30: 0 | BQ30: 0 | BR30: 0 | BS30: 0 | BT30: 0 | BU30: 0 | BW30: 0 | BX30: 0 | BY30: 0 | BZ30: 0 | CA30: 0 | CB30: 0 | CC30: 0 | CD30: 0 | CE30: 0 | CF30: 0 | CG30: 0 | CH30: 0 | CI30: 0 | CJ30: 0 | CK30: 0 | CL30: 0 | CM30: 0 | CN30: 0 | CO30: 0 | CP30: 0 | CQ30: 0 | CR30: 0 | CS30: 0 | CT30: 0 | CU30: 0 | CV30: 0 | CW30: 0 | CX30: 0 | CY30: 0 | CZ30: 0 | DA30: 0 | DB30: 0 | DD30: 0 | DE30: 0 | DF30: 0 | DG30: 0 | DH30: 0 | DI30: 0 | DJ30: 0 | DK30: 0 | DL30: 0 | DM30: 0 | DN30: 0 | DO30: 0 | DP30: 0 | DQ30: 0 | DR30: 0 | DS30: 0 | DT30: 0 | DU30: 0 | DV30: 0 | DW30: 0 | DX30: 0 | DY30: 0 | DZ30: 0 | EA30: 0 | EB30: 0 | EC30: 0 | ED30: 0 | EE30: 0 | EF30: 0 | EG30: 0 | EH30: 0 | EI30: 0 | EK30: 0 | EL30: 0 | EM30: 0 | EN30: 0 | EO30: 0 | EP30: 0 | EQ30: 0 | ER30: 0 | ES30: 0 | ET30: 0 | EU30: 0 | EV30: 0 | EW30: 0 | EX30: 0 | EY30: 0 | EZ30: 0 | FA30: 0 | FB30: 0 | FC30: 0 | FD30: 0 | FE30: 0 | FF30: 0 | FG30: 0 | FH30: 0 | FI30: 0 | FJ30: 0 | FK30: 0 | FL30: 0 | FM30: 0 | FN30: 0 | FO30: 0 | FP30: 0 | FR30: 0 | FS30: 0 | FT30: 0 | FU30: 0 | FV30: 0 | FW30: 0 | FX30: 0 | FY30: 0 | FZ30: 0 | GA30: 0 | GB30: 0 | GC30: 0 | GD30: 0 | GE30: 0 | GF30: 0 | GG30: 0 | GH30: 0 | GI30: 0 | GJ30: 0 | GK30: 0 | GL30: 0 | GM30: 0 | GN30: 0 | GO30: 0 | GP30: 0 | GQ30: 0 | GR30: 0 | GS30: 0 | GT30: 0 | GU30: 0 | GV30: 0 | GW30: 0 | GY30: 0 | GZ30: 0 | HA30: 0 | HB30: 0 | HC30: 0 | HD30: 0 | HE30: 0 | HF30: 0 | HG30: 0 | HH30: 0 | HI30: 0 | HJ30: 0 | HK30: 0 | HL30: 0 | HM30: 0 | HN30: 0 | HO30: 0 | HP30: 0 | HQ30: 0 | HR30: 0 | HS30: 0 | HT30: 0 | HU30: 0 | HV30: 0 | HW30: 0 | HX30: 0 | HY30: 0 | HZ30: 0 | IA30: 0 | IB30: 0 | IC30: 0 | ID30: 0 | IF30: 0 | IG30: 0 | IH30: 0 | II30: 0 | IJ30: 0 | IK30: 0 | IL30: 0 | IM30: 0 | IN30: 0 | IO30: 0 | IP30: 0 | IQ30: 0 | IR30: 0 | IS30: 0 | IT30: 0 | IU30: 0 | IV30: 0 | IW30: 0 | IX30: 0 | IY30: 0 | IZ30: 0 | JA30: 0 | JB30: 0 | JC30: 0 | JD30: 0 | JE30: 0 | JF30: 0 | JG30: 0 | JH30: 0 | JI30: 0 | JJ30: 0 | JK30: 0 | JM30: 0 | JN30: 0 | JO30: 0 | JP30: 0 | JQ30: 0 | JR30: 0 | JS30: 0 | JT30: 0 | JU30: 0 | JV30: 0 | JW30: 0 | JX30: 0 | JY30: 0 | JZ30: 0 | KA30: 0 | KB30: 0 | KC30: 0 | KD30: 0 | KE30: 0 | KF30: 0 | KG30: 0 | KH30: 0 | KI30: 0 | KJ30: 0 | KK30: 0 | KL30: 0 | KM30: 0 | KN30: 0 | KO30: 0 | KP30: 0 | KQ30: 0 | KR30: 0 | KT30: 0 | KU30: 0 | KV30: 0 | KW30: 0 | KX30: 0 | KY30: 0 | KZ30: 0 | LA30: 0 | LB30: 0 | LC30: 0 | LD30: 0 | LE30: 0 | LF30: 0 | LG30: 0 | LH30: 0 | LI30: 0 | LJ30: 0 | LK30: 0 | LL30: 0 | LM30: 0 | LN30: 0 | LO30: 0 | LP30: 0 | LQ30: 0 | LR30: 0 | LS30: 0 | LT30: 0 | LU30: 0 | LV30: 0 | LW30: 0 | LX30: 0 | LY30: 0 | MA30: 0 | MB30: 0 | MC30: 0 | MD30: 0 | ME30: 0 | MF30: 0 | MG30: 0 | MH30: 0 | MI30: 0 | MJ30: 0 | MK30: 0 | ML30: 0 | MM30: 0 | MN30: 0 | MO30: 0 | MP30: 0 | MQ30: 0 | MR30: 0 | MS30: 0 | MT30: 0 | MU30: 0 | MV30: 0 | MW30: 0 | MX30: 0 | MY30: 0 | MZ30: 0 | NA30: 0 | NB30: 0 | NC30: 0 | ND30: 0 | NE30: 0 | NF30: 0 | NH30: 0 | NI30: 0 | NJ30: 0 | NK30: 0 | NL30: 0 | NM30: 0 | NN30: 0 | NO30: 0 | NP30: 0 | NQ30: 0 | NR30: 0 | NS30: 0 | NT30: 0 | NU30: 0 | NV30: 0 | NW30: 0 | NX30: 0 | NY30: 0 | NZ30: 0 | OA30: 0 | OB30: 0 | OC30: 0 | OD30: 0 | OE30: 0 | OF30: 0 | OG30: 0 | OH30: 0 | OI30: 0 | OJ30: 0 | OK30: 0 | OL30: 0 | OM30: 0 | OO30: 0 | OP30: 0 | OQ30: 0 | OR30: 0 | OS30: 0 | OT30: 0 | OU30: 0 | OV30: 0 | OW30: 0 | OX30: 0 | OY30: 0 | OZ30: 0 | PA30: 0 | PB30: 0 | PC30: 0 | PD30: 0 | PE30: 0 | PF30: 0 | PG30: 0 | PH30: 0 | PI30: 0 | PJ30: 0 | PK30: 0 | PL30: 0 | PM30: 0 | PN30: 0 | PO30: 0 | PP30: 0 | PQ30: 0 | PR30: 0 | PS30: 0 | PT30: 0
I31: =IF(OR($B31="",$E31="非燃料由来の非化石電気（オンサイトPPA含む）以外"),"",IFERROR(VLOOKUP(B31&C31&D31&E31&F31,'熱量換算係数(電気)'!$A$4:$G$24,7,FALSE),"熱量換算係数を入力")) ->  | J31: =IF(OR($B31="",$E31="非燃料由来の非化石電気（オンサイトPPA含む）以外"),"",IFERROR(VLOOKUP($G31,'排出係数(電気)'!$C$10:$D$1258,2,FALSE),IF(F31="化石分","基礎排出係数を入力",0))) ->  | K31: =IF(OR($B31="",$E31="非燃料由来の非化石電気（オンサイトPPA含む）以外"),"",IFERROR(VLOOKUP($G31&H31,'排出係数(電気)'!$A$10:$F$1258,6,FALSE),IF(ISNUMBER($J31)=TRUE,$J31,"調整後排出係数を入力"))) ->  | M31: 0 | N31: 0 | O31: 0 | P31: 0 | Q31: 0 | R31: 0 | S31: 0 | T31: 0 | U31: 0 | V31: 0 | W31: 0 | X31: 0 | Y31: 0 | Z31: 0 | AA31: 0 | AB31: 0 | AC31: 0 | AD31: 0 | AE31: 0 | AF31: 0 | AG31: 0 | AH31: 0 | AI31: 0 | AJ31: 0 | AK31: 0 | AL31: 0 | AM31: 0 | AN31: 0 | AP31: 0 | AQ31: 0 | AR31: 0 | AS31: 0 | AT31: 0 | AU31: 0 | AV31: 0 | AW31: 0 | AX31: 0 | AY31: 0 | AZ31: 0 | BA31: 0 | BB31: 0 | BC31: 0 | BD31: 0 | BE31: 0 | BF31: 0 | BG31: 0 | BH31: 0 | BI31: 0 | BJ31: 0 | BK31: 0 | BL31: 0 | BM31: 0 | BN31: 0 | BO31: 0 | BP31: 0 | BQ31: 0 | BR31: 0 | BS31: 0 | BT31: 0 | BU31: 0 | BW31: 0 | BX31: 0 | BY31: 0 | BZ31: 0 | CA31: 0 | CB31: 0 | CC31: 0 | CD31: 0 | CE31: 0 | CF31: 0 | CG31: 0 | CH31: 0 | CI31: 0 | CJ31: 0 | CK31: 0 | CL31: 0 | CM31: 0 | CN31: 0 | CO31: 0 | CP31: 0 | CQ31: 0 | CR31: 0 | CS31: 0 | CT31: 0 | CU31: 0 | CV31: 0 | CW31: 0 | CX31: 0 | CY31: 0 | CZ31: 0 | DA31: 0 | DB31: 0 | DD31: 0 | DE31: 0 | DF31: 0 | DG31: 0 | DH31: 0 | DI31: 0 | DJ31: 0 | DK31: 0 | DL31: 0 | DM31: 0 | DN31: 0 | DO31: 0 | DP31: 0 | DQ31: 0 | DR31: 0 | DS31: 0 | DT31: 0 | DU31: 0 | DV31: 0 | DW31: 0 | DX31: 0 | DY31: 0 | DZ31: 0 | EA31: 0 | EB31: 0 | EC31: 0 | ED31: 0 | EE31: 0 | EF31: 0 | EG31: 0 | EH31: 0 | EI31: 0 | EK31: 0 | EL31: 0 | EM31: 0 | EN31: 0 | EO31: 0 | EP31: 0 | EQ31: 0 | ER31: 0 | ES31: 0 | ET31: 0 | EU31: 0 | EV31: 0 | EW31: 0 | EX31: 0 | EY31: 0 | EZ31: 0 | FA31: 0 | FB31: 0 | FC31: 0 | FD31: 0 | FE31: 0 | FF31: 0 | FG31: 0 | FH31: 0 | FI31: 0 | FJ31: 0 | FK31: 0 | FL31: 0 | FM31: 0 | FN31: 0 | FO31: 0 | FP31: 0 | FR31: 0 | FS31: 0 | FT31: 0 | FU31: 0 | FV31: 0 | FW31: 0 | FX31: 0 | FY31: 0 | FZ31: 0 | GA31: 0 | GB31: 0 | GC31: 0 | GD31: 0 | GE31: 0 | GF31: 0 | GG31: 0 | GH31: 0 | GI31: 0 | GJ31: 0 | GK31: 0 | GL31: 0 | GM31: 0 | GN31: 0 | GO31: 0 | GP31: 0 | GQ31: 0 | GR31: 0 | GS31: 0 | GT31: 0 | GU31: 0 | GV31: 0 | GW31: 0 | GY31: 0 | GZ31: 0 | HA31: 0 | HB31: 0 | HC31: 0 | HD31: 0 | HE31: 0 | HF31: 0 | HG31: 0 | HH31: 0 | HI31: 0 | HJ31: 0 | HK31: 0 | HL31: 0 | HM31: 0 | HN31: 0 | HO31: 0 | HP31: 0 | HQ31: 0 | HR31: 0 | HS31: 0 | HT31: 0 | HU31: 0 | HV31: 0 | HW31: 0 | HX31: 0 | HY31: 0 | HZ31: 0 | IA31: 0 | IB31: 0 | IC31: 0 | ID31: 0 | IF31: 0 | IG31: 0 | IH31: 0 | II31: 0 | IJ31: 0 | IK31: 0 | IL31: 0 | IM31: 0 | IN31: 0 | IO31: 0 | IP31: 0 | IQ31: 0 | IR31: 0 | IS31: 0 | IT31: 0 | IU31: 0 | IV31: 0 | IW31: 0 | IX31: 0 | IY31: 0 | IZ31: 0 | JA31: 0 | JB31: 0 | JC31: 0 | JD31: 0 | JE31: 0 | JF31: 0 | JG31: 0 | JH31: 0 | JI31: 0 | JJ31: 0 | JK31: 0 | JM31: 0 | JN31: 0 | JO31: 0 | JP31: 0 | JQ31: 0 | JR31: 0 | JS31: 0 | JT31: 0 | JU31: 0 | JV31: 0 | JW31: 0 | JX31: 0 | JY31: 0 | JZ31: 0 | KA31: 0 | KB31: 0 | KC31: 0 | KD31: 0 | KE31: 0 | KF31: 0 | KG31: 0 | KH31: 0 | KI31: 0 | KJ31: 0 | KK31: 0 | KL31: 0 | KM31: 0 | KN31: 0 | KO31: 0 | KP31: 0 | KQ31: 0 | KR31: 0 | KT31: 0 | KU31: 0 | KV31: 0 | KW31: 0 | KX31: 0 | KY31: 0 | KZ31: 0 | LA31: 0 | LB31: 0 | LC31: 0 | LD31: 0 | LE31: 0 | LF31: 0 | LG31: 0 | LH31: 0 | LI31: 0 | LJ31: 0 | LK31: 0 | LL31: 0 | LM31: 0 | LN31: 0 | LO31: 0 | LP31: 0 | LQ31: 0 | LR31: 0 | LS31: 0 | LT31: 0 | LU31: 0 | LV31: 0 | LW31: 0 | LX31: 0 | LY31: 0 | MA31: 0 | MB31: 0 | MC31: 0 | MD31: 0 | ME31: 0 | MF31: 0 | MG31: 0 | MH31: 0 | MI31: 0 | MJ31: 0 | MK31: 0 | ML31: 0 | MM31: 0 | MN31: 0 | MO31: 0 | MP31: 0 | MQ31: 0 | MR31: 0 | MS31: 0 | MT31: 0 | MU31: 0 | MV31: 0 | MW31: 0 | MX31: 0 | MY31: 0 | MZ31: 0 | NA31: 0 | NB31: 0 | NC31: 0 | ND31: 0 | NE31: 0 | NF31: 0 | NH31: 0 | NI31: 0 | NJ31: 0 | NK31: 0 | NL31: 0 | NM31: 0 | NN31: 0 | NO31: 0 | NP31: 0 | NQ31: 0 | NR31: 0 | NS31: 0 | NT31: 0 | NU31: 0 | NV31: 0 | NW31: 0 | NX31: 0 | NY31: 0 | NZ31: 0 | OA31: 0 | OB31: 0 | OC31: 0 | OD31: 0 | OE31: 0 | OF31: 0 | OG31: 0 | OH31: 0 | OI31: 0 | OJ31: 0 | OK31: 0 | OL31: 0 | OM31: 0 | OO31: 0 | OP31: 0 | OQ31: 0 | OR31: 0 | OS31: 0 | OT31: 0 | OU31: 0 | OV31: 0 | OW31: 0 | OX31: 0 | OY31: 0 | OZ31: 0 | PA31: 0 | PB31: 0 | PC31: 0 | PD31: 0 | PE31: 0 | PF31: 0 | PG31: 0 | PH31: 0 | PI31: 0 | PJ31: 0 | PK31: 0 | PL31: 0 | PM31: 0 | PN31: 0 | PO31: 0 | PP31: 0 | PQ31: 0 | PR31: 0 | PS31: 0 | PT31: 0
... 37 more rows

Sheet 入力補助(ガス)(貨物)
B1: 熱量換算係数： | C1: https://www.enecho.meti.go.jp/category/saving_and_new/saving/enterprise/factory/support-tools/data/kojo-kinyuyoryo24.pdf#page=183
B2: CO2排出係数： | C2: https://policies.env.go.jp/earth/ghg-santeikohyo/calc.html
C3: ※代替値（省令の排出係数）：2.05(tCO₂/千㎥)
B4: ガス会社名 | C4: 単位発熱量 | E4: CO2排出係数 (tC/GJ） | F4: CO2排出係数 (tCO2/GJ） | G4: 使用量(実値) (千m3) | H4: 使用量(連携外) (千m3) | I4: 使用量(連携分) (千m3) | J4: 使用熱量(実値) (GJ) | K4: 使用熱量(連携外) (GJ) | L4: 使用熱量(連携分) (GJ) | M4: CO2排出量(実値) (tCO2) | N4: CO2排出量(連携外) (tCO2) | O4: CO2排出量(連携分) (tCO2)
C5: （規格） | D5: 係数(GJ/千m3)
B6: （記載例）○○ガス株式会社 | C6: 13A | D6: 40 | E6: 0.014 | F6: =E6/12*44 -> 0.05133333333 | G6: 1000 | H6: 900 | I6: 50 | J6: =$D6*G6 -> 40000 | K6: =$D6*H6 -> 36000 | L6: =$D6*I6 -> 2000 | M6: =$F6*J6 -> 2053.333333 | N6: =$F6*K6 -> 1848 | O6: =$F6*L6 -> 102.6666667
F7: =E7/12*44 -> 0 | J7: =$D7*G7 -> 0 | K7: =$D7*H7 -> 0 | L7: =$D7*I7 -> 0 | M7: =$F7*J7 -> 0 | N7: =$F7*K7 -> 0 | O7: =$F7*L7 -> 0
F8: 0 | J8: 0 | K8: 0 | L8: 0 | M8: 0 | N8: 0 | O8: 0
F9: 0 | J9: 0 | K9: 0 | L9: 0 | M9: 0 | N9: 0 | O9: 0
F10: 0 | J10: 0 | K10: 0 | L10: 0 | M10: 0 | N10: 0 | O10: 0
F11: 0 | J11: 0 | K11: 0 | L11: 0 | M11: 0 | N11: 0 | O11: 0
F12: 0 | J12: 0 | K12: 0 | L12: 0 | M12: 0 | N12: 0 | O12: 0
F13: 0 | J13: 0 | K13: 0 | L13: 0 | M13: 0 | N13: 0 | O13: 0
F14: 0 | J14: 0 | K14: 0 | L14: 0 | M14: 0 | N14: 0 | O14: 0
F15: 0 | J15: 0 | K15: 0 | L15: 0 | M15: 0 | N15: 0 | O15: 0
F16: 0 | J16: 0 | K16: 0 | L16: 0 | M16: 0 | N16: 0 | O16: 0
F17: 0 | J17: 0 | K17: 0 | L17: 0 | M17: 0 | N17: 0 | O17: 0
F18: 0 | J18: 0 | K18: 0 | L18: 0 | M18: 0 | N18: 0 | O18: 0
F19: 0 | J19: 0 | K19: 0 | L19: 0 | M19: 0 | N19: 0 | O19: 0
F20: 0 | J20: 0 | K20: 0 | L20: 0 | M20: 0 | N20: 0 | O20: 0
F21: 0 | J21: 0 | K21: 0 | L21: 0 | M21: 0 | N21: 0 | O21: 0
F22: 0 | J22: 0 | K22: 0 | L22: 0 | M22: 0 | N22: 0 | O22: 0
F23: 0 | J23: 0 | K23: 0 | L23: 0 | M23: 0 | N23: 0 | O23: 0
F24: 0 | J24: 0 | K24: 0 | L24: 0 | M24: 0 | N24: 0 | O24: 0
F25: 0 | J25: 0 | K25: 0 | L25: 0 | M25: 0 | N25: 0 | O25: 0
F26: 0 | J26: 0 | K26: 0 | L26: 0 | M26: 0 | N26: 0 | O26: 0
F27: 0 | J27: 0 | K27: 0 | L27: 0 | M27: 0 | N27: 0 | O27: 0
F28: 0 | J28: 0 | K28: 0 | L28: 0 | M28: 0 | N28: 0 | O28: 0
F29: 0 | J29: 0 | K29: 0 | L29: 0 | M29: 0 | N29: 0 | O29: 0
F30: 0 | J30: 0 | K30: 0 | L30: 0 | M30: 0 | N30: 0 | O30: 0
F31: 0 | J31: 0 | K31: 0 | L31: 0 | M31: 0 | N31: 0 | O31: 0
F32: 0 | J32: 0 | K32: 0 | L32: 0 | M32: 0 | N32: 0 | O32: 0
F33: 0 | J33: 0 | K33: 0 | L33: 0 | M33: 0 | N33: 0 | O33: 0
F34: 0 | J34: 0 | K34: 0 | L34: 0 | M34: 0 | N34: 0 | O34: 0
F35: 0 | J35: 0 | K35: 0 | L35: 0 | M35: 0 | N35: 0 | O35: 0
F36: 0 | J36: 0 | K36: 0 | L36: 0 | M36: 0 | N36: 0 | O36: 0
F37: 0 | J37: 0 | K37: 0 | L37: 0 | M37: 0 | N37: 0 | O37: 0
F38: 0 | J38: 0 | K38: 0 | L38: 0 | M38: 0 | N38: 0 | O38: 0
F39: 0 | J39: 0 | K39: 0 | L39: 0 | M39: 0 | N39: 0 | O39: 0
F40: 0 | J40: 0 | K40: 0 | L40: 0 | M40: 0 | N40: 0 | O40: 0
F41: 0 | J41: 0 | K41: 0 | L41: 0 | M41: 0 | N41: 0 | O41: 0
F42: 0 | J42: 0 | K42: 0 | L42: 0 | M42: 0 | N42: 0 | O42: 0
F43: 0 | J43: 0 | K43: 0 | L43: 0 | M43: 0 | N43: 0 | O43: 0
F44: 0 | J44: 0 | K44: 0 | L44: 0 | M44: 0 | N44: 0 | O44: 0
F45: 0 | J45: 0 | K45: 0 | L45: 0 | M45: 0 | N45: 0 | O45: 0
F46: 0 | J46: 0 | K46: 0 | L46: 0 | M46: 0 | N46: 0 | O46: 0
F47: 0 | J47: 0 | K47: 0 | L47: 0 | M47: 0 | N47: 0 | O47: 0
F48: 0 | J48: 0 | K48: 0 | L48: 0 | M48: 0 | N48: 0 | O48: 0
F49: 0 | J49: 0 | K49: 0 | L49: 0 | M49: 0 | N49: 0 | O49: 0
F50: 0 | J50: 0 | K50: 0 | L50: 0 | M50: 0 | N50: 0 | O50: 0
F51: 0 | J51: 0 | K51: 0 | L51: 0 | M51: 0 | N51: 0 | O51: 0
F52: 0 | J52: 0 | K52: 0 | L52: 0 | M52: 0 | N52: 0 | O52: 0
F54: 合計 | G54: 使用量(実値)(GJ) | H54: 使用量(連携外)(GJ) | I54: 使用量(連携分)(GJ) | J54: 熱量(実値)(GJ) | K54: 熱量(連携外)(GJ) | L54: 熱量(連携分)(GJ) | M54: 排出量(実値)(tCO2) | N54: 排出量(連携外)(tCO2) | O54: 排出量(連携分)(tCO2)
G55: =SUM(G7:G52) -> 0 | H55: 0 | I55: 0 | J55: 0 | K55: 0 | L55: 0 | M55: 0 | N55: 0 | O55: 0

Sheet 第1表1-3(貨物)
D2: １－３．貨物輸送による電気の国内認証非化石エネルギー相当量等に係る情報
D3: クレジット特定番号等 | AA3: 無効化日又は移転日 | AG3: 無効化量又は移転量 | AO3: 無効化量 （kJ） | AP3: 無効化量 （tCO2） | AR3: 全国平均係数(t-CO₂/千kWh)
AR5: ='排出係数(電気)'!D1266 -> 0.438
D7: 証書等の種類： | AB7: =IF(COUNTIF(E7,"*クレジット"),"年","") ->  | AD7: =IF(COUNTIF(E7,"*クレジット"),"月","") ->  | AF7: =IF(COUNTIF(E7,"*クレジット"),"日","") ->  | AO7: =IF(OR($E7="",AG7="",$AJ7=""),"",IF($AJ7="GJ",AG7,8.64/1000*AG7)) ->  | AP7: =IF(OR($E7="",AG7="",$AJ7=""),"",IF($AJ7="kJ",$AR$5*8.64*AG7,$AR$5*AG7/1000)) ->  | AR7: 熱量換算係数
D8: =IF(COUNTIF(E7,"*クレジット"),"クレジット番号：","") ->  | F8: - | J8: - | N8: - | R8: - | V8: - | AR8: 8.64(GJ/千kWh）
D9: ～ | F9: - | J9: - | N9: - | R9: - | V9: -
D10: 備考：
D11: 証書等の種類： | AB11: =IF(COUNTIF(E11,"*クレジット"),"年","") ->  | AD11: =IF(COUNTIF(E11,"*クレジット"),"月","") ->  | AF11: =IF(COUNTIF(E11,"*クレジット"),"日","") ->  | AO11: =IF(OR($E11="",AG11="",$AJ11=""),"",IF($AJ11="GJ",AG11,8.64/1000*AG11)) ->  | AP11: =IF(OR($E11="",AG11="",$AJ11=""),"",IF($AJ11="kJ",$AR$5*8.64*AG11,$AR$5*AG11/1000)) -> 
D12: =IF(COUNTIF(E11,"*クレジット"),"クレジット番号：","") ->  | F12: - | J12: - | N12: - | R12: - | V12: -
D13: ～ | F13: - | J13: - | N13: - | R13: - | V13: -
D14: 備考：
D15: 証書等の種類： | AB15: =IF(COUNTIF(E15,"*クレジット"),"年","") ->  | AD15: =IF(COUNTIF(E15,"*クレジット"),"月","") ->  | AF15: =IF(COUNTIF(E15,"*クレジット"),"日","") ->  | AO15: =IF(OR($E15="",AG15="",$AJ15=""),"",IF($AJ15="GJ",AG15,8.64/1000*AG15)) ->  | AP15: =IF(OR($E15="",AG15="",$AJ15=""),"",IF($AJ15="kJ",$AR$5*8.64*AG15,$AR$5*AG15/1000)) -> 
D16: =IF(COUNTIF(E15,"*クレジット"),"クレジット番号：","") ->  | F16: - | J16: - | N16: - | R16: - | V16: -
D17: ～ | F17: - | J17: - | N17: - | R17: - | V17: -
D18: 備考：
D19: 証書等の種類： | AB19: =IF(COUNTIF(E19,"*クレジット"),"年","") ->  | AD19: =IF(COUNTIF(E19,"*クレジット"),"月","") ->  | AF19: =IF(COUNTIF(E19,"*クレジット"),"日","") ->  | AO19: =IF(OR($E19="",AG19="",$AJ19=""),"",IF($AJ19="GJ",AG19,8.64/1000*AG19)) ->  | AP19: =IF(OR($E19="",AG19="",$AJ19=""),"",IF($AJ19="kJ",$AR$5*8.64*AG19,$AR$5*AG19/1000)) -> 
D20: =IF(COUNTIF(E19,"*クレジット"),"クレジット番号：","") ->  | F20: - | J20: - | N20: - | R20: - | V20: -
D21: ～ | F21: - | J21: - | N21: - | R21: - | V21: -
D22: 備考：
D23: 証書等の種類： | AB23: =IF(COUNTIF(E23,"*クレジット"),"年","") ->  | AD23: =IF(COUNTIF(E23,"*クレジット"),"月","") ->  | AF23: =IF(COUNTIF(E23,"*クレジット"),"日","") ->  | AO23: =IF(OR($E23="",AG23="",$AJ23=""),"",IF($AJ23="GJ",AG23,8.64/1000*AG23)) ->  | AP23: =IF(OR($E23="",AG23="",$AJ23=""),"",IF($AJ23="kJ",$AR$5*8.64*AG23,$AR$5*AG23/1000)) -> 
D24: =IF(COUNTIF(E23,"*クレジット"),"クレジット番号：","") ->  | F24: - | J24: - | N24: - | R24: - | V24: -
D25: ～ | F25: - | J25: - | N25: - | R25: - | V25: -
D26: 備考：
D27: 証書等の種類： | AB27: =IF(COUNTIF(E27,"*クレジット"),"年","") ->  | AD27: =IF(COUNTIF(E27,"*クレジット"),"月","") ->  | AF27: =IF(COUNTIF(E27,"*クレジット"),"日","") ->  | AO27: =IF(OR($E27="",AG27="",$AJ27=""),"",IF($AJ27="GJ",AG27,8.64/1000*AG27)) ->  | AP27: =IF(OR($E27="",AG27="",$AJ27=""),"",IF($AJ27="kJ",$AR$5*8.64*AG27,$AR$5*AG27/1000)) -> 
D28: =IF(COUNTIF(E27,"*クレジット"),"クレジット番号：","") ->  | F28: - | J28: - | N28: - | R28: - | V28: -
D29: ～ | F29: - | J29: - | N29: - | R29: - | V29: -
D30: 備考：
D31: 証書等の種類： | AB31: =IF(COUNTIF(E31,"*クレジット"),"年","") ->  | AD31: =IF(COUNTIF(E31,"*クレジット"),"月","") ->  | AF31: =IF(COUNTIF(E31,"*クレジット"),"日","") ->  | AO31: =IF(OR($E31="",AG31="",$AJ31=""),"",IF($AJ31="GJ",AG31,8.64/1000*AG31)) ->  | AP31: =IF(OR($E31="",AG31="",$AJ31=""),"",IF($AJ31="kJ",$AR$5*8.64*AG31,$AR$5*AG31/1000)) -> 
D32: =IF(COUNTIF(E31,"*クレジット"),"クレジット番号：","") ->  | F32: - | J32: - | N32: - | R32: - | V32: -
D33: ～ | F33: - | J33: - | N33: - | R33: - | V33: -
D34: 備考：
D35: 証書等の種類： | AB35: =IF(COUNTIF(E35,"*クレジット"),"年","") ->  | AD35: =IF(COUNTIF(E35,"*クレジット"),"月","") ->  | AF35: =IF(COUNTIF(E35,"*クレジット"),"日","") ->  | AO35: =IF(OR($E35="",AG35="",$AJ35=""),"",IF($AJ35="GJ",AG35,8.64/1000*AG35)) ->  | AP35: =IF(OR($E35="",AG35="",$AJ35=""),"",IF($AJ35="kJ",$AR$5*8.64*AG35,$AR$5*AG35/1000)) -> 
D36: =IF(COUNTIF(E35,"*クレジット"),"クレジット番号：","") ->  | F36: - | J36: - | N36: - | R36: - | V36: -
D37: ～ | F37: - | J37: - | N37: - | R37: - | V37: -
D38: 備考：
D39: 証書等の種類： | AB39: =IF(COUNTIF(E39,"*クレジット"),"年","") ->  | AD39: =IF(COUNTIF(E39,"*クレジット"),"月","") ->  | AF39: =IF(COUNTIF(E39,"*クレジット"),"日","") ->  | AO39: =IF(OR($E39="",AG39="",$AJ39=""),"",IF($AJ39="GJ",AG39,8.64/1000*AG39)) ->  | AP39: =IF(OR($E39="",AG39="",$AJ39=""),"",IF($AJ39="kJ",$AR$5*8.64*AG39,$AR$5*AG39/1000)) -> 
D40: =IF(COUNTIF(E39,"*クレジット"),"クレジット番号：","") ->  | F40: - | J40: - | N40: - | R40: - | V40: -
D41: ～ | F41: - | J41: - | N41: - | R41: - | V41: -
D42: 備考：
D43: 証書等の種類： | AB43: =IF(COUNTIF(E43,"*クレジット"),"年","") ->  | AD43: =IF(COUNTIF(E43,"*クレジット"),"月","") ->  | AF43: =IF(COUNTIF(E43,"*クレジット"),"日","") ->  | AO43: =IF(OR($E43="",AG43="",$AJ43=""),"",IF($AJ43="GJ",AG43,8.64/1000*AG43)) ->  | AP43: =IF(OR($E43="",AG43="",$AJ43=""),"",IF($AJ43="kJ",$AR$5*8.64*AG43,$AR$5*AG43/1000)) -> 
D44: =IF(COUNTIF(E43,"*クレジット"),"クレジット番号：","") ->  | F44: - | J44: - | N44: - | R44: - | V44: -
D45: ～ | F45: - | J45: - | N45: - | R45: - | V45: -
D46: 備考：
D47: 証書等の種類： | AB47: =IF(COUNTIF(E47,"*クレジット"),"年","") ->  | AD47: =IF(COUNTIF(E47,"*クレジット"),"月","") ->  | AF47: =IF(COUNTIF(E47,"*クレジット"),"日","") ->  | AO47: =IF(OR($E47="",AG47="",$AJ47=""),"",IF($AJ47="GJ",AG47,8.64/1000*AG47)) ->  | AP47: =IF(OR($E47="",AG47="",$AJ47=""),"",IF($AJ47="kJ",$AR$5*8.64*AG47,$AR$5*AG47/1000)) -> 
D48: =IF(COUNTIF(E47,"*クレジット"),"クレジット番号：","") ->  | F48: - | J48: - | N48: - | R48: - | V48: -
D49: ～ | F49: - | J49: - | N49: - | R49: - | V49: -
D50: 備考：
D51: 証書等の種類： | AB51: =IF(COUNTIF(E51,"*クレジット"),"年","") ->  | AD51: =IF(COUNTIF(E51,"*クレジット"),"月","") ->  | AF51: =IF(COUNTIF(E51,"*クレジット"),"日","") ->  | AO51: =IF(OR($E51="",AG51="",$AJ51=""),"",IF($AJ51="GJ",AG51,8.64/1000*AG51)) ->  | AP51: =IF(OR($E51="",AG51="",$AJ51=""),"",IF($AJ51="kJ",$AR$5*8.64*AG51,$AR$5*AG51/1000)) -> 
D52: =IF(COUNTIF(E51,"*クレジット"),"クレジット番号：","") ->  | F52: - | J52: - | N52: - | R52: - | V52: -
D53: ～ | F53: - | J53: - | N53: - | R53: - | V53: -
D54: 備考：
D55: 証書等の種類： | AB55: =IF(COUNTIF(E55,"*クレジット"),"年","") ->  | AD55: =IF(COUNTIF(E55,"*クレジット"),"月","") ->  | AF55: =IF(COUNTIF(E55,"*クレジット"),"日","") ->  | AO55: =IF(OR($E55="",AG55="",$AJ55=""),"",IF($AJ55="GJ",AG55,8.64/1000*AG55)) ->  | AP55: =IF(OR($E55="",AG55="",$AJ55=""),"",IF($AJ55="kJ",$AR$5*8.64*AG55,$AR$5*AG55/1000)) -> 
D56: =IF(COUNTIF(E55,"*クレジット"),"クレジット番号：","") ->  | F56: - | J56: - | N56: - | R56: - | V56: -
D57: ～ | F57: - | J57: - | N57: - | R57: - | V57: -
D58: 備考：
D59: 証書等の種類： | AB59: =IF(COUNTIF(E59,"*クレジット"),"年","") ->  | AD59: =IF(COUNTIF(E59,"*クレジット"),"月","") ->  | AF59: =IF(COUNTIF(E59,"*クレジット"),"日","") ->  | AO59: =IF(OR($E59="",AG59="",$AJ59=""),"",IF($AJ59="GJ",AG59,8.64/1000*AG59)) ->  | AP59: =IF(OR($E59="",AG59="",$AJ59=""),"",IF($AJ59="kJ",$AR$5*8.64*AG59,$AR$5*AG59/1000)) -> 
D60: =IF(COUNTIF(E59,"*クレジット"),"クレジット番号：","") ->  | F60: - | J60: - | N60: - | R60: - | V60: -
D61: ～ | F61: - | J61: - | N61: - | R61: - | V61: -
D62: 備考：
D63: 証書等の種類： | AB63: =IF(COUNTIF(E63,"*クレジット"),"年","") ->  | AD63: =IF(COUNTIF(E63,"*クレジット"),"月","") ->  | AF63: =IF(COUNTIF(E63,"*クレジット"),"日","") ->  | AO63: =IF(OR($E63="",AG63="",$AJ63=""),"",IF($AJ63="GJ",AG63,8.64/1000*AG63)) ->  | AP63: =IF(OR($E63="",AG63="",$AJ63=""),"",IF($AJ63="kJ",$AR$5*8.64*AG63,$AR$5*AG63/1000)) -> 
D64: =IF(COUNTIF(E63,"*クレジット"),"クレジット番号：","") ->  | F64: - | J64: - | N64: - | R64: - | V64: -
D65: ～ | F65: - | J65: - | N65: - | R65: - | V65: -
D66: 備考：
AN68: 合計： | AO68: =SUM(AO7:AO66) -> 0 | AP68: =SUM(AP7:AP66) -> 0

Sheet 第1表1-4(貨物)
D2: １－４．貨物輸送による電気供給事業者から購入した電力の種別及び非化石エネルギー割合に係る情報
D3: メニュー名 | L3: 使 用 量 | T3: 非化石メニューにおける 非化石割合又は 非化石証書使用状況 | AA3: 無効化量 （tCO2） | AB3: CO2基礎排出係数 （tCO2/千kWh）
D7: １． | E7: 事業者名： | O7: kWh | P7: =IF($L7<>"",8.64*$L7,"") ->  | S7: kl | X7: ％ | AA7: =IF(AND(L7<>"",T7<>"",AB7<>""),AB7*L7*T7/100,"") ->  | AB7: =IF($G7="","",IFERROR(VLOOKUP($G7,'排出係数(電気)'!$C$10:$D$1258,2,TRUE),"基礎排出係数を入力")) -> 
E8: ( | K8: ）
E9: メニュー名：
E10: ( | K10: ）
D11: ２． | E11: 事業者名： | O11: kWh | P11: =IF($L11<>"",8.64*$L11,"") ->  | S11: kl | X11: ％ | AA11: =IF(AND(L11<>"",T11<>"",AB11<>""),AB11*L11*T11/100,"") ->  | AB11: =IF($G11="","",IFERROR(VLOOKUP($G11,'排出係数(電気)'!$C$10:$D$1258,2,TRUE),"基礎排出係数を入力")) -> 
E12: ( | K12: ）
E13: メニュー名：
E14: ( | K14: ）
D15: ３． | E15: 事業者名： | O15: kWh | P15: =IF($L15<>"",8.64*$L15,"") ->  | S15: kl | X15: ％ | AA15: =IF(AND(L15<>"",T15<>"",AB15<>""),AB15*L15*T15/100,"") ->  | AB15: =IF($G15="","",IFERROR(VLOOKUP($G15,'排出係数(電気)'!$C$10:$D$1258,2,TRUE),"基礎排出係数を入力")) -> 
E16: ( | K16: ）
E17: メニュー名：
E18: ( | K18: ）
D19: ４． | E19: 事業者名： | O19: kWh | P19: =IF($L19<>"",8.64*$L19,"") ->  | S19: kl | X19: ％ | AA19: =IF(AND(L19<>"",T19<>"",AB19<>""),AB19*L19*T19/100,"") ->  | AB19: =IF($G19="","",IFERROR(VLOOKUP($G19,'排出係数(電気)'!$C$10:$D$1258,2,TRUE),"基礎排出係数を入力")) -> 
E20: ( | K20: ）
E21: メニュー名：
E22: ( | K22: ）
D23: ５． | E23: 事業者名： | O23: kWh | P23: =IF($L23<>"",8.64*$L23,"") ->  | S23: kl | X23: ％ | AA23: =IF(AND(L23<>"",T23<>"",AB23<>""),AB23*L23*T23/100,"") ->  | AB23: =IF($G23="","",IFERROR(VLOOKUP($G23,'排出係数(電気)'!$C$10:$D$1258,2,TRUE),"基礎排出係数を入力")) -> 
E24: ( | K24: ）
E25: メニュー名：
E26: ( | K26: ）
D27: ６． | E27: 事業者名： | O27: kWh | P27: =IF($L27<>"",8.64*$L27,"") ->  | S27: kl | X27: ％ | AA27: =IF(AND(L27<>"",T27<>"",AB27<>""),AB27*L27*T27/100,"") ->  | AB27: =IF($G27="","",IFERROR(VLOOKUP($G27,'排出係数(電気)'!$C$10:$D$1258,2,TRUE),"基礎排出係数を入力")) -> 
E28: ( | K28: ）
E29: メニュー名：
E30: ( | K30: ）
D31: ７． | E31: 事業者名： | O31: kWh | P31: =IF($L31<>"",8.64*$L31,"") ->  | S31: kl | X31: ％ | AA31: =IF(AND(L31<>"",T31<>"",AB31<>""),AB31*L31*T31/100,"") ->  | AB31: =IF($G31="","",IFERROR(VLOOKUP($G31,'排出係数(電気)'!$C$10:$D$1258,2,TRUE),"基礎排出係数を入力")) -> 
... 38 more rows

Sheet 第1表2-1(旅客)
B2: TRUE | D2: 第１表 エネルギーの使用量
D3: ２－１．旅客輸送によるエネルギーの使用量
D4: エネルギーの種類 | L4: 単位 | O4: 使用量 | AN4: CO2排出量 （tCO2) | AP4: 連携省エネルギー措置を踏まえたCO2排出量 （tCO2) | AS4: CO2排出量 独自算出 （tCO2) | AU4: 連携省エネルギー措置を踏まえたCO2排出量 独自算出 （tCO2) | AX4: 独自排出係数
O5: =メニュー!$E$3 -> 2024 | T5: 年度 | AA5: エネルギー使用量熱量ＧJ | AG5: 連携省エネルギー措置を踏まえたエネルギー使用量熱量ＧJ
O6: エネルギー使用量 | U6: 連携省エネルギー措置を踏まえたエネルギー使用量
D7: 化石燃料 | G7: 揮発油 | L7: ｋｌ | O7: 0 | U7: 0 | AA7: =O7*'熱量換算係数(電気・ガス以外)'!C5 -> 0 | AG7: =U7*'熱量換算係数(電気・ガス以外)'!C5 -> 0 | AN7: =IF(AS7<>"ー",AS7, IF($AX7="―",AA7*'排出係数(燃料)'!$C$15/12*44,AA7*$AX7/12*44)) -> 0 | AP7: =IF(AU7<>"ー",AU7, IF($AX7="―",AG7*'排出係数(燃料)'!$C$15/12*44,AG7*$AX7/12*44)) -> 0 | AS7: ― | AU7: ― | AX7: ―
G8: 連携分 | L8: ｋｌ | U8: 0 | AG8: =U8*'熱量換算係数(電気・ガス以外)'!C5 -> 0 | AP8: =IF(AU8<>"ー",AU8, IF($AX7="―",AG8*'排出係数(燃料)'!$C$15/12*44,AG8*$AX7/12*44)) -> 0 | AU8: ―
G9: ジェット燃料油 | L9: ｋｌ | O9: 0 | U9: 0 | AA9: =O9*'熱量換算係数(電気・ガス以外)'!C7 -> 0 | AG9: =U9*'熱量換算係数(電気・ガス以外)'!C7 -> 0 | AN9: =IF(AS9<>"ー",AS9, IF($AX9="―",AA9*'排出係数(燃料)'!$C$17/12*44,AA9*$AX9/12*44)) -> 0 | AP9: =IF(AU9<>"ー",AU9, IF($AX9="―",AG9*'排出係数(燃料)'!$C$17/12*44,AG9*$AX9/12*44)) -> 0 | AS9: ― | AU9: ― | AX9: ―
G10: 連携分 | L10: ｋｌ | U10: 0 | AG10: =U10*'熱量換算係数(電気・ガス以外)'!C7 -> 0 | AP10: =IF(AU10<>"ー",AU10, IF($AX9="―",AG10*'排出係数(燃料)'!$C$17/12*44,AG10*$AX9/12*44)) -> 0 | AU10: ―
G11: 軽油 | L11: ｋｌ | O11: 0 | U11: 0 | AA11: =O11*'熱量換算係数(電気・ガス以外)'!$C9 -> 0 | AG11: =U11*'熱量換算係数(電気・ガス以外)'!$C9 -> 0 | AN11: =IF(AS11<>"ー",AS11, IF($AX11="―",AA11*'排出係数(燃料)'!$C$19/12*44,AA11*$AX11/12*44)) -> 0 | AP11: =IF(AU11<>"ー",AU11, IF($AX11="―",AG11*'排出係数(燃料)'!$C$19/12*44,AG11*$AX11/12*44)) -> 0 | AS11: ― | AU11: ― | AX11: ―
G12: 連携分 | L12: ｋｌ | U12: 0 | AG12: =U12*'熱量換算係数(電気・ガス以外)'!$C10 -> 0 | AP12: =IF(AU12<>"ー",AU12, IF($AX11="―",AG12*'排出係数(燃料)'!$C$19/12*44,AG12*$AX11/12*44)) -> 0 | AU12: ―
G13: Ａ重油 | L13: ｋｌ | O13: 0 | U13: 0 | AA13: =O13*'熱量換算係数(電気・ガス以外)'!C10 -> 0 | AG13: =U13*'熱量換算係数(電気・ガス以外)'!C10 -> 0 | AN13: =IF(AS13<>"ー",AS13, IF($AX13="―",AA13*'排出係数(燃料)'!$C$20/12*44,AA13*$AX13/12*44)) -> 0 | AP13: =IF(AU13<>"ー",AU13, IF($AX13="―",AG13*'排出係数(燃料)'!$C$20/12*44,AG13*$AX13/12*44)) -> 0 | AS13: ― | AU13: ― | AX13: ―
G14: 連携分 | L14: ｋｌ | U14: 0 | AG14: =U14*'熱量換算係数(電気・ガス以外)'!C10 -> 0 | AP14: =IF(AU14<>"ー",AU14, IF($AX13="―",AG14*'排出係数(燃料)'!$C$20/12*44,AG14*$AX13/12*44)) -> 0 | AU14: ―
G15: Ｂ・Ｃ重油 | L15: ｋｌ | O15: 0 | U15: 0 | AA15: =O15*'熱量換算係数(電気・ガス以外)'!C11 -> 0 | AG15: =U15*'熱量換算係数(電気・ガス以外)'!C11 -> 0 | AN15: =IF(AS15<>"ー",AS15, IF($AX15="―",AA15*'排出係数(燃料)'!$C$21/12*44,AA15*$AX15/12*44)) -> 0 | AP15: =IF(AU15<>"ー",AU15, IF($AX15="―",AG15*'排出係数(燃料)'!$C$21/12*44,AG15*$AX15/12*44)) -> 0 | AS15: ― | AU15: ― | AX15: ―
G16: 連携分 | L16: ｋｌ | U16: 0 | AG16: =U16*'熱量換算係数(電気・ガス以外)'!C11 -> 0 | AP16: =IF(AU16<>"ー",AU16, IF($AX15="―",AG16*'排出係数(燃料)'!$C$21/12*44,AG16*$AX15/12*44)) -> 0 | AU16: ―
G17: 液化石油ガス(ＬＰＧ) | L17: ｔ | O17: 0 | U17: 0 | AA17: =O17*'熱量換算係数(電気・ガス以外)'!C14 -> 0 | AG17: =U17*'熱量換算係数(電気・ガス以外)'!C14 -> 0 | AN17: =IF(AS17<>"ー",AS17, IF($AX17="―",AA17*'排出係数(燃料)'!$C$23/12*44,AA17*$AX17/12*44)) -> 0 | AP17: =IF(AU17<>"ー",AU17, IF($AX17="―",AG17*'排出係数(燃料)'!$C$23/12*44,AG17*$AX17/12*44)) -> 0 | AS17: ― | AU17: ― | AX17: ―
G18: 連携分 | L18: ｔ | U18: 0 | AG18: =U18*'熱量換算係数(電気・ガス以外)'!C14 -> 0 | AP18: =IF(AU18<>"ー",AU18, IF($AX17="―",AG18*'排出係数(燃料)'!$C$23/12*44,AG18*$AX17/12*44)) -> 0 | AU18: ―
G19: 液化天然ガス(ＬＮＧ) | L19: ｔ | O19: 0 | U19: 0 | AA19: =O19*'熱量換算係数(電気・ガス以外)'!C16 -> 0 | AG19: =U19*'熱量換算係数(電気・ガス以外)'!C16 -> 0 | AN19: =IF(AS19<>"ー",AS19, IF($AX19="―",AA19*'排出係数(燃料)'!$C$25/12*44,AA19*$AX19/12*44)) -> 0 | AP19: =IF(AU19<>"ー",AU19, IF($AX19="―",AG19*'排出係数(燃料)'!$C$25/12*44,AG19*$AX19/12*44)) -> 0 | AS19: ― | AU19: ― | AX19: ―
G20: 連携分 | L20: ｔ | U20: 0 | AG20: =U20*'熱量換算係数(電気・ガス以外)'!C16 -> 0 | AP20: =IF(AU20<>"ー",AU20, IF($AX19="―",AG20*'排出係数(燃料)'!$C$25/12*44,AG20*$AX19/12*44)) -> 0 | AU20: ―
G21: 石炭(原料炭) | L21: ｔ | O21: 0 | U21: 0 | AA21: =O21*'熱量換算係数(電気・ガス以外)'!C21 -> 0 | AG21: =U21*'熱量換算係数(電気・ガス以外)'!C21 -> 0 | AN21: =IF(AS21<>"ー",AS21, IF($AX21="―",AA21*'排出係数(燃料)'!$C$3/12*44,AA21*$AX21/12*44)) -> 0 | AP21: =IF(AU21<>"ー",AU21, IF($AX21="―",AG21*'排出係数(燃料)'!$C$3/12*44,AG21*$AX21/12*44)) -> 0 | AS21: ― | AU21: ― | AX21: ―
G22: 連携分 | L22: ｔ | U22: 0 | AG22: =U22*'熱量換算係数(電気・ガス以外)'!C21 -> 0 | AP22: =IF(AU22<>"ー",AU22, IF($AX21="―",AG22*'排出係数(燃料)'!$C$3/12*44,AG22*$AX21/12*44)) -> 0 | AU22: ―
G23: 石炭(一般炭) | L23: ｔ | O23: 0 | U23: 0 | AA23: =O23*('熱量換算係数(電気・ガス以外)'!C21+'熱量換算係数(電気・ガス以外)'!C22)/2 -> 0 | AG23: =U23*('熱量換算係数(電気・ガス以外)'!C21+'熱量換算係数(電気・ガス以外)'!C22)/2 -> 0 | AN23: =IF(AS23<>"ー",AS23, IF($AX23="―",AA23*'排出係数(燃料)'!$C$6/12*44,AA23*$AX23/12*44)) -> 0 | AP23: =IF(AU23<>"ー",AU23, IF($AX23="―",AG23*'排出係数(燃料)'!$C$6/12*44,AG23*$AX23/12*44)) -> 0 | AS23: ― | AU23: ― | AX23: ―
G24: 連携分 | L24: ｔ | U24: 0 | AG24: =U24*('熱量換算係数(電気・ガス以外)'!C21+'熱量換算係数(電気・ガス以外)'!C22)/2 -> 0 | AP24: =IF(AU24<>"ー",AU24, IF($AX23="―",AG24*'排出係数(燃料)'!$C$6/12*44,AG24*$AX23/12*44)) -> 0 | AU24: ―
G25: 石炭(無煙炭) | L25: ｔ | O25: 0 | U25: 0 | AA25: =O25*'熱量換算係数(電気・ガス以外)'!C23 -> 0 | AG25: =U25*'熱量換算係数(電気・ガス以外)'!C23 -> 0 | AN25: =IF(AS25<>"ー",AS25, IF($AX25="―",AA25*'排出係数(燃料)'!$C$8/12*44,AA25*$AX25/12*44)) -> 0 | AP25: =IF(AU25<>"ー",AU25, IF($AX25="―",AG25*'排出係数(燃料)'!$C$8/12*44,AG25*$AX25/12*44)) -> 0 | AS25: ― | AU25: ― | AX25: ―
G26: 連携分 | L26: ｔ | U26: 0 | AG26: =U26*'熱量換算係数(電気・ガス以外)'!C23 -> 0 | AP26: =IF(AU26<>"ー",AU26, IF($AX25="―",AG26*'排出係数(燃料)'!$C$8/12*44,AG26*$AX25/12*44)) -> 0 | AU26: ―
G27: 都市ガス （ＣＮＧを含む。） | L27: 千m３ | O27: ='入力補助(ガス)(旅客)'!$G$55 -> 0 | U27: ='入力補助(ガス)(旅客)'!$H$55 -> 0 | AA27: ='入力補助(ガス)(旅客)'!$J$55 -> 0 | AG27: ='入力補助(ガス)(旅客)'!$K$55 -> 0 | AN27: ='入力補助(ガス)(旅客)'!$M$55 -> 0 | AP27: ='入力補助(ガス)(旅客)'!$N$55 -> 0
G28: 連携分 | L28: 千m３ | U28: ='入力補助(ガス)(旅客)'!$I$55 -> 0 | AG28: ='入力補助(ガス)(旅客)'!$L$55 -> 0 | AP28: ='入力補助(ガス)(旅客)'!$O$55 -> 0
G29: その他（ ） | O29: 0 | U29: 0 | AA29: 0 | AG29: 0 | AN29: =IF(AS29<>"―",AS29,IF($AX29<>"―",AA29*$AX29/12*44,"― ")) -> ― | AP29: =IF(AU29<>"―",AU29,IF($AX29<>"―",AG29*$AX29/12*44,"― ")) -> ― | AS29: ― | AU29: ― | AX29: ―
G30: 連携分 | L30: =IF(L29<>"",L29,"") ->  | U30: 0 | AG30: 0 | AP30: =IF(AU30<>"―",AU30,IF($AX29<>"―",AG30*$AX29/12*44,"― ")) -> ― | AU30: ―
G31: その他（ ） | O31: 0 | U31: 0 | AA31: 0 | AG31: 0 | AN31: =IF(AS31<>"―",AS31,IF($AX31<>"―",AA31*$AX31/12*44,"― ")) -> ― | AP31: =IF(AU31<>"―",AU31,IF($AX31<>"―",AG31*$AX31/12*44,"― ")) -> ― | AS31: ― | AU31: ― | AX31: ―
... 38 more rows

Sheet 第1表2-2(旅客)
B2: 1 | D2: ２―２．旅客輸送による電気需要最適化を踏まえた電力使用量の内訳
D3: 時間帯 | H3: 単位 | K3: 年度
K4: 使用量 | S4: 連携分を除いた エネルギー使用量 | AC4: 連携省エネルギー分の エネルギー使用量
K6: 数値 | N6: 原油換算 kl | S6: 数値 | X6: 原油換算 ｋｌ | AC6: 数値 | AH6: 原油換算 ｋｌ
AO7: 月別電気需要最適化係数
D8: 月 別 | E8: ４月 | H8: 千kWh | K8: =IF($B$2=2,"",'入力補助(電気・月別)(旅客)'!AG$60+'入力補助(電気・月別)(旅客)'!AG$62) -> 0 | N8: =IF($B$2=2,"",$AO8/8.64*0.0258*('入力補助(電気・月別)(旅客)'!AK$60+'入力補助(電気・月別)(旅客)'!AK$62)) -> 0 | S8: =IF($B$2=2,"",'入力補助(電気・月別)(旅客)'!AG140+'入力補助(電気・月別)(旅客)'!AG142) -> 0 | X8: =IF($B$2=2,"",$AO8/8.64*0.0258*('入力補助(電気・月別)(旅客)'!AK140+'入力補助(電気・月別)(旅客)'!AK142)) -> 0 | AC8: =IF($B$2=2,"",'入力補助(電気・月別)(旅客)'!AG208+'入力補助(電気・月別)(旅客)'!AG210) -> 0 | AH8: =IF($B$2=2,"",$AO8/8.64*0.0258*('入力補助(電気・月別)(旅客)'!AK208+'入力補助(電気・月別)(旅客)'!AK210)) -> 0 | AO8: =HLOOKUP(表紙!$W$52,月別電気需要最適化係数!$C$2:$M$3,2) -> 8.975
E9: ５月 | H9: 千kWh | K9: =IF($B$2=2,"",'入力補助(電気・月別)(旅客)'!AX$60+'入力補助(電気・月別)(旅客)'!AX$62) -> 0 | N9: =IF($B$2=2,"",$AO9/8.64*0.0258*('入力補助(電気・月別)(旅客)'!BB$60+'入力補助(電気・月別)(旅客)'!BB$62)) -> 0 | S9: =IF($B$2=2,"",'入力補助(電気・月別)(旅客)'!AX140+'入力補助(電気・月別)(旅客)'!AX142) -> 0 | X9: =IF($B$2=2,"",$AO9/8.64*0.0258*('入力補助(電気・月別)(旅客)'!BB140+'入力補助(電気・月別)(旅客)'!BB142)) -> 0 | AC9: =IF($B$2=2,"",'入力補助(電気・月別)(旅客)'!AX208+'入力補助(電気・月別)(旅客)'!AX210) -> 0 | AH9: =IF($B$2=2,"",$AO9/8.64*0.0258*('入力補助(電気・月別)(旅客)'!BB208+'入力補助(電気・月別)(旅客)'!BB210)) -> 0 | AO9: =HLOOKUP(表紙!$W$52,月別電気需要最適化係数!$C$2:$M$4,3) -> 9.013
E10: ６月 | H10: 千kWh | K10: =IF($B$2=2,"",'入力補助(電気・月別)(旅客)'!$BO$60+'入力補助(電気・月別)(旅客)'!$BO$62) -> 0 | N10: =IF($B$2=2,"",$AO10/8.64*0.0258*('入力補助(電気・月別)(旅客)'!BS$60+'入力補助(電気・月別)(旅客)'!BS$62)) -> 0 | S10: =IF($B$2=2,"",'入力補助(電気・月別)(旅客)'!BO140+'入力補助(電気・月別)(旅客)'!BO142) -> 0 | X10: =IF($B$2=2,"",$AO10/8.64*0.0258*('入力補助(電気・月別)(旅客)'!BS140+'入力補助(電気・月別)(旅客)'!BS142)) -> 0 | AC10: =IF($B$2=2,"",'入力補助(電気・月別)(旅客)'!BO208+'入力補助(電気・月別)(旅客)'!BO210) -> 0 | AH10: =IF($B$2=2,"",$AO10/8.64*0.0258*('入力補助(電気・月別)(旅客)'!BS208+'入力補助(電気・月別)(旅客)'!BS210)) -> 0 | AO10: =HLOOKUP(表紙!$W$52,月別電気需要最適化係数!$C$2:$M$5,4) -> 9.254
E11: ７月 | H11: 千kWh | K11: =IF($B$2=2,"",'入力補助(電気・月別)(旅客)'!CF$60+'入力補助(電気・月別)(旅客)'!CF$62) -> 0 | N11: =IF($B$2=2,"",$AO11/8.64*0.0258*('入力補助(電気・月別)(旅客)'!CJ$60+'入力補助(電気・月別)(旅客)'!CJ$62)) -> 0 | S11: =IF($B$2=2,"",'入力補助(電気・月別)(旅客)'!CF140+'入力補助(電気・月別)(旅客)'!CF142) -> 0 | X11: =IF($B$2=2,"",$AO11/8.64*0.0258*('入力補助(電気・月別)(旅客)'!CJ140+'入力補助(電気・月別)(旅客)'!CJ142)) -> 0 | AC11: =IF($B$2=2,"",'入力補助(電気・月別)(旅客)'!CF208+'入力補助(電気・月別)(旅客)'!CF210) -> 0 | AH11: =IF($B$2=2,"",$AO11/8.64*0.0258*('入力補助(電気・月別)(旅客)'!CJ208+'入力補助(電気・月別)(旅客)'!CJ210)) -> 0 | AO11: =HLOOKUP(表紙!$W$52,月別電気需要最適化係数!$C$2:$M$6,5) -> 9.397
E12: ８月 | H12: 千kWh | K12: =IF($B$2=2,"",'入力補助(電気・月別)(旅客)'!CW$60+'入力補助(電気・月別)(旅客)'!CW$62) -> 0 | N12: =IF($B$2=2,"",$AO12/8.64*0.0258*('入力補助(電気・月別)(旅客)'!DA$60+'入力補助(電気・月別)(旅客)'!DA$62)) -> 0 | S12: =IF($B$2=2,"",'入力補助(電気・月別)(旅客)'!CW140+'入力補助(電気・月別)(旅客)'!CW142) -> 0 | X12: =IF($B$2=2,"",$AO12/8.64*0.0258*('入力補助(電気・月別)(旅客)'!DA140+'入力補助(電気・月別)(旅客)'!DA142)) -> 0 | AC12: =IF($B$2=2,"",'入力補助(電気・月別)(旅客)'!CW208+'入力補助(電気・月別)(旅客)'!CW210) -> 0 | AH12: =IF($B$2=2,"",$AO12/8.64*0.0258*('入力補助(電気・月別)(旅客)'!DA208+'入力補助(電気・月別)(旅客)'!DA210)) -> 0 | AO12: =HLOOKUP(表紙!$W$52,月別電気需要最適化係数!$C$2:$M$7,6) -> 9.394
E13: ９月 | H13: 千kWh | K13: =IF($B$2=2,"",'入力補助(電気・月別)(旅客)'!DN$60+'入力補助(電気・月別)(旅客)'!DN$62) -> 0 | N13: =IF($B$2=2,"",$AO13/8.64*0.0258*('入力補助(電気・月別)(旅客)'!DR$60+'入力補助(電気・月別)(旅客)'!DR$62)) -> 0 | S13: =IF($B$2=2,"",'入力補助(電気・月別)(旅客)'!DN140+'入力補助(電気・月別)(旅客)'!DN142) -> 0 | X13: =IF($B$2=2,"",$AO13/8.64*0.0258*('入力補助(電気・月別)(旅客)'!DR140+'入力補助(電気・月別)(旅客)'!DR142)) -> 0 | AC13: =IF($B$2=2,"",'入力補助(電気・月別)(旅客)'!DN208+'入力補助(電気・月別)(旅客)'!DN210) -> 0 | AH13: =IF($B$2=2,"",$AO13/8.64*0.0258*('入力補助(電気・月別)(旅客)'!DR208+'入力補助(電気・月別)(旅客)'!DR210)) -> 0 | AO13: =HLOOKUP(表紙!$W$52,月別電気需要最適化係数!$C$2:$M$8,7) -> 9.361
E14: １０月 | H14: 千kWh | K14: =IF($B$2=2,"",'入力補助(電気・月別)(旅客)'!EE$60+'入力補助(電気・月別)(旅客)'!EE$62) -> 0 | N14: =IF($B$2=2,"",$AO14/8.64*0.0258*('入力補助(電気・月別)(旅客)'!EI$60+'入力補助(電気・月別)(旅客)'!EI$62)) -> 0 | S14: =IF($B$2=2,"",'入力補助(電気・月別)(旅客)'!EE140+'入力補助(電気・月別)(旅客)'!EE142) -> 0 | X14: =IF($B$2=2,"",$AO14/8.64*0.0258*('入力補助(電気・月別)(旅客)'!EI140+'入力補助(電気・月別)(旅客)'!EI142)) -> 0 | AC14: =IF($B$2=2,"",'入力補助(電気・月別)(旅客)'!EE208+'入力補助(電気・月別)(旅客)'!EE210) -> 0 | AH14: =IF($B$2=2,"",$AO14/8.64*0.0258*('入力補助(電気・月別)(旅客)'!EI208+'入力補助(電気・月別)(旅客)'!EI210)) -> 0 | AO14: =HLOOKUP(表紙!$W$52,月別電気需要最適化係数!$C$2:$M$9,8) -> 9.21
E15: １１月 | H15: 千kWh | K15: =IF($B$2=2,"",'入力補助(電気・月別)(旅客)'!EV$60+'入力補助(電気・月別)(旅客)'!EV$62) -> 0 | N15: =IF($B$2=2,"",$AO15/8.64*0.0258*('入力補助(電気・月別)(旅客)'!EZ$60+'入力補助(電気・月別)(旅客)'!EZ$62)) -> 0 | S15: =IF($B$2=2,"",'入力補助(電気・月別)(旅客)'!EV140+'入力補助(電気・月別)(旅客)'!EV142) -> 0 | X15: =IF($B$2=2,"",$AO15/8.64*0.0258*('入力補助(電気・月別)(旅客)'!EZ140+'入力補助(電気・月別)(旅客)'!EZ142)) -> 0 | AC15: =IF($B$2=2,"",'入力補助(電気・月別)(旅客)'!EV208+'入力補助(電気・月別)(旅客)'!EV210) -> 0 | AH15: =IF($B$2=2,"",$AO15/8.64*0.0258*('入力補助(電気・月別)(旅客)'!EZ208+'入力補助(電気・月別)(旅客)'!EZ210)) -> 0 | AO15: =HLOOKUP(表紙!$W$52,月別電気需要最適化係数!$C$2:$M$10,9) -> 9.291
E16: １２月 | H16: 千kWh | K16: =IF($B$2=2,"",'入力補助(電気・月別)(旅客)'!FM$60+'入力補助(電気・月別)(旅客)'!FM$62) -> 0 | N16: =IF($B$2=2,"",$AO16/8.64*0.0258*('入力補助(電気・月別)(旅客)'!FQ$60+'入力補助(電気・月別)(旅客)'!FQ$62)) -> 0 | S16: =IF($B$2=2,"",'入力補助(電気・月別)(旅客)'!FM140+'入力補助(電気・月別)(旅客)'!FM142) -> 0 | X16: =IF($B$2=2,"",$AO16/8.64*0.0258*('入力補助(電気・月別)(旅客)'!FQ140+'入力補助(電気・月別)(旅客)'!FQ142)) -> 0 | AC16: =IF($B$2=2,"",'入力補助(電気・月別)(旅客)'!FM208+'入力補助(電気・月別)(旅客)'!FM210) -> 0 | AH16: =IF($B$2=2,"",$AO16/8.64*0.0258*('入力補助(電気・月別)(旅客)'!FQ208+'入力補助(電気・月別)(旅客)'!FQ210)) -> 0 | AO16: =HLOOKUP(表紙!$W$52,月別電気需要最適化係数!$C$2:$M$11,10) -> 9.362
E17: １月 | H17: 千kWh | K17: =IF($B$2=2,"",'入力補助(電気・月別)(旅客)'!GD$60+'入力補助(電気・月別)(旅客)'!GD$62) -> 0 | N17: =IF($B$2=2,"",$AO17/8.64*0.0258*('入力補助(電気・月別)(旅客)'!GH$60+'入力補助(電気・月別)(旅客)'!GH$62)) -> 0 | S17: =IF($B$2=2,"",'入力補助(電気・月別)(旅客)'!GD140+'入力補助(電気・月別)(旅客)'!GD142) -> 0 | X17: =IF($B$2=2,"",$AO17/8.64*0.0258*('入力補助(電気・月別)(旅客)'!GH140+'入力補助(電気・月別)(旅客)'!GH142)) -> 0 | AC17: =IF($B$2=2,"",'入力補助(電気・月別)(旅客)'!GD208+'入力補助(電気・月別)(旅客)'!GD210) -> 0 | AH17: =IF($B$2=2,"",$AO17/8.64*0.0258*('入力補助(電気・月別)(旅客)'!GH208+'入力補助(電気・月別)(旅客)'!GH210)) -> 0 | AO17: =HLOOKUP(表紙!$W$52,月別電気需要最適化係数!$C$2:$M$12,11) -> 9.347
E18: ２月 | H18: 千kWh | K18: =IF($B$2=2,"",'入力補助(電気・月別)(旅客)'!GU$60+'入力補助(電気・月別)(旅客)'!GU$62) -> 0 | N18: =IF($B$2=2,"",$AO18/8.64*0.0258*('入力補助(電気・月別)(旅客)'!GY$60+'入力補助(電気・月別)(旅客)'!GY$62)) -> 0 | S18: =IF($B$2=2,"",'入力補助(電気・月別)(旅客)'!GU140+'入力補助(電気・月別)(旅客)'!GU142) -> 0 | X18: =IF($B$2=2,"",$AO18/8.64*0.0258*('入力補助(電気・月別)(旅客)'!GY140+'入力補助(電気・月別)(旅客)'!GY142)) -> 0 | AC18: =IF($B$2=2,"",'入力補助(電気・月別)(旅客)'!GU208+'入力補助(電気・月別)(旅客)'!GU210) -> 0 | AH18: =IF($B$2=2,"",$AO18/8.64*0.0258*('入力補助(電気・月別)(旅客)'!GY208+'入力補助(電気・月別)(旅客)'!GY210)) -> 0 | AO18: =HLOOKUP(表紙!$W$52,月別電気需要最適化係数!$C$2:$M$13,12) -> 9.267
E19: ３月 | H19: 千kWh | K19: =IF($B$2=2,"",'入力補助(電気・月別)(旅客)'!HL$60+'入力補助(電気・月別)(旅客)'!HL$62) -> 0 | N19: =IF($B$2=2,"",$AO19/8.64*0.0258*('入力補助(電気・月別)(旅客)'!HP$60+'入力補助(電気・月別)(旅客)'!HP$62)) -> 0 | S19: =IF($B$2=2,"",'入力補助(電気・月別)(旅客)'!HL140+'入力補助(電気・月別)(旅客)'!HL142) -> 0 | X19: =IF($B$2=2,"",$AO19/8.64*0.0258*('入力補助(電気・月別)(旅客)'!HP140+'入力補助(電気・月別)(旅客)'!HP142)) -> 0 | AC19: =IF($B$2=2,"",'入力補助(電気・月別)(旅客)'!HL208+'入力補助(電気・月別)(旅客)'!HL210) -> 0 | AH19: =IF($B$2=2,"",$AO19/8.64*0.0258*('入力補助(電気・月別)(旅客)'!HP208+'入力補助(電気・月別)(旅客)'!HP210)) -> 0 | AO19: =HLOOKUP(表紙!$W$52,月別電気需要最適化係数!$C$2:$M$13,12) -> 9.267
D20: 時 間 帯 別 | E20: 出力制御時間帯 | H20: 千kWh | K20: =IF($B$2=1,"",'入力補助(電気・時間別)(旅客)'!Y60+'入力補助(電気・時間別)(旅客)'!Y62) ->  | N20: =IF($B$2=1,"",3.6/8.64*0.0258*('入力補助(電気・時間別)(旅客)'!AC60+'入力補助(電気・時間別)(旅客)'!AC62)) ->  | S20: =IF($B$2=1,"",'入力補助(電気・時間別)(旅客)'!Y140+'入力補助(電気・時間別)(旅客)'!Y142) ->  | X20: =IF($B$2=1,"",3.6/8.64*0.0258*('入力補助(電気・時間別)(旅客)'!AC140+'入力補助(電気・時間別)(旅客)'!AC142)) ->  | AC20: =IF($B$2=1,"",'入力補助(電気・時間別)(旅客)'!Y208+'入力補助(電気・時間別)(旅客)'!Y210) ->  | AH20: =IF($B$2=1,"",3.6/8.64*0.0258*('入力補助(電気・時間別)(旅客)'!AC208+'入力補助(電気・時間別)(旅客)'!AC210)) -> 
E21: 需給が厳しい時間帯 | H21: 千kWh | K21: =IF($B$2=1,"",'入力補助(電気・時間別)(旅客)'!Z60+'入力補助(電気・時間別)(旅客)'!Z62) ->  | N21: =IF($B$2=1,"",12.2/8.64*0.0258*('入力補助(電気・時間別)(旅客)'!AD60+'入力補助(電気・時間別)(旅客)'!AD62)) ->  | S21: =IF($B$2=1,"",'入力補助(電気・時間別)(旅客)'!Z140+'入力補助(電気・時間別)(旅客)'!Z142) ->  | X21: =IF($B$2=1,"",12.2/8.64*0.0258*('入力補助(電気・時間別)(旅客)'!AD140+'入力補助(電気・時間別)(旅客)'!AD142)) ->  | AC21: =IF($B$2=1,"",'入力補助(電気・時間別)(旅客)'!Z208+'入力補助(電気・時間別)(旅客)'!Z210) ->  | AH21: =IF($B$2=1,"",12.2/8.64*0.0258*('入力補助(電気・時間別)(旅客)'!AD208+'入力補助(電気・時間別)(旅客)'!AD210)) -> 
E22: その他の時間帯 | H22: 千kWh | K22: =IF($B$2=1,"",'入力補助(電気・時間別)(旅客)'!AA60+'入力補助(電気・時間別)(旅客)'!AA62) ->  | N22: =IF($B$2=1,"",9.4/8.64*0.0258*('入力補助(電気・時間別)(旅客)'!AE60+'入力補助(電気・時間別)(旅客)'!AE62)) ->  | S22: =IF($B$2=1,"",'入力補助(電気・時間別)(旅客)'!Z140+'入力補助(電気・時間別)(旅客)'!Z142) ->  | X22: =IF($B$2=1,"",9.4/8.64*0.0258*('入力補助(電気・時間別)(旅客)'!AE140+'入力補助(電気・時間別)(旅客)'!AE142)) ->  | AC22: =IF($B$2=1,"",'入力補助(電気・時間別)(旅客)'!AC208+'入力補助(電気・時間別)(旅客)'!AC210) ->  | AH22: =IF($B$2=1,"",9.4/8.64*0.0258*('入力補助(電気・時間別)(旅客)'!AE208+'入力補助(電気・時間別)(旅客)'!AE210)) -> 
D23: 合計 | N23: =IF(B2=1,SUM(N8:R19),SUM(N20:R22)) -> 0 | X23: =IF(B2=1,SUM(X8:AB19),SUM(X20:AB22)) -> 0 | AH23: =IF(B2=1,SUM(AH8:AL19),SUM(AH20:AL22)) -> 0

Sheet 入力補助(電気・月別)(旅客)
B1: ※E列で「非燃料由来の非化石電気（オンサイトPPA含む）」を選択した場合は、G列で「太陽光」～「水力」を選択。※電気の種類で全て「その他」を選択した場合は、必ず各種係数を手入力。また、第１表１－１にも必ず直接入力。
A2: 使用量 | J2: 全国平均係数(t-CO₂/千kWh)： | K2: ='排出係数(電気)'!D1266 -> 0.438 | CC2: ※昼間：8~22時 | CT2: ※昼間：8~22時 | DK2: ※昼間：8~22時 | FJ2: ※昼間：8~22時 | GA2: ※昼間：8~22時 | GR2: ※昼間：8~22時 | HI2: ※昼間：8~22時
B3: 電気の種類 ※シート「熱量換算係数(電気)」を参考に選択 | G3: ○電気事業者からの買電の場合 →電気事業者名を選択 ○その他非化石電気の場合 →再エネの種類を選択（例：太陽光） ※その他の場合は空欄 | H3: ○電気事業者からの買電の場合 →電力メニューを選択 ※電気事業者からの買電の場合で、メニューがない場合は「―」を選択。その他の場合は空欄。 | I3: 熱量換算係数 （GJ/千kWh） | J3: CO2基礎排出係数 （tCO2/千kWh） | K3: CO2調整後排出係数 （tCO2/千kWh） | L3: 合計 | M3: 電気需要平準化対応 | Y3: 電気需要最適化対応 | AC3: 4月 | AT3: 5月 | BK3: 6月 | CB3: 7月 | CS3: 8月 | DJ3: 9月 | EA3: 10月 | ER3: 11月 | FI3: 12月 | FZ3: 1月 | GQ3: 2月 | HH3: 3月
